Workbook

Sheet 01.BALANCE ENERGIA Mar-19 Def
B1: Mes | C1: 2019-03-01
B3: Total | C3: =+SUM(C9:C437) -> 4.172325134e-05 | D3: =+SUM(D9:D437) -> 4.172325134e-05
B4: Positivo | C4: =+SUMIF(C$9:C$437,">0") -> 5.210897024e+10 | D4: =+SUMIF(D$9:D$437,">0") -> 5.210897024e+10
B5: Negativo | C5: =+SUMIF(C$9:C$437,"<0") -> -5.210897024e+10 | D5: =+SUMIF(D$9:D$437,"<0") -> -5.210897024e+10 | J5: CUADRO DE PAGOS 01.BALANCE ENERGIA Mar-19 Def (Valores en $)
F6: ="Balance Energía "& TEXT(C1,"mmm-yy") -> Balance Energía mar-yy
C7: Datos | K7: Reciben
B8: Empresa | C8: Energía SEN | D8: TOTAL | F8: Empresa | G8: Paga | H8: Recibe | J8: Pagan | K8: GASATACAMA | L8: GMETROPOLITANA | M8: IMELSA_ENERGIA | N8: COLBUN | O8: ARAUCO BIO | P8: SGA | Q8: NUEVA ENERGIA | R8: ELEKTRAGEN | S8: GESAN | T8: PUNTILLA | U8: EL MANZANO | V8: ESPINOS | W8: ENLASA | X8: PARQUE_EOLICO_LEBU | Y8: ORAFTI | Z8: ALTO_MANGA_ENERGY | AA8: GENPAC | AB8: NORVIND | AC8: PANGUIPULLI | AD8: HIDROPALOMA | AE8: EMELDA | AF8: SWO | AG8: NUEVA DEGAN | AH8: BARRICK | AI8: CARRAN | AJ8: DONGO | AK8: HIDROLIRCAY | AL8: LOS MORROS | AM8: DIUTO | AN8: LICAN | AO8: ENERGIA PACIFICO | AP8: DONGUIL | AQ8: PEHUI | AR8: COMASA | AS8: ENERBOSCH | AT8: HIDROMUCHI | AU8: LA ARENA SPA | AV8: CARDONES SA | AW8: BE FORESTALES | AX8: ALLIPEN | AY8: CARBOMET | AZ8: HIDRONALCAS | BA8: HIDROCALLAO | BB8: MAPOCHO TREBAL | BC8: UCUQUER | BD8: TAMM | BE8: ROBLERIA | BF8: GENERHOM | BG8: WENKE | BH8: HIDROBONITO | BI8: SUBSOLE | BJ8: SOLAIREDIRECT | BK8: SANTAMARTA | BL8: RIO HUASCO | BM8: SANTA IRENE | BN8: COLMITO | BO8: COMMONPLACE | BP8: AMANECER SOLAR | BQ8: SAN_ANDRES_SPA | BR8: ENERGIA_LEON | BS8: ENERGIAS_DEL_FUTURO | BT8: BIOCRUZ | BU8: HBS | BV8: ALBA | BW8: LOS_CURUROS | BX8: LOMAS_COLORADAS | BY8: PAMA | BZ8: RIO_PUMA | CA8: GM_HOLDINGS | CB8: PH_PUNTA_SIERRA | CC8: UCUQUER_DOS | CD8: EBCO_ATACAMA | CE8: PV_SALVADOR | CF8: COLLIL | CG8: MARIA_ELENA | CH8: LAS_FLORES | CI8: BESALCO | CJ8: CURILEUFU | CK8: BIOBIO_NEGRETE | CL8: LUZ_DEL_NORTE | CM8: RAKI | CN8: TRAILELFU | CO8: GR_PAN_DE_AZUCAR | CP8: PUCLARO | CQ8: HUAJACHE | CR8: EL_MIRADOR | CS8: RIO_MULCHEN | CT8: EGP_SUR | CU8: ANDES_GENERACION | CV8: EL_MORADO | CW8: CAREN | CX8: CHUNGUNGO | CY8: SPVP4 | CZ8: RENOVALIA_6 | DA8: RENOVALIA_7 | DB8: TILTIL_SOLAR | DC8: BELLAVISTA | DD8: MALLARAUCO | DE8: M_VILLARRICA | DF8: EOLICA_ESPERANZA | DG8: CHANLEUFU | DH8: RASO_POWER | DI8: CONEJO_SOLAR | DJ8: LOS_LOROS | DK8: ALTOS_DEL_PAICO | DL8: EL_AGRIO | DM8: DIVISADERO | DN8: CUMPEO | DO8: TEATINOS | DP8: GR_HUINGAN | DQ8: GR_COIGUE | DR8: HORMIGA_SOLAR | DS8: RAGSA | DT8: BIO_ENERGIA_MOLINA | DU8: GESTEL | DV8: CUZCUZ | DW8: GR_ARAUCARIA | DX8: MAINCO | DY8: EL_ARROYO | DZ8: LOS_PINOS_BIO | EA8: EL_BOCO | EB8: SANTIAGO_SOLAR | EC8: GENERADORA_PIUTEL | ED8: HIDRORIÑINAHUE | EE8: GR_CANELO | EF8: LA_LEONERA | EG8: CABO_LEONES | EH8: RIO_COLORADO | EI8: LAS_TURCAS | EJ8: GR_GUAYACAN | EK8: DOS_VALLES | EL8: SOCER | EM8: COYANCO | EN8: GR_ESPINO | EO8: HIDROMUNILQUE | EP8: SAN_FRANCISCO | EQ8: QUINTA_SOLAR | ER8: VALLE_DE_LA_LUNA_II | ES8: GR_LINGUE | ET8: QUELTEHUE | EU8: CHESTER_SOLAR_IV | EV8: CHESTER_SOLAR_V | EW8: PV_CHANCON | EX8: PITIO | EY8: CH _SANTA_ELENA | EZ8: AMPARO | FA8: PARRONAL | FB8: GR_TIACA | FC8: EMBALSE_ANCOA | FD8: GR_BOLDO | FE8: PV_PORTEZUELO | FF8: PLANETA_INVESTMENT | FG8: SOLAR_E | FH8: GORRIONES | FI8: PV_EL_PICURIO | FJ8: CHINCOL | FK8: VILLA_PRAT_ENERGY | FL8: PS_SANTALAURA | FM8: GR_ARRAYAN | FN8: PFV_OCOA | FO8: PV_LAS_PALOMAS | FP8: PALACIOS | FQ8: MINICENTRALES_ARAUCANIA | FR8: LA_ACACIA | FS8: GR_LITRE | FT8: GR_LAUREL | FU8: PATOS | FV8: TACORA_ENERGY | FW8: CH_CONVENTO_VIEJO | FX8: CH_EL_MANZANO | FY8: MINICENTRAL_ARRAYAN | FZ8: GR_TINEO | GA8: PV_RODEO | GB8: LIPIGAS | GC8: PV_LA_FRONTERA | GD8: EL_CERNICALO | GE8: FOTOVOLT_SOLAR_I | GF8: ABASTIBLE | GG8: SINERGIA_SOLAR_SPA | GH8: VALLE_SOLAR_OESTE_2 | GI8: PILPEN | GJ8: HIDROELECTRICA SAN ANDRES | GK8: AASA_ENERGIA | GL8: LA_MANGA_ENERGY | GM8: NEOMAS | GN8: EL_QUEULE | GO8: LOA_SOLAR | GP8: PIQUERO | GQ8: MIMBRE | GR8: PARQUE_SOLAR | GS8: DIEGO_DE_ALMAGRO_SOLAR | GT8: PFALICAHUE_SOLAR | GU8: LUNA_ENERGY | GV8: CALLE_LARGA_SPA | GW8: NUOVOSOL_SPA | GX8: APOLO_DEL_NORTE_SPA | GY8: GENERADORA_ZAPALLAR | GZ8: SOLAR_UNO | HA8: COCHRANE | HB8: GENERACION_SOLAR_SPA | HC8: NORACID | HD8: ANGAMOS | HE8: HELIO_ATACAMA_TRES | HF8: PLANTA_SOLAR_SPIII | HG8: CALAMA_SOLAR_1 | HH8: PUERTO_SECO | HI8: ENERNUEVAS | HJ8: CAVANCHA | HK8: SPS_LA_HUAYCA | HL8: LOS_PUQUIOS | HM8: FV_NORTE_GRANDE_5 | HN8: POZO_ALMONTE_SOLAR_1 | HO8: POZO_ALMONTE_SOLAR_3 | HP8: SOLAR_TI_CUATRO | HQ8: VITUCO | HR8: POBLACION_SOLAR | HS8: REDEN_CABILDO_SOLAR | HT8: REDEN_TALHUEN_SOLAR | HU8: SANTA_CLARA | HV8: LAUREL_SPA | HW8: RIGEL_SPA | HX8: CUMBRES | HY8: SANTA_ADRIANA | HZ8: GR_CHAQUIHUE | IA8: ISABEL_SOLAR_SPA | IB8: CRUCERO_SPA | IC8: EL_ARREBOL | ID8: FV_ARIZTIA | IE8: LA HIGUERA | IF8: LA CONFLUENCIA | IG8: DUQUECO | IH8: ZALDIVAR_TRANSMISION | II8: Total
A9: =+MATCH(B9,RUT[EMPRESA],0) -> 108 | B9: ENEL_GENERACION | C9: -1.641574923e+10 | D9: =+C9 -> -1.641574923e+10 | F9: =IFERROR(INDEX($B$9:$B$511,MATCH(0,INDEX(COUNTIF($F$8:F8,$B$9:$B$511),0,0),0)),"") -> ENEL_GENERACION | G9: =IF(SUMIF($B$9:$B$400,F9,$D$9:$D$400)<-0.00001,SUMIF($B$9:$B$400,F9,$D$9:$D$400),"") -> -1.641574923e+10 | H9: =IF(SUMIF($B$9:$B$400,F9,$D$9:$D$400)>0.00001,SUMIF($B$9:$B$400,F9,$D$9:$D$400),"") ->  | J9: ENEL_GENERACION | K9: =$II9*K$64/$II$64 -> 2405412026 | L9: 1091617569 | M9: 99404720.51 | N9: 3000188864 | O9: 445790457.4 | P9: 101759695.1 | Q9: 7280263.357 | R9: 1247556.28 | S9: 5417589.263 | T9: 89801575.32 | U9: =$II9*U$64/$II$64 -> 51031515.56 | V9: 8480291.93 | W9: 473503807.1 | X9: 10928635.72 | Y9: 5617829 | Z9: 7609707.561 | AA9: 30417037.11 | AB9: 20701788.79 | AC9: 130553309.4 | AD9: 20577532.45 | AE9: =$II9*AE$64/$II$64 -> 19637347.09 | AF9: 4402135.088 | AG9: 9333299.989 | AH9: 7869.69754 | AI9: 4512610.14 | AJ9: 15299701.37 | AK9: 40045817.88 | AL9: 9834483.572 | AM9: 34232304.43 | AN9: 46231866.79 | AO9: =$II9*AO$64/$II$64 -> 85381961.69 | AP9: 552227.7748 | AQ9: 5550521.542 | AR9: 332338943.9 | AS9: 14762319.82 | AT9: 40639.46967 | AU9: 14921763.63 | AV9: 277169.2289 | AW9: 199337315 | AX9: 1881755.516 | AY9: =$II9*AY$64/$II$64 -> 12565928.39 | AZ9: 21410532.6 | BA9: 3827177.222 | BB9: 10511175.18 | BC9: 19877760.54 | BD9: 320364.2002 | BE9: 17857706.84 | BF9: 5696764.121 | BG9: 559747.792 | BH9: 23011359.36 | BI9: =$II9*BI$64/$II$64 -> 146133.6142 | BJ9: 1223299.922 | BK9: 75659692.08 | BL9: 25941993.66 | BM9: 2638220.177 | BN9: 480025224 | BO9: 6758455.58 | BP9: 188541211.6 | BQ9: 93482151.78 | BR9: 26038771.5 | BS9: =$II9*BS$64/$II$64 -> 186320.3896 | BT9: 19946581.51 | BU9: 2634719.355 | BV9: 142262106.4 | BW9: 59976399.98 | BX9: 5380429.374 | BY9: 5278282.27 | BZ9: 1456237.11 | CA9: 1544104705 | CB9: 183165751.7 | CC9: =$II9*CC$64/$II$64 -> 9107181.179 | CD9: 1269819.205 | CE9: 76837726.27 | CF9: 15772786.01 | CG9: 121217.1206 | CH9: 10729238.98 | CI9: 1042204.727 | CJ9: 946502.1103 | CK9: 4952097.196 | CL9: 163594945.4 | CM9: =$II9*CM$64/$II$64 -> 2296772.862 | CN9: 2433662.932 | CO9: 9475511.106 | CP9: 11154387.71 | CQ9: 1577957.094 | CR9: 1431847.694 | CS9: 1336489.239 | CT9: 110062547.1 | CU9: 7751100.704 | CV9: 48782233.95 | CW9: =$II9*CW$64/$II$64 -> 56183093.63 | CX9: 87650196.3 | CY9: 3390482.016 | CZ9: 5410238.596 | DA9: 5628337.682 | DB9: 6061273.43 | DC9: 1977587.167 | DD9: 29909302.7 | DE9: 716110.3434 | DF9: 2543501.63 | DG9: =$II9*DG$64/$II$64 -> 13691256.92 | DH9: 1321694.296 | DI9: 9038472.993 | DJ9: 68445099.53 | DK9: 457325.1639 | DL9: 1772047.861 | DM9: 10684627.64 | DN9: 16333024.57 | DO9: 4308375.721 | DP9: 16315440.2 | DQ9: =$II9*DQ$64/$II$64 -> 7493102.708 | DR9: 6036071.218 | DS9: 117297403.6 | DT9: 7497.650273 | DU9: 2674535.42 | DV9: 7818372.184 | DW9: 29551360.87 | DX9: 49922163.98 | DY9: 3237212.091 | DZ9: 9041095.833 | EA9: =$II9*EA$64/$II$64 -> 8131480.378 | EB9: 195715670.7 | EC9: 117049.3467 | ED9: 6955464.418 | EE9: 30884012.27 | EF9: 8174924.326 | EG9: 62595877.81 | EH9: 2543560 | EI9: 9102330.393 | EJ9: 6899203.467 | EK9: =$II9*EK$64/$II$64 -> 15899824 | EL9: 36593767.8 | EM9: 1605609.407 | EN9: 8827603.125 | EO9: 7268989.991 | EP9: 10544484.66 | EQ9: 9735660.648 | ER9: 8335180.497 | ES9: 15950901.4 | ET9: 8977523.494 | EU9: =$II9*EU$64/$II$64 -> 24589982.7 | EV9: 8312153.806 | EW9: 7752322.851 | EX9: 8159737.242 | EY9: 3529981.956 | EZ9: 8642911.089 | FA9: 8906627.248 | FB9: 7233893.328 | FC9: 83568653.06 | FD9: 9569232.373 | FE9: =$II9*FE$64/$II$64 -> 8162812.551 | FF9: 8855817.951 | FG9: 59183212.25 | FH9: 8771338.518 | FI9: 8681697.567 | FJ9: 8903427.045 | FK9: 8658809.116 | FL9: 7230287.228 | FM9: 20099494.48 | FN9: 9261863.252 | FO9: =$II9*FO$64/$II$64 -> 9083432.783 | FP9: 10341603.84 | FQ9: 2955411.183 | FR9: 21215339.96 | FS9: 27936739.18 | FT9: 9816193.572 | FU9: 9613047.261 | FV9: 11183922.55 | FW9: 1.753107727 | FX9: 49725.17267 | FY9: =$II9*FY$64/$II$64 -> 4629828.312 | FZ9: 6955892.932 | GA9: 8310404.13 | GB9: 1210703.614 | GC9: 12462553.24 | GD9: 8979146.52 | GE9: 1861888.027 | GF9: 1708655.272 | GG9: 26190951.57 | GH9: 25105658.74 | GI9: =$II9*GI$64/$II$64 -> 9326010.147 | GJ9: 243675570 | GK9: 366480.4606 | GL9: 6712389.227 | GM9: 23206466.31 | GN9: 8645087.873 | GO9: 17655100.8 | GP9: 9589840.228 | GQ9: 21013.58251 | GR9: 6651023.917 | GS9: =$II9*GS$64/$II$64 -> 37758033.57 | GT9: 7679470.236 | GU9: 8015888.49 | GV9: 9241410.102 | GW9: 16900208.82 | GX9: 18385692.1 | GY9: 196727.0022 | GZ9: 15736118.94 | HA9: 391146587.7 | HB9: 154780338.7 | HC9: =$II9*HC$64/$II$64 -> 114176940.3 | HD9: 410891876.2 | HE9: 272464134.9 | HF9: 73316777.37 | HG9: 38971139.05 | HH9: 24938452.48 | HI9: 14400568.02 | HJ9: 15352847.74 | HK9: 43328067.52 | HL9: 2828034.296 | HM9: =$II9*HM$64/$II$64 -> 128726824.9 | HN9: 39710838.96 | HO9: 8478706.129 | HP9: 4925518.341 | HQ9: 7751776.828 | HR9: 7865161.462 | HS9: 11753199.38 | HT9: 11513375.5 | HU9: 6769912.271 | HV9: 10816623.78 | HW9: =$II9*HW$64/$II$64 -> 28910610.25 | HX9: 69324602.89 | HY9: 8429410.994 | HZ9: 15574059.61 | IA9: 6730611.667 | IB9: 7742282.85 | IC9: 0.0001197666273 | ID9: 473766.3663 | IE9: 103054031.1 | IF9: 45690057.77 | IG9: 1406828.374 | IH9: 39196704.7 | II9: 1.641574923e+10
A10: =+MATCH(B10,RUT[EMPRESA],0) -> 331 | B10: GASATACAMA | C10: 7635566423 | D10: =+C10 -> 7635566423 | F10: =IFERROR(INDEX($B$9:$B$511,MATCH(0,INDEX(COUNTIF($F$8:F9,$B$9:$B$511),0,0),0)),"") -> GASATACAMA | G10: =IF(SUMIF($B$9:$B$400,F10,$D$9:$D$400)<-0.00001,SUMIF($B$9:$B$400,F10,$D$9:$D$400),"") ->  | H10: =IF(SUMIF($B$9:$B$400,F10,$D$9:$D$400)>0.00001,SUMIF($B$9:$B$400,F10,$D$9:$D$400),"") -> 7635566423 | J10: AES_GENER | K10: 43677884.12 | L10: 19821779.05 | M10: 1805007.964 | N10: 54477943.97 | O10: 8094739.584 | P10: 1847769.997 | Q10: 132196.2707 | R10: 22653.34091 | S10: 98373.51503 | T10: 1630632.407 | U10: 926639.0122 | V10: 153986.5954 | W10: 8597963.342 | X10: 198444.0419 | Y10: 102009.5025 | Z10: 138178.3751 | AA10: 552317.7768 | AB10: 375906.6314 | AC10: 2370609.384 | AD10: 373650.3635 | AE10: 356578.3166 | AF10: 79934.72396 | AG10: 169475.662 | AH10: 142.8993177 | AI10: 81940.74889 | AJ10: 277814.6015 | AK10: 727158.8294 | AL10: 178576.2394 | AM10: 621596.0551 | AN10: 839486.1666 | AO10: 1550380.305 | AP10: 10027.44665 | AQ10: 100787.3221 | AR10: 6034667.545 | AS10: 268056.7353 | AT10: 737.9384605 | AU10: 270951.9432 | AV10: 5032.886398 | AW10: 3619601.155 | AX10: 34169.23941 | AY10: 228174.2829 | AZ10: 388776.1232 | BA10: 69494.54042 | BB10: 190863.7217 | BC10: 360943.7852 | BD10: 5817.228095 | BE10: 324263.3037 | BF10: 103442.82 | BG10: 10163.99641 | BH10: 417844.2101 | BI10: 2653.519231 | BJ10: 22212.8898 | BK10: 1373841.666 | BL10: 471059.1703 | BM10: 47905.25446 | BN10: 8716380.348 | BO10: 122721.1956 | BP10: 3423563.657 | BQ10: 1697464.946 | BR10: 472816.479 | BS10: 3383.237591 | BT10: 362193.4481 | BU10: 47841.68593 | BV10: 2583219.728 | BW10: 1089061.758 | BX10: 97698.7594 | BY10: 95843.95477 | BZ10: 26442.6032 | CA10: 28038118.07 | CB10: 3325955.134 | CC10: 165369.7579 | CD10: 23057.59491 | CE10: 1395232.612 | CF10: 286404.9537 | CG10: 2201.081266 | CH10: 194823.3616 | CI10: 18924.53219 | CJ10: 17186.74766 | CK10: 89921.03025 | CL10: 2970585.077 | CM10: 41705.19555 | CN10: 44190.86893 | CO10: 172057.9558 | CP10: 202543.2853 | CQ10: 28652.81556 | CR10: 25999.73602 | CS10: 24268.20083 | CT10: 1998534.608 | CU10: 140745.816 | CV10: 885796.1709 | CW10: 1020182.25 | CX10: 1591567.298 | CY10: 61564.95395 | CZ10: 98240.04036 | DA10: 102200.321 | DB10: 110061.6425 | DC10: 35909.36695 | DD10: 543098.2483 | DE10: 13003.25444 | DF10: 46185.33884 | DG10: 248608.1913 | DH10: 23999.55171 | DI10: 164122.1428 | DJ10: 1242837.857 | DK10: 8304.188764 | DL10: 32177.14899 | DM10: 194013.3013 | DN10: 296577.8615 | DO10: 78232.22529 | DP10: 296258.5615 | DQ10: 136061.0441 | DR10: 109604.0164 | DS10: 2129906.372 | DT10: 136.1436196 | DU10: 48564.67288 | DV10: 141967.3431 | DW10: 536598.6792 | DX10: 906495.216 | DY10: 58781.85237 | DZ10: 164169.7688 | EA10: 147652.8154 | EB10: 3553838.716 | EC10: 2125.402113 | ED10: 126298.5159 | EE10: 560797.1919 | EF10: 148441.678 | EG10: 1136626.685 | EH10: 46186.39873 | EI10: 165281.6765 | EJ10: 125276.9199 | EK10: 288711.7313 | EL10: 664475.912 | EM10: 29154.93099 | EN10: 160293.1316 | EO10: 131991.567 | EP10: 191468.561 | EQ10: 176781.7958 | ER10: 151351.6371 | ES10: 289639.2034 | ET10: 163015.4114 | EU10: 446509.1234 | EV10: 150933.5145 | EW10: 140768.008 | EX10: 148165.9084 | EY10: 64098.0178 | EZ10: 156939.4619 | FA10: 161728.0652 | FB10: 131354.2758 | FC10: 1517453.935 | FD10: 173759.7627 | FE10: 148221.7503 | FF10: 160805.4612 | FG10: 1074658.919 | FH10: 159271.4692 | FI10: 157643.7535 | FJ10: 161669.9553 | FK10: 157228.141 | FL10: 131288.7956 | FM10: 364970.068 | FN10: 168178.5015 | FO10: 164938.5304 | FP10: 187784.6163 | FQ10: 53664.86316 | FR10: 385231.7817 | FS10: 507280.1016 | FT10: 178244.1265 | FU10: 174555.3609 | FV10: 203079.5838 | FW10: 0.03183323078 | FX10: 902.918214 | FY10: 84069.21656 | FZ10: 126306.2969 | GA10: 150901.7435 | GB10: 21984.16388 | GC10: 226297.1793 | GD10: 163044.8826 | GE10: 33808.48213 | GF10: 31026.05549 | GG10: 475579.7908 | GH10: 455872.8573 | GI10: 169343.2918 | GJ10: 4424702.794 | GK10: 6654.61506 | GL10: 121884.7148 | GM10: 421386.9955 | GN10: 156978.9883 | GO10: 320584.3484 | GP10: 174133.9637 | GQ10: 381.5682354 | GR10: 120770.433 | GS10: 685616.8496 | GT10: 139445.1377 | GU10: 145553.878 | GV10: 167807.1097 | GW10: 306876.8904 | GX10: 333850.5506 | GY10: 3572.202647 | GZ10: 285739.1466 | HA10: 7102506.826 | HB10: 2810527.938 | HC10: 2073244.465 | HD10: 7461045.161 | HE10: 4947450.493 | HF10: 1331298.618 | HG10: 707644.627 | HH10: 452836.6974 | HI10: 261487.9841 | HJ10: 278779.6424 | HK10: 786758.4813 | HL10: 51351.93179 | HM10: 2337443.764 | HN10: 721076.2247 | HO10: 153957.8001 | HP10: 89438.40683 | HQ10: 140758.0932 | HR10: 142816.9508 | HS10: 213416.6101 | HT10: 209061.8469 | HU10: 122929.2281 | HV10: 196410.1098 | HW10: 524963.8195 | HX10: 1258808.029 | HY10: 153062.6906 | HZ10: 282796.4455 | IA10: 122215.601 | IB10: 140585.6999 | IC10: 2.17474296e-06 | ID10: 8602.730937 | IE10: 1871272.772 | IF10: 829647.9054 | IG10: 25545.43091 | IH10: 711740.4867 | II10: 298079990.1
A11: =+MATCH(B11,RUT[EMPRESA],0) -> 4 | B11: AES_GENER | C11: -298079990.1 | D11: -298079990.1 | F11: =IFERROR(INDEX($B$9:$B$511,MATCH(0,INDEX(COUNTIF($F$8:F10,$B$9:$B$511),0,0),0)),"") -> AES_GENER | G11: -298079990.1 | J11: PEHUENCHE | K11: 348781988.3 | L11: 158283297 | M11: 14413570.6 | N11: 435023948.6 | O11: 64639105.66 | P11: 14755039.23 | Q11: 1055629.847 | R11: 180894.2315 | S11: 785544.2372 | T11: 13021125.55 | U11: 7399511.299 | V11: 1229632.616 | W11: 68657509.62 | X11: 1584639.661 | Y11: 814578.7697 | Z11: 1103398.879 | AA11: 4410435.538 | AB11: 3001735.66 | AC11: 18930080.32 | AD11: 2983718.633 | AE11: 2847392.834 | AF11: 638304.5451 | AG11: 1353317.807 | AH11: 1141.097128 | AI11: 654323.3009 | AJ11: 2218439.172 | AK11: 5806597.719 | AL11: 1425988.852 | AM11: 4963644.928 | AN11: 6703567.725 | AO11: 12380286.64 | AP11: 80072.39476 | AQ11: 804819.2653 | AR11: 48188766.17 | AS11: 2140519.464 | AT11: 5892.676549 | AU11: 2163638.633 | AV11: 40189.22069 | AW11: 28903682.33 | AX11: 272852.3943 | AY11: 1822045.221 | AZ11: 3104502.701 | BA11: 554936.3131 | BB11: 1524108.36 | BC11: 2882252.508 | BD11: 46452.44205 | BE11: 2589347.036 | BF11: 826024.2717 | BG11: 81162.78864 | BH11: 3336620.748 | BI11: 21189.20666 | BJ11: 177377.0874 | BK11: 10970568.68 | BL11: 3761559.363 | BM11: 382538.9035 | BN11: 69603107.6 | BO11: 979968.3172 | BP11: 27338259.7 | BQ11: 13554804.92 | BR11: 3775592.04 | BS11: 27016.24306 | BT11: 2892231.469 | BU11: 382031.2883 | BV11: 20627842.46 | BW11: 8696509.293 | BX11: 780156.0959 | BY11: 765344.8828 | BZ11: 211152.7128 | CA11: 223893413.4 | CB11: 26558824.17 | CC11: 1320530.839 | CD11: 184122.3301 | CE11: 11141382.29 | CF11: 2287035.904 | CG11: 17576.34363 | CH11: 1555727.361 | CI11: 151118.4916 | CJ11: 137241.7218 | CK11: 718048.4207 | CL11: 23721079.68 | CM11: 333029.434 | CN11: 352878.3373 | CO11: 1373938.256 | CP11: 1617373.441 | CQ11: 228801.9711 | CR11: 207616.2755 | CS11: 193789.4087 | CT11: 15958943.26 | CU11: 1123900.723 | CV11: 7073368.042 | CW11: 8146484.218 | CX11: 12709178.06 | CY11: 491616.0084 | CZ11: 784478.3989 | DA11: 816102.5165 | DB11: 878877.7041 | DC11: 286747.8738 | DD11: 4336814.63 | DE11: 103835.1795 | DF11: 368804.8227 | DG11: 1985216.569 | DH11: 191644.1589 | DI11: 1310568.23 | DJ11: 9924461.027 | DK11: 66311.62489 | DL11: 256944.9099 | DM11: 1549258.769 | DN11: 2368269.853 | DO11: 624709.5442 | DP11: 2365720.139 | DQ11: 1086491.309 | DR11: 875223.4122 | DS11: 17007989.15 | DT11: 1087.150701 | DU11: 387804.5722 | DV11: 1133655.011 | DW11: 4284913.475 | DX11: 7238656.591 | DY11: 469392.0449 | DZ11: 1310948.539 | EA11: 1179055.34 | EB11: 28378548.05 | EC11: 16972.02119 | ED11: 1008534.373 | EE11: 4478146.401 | EF11: 1185354.663 | EG11: 9076330.578 | EH11: 368813.2863 | EI11: 1319827.48 | EJ11: 1000376.6 | EK11: 2305456.267 | EL11: 5306054.412 | EM11: 232811.5247 | EN11: 1279992.341 | EO11: 1053995.222 | EP11: 1528938.197 | EQ11: 1411659.642 | ER11: 1208591.624 | ES11: 2312862.43 | ET11: 1301730.623 | EU11: 3565519.323 | EV11: 1205252.78 | EW11: 1124077.933 | EX11: 1183152.553 | EY11: 511843.34 | EZ11: 1253212.207 | FA11: 1291450.748 | FB11: 1048906.246 | FC11: 12117358.96 | FD11: 1387527.732 | FE11: 1183598.469 | FF11: 1284083.458 | FG11: 8581497.981 | FH11: 1271834.037 | FI11: 1258836.202 | FJ11: 1290986.722 | FK11: 1255517.403 | FL11: 1048383.366 | FM11: 2914403.675 | FN11: 1342959.562 | FO11: 1317087.348 | FP11: 1499520.711 | FQ11: 428531.2361 | FR11: 3076199.991 | FS11: 4050795.179 | FT11: 1423336.823 | FU11: 1393880.841 | FV11: 1621655.958 | FW11: 0.2541986121 | FX11: 7210.093076 | FY11: 671319.8016 | FZ11: 1008596.507 | GA11: 1204999.079 | GB11: 175550.6372 | GC11: 1807055.944 | GD11: 1301965.96 | GE11: 269971.6311 | GF11: 247753.0571 | GG11: 3797657.976 | GH11: 3640291.758 | GI11: 1352260.788 | GJ11: 35332678.52 | GK11: 53139.24698 | GL11: 973288.7487 | GM11: 3364911.031 | GN11: 1253527.838 | GO11: 2559969.392 | GP11: 1390515.848 | GQ11: 3046.945393 | GR11: 964390.849 | GS11: 5474871.615 | GT11: 1113514.387 | GU11: 1162294.649 | GV11: 1339993.879 | GW11: 2450510.919 | GX11: 2665904.293 | GY11: 28525.18996 | GZ11: 2281719.22 | HA11: 56715807.15 | HB11: 22442971.81 | HC11: 16555525.56 | HD11: 59578851.36 | HE11: 39506987.45 | HF11: 10630848.73 | HG11: 5650770.52 | HH11: 3616047.042 | HI11: 2088065.867 | HJ11: 2226145.335 | HK11: 6282520.157 | HL11: 410061.7333 | HM11: 18665242.15 | HN11: 5758026.159 | HO11: 1229402.676 | HP11: 714194.5172 | HQ11: 1123998.76 | HR11: 1140439.402 | HS11: 1704200.446 | HT11: 1669426.258 | HU11: 981629.5242 | HV11: 1568398.057 | HW11: 4192005.368 | HX11: 10051988.01 | HY11: 1222254.938 | HZ11: 2258220.802 | IA11: 975930.9817 | IB11: 1122622.144 | IC11: 1.736602376e-05 | ID11: 68695.58041 | IE11: 14942716.46 | IF11: 6625006.037 | IG11: 203988.5027 | IH11: 5683477.281 | II11: 2380264834
A12: =+MATCH(B12,RUT[EMPRESA],0) -> 338 | B12: GMETROPOLITANA | C12: 3465152069 | D12: 3465152069 | F12: =IFERROR(INDEX($B$9:$B$511,MATCH(0,INDEX(COUNTIF($F$8:F11,$B$9:$B$511),0,0),0)),"") -> GMETROPOLITANA | H12: 3465152069 | J12: GUACOLDA | K12: 415736656.6 | L12: 188668483.2 | M12: 17180502.01 | N12: 518534236.3 | O12: 77047687.59 | P12: 17587521.38 | Q12: 1258276.052 | R12: 215619.9733 | S12: 936342.8897 | T12: 15520753.32 | U12: 8819974.056 | V12: 1465681.628 | W12: 81837492.93 | X12: 1888838.348 | Y12: 970951.0973 | Z12: 1315215.167 | AA12: 5257094.077 | AB12: 3577970.162 | AC12: 22564033.02 | AD12: 3556494.459 | AE12: 3393998.591 | AF12: 760838.0202 | AG12: 1613110.307 | AH12: 1360.15024 | AI12: 779931.8503 | AJ12: 2644306.516 | AK12: 6921273.469 | AL12: 1699731.803 | AM12: 5916501.472 | AN12: 7990432.21 | AO12: 14756894.41 | AP12: 95443.66051 | AQ12: 959318.0891 | AR12: 57439424.07 | AS12: 2551428.787 | AT12: 7023.876602 | AU12: 2578986.076 | AV12: 47904.22901 | AW12: 34452238.53 | AX12: 325231.0783 | AY12: 2171817.966 | AZ12: 3700465.095 | BA12: 661465.8302 | BB12: 1816687.028 | BC12: 3435550.175 | BD12: 55369.78284 | BE12: 3086416.488 | BF12: 984593.7592 | BG12: 96743.37415 | BH12: 3977142.171 | BI12: 25256.8373 | BJ12: 211427.6532 | BK12: 13076556.98 | BL12: 4483655.022 | BM12: 455973.7891 | BN12: 82964614.61 | BO12: 1168089.997 | BP12: 32586306.25 | BQ12: 16156881.57 | BR12: 4500381.511 | BS12: 32202.47301 | BT12: 3447444.769 | BU12: 455368.7285 | BV12: 24587709.65 | BW12: 10365953 | BX12: 929920.4025 | BY12: 912265.9237 | BZ12: 251687.0876 | CA12: 266873583.7 | CB12: 31657244.74 | CC12: 1574029.32 | CD12: 219467.7606 | CE12: 13280161.18 | CF12: 2726071.564 | CG12: 20950.42342 | CH12: 1854375.838 | CI12: 180128.2708 | CJ12: 163587.6177 | CK12: 855890.0968 | CL12: 28274746.66 | CM12: 396960.13 | CN12: 420619.3699 | CO12: 1637689.204 | CP12: 1927855.937 | CQ12: 272724.4229 | CR12: 247471.7707 | CS12: 230990.6003 | CT12: 19022535.38 | CU12: 1339652.69 | CV12: 8431222.022 | CW12: 9710341.203 | CX12: 15148922.17 | CY12: 585990.1099 | CZ12: 935072.4455 | DA12: 972767.3534 | DB12: 1047593.312 | DC12: 341794.0328 | DD12: 5169340.376 | DE12: 123768.1182 | DF12: 439603.2165 | DG12: 2366312.845 | DH12: 228433.5331 | DI12: 1562154.218 | DJ12: 11829631.07 | DK12: 79041.2755 | DL12: 306269.8802 | DM12: 1846665.489 | DN12: 2822899.759 | DO12: 744633.2265 | DP12: 2819860.584 | DQ12: 1295061.9 | DR12: 1043237.516 | DS12: 20272963.58 | DT12: 1295.847873 | DU12: 462250.2929 | DV12: 1351279.48 | DW12: 5107475.907 | DX12: 8628240.535 | DY12: 559499.8765 | DZ12: 1562607.534 | EA12: 1405395.179 | EB12: 33826295.75 | EC12: 20230.09095 | ED12: 1202139.796 | EE12: 5337803.199 | EF12: 1412903.765 | EG12: 10818687.48 | EH12: 439613.3049 | EI12: 1573190.94 | EJ12: 1192415.999 | EK12: 2748028.031 | EL12: 6324642.312 | EM12: 277503.679 | EN12: 1525708.764 | EO12: 1256327.633 | EP12: 1822444.035 | EQ12: 1682651.855 | ER12: 1440601.458 | ES12: 2756855.934 | ET12: 1551620.081 | EU12: 4249981.743 | EV12: 1436621.666 | EW12: 1339863.919 | EX12: 1410278.923 | EY12: 610100.4238 | EZ12: 1493787.726 | FA12: 1539366.809 | FB12: 1250261.741 | FC12: 14443493.28 | FD12: 1653887.413 | FE12: 1410810.44 | FF12: 1530585.241 | FG12: 10228863.3 | FH12: 1515984.335 | FI12: 1500491.343 | FJ12: 1538813.705 | FK12: 1496535.443 | FL12: 1249638.485 | FM12: 3473873.309 | FN12: 1600763.62 | FO12: 1569924.793 | FP12: 1787379.36 | FQ12: 510795.1366 | FR12: 3666729.196 | FS12: 4828414.599 | FT12: 1696570.672 | FU12: 1661460.11 | FV12: 1932960.557 | FW12: 0.3029963836 | FX12: 8594.193766 | FY12: 800191.12 | FZ12: 1202213.858 | GA12: 1436319.263 | GB12: 209250.5847 | GC12: 2153951.241 | GD12: 1551900.595 | GE12: 321797.3033 | GF12: 295313.4941 | GG12: 4526683.38 | GH12: 4339108.025 | GI12: 1611850.376 | GJ12: 42115390.5 | GK12: 63340.23434 | GL12: 1160128.171 | GM12: 4010863.258 | GN12: 1494163.948 | GO12: 3051399.303 | GP12: 1657449.148 | GQ12: 3631.858677 | GR12: 1149522.168 | GS12: 6525866.866 | GT12: 1327272.52 | GU12: 1385416.987 | GV12: 1597228.623 | GW12: 2920928.405 | GX12: 3177670.221 | GY12: 34001.08807 | GZ12: 2719734.251 | HA12: 67603376.41 | HB12: 26751284.12 | HC12: 19733641.86 | HD12: 71016030.93 | HE12: 47091029.42 | HF12: 12671621.98 | HG12: 6735532.574 | HH12: 4310209.121 | HI12: 2488905.825 | HJ12: 2653492.008 | HK12: 7488557.359 | HL12: 488780.0969 | HM12: 22248354.63 | HN12: 6863377.767 | HO12: 1465407.548 | HP12: 851296.3705 | HQ12: 1339769.547 | HR12: 1359366.252 | HS12: 2031350.871 | HT12: 1989901.183 | HU12: 1170070.101 | HV12: 1869478.89 | HW12: 4996732.5 | HX12: 11981639.04 | HY12: 1456887.679 | HZ12: 2691724.911 | IA12: 1163277.626 | IB12: 1338128.666 | IC12: 2.069972905e-05 | ID12: 81882.87205 | IE12: 17811226.47 | IF12: 7896789.262 | IG12: 243147.5849 | IH12: 6774517.957 | II12: 2837197382
A13: =+MATCH(B13,RUT[EMPRESA],0) -> 177 | B13: IMELSA_ENERGIA | C13: 315543174.4 | D13: 315543174.4 | F13: =IFERROR(INDEX($B$9:$B$511,MATCH(0,INDEX(COUNTIF($F$8:F12,$B$9:$B$511),0,0),0)),"") -> IMELSA_ENERGIA | H13: 315543174.4 | J13: TECNORED | K13: 59286875.38 | L13: 26905409.17 | M13: 2450056.462 | N13: 73946509.54 | O13: 10987524.39 | P13: 2508100.192 | Q13: 179438.7247 | R13: 30748.875 | S13: 133528.8658 | T13: 2213365.007 | U13: 1257788.3 | V13: 209016.1708 | W13: 11670583.21 | X13: 269361.1977 | Y13: 138464.2316 | Z13: 187558.6299 | AA13: 749697.378 | AB13: 510242.8851 | AC13: 3217784.605 | AD13: 507180.3038 | AE13: 484007.2875 | AF13: 108500.6775 | AG13: 230040.5034 | AH13: 193.966677 | AI13: 111223.5875 | AJ13: 377096.0977 | AK13: 987020.6802 | AL13: 242393.3179 | AM13: 843733.3583 | AN13: 1139489.99 | AO13: 2104433.531 | AP13: 13610.91527 | AQ13: 136805.2855 | AR13: 8191252.618 | AS13: 363851.1017 | AT13: 1001.652585 | AU13: 367780.9585 | AV13: 6831.468937 | AW13: 4913123.584 | AX13: 46380.16422 | AY13: 309716.0163 | AZ13: 527711.4959 | BA13: 94329.52716 | BB13: 259071.9287 | BC13: 489932.8261 | BD13: 7896.107699 | BE13: 440143.9873 | BF13: 140409.768 | BG13: 13796.26327 | BH13: 567167.529 | BI13: 3601.796815 | BJ13: 30151.02163 | BK13: 1864805.982 | BL13: 639399.7072 | BM13: 65024.96419 | BN13: 11831318.43 | BO13: 166577.5798 | BP13: 4647028.947 | BQ13: 2304081.223 | BR13: 641785.0183 | BS13: 4592.291716 | BT13: 491629.0761 | BU13: 64938.67843 | BV13: 3506374.659 | BW13: 1478255.414 | BX13: 132612.9754 | BY13: 130095.3266 | BZ13: 35892.29085 | CA13: 38057988.5 | CB13: 4514538.456 | CC13: 224467.2887 | CD13: 31297.59565 | CE13: 1893841.326 | CF13: 388756.3497 | CG13: 2987.6729 | CH13: 264446.6093 | CI13: 25687.51679 | CJ13: 23328.70712 | CK13: 122055.7502 | CL13: 4032171.219 | CM13: 56609.21496 | CN13: 59983.18351 | CO13: 233545.6213 | CP13: 274925.3713 | CQ13: 38892.35798 | CR13: 35291.15798 | CS13: 32940.83097 | CT13: 2712742.951 | CU13: 191043.5869 | CV13: 1202349.616 | CW13: 1384760.712 | CX13: 2160339.355 | CY13: 83566.17601 | CZ13: 133347.6918 | DA13: 138723.2421 | DB13: 149393.9328 | DC13: 48742.15421 | DD13: 737183.1033 | DE13: 17650.17562 | DF13: 62690.40918 | DG13: 337452.3091 | DH13: 32576.17579 | DI13: 222773.8185 | DJ13: 1686985.865 | DK13: 11271.82358 | DL13: 43676.1684 | DM13: 263347.0611 | DN13: 402564.709 | DO13: 106189.7636 | DP13: 402131.302 | DQ13: 184684.6368 | DR13: 148772.7667 | DS13: 2891062.518 | DT13: 184.796722 | DU13: 65920.03634 | DV13: 192701.6463 | DW13: 728360.8091 | DX13: 1230445.796 | DY13: 79788.48852 | DZ13: 222838.4644 | EA13: 200418.9131 | EB13: 4823859.885 | EC13: 2884.94859 | ED13: 171433.3128 | EE13: 761207.0478 | EF13: 201489.6885 | EG13: 1542818.431 | EH13: 62691.84785 | EI13: 224347.73 | EJ13: 170046.6331 | EK13: 391887.4913 | EL13: 901937.0186 | EM13: 39573.9124 | EN13: 217576.4487 | EO13: 179160.8669 | EP13: 259892.9171 | EQ13: 239957.6012 | ER13: 205439.568 | ES13: 393146.4103 | ET13: 221271.5788 | EU13: 606076.308 | EV13: 204872.0226 | EW13: 191073.7096 | EX13: 201115.3681 | EY13: 87004.47078 | EZ13: 213024.2915 | FA13: 219524.1788 | FB13: 178295.8294 | FC13: 2059740.396 | FD13: 235855.5961 | FE13: 201191.1661 | FF13: 218271.8676 | FG13: 1458705.491 | FH13: 216189.6789 | FI13: 213980.2729 | FJ13: 219445.3025 | FK13: 213416.1347 | FL13: 178206.9489 | FM13: 495397.9657 | FN13: 228279.7818 | FO13: 223881.9552 | FP13: 254892.4557 | FQ13: 72842.86128 | FR13: 522900.5271 | FS13: 688564.7683 | FT13: 241942.5191 | FU13: 236935.5141 | FV13: 275653.3248 | FW13: 0.04320934551 | FX13: 1225.590495 | FY13: 114112.6972 | FZ13: 171443.8745 | GA13: 204828.8978 | GB13: 29840.55685 | GC13: 307168.0998 | GD13: 221311.582 | GE13: 45890.48456 | GF13: 42113.7132 | GG13: 645535.8439 | GH13: 618786.3222 | GI13: 229860.8286 | GJ13: 6005941.185 | GK13: 9032.748304 | GL13: 165442.1693 | GM13: 571976.3854 | GN13: 213077.9433 | GO13: 435150.2985 | GP13: 236363.5238 | GQ13: 517.9277539 | GR13: 163929.681 | GS13: 930633.0088 | GT13: 189278.0904 | GU13: 197569.8869 | GV13: 227775.6672 | GW13: 416544.2608 | GX13: 453157.3904 | GY13: 4848.78646 | GZ13: 387852.6058 | HA13: 9640701.364 | HB13: 3814915.098 | HC13: 2814151.571 | HD13: 10127369.11 | HE13: 6715501.144 | HF13: 1807059.496 | HG13: 960532.7651 | HH13: 614665.1419 | HI13: 354934.9021 | HJ13: 378406.0114 | HK13: 1067919.222 | HL13: 69703.36685 | HM13: 3172766.72 | HN13: 978764.3593 | HO13: 208977.0851 | HP13: 121400.6536 | HQ13: 191060.2516 | HR13: 193854.8749 | HS13: 289684.4529 | HT13: 283773.4454 | HU13: 166859.9561 | HV13: 266600.4074 | HW13: 712568.0459 | HX13: 1708663.234 | HY13: 207762.0939 | HZ13: 383858.2834 | IA13: 165891.303 | IB13: 190826.2508 | IC13: 2.951922178e-06 | ID13: 11677.05458 | IE13: 2540002.06 | IF13: 1126135.869 | IG13: 34674.49968 | IH13: 966092.3459 | II13: 404603647.4
A14: =+MATCH(B14,RUT[EMPRESA],0) -> 56 | B14: COLBUN | C14: 9523583117 | D14: 9523583117 | F14: =IFERROR(INDEX($B$9:$B$511,MATCH(0,INDEX(COUNTIF($F$8:F13,$B$9:$B$511),0,0),0)),"") -> COLBUN | H14: 9523583117 | J14: PACIFIC HYDRO | K14: 4187293.699 | L14: 1900266.283 | M14: 173041.7722 | N14: 5222669.461 | O14: 776023.2148 | P14: 177141.2655 | Q14: 12673.33852 | R14: 2171.721308 | S14: 9430.832282 | T14: 156324.8069 | U14: 88834.65338 | V14: 14762.32453 | W14: 824266.0661 | X14: 19024.353 | Y14: 9779.405658 | Z14: 13246.82848 | AA14: 52949.37685 | AB14: 36037.26464 | AC14: 227264.62 | AD14: 35820.96166 | AE14: 34184.30558 | AF14: 7663.14973 | AG14: 16247.2241 | AH14: 13.69941389 | AI14: 7855.462515 | AJ14: 26633.41766 | AK14: 69710.96804 | AL14: 17119.67457 | AM14: 59590.91877 | AN14: 80479.51969 | AO14: 148631.2309 | AP14: 961.3071927 | AQ14: 9662.238164 | AR14: 578529.0632 | AS14: 25697.95449 | AT14: 70.74438535 | AU14: 25975.51111 | AV14: 482.490714 | AW14: 347002.457 | AX14: 3275.7228 | AY14: 21874.5197 | AZ14: 37271.03186 | BA14: 6662.274444 | BB14: 18297.64594 | BC14: 34602.81255 | BD14: 557.6836661 | BE14: 31086.34302 | BF14: 9916.814354 | BG14: 974.39789 | BH14: 40057.71944 | BI14: 254.3865065 | BJ14: 2129.496319 | BK14: 131706.8962 | BL14: 45159.30968 | BM14: 4592.561525 | BN14: 835618.4197 | BO14: 11764.98586 | BP14: 328208.8136 | BQ14: 162731.8816 | BR14: 45327.77864 | BS14: 324.3428506 | BT14: 34722.61474 | BU14: 4586.467363 | BV14: 247647.0622 | BW14: 104405.7313 | BX14: 9366.145082 | BY14: 9188.329423 | BZ14: 2534.98877 | CA14: 2687946.943 | CB14: 318851.3193 | CC14: 15853.60095 | CD14: 2210.476167 | CE14: 133757.5948 | CF14: 27456.95406 | CG14: 211.012367 | CH14: 18677.24709 | CI14: 1814.249385 | CJ14: 1647.652161 | CK14: 8620.512895 | CL14: 284782.8466 | CM14: 3998.17679 | CN14: 4236.472318 | CO14: 16494.7824 | CP14: 19417.33761 | CQ14: 2746.876513 | CR14: 2492.532158 | CS14: 2326.534044 | CT14: 191594.7061 | CU14: 13492.96286 | CV14: 84919.14842 | CW14: 97802.41864 | CX14: 152579.7288 | CY14: 5902.084062 | CZ14: 9418.036386 | DA14: 9797.698963 | DB14: 10551.34495 | DC14: 3442.544642 | DD14: 52065.52282 | DE14: 1246.590728 | DF14: 4427.677351 | DG14: 23833.46936 | DH14: 2300.7793 | DI14: 15733.99509 | DJ14: 119147.8761 | DK14: 796.1026039 | DL14: 3084.745882 | DM14: 18599.58857 | DN14: 28432.20626 | DO14: 7499.935278 | DP14: 28401.59574 | DQ14: 13043.84505 | DR14: 10507.47344 | DS14: 204189.0011 | DT14: 13.05176136 | DU14: 4655.778383 | DV14: 13610.06773 | DW14: 51442.42477 | DX14: 86903.51609 | DY14: 5635.274807 | DZ14: 15738.56088 | EA14: 14155.12028 | EB14: 340697.9702 | EC14: 203.7571887 | ED14: 12107.93495 | EE14: 53762.27798 | EF14: 14230.74665 | EG14: 108965.6666 | EH14: 4427.778961 | EI14: 15845.15679 | EJ14: 12009.997 | EK14: 27678.09928 | EL14: 63701.70751 | EM14: 2795.013112 | EN14: 15366.917 | EO14: 12653.71407 | EP14: 18355.63043 | EQ14: 16947.64558 | ER14: 14509.71742 | ES14: 27767.0138 | ET14: 15627.89541 | EU14: 42805.75573 | EV14: 14469.63301 | EW14: 13495.09035 | EX14: 14204.30927 | EY14: 6144.9228 | EZ14: 15045.40875 | FA14: 15504.48063 | FB14: 12592.61849 | FC14: 145474.6591 | FD14: 16657.93053 | FE14: 14209.66271 | FF14: 15416.03281 | FG14: 103024.9658 | FH14: 15268.97268 | FI14: 15112.92748 | FJ14: 15498.90978 | FK14: 15073.08372 | FL14: 12586.34106 | FM14: 34988.80261 | FN14: 16122.86844 | FO14: 15812.26021 | FP14: 18002.45952 | FQ14: 5144.721359 | FR14: 36931.24437 | FS14: 48631.72325 | FT14: 17087.8357 | FU14: 16734.20262 | FV14: 19468.75126 | FW14: 0.003051775271 | FX14: 86.56059751 | FY14: 8059.513592 | FZ14: 12108.6809 | GA14: 14466.58721 | GB14: 2107.568916 | GC14: 21694.5663 | GD14: 15630.72074 | GE14: 3241.137867 | GF14: 2974.393317 | GG14: 45592.69069 | GH14: 43703.43438 | GI14: 16234.53409 | GJ14: 424185.6147 | GK14: 637.9619404 | GL14: 11684.79446 | GM14: 40397.35775 | GN14: 15049.19805 | GO14: 30733.65043 | GP14: 16693.80428 | GQ14: 36.58002899 | GR14: 11577.97094 | GS14: 65728.43836 | GT14: 13368.26996 | GU14: 13953.90021 | GV14: 16087.264 | GW14: 29419.54939 | GX14: 32005.44932 | GY14: 342.458476 | GZ14: 27393.12473 | HA14: 680900.2468 | HB14: 269438.5536 | HC14: 198756.9604 | HD14: 715272.4546 | HE14: 474300.1793 | HF14: 127628.3965 | HG14: 67840.18839 | HH14: 43412.36503 | HI14: 25068.22411 | HJ14: 26725.93381 | HK14: 75424.64332 | HL14: 4922.986191 | HM14: 224085.1118 | HN14: 69127.84336 | HO14: 14759.564 | HP14: 8574.244949 | HQ14: 13494.13985 | HR14: 13691.51758 | HS14: 20459.73711 | HT14: 20042.25644 | HU14: 11784.92944 | HV14: 18829.36482 | HW14: 50327.01875 | HX14: 120678.8981 | HY14: 14673.75201 | HZ14: 27111.01506 | IA14: 11716.51572 | IB14: 13477.61292 | IC14: 2.084873769e-07 | ID14: 824.723124 | IE14: 179394.42 | IF14: 79536.34926 | IG14: 2448.979021 | IH14: 68232.84861 | II14: 28576211.72
A15: =+MATCH(B15,RUT[EMPRESA],0) -> 244 | B15: PEHUENCHE | C15: -2380264834 | D15: -2380264834 | F15: =IFERROR(INDEX($B$9:$B$511,MATCH(0,INDEX(COUNTIF($F$8:F14,$B$9:$B$511),0,0),0)),"") -> PEHUENCHE | G15: -2380264834 | J15: ELECTRICA CENIZAS | K15: 40176448.65 | L15: 18232767.09 | M15: 1660309.588 | N15: 50110722.23 | O15: 7445825.176 | P15: 1699643.605 | Q15: 121598.7631 | R15: 20837.33693 | S15: 90487.40695 | T15: 1499912.839 | U15: 852355.0405 | V15: 141642.2674 | W15: 7908708.026 | X15: 182535.7848 | Y15: 93831.91568 | Z15: 127101.3123 | AA15: 508041.2489 | AB15: 345772.0945 | AC15: 2180569.597 | AD15: 343696.7002 | AE15: 327993.2331 | AF15: 73526.76068 | AG15: 155889.6537 | AH15: 131.4438008 | AI15: 75371.97271 | AJ15: 255543.6074 | AK15: 668866.177 | AL15: 164260.6838 | AM15: 571765.8374 | AN15: 772188.7986 | AO15: 1426094.142 | AP15: 9223.596873 | AQ15: 92707.71133 | AR15: 5550898.712 | AS15: 246567.98 | AT15: 678.7816594 | AU15: 249231.0938 | AV15: 4629.425302 | AW15: 3329436.003 | AX15: 31430.06398 | AY15: 209882.7025 | AZ15: 357609.9041 | BA15: 63923.51394 | BB15: 175563.1406 | BC15: 332008.7441 | BD15: 5350.890286 | BE15: 298268.7516 | BF15: 95150.33131 | BG15: 9349.200131 | BH15: 384347.7492 | BI15: 2440.79999 | BJ15: 20432.19456 | BK15: 1263707.715 | BL15: 433296.7346 | BM15: 44064.93205 | BN15: 8017632.139 | BO15: 112883.2569 | BP15: 3149113.842 | BQ15: 1561387.75 | BR15: 434913.1687 | BS15: 3112.020513 | BT15: 333158.2278 | BU15: 44006.45949 | BV15: 2376136.043 | BW15: 1001757.174 | BX15: 89866.74307 | BY15: 88160.62876 | BZ15: 24322.83319 | CA15: 25790443.69 | CB15: 3059330.102 | CC15: 152112.8992 | CD15: 21209.18393 | CE15: 1283383.857 | CF15: 263445.3144 | CG15: 2024.631693 | CH15: 179205.3562 | CI15: 17407.44798 | CJ15: 15808.97286 | CK15: 82712.5152 | CL15: 2732448.268 | CM15: 38361.90057 | CN15: 40648.31005 | CO15: 158264.9381 | CP15: 186306.4126 | CQ15: 26355.86398 | CR15: 23915.46843 | CS15: 22322.74168 | CT15: 1838322.178 | CU15: 129462.9345 | CV15: 814786.3637 | CW15: 938399.3895 | CX15: 1463979.382 | CY15: 56629.60239 | CZ15: 90364.63227 | DA15: 94007.43717 | DB15: 101238.5563 | DC15: 33030.69429 | DD15: 499560.8034 | DE15: 11960.84917 | DF15: 42482.89338 | DG15: 228678.5277 | DH15: 22075.62881 | DI15: 150965.2992 | DJ15: 1143205.82 | DK15: 7638.483872 | DL15: 29597.6694 | DM15: 178460.2344 | DN15: 272802.7115 | DO15: 71960.74273 | DP15: 272509.0082 | DQ15: 125153.7171 | DR15: 100817.6158 | DS15: 1959162.531 | DT15: 125.2296729 | DU15: 44671.48822 | DV15: 130586.5379 | DW15: 493582.272 | DX15: 833826.0707 | DY15: 54069.60801 | DZ15: 151009.1072 | EA15: 135816.2346 | EB15: 3268945.407 | EC15: 1955.019355 | ED15: 116173.8014 | EE15: 515840.9121 | EF15: 136541.8581 | EG15: 1045509.062 | EH15: 42483.86831 | EI15: 152031.8788 | EJ15: 115234.1016 | EK15: 265567.1693 | EL15: 611208.2326 | EM15: 26817.72736 | EN15: 147443.2404 | EO15: 121410.4694 | EP15: 176119.4931 | EQ15: 162610.0917 | ER15: 139218.5404 | ES15: 266420.2906 | ET15: 149947.2888 | EU15: 410714.7411 | EV15: 138833.9366 | EW15: 129483.3474 | EX15: 136288.1955 | EY15: 58959.6033 | EZ15: 144358.4175 | FA15: 148763.1427 | FB15: 120824.2666 | FC15: 1395807.314 | FD15: 159830.3197 | FE15: 136339.5609 | FF15: 147914.4992 | FG15: 988508.9385 | FH15: 146503.4796 | FI15: 145006.2496 | FJ15: 148709.6912 | FK15: 144623.9547 | FL15: 120764.0356 | FM15: 335712.2602 | FN15: 154696.48 | FO15: 151716.2411 | FP15: 172730.8716 | FQ15: 49362.822 | FR15: 354349.6945 | FS15: 466614.0167 | FT15: 163955.1947 | FU15: 160562.1389 | FV15: 186799.7188 | FW15: 0.02928132137 | FX15: 830.5358189 | FY15: 77329.81188 | FZ15: 116180.9587 | GA15: 138804.7126 | GB15: 20221.80445 | GC15: 208156.0769 | GD15: 149974.3974 | GE15: 31098.22679 | GF15: 28538.85325 | GG15: 437454.9598 | GH15: 419327.8317 | GI15: 155767.895 | GJ15: 4069996.708 | GK15: 6121.148165 | GL15: 112113.8326 | GM15: 387606.5273 | GN15: 144394.7753 | GO15: 294884.7196 | GP15: 160174.5229 | GQ15: 350.9798362 | GR15: 111088.8771 | GS15: 630654.408 | GT15: 128266.525 | GU15: 133885.5584 | GV15: 154354.8608 | GW15: 282276.1193 | GX15: 307087.4373 | GY15: 3285.837194 | GZ15: 262832.8817 | HA15: 6533134.71 | HB15: 2585222.101 | HC15: 1907042.923 | HD15: 6862930.836 | HE15: 4550838.363 | HF15: 1224575.129 | HG15: 650916.3297 | HH15: 416535.0654 | HI15: 240525.8125 | HJ15: 256431.2858 | HK15: 723688.0257 | HL15: 47235.30666 | HM15: 2150062.698 | HN15: 663271.184 | HO15: 141615.7805 | HP15: 82268.58127 | HQ15: 129474.2274 | HR15: 131368.0368 | HS15: 196308.0779 | HT15: 192302.4141 | HU15: 113074.6125 | HV15: 180664.9028 | HW15: 482880.1202 | HX15: 1157895.745 | HY15: 140792.4274 | HZ15: 260126.0821 | IA15: 112418.1933 | IB15: 129315.6541 | IC15: 2.000404795e-06 | ID15: 7913.093427 | IE15: 1721262.281 | IF15: 763139.2212 | IG15: 23497.58268 | IH15: 654683.845 | II15: 274184422.1
A16: =+MATCH(B16,RUT[EMPRESA],0) -> 156 | B16: GUACOLDA | C16: -2837197382 | D16: -2837197382 | F16: =IFERROR(INDEX($B$9:$B$511,MATCH(0,INDEX(COUNTIF($F$8:F15,$B$9:$B$511),0,0),0)),"") -> GUACOLDA | G16: -2837197382 | J16: GAS SUR | K16: 414464.6374 | L16: 188091.2189 | M16: 17127.93525 | N16: 516947.6898 | O16: 76811.94668 | P16: 17533.70927 | Q16: 1254.426136 | R16: 214.9602462 | S16: 933.4779844 | T16: 15473.26485 | U16: 8792.987798 | V16: 1461.197118 | W16: 81587.09677 | X16: 1883.059116 | Y16: 967.9803021 | Z16: 1311.191035 | AA16: 5241.009075 | AB16: 3567.022735 | AC16: 22494.9944 | AD16: 3545.61274 | AE16: 3383.614057 | AF16: 758.5101028 | AG16: 1608.174713 | AH16: 1.355988622 | AI16: 777.545512 | AJ16: 2636.215796 | AK16: 6900.096618 | AL16: 1694.531175 | AM16: 5898.398898 | AN16: 7965.984081 | AO16: 14711.74311 | AP16: 95.15163389 | AQ16: 956.3828871 | AR16: 57263.67808 | AS16: 2543.622243 | AT16: 7.002385819 | AU16: 2571.095215 | AV16: 47.75765762 | AW16: 34346.82587 | AX16: 324.2359767 | AY16: 2165.172908 | AZ16: 3689.142873 | BA16: 659.4419594 | BB16: 1811.128556 | BC16: 3425.038507 | BD16: 55.20036928 | BE16: 3076.973055 | BF16: 981.5812219 | BG16: 96.44737083 | BH16: 3964.973407 | BI16: 25.17955958 | BJ16: 210.7807532 | BK16: 13036.54696 | BL16: 4469.936493 | BM16: 454.5786573 | BN16: 82710.76982 | BO16: 1164.516021 | BP16: 32486.60273 | BQ16: 16107.44676 | BR16: 4486.611804 | BS16: 32.10394389 | BT16: 3436.896707 | BU16: 453.975448 | BV16: 24512.47923 | BW16: 10334.23655 | BX16: 927.0751479 | BY16: 909.4746861 | BZ16: 250.9170068 | CA16: 266057.0371 | CB16: 31560.38385 | CC16: 1569.213301 | CD16: 218.7962605 | CE16: 13239.5282 | CF16: 2717.730669 | CG16: 20.88632192 | CH16: 1848.70205 | CI16: 179.5771368 | CJ16: 163.0870927 | CK16: 853.2713509 | CL16: 28188.23511 | CM16: 395.7455609 | CN16: 419.3324112 | CO16: 1632.678407 | CP16: 1921.957324 | CQ16: 271.8899747 | CR16: 246.7145874 | CS16: 230.283844 | CT16: 18964.3326 | CU16: 1335.553788 | CV16: 8405.42522 | CW16: 9680.630711 | CX16: 15102.57138 | CY16: 584.1971704 | CZ16: 932.2114273 | DA16: 969.791001 | DB16: 1044.388016 | DC16: 340.748254 | DD16: 5153.523872 | DE16: 123.3894279 | DF16: 438.2581734 | DG16: 2359.072696 | DH16: 227.7346006 | DI16: 1557.374533 | DJ16: 11793.43624 | DK16: 78.79943485 | DL16: 305.3327938 | DM16: 1841.015292 | DN16: 2814.262602 | DO16: 742.3548905 | DP16: 2811.232726 | DQ16: 1291.09943 | DR16: 1040.045548 | DS16: 20210.93489 | DT16: 1.291882999 | DU16: 460.8359571 | DV16: 1347.145004 | DW16: 5091.848688 | DX16: 8601.84092 | DY16: 557.7879885 | DZ16: 1557.826462 | EA16: 1401.095126 | EB16: 33722.79826 | EC16: 20.16819344 | ED16: 1198.461638 | EE16: 5321.471253 | EF16: 1408.580738 | EG16: 10785.5858 | EH16: 438.2682308 | EI16: 1568.377486 | EJ16: 1188.767593 | EK16: 2739.619957 | EL16: 6305.29096 | EM16: 276.6546078 | EN16: 1521.04059 | EO16: 1252.483678 | EP16: 1816.867948 | EQ16: 1677.503487 | ER16: 1436.193685 | ES16: 2748.420849 | ET16: 1546.872627 | EU16: 4236.978178 | EV16: 1432.22607 | EW16: 1335.76437 | EX16: 1405.963927 | EY16: 608.2337145 | EZ16: 1489.21722 | FA16: 1534.656846 | FB16: 1246.436345 | FC16: 14399.30087 | FD16: 1648.827055 | FE16: 1406.493818 | FF16: 1525.902147 | FG16: 10197.5663 | FH16: 1511.345915 | FI16: 1495.900326 | FJ16: 1534.105435 | FK16: 1491.95653 | FL16: 1245.814996 | FM16: 3463.244384 | FN16: 1595.865803 | FO16: 1565.121332 | FP16: 1781.910559 | FQ16: 509.2322693 | FR16: 3655.510195 | FS16: 4813.641218 | FT16: 1691.379716 | FU16: 1656.376581 | FV16: 1927.046325 | FW16: 0.000302069313 | FX16: 8.567898322 | FY16: 797.7427949 | FZ16: 1198.535474 | GA16: 1431.924592 | GB16: 208.6103458 | GC16: 2147.36085 | GD16: 1547.152283 | GE16: 320.812708 | GF16: 294.4099307 | GG16: 4512.833198 | GH16: 4325.831763 | GI16: 1606.918637 | GJ16: 41986.53107 | GK16: 63.14643378 | GL16: 1156.578556 | GM16: 3998.591318 | GN16: 1489.592291 | GO16: 3042.063011 | GP16: 1652.377892 | GQ16: 3.620746368 | GR16: 1146.005003 | GS16: 6505.899831 | GT16: 1323.211497 | GU16: 1381.17806 | GV16: 1592.341622 | GW16: 2911.991312 | GX16: 3167.947581 | GY16: 33.89705578 | GZ16: 2711.412747 | HA16: 67396.53202 | HB16: 26669.43388 | HC16: 19673.26332 | HD16: 70798.74493 | HE16: 46946.94616 | HF16: 12632.85093 | HG16: 6714.924031 | HH16: 4297.02128 | HI16: 2481.290581 | HJ16: 2645.373184 | HK16: 7465.644804 | HL16: 487.2845884 | HM16: 22180.28189 | HN16: 6842.378059 | HO16: 1460.923876 | HP16: 848.6916799 | HQ16: 1335.670288 | HR16: 1355.207032 | HS16: 2025.135597 | HT16: 1983.812731 | HU16: 1166.490067 | HV16: 1863.758892 | HW16: 4981.44412 | HX16: 11944.97911 | HY16: 1452.430076 | HZ16: 2683.489106 | IA16: 1159.718374 | IB16: 1334.034427 | IC16: 2.06363946e-08 | ID16: 81.63233704 | IE16: 17756.7299 | IF16: 7872.62765 | IG16: 242.4036322 | IH16: 6753.790131 | II16: 2828516.479
A17: =+MATCH(B17,RUT[EMPRESA],0) -> 19 | B17: ARAUCO BIO | C17: 1415085071 | D17: 1415085071 | F17: =IFERROR(INDEX($B$9:$B$511,MATCH(0,INDEX(COUNTIF($F$8:F16,$B$9:$B$511),0,0),0)),"") -> ARAUCO BIO | H17: 1415085071 | J17: MONTE REDONDO | K17: 77678432.59 | L17: 35251815.84 | M17: 3210095.733 | N17: 96885675.29 | O17: 14395996.87 | P17: 3286145.382 | Q17: 235102.943 | R17: 40287.57459 | S17: 174951.2507 | T17: 2899979.521 | U17: 1647970.534 | V17: 273855.6962 | W17: 15290949.4 | X17: 352920.5326 | Y17: 181417.631 | Z17: 245741.748 | AA17: 982263.2222 | AB17: 668526.8418 | AC17: 4215983.099 | AD17: 664514.208 | AE17: 634152.6217 | AF17: 142158.994 | AG17: 301402.0493 | AH17: 254.1376543 | AI17: 145726.586 | AJ17: 494076.1951 | AK17: 1293207.289 | AL17: 317586.867 | AM17: 1105470.382 | AN17: 1492974.555 | AO17: 2757256.089 | AP17: 17833.19761 | AQ17: 179244.0583 | AR17: 10732285.35 | AS17: 476722.4296 | AT17: 1312.3782 | AU17: 481871.379 | AV17: 8950.67915 | AW17: 6437238.204 | AX17: 60767.89234 | AY17: 405793.9391 | AZ17: 691414.442 | BA17: 123591.7692 | BB17: 339439.399 | BC17: 641916.3393 | BD17: 10345.58266 | BE17: 576682.3573 | BF17: 183966.698 | BG17: 18076.04297 | BH17: 743110.2481 | BI17: 4719.120873 | BJ17: 39504.25936 | BK17: 2443292.97 | BL17: 837749.7843 | BM17: 85196.55094 | BN17: 15501546.76 | BO17: 218252.1043 | BP17: 6088597.561 | BQ17: 3018837.084 | BR17: 840875.0498 | BS17: 6016.880131 | BT17: 644138.788 | BU17: 85083.49821 | BV17: 4594097.528 | BW17: 1936829.405 | BX17: 173751.2393 | BY17: 170452.5832 | BZ17: 47026.54471 | CA17: 49864069.84 | CB17: 5915006.802 | CC17: 294099.9512 | CD17: 41006.51549 | CE17: 2481335.454 | CF17: 509353.6084 | CG17: 3914.487759 | CH17: 346481.3753 | CI17: 33656.11745 | CJ17: 30565.57446 | CK17: 159919.026 | CL17: 5283002.996 | CM17: 74170.12721 | CN17: 78590.74454 | CO17: 305994.5003 | CP17: 360210.7851 | CQ17: 50957.27154 | CR17: 46238.93263 | CS17: 43159.50371 | CT17: 3554270.976 | CU17: 250307.7839 | CV17: 1575334.051 | CW17: 1814331.435 | CX17: 2830504.625 | CY17: 109489.487 | CZ17: 174713.8742 | DA17: 181756.9899 | DB17: 195737.8672 | DC17: 63862.60223 | DD17: 965866.8572 | DE17: 23125.48887 | DF17: 82137.7867 | DG17: 442134.3895 | DH17: 42681.72777 | DI17: 291881.1445 | DJ17: 2210310.746 | DK17: 14768.48936 | DL17: 57225.08196 | DM17: 345040.7329 | DN17: 527445.4998 | DO17: 139131.2047 | DP17: 526877.6443 | DQ17: 241976.2051 | DR17: 194924.0073 | DS17: 3787907.584 | DT17: 242.1230604 | DU17: 86369.28607 | DV17: 252480.1947 | DW17: 954307.773 | DX17: 1612146.031 | DY17: 104539.9119 | DZ17: 291965.8444 | EA17: 262591.4578 | EB17: 6320283.748 | EC17: 3779.897037 | ED17: 224614.1485 | EE17: 997343.3407 | EF17: 263994.4015 | EG17: 2021420.706 | EH17: 82139.67166 | EI17: 293943.3038 | EJ17: 222797.3028 | EK17: 513456.0707 | EL17: 1181729.573 | EM17: 51850.25299 | EN17: 285071.4834 | EO17: 234738.8901 | EP17: 340515.0686 | EQ17: 314395.5594 | ER17: 269169.5849 | ES17: 515105.5227 | ET17: 289912.8906 | EU17: 794089.0347 | EV17: 268425.9795 | EW17: 250347.251 | EX17: 263503.9621 | EY17: 113994.3854 | EZ17: 279107.188 | FA17: 287623.4246 | FB17: 233605.5068 | FC17: 2698698.566 | FD17: 309021.0591 | FE17: 263603.2737 | FF17: 285982.6302 | FG17: 1911214.842 | FH17: 283254.5196 | FI17: 280359.7272 | FJ17: 287520.0798 | FK17: 279620.586 | FL17: 233489.0543 | FM17: 649076.8359 | FN17: 299095.1291 | FO17: 293333.0397 | FP17: 333963.3994 | FQ17: 95439.66104 | FR17: 685111.0484 | FS17: 902166.4846 | FT17: 316996.2246 | FU17: 310435.9817 | FV17: 361164.5591 | FW17: 0.05661344456 | FX17: 1605.784553 | FY17: 149511.935 | FZ17: 224627.9866 | GA17: 268369.4769 | GB17: 39097.48438 | GC17: 402455.6258 | GD17: 289965.3033 | GE17: 60126.30769 | GF17: 55177.93291 | GG17: 845789.43 | GH17: 810741.86 | GI17: 301166.6371 | GJ17: 7869061.989 | GK17: 11834.82391 | GL17: 216764.4747 | GM17: 749410.8741 | GN17: 279177.4833 | GO17: 570139.5614 | GP17: 309686.5526 | GQ17: 678.5956565 | GR17: 214782.7929 | GS17: 1219327.431 | GT17: 247994.6074 | GU17: 258858.6267 | GV17: 298434.6316 | GW17: 545761.6897 | GX17: 593732.6866 | GY17: 6352.942869 | GZ17: 508169.5115 | HA17: 12631371.89 | HB17: 4998351.21 | HC17: 3687137.866 | HD17: 13269010.28 | HE17: 8798736.644 | HF17: 2367632.775 | HG17: 1258502.479 | HH17: 805342.2361 | HI17: 465040.3093 | HJ17: 495792.461 | HK17: 1399201.607 | HL17: 91326.25474 | HM17: 4157000.082 | HN17: 1282389.75 | HO17: 273804.4856 | HP17: 159060.7099 | HQ17: 250329.6181 | HR17: 253991.1699 | HS17: 379548.3251 | HT17: 371803.6464 | HU17: 218622.0774 | HV17: 349303.3094 | HW17: 933615.89 | HX17: 2238712.717 | HY17: 272212.5884 | HZ17: 502936.0984 | IA17: 217352.9354 | IB17: 250023.0272 | IC17: 3.8676467e-06 | ID17: 15299.42827 | IE17: 3327943.622 | IF17: 1475477.812 | IG17: 45430.97893 | IH17: 1265786.714 | II17: 530116943.2
A18: =+MATCH(B18,RUT[EMPRESA],0) -> 289 | B18: SGA | C18: 323018635.9 | D18: 323018635.9 | F18: =IFERROR(INDEX($B$9:$B$511,MATCH(0,INDEX(COUNTIF($F$8:F17,$B$9:$B$511),0,0),0)),"") -> SGA | H18: 323018635.9 | J18: INACAL | K18: 119483.1703 | L18: 54223.52867 | M18: 4937.695091 | N18: 149027.3073 | O18: 22143.58978 | P18: 5054.672903 | Q18: 361.6299151 | R18: 61.96941643 | S18: 269.1059718 | T18: 4460.681498 | U18: 2534.870201 | V18: 421.2385048 | W18: 23520.18508 | X18: 542.8542094 | Y18: 279.0524085 | Z18: 377.9942791 | AA18: 1510.894594 | AB18: 1028.312542 | AC18: 6484.927796 | AD18: 1022.140402 | AE18: 975.4389113 | AF18: 218.6656801 | AG18: 463.6096687 | AH18: 0.3909086683 | AI18: 224.1532678 | AJ18: 759.9765881 | AK18: 1989.181574 | AL18: 488.5047813 | AM18: 1700.409001 | AN18: 2296.458966 | AO18: 4241.147613 | AP18: 27.43061254 | AQ18: 275.7090692 | AR18: 16508.15337 | AS18: 733.2834271 | AT18: 2.018669826 | AU18: 741.2034221 | AV18: 13.76772787 | AW18: 9901.611079 | AX18: 93.47176802 | AY18: 624.1828616 | AZ18: 1063.51772 | BA18: 190.1060039 | BB18: 522.1178411 | BC18: 987.3808822 | BD18: 15.91333622 | BE18: 887.0394783 | BF18: 282.9733245 | BG18: 27.80415166 | BH18: 1143.035015 | BI18: 7.258842697 | BJ18: 60.76453904 | BK18: 3758.216796 | BL18: 1288.607363 | BM18: 131.0473663 | BN18: 23844.12108 | BO18: 335.7103443 | BP18: 9365.340097 | BQ18: 4643.505455 | BR18: 1293.414574 | BS18: 9.255026003 | BT18: 990.7994015 | BU18: 130.8734712 | BV18: 7066.534675 | BW18: 2979.186242 | BX18: 267.2601419 | BY18: 262.1862254 | BZ18: 72.33514456 | CA18: 76699.76016 | CB18: 9098.326803 | CC18: 452.37775 | CD18: 63.07527472 | CE18: 3816.732866 | CF18: 783.4759524 | CG18: 6.021174631 | CH18: 532.9496463 | CI18: 51.76906227 | CJ18: 47.01526044 | CK18: 245.983751 | CL18: 8126.193149 | CM18: 114.086776 | CN18: 120.8864675 | CO18: 470.6736706 | CP18: 554.0679073 | CQ18: 78.38129777 | CR18: 71.12365787 | CS18: 66.38695145 | CT18: 5467.097498 | CU18: 385.0176501 | CV18: 2423.142441 | CW18: 2790.762694 | CX18: 4353.816819 | CY18: 168.4141992 | CZ18: 268.7408447 | DA18: 279.5744025 | DB18: 301.0794649 | DC18: 98.23197927 | DD18: 1485.674084 | DE18: 35.57109269 | DF18: 126.3424458 | DG18: 680.0809028 | DH18: 65.65204754 | DI18: 448.9648329 | DJ18: 3399.848923 | DK18: 22.71654913 | DL18: 88.02229894 | DM18: 530.7336835 | DN18: 811.3044816 | DO18: 214.0084046 | DP18: 810.4310195 | DQ18: 372.202208 | DR18: 299.8276045 | DS18: 5826.47193 | DT18: 0.3724280976 | DU18: 132.8512403 | DV18: 388.3592022 | DW18: 1467.894168 | DX18: 2479.765778 | DY18: 160.8008771 | DZ18: 449.0951163 | EA18: 403.9121134 | EB18: 9721.714437 | EC18: 5.814150291 | ED18: 345.4962937 | EE18: 1534.090484 | EF18: 406.0700891 | EG18: 3109.302627 | EH18: 126.3453452 | EI18: 452.1367987 | EJ18: 342.7016637 | EK18: 789.7862651 | EL18: 1817.709126 | EM18: 79.75486119 | EN18: 438.4903694 | EO18: 361.0699373 | EP18: 523.7724113 | EQ18: 483.5959856 | ER18: 414.0304365 | ES18: 792.323414 | ET18: 445.9373102 | EU18: 1221.449407 | EV18: 412.8866399 | EW18: 385.0783574 | EX18: 405.3157066 | EY18: 175.3435298 | EZ18: 429.316228 | FA18: 442.4157064 | FB18: 359.3265933 | FC18: 4151.075783 | FD18: 475.3290535 | FE18: 405.4684652 | FF18: 439.8918744 | FG18: 2939.786513 | FH18: 435.6955577 | FI18: 431.2428549 | FJ18: 442.2567439 | FK18: 430.105925 | FL18: 359.1474688 | FM18: 998.3949928 | FN18: 460.0612172 | FO18: 451.1981044 | FP18: 513.6947851 | FQ18: 146.8030816 | FR18: 1053.821986 | FS18: 1387.691643 | FT18: 487.5962687 | FU18: 477.5054548 | FV18: 555.5349805 | FW18: 8.708149242e-05 | FX18: 2.469980699 | FY18: 229.9758041 | FZ18: 345.5175791 | GA18: 412.7997289 | GB18: 60.13884716 | GC18: 619.0479453 | GD18: 446.0179302 | GE18: 92.48489734 | GF18: 84.87342156 | GG18: 1300.97376 | GH18: 1247.064398 | GI18: 463.247563 | GJ18: 12104.00934 | GK18: 18.20405271 | GL18: 333.4221068 | GM18: 1152.726492 | GN18: 429.4243546 | GO18: 876.9755009 | GP18: 476.3527001 | GQ18: 1.04380016 | GR18: 330.3739297 | GS18: 1875.541283 | GT18: 381.4595755 | GU18: 398.170359 | GV18: 459.0452552 | GW18: 839.4780218 | GX18: 913.265901 | GY18: 9.771949943 | GZ18: 781.6546018 | HA18: 19429.28441 | HB18: 7688.348349 | HC18: 5671.470277 | HD18: 20410.08505 | HE18: 13534.01342 | HF18: 3641.838032 | HG18: 1935.799437 | HH18: 1238.758821 | HI18: 715.3142595 | HJ18: 762.6165087 | HK18: 2152.219585 | HL18: 140.475935 | HM18: 6394.201482 | HN18: 1972.542286 | HO18: 421.1597338 | HP18: 244.663509 | HQ18: 385.051235 | HR18: 390.6833493 | HS18: 583.8124646 | HT18: 571.8997788 | HU18: 336.2794283 | HV18: 537.2902802 | HW18: 1436.066392 | HX18: 3443.536179 | HY18: 418.7111143 | HZ18: 773.6046867 | IA18: 334.3272635 | IB18: 384.579644 | IC18: 5.949124795e-09 | ID18: 23.53322709 | IE18: 5118.965991 | IF18: 2269.545881 | IG18: 69.88088215 | IH18: 1947.003879 | II18: 815413.6343
A19: =+MATCH(B19,RUT[EMPRESA],0) -> 306 | B19: TECNORED | C19: -404603647.4 | D19: -404603647.4 | F19: =IFERROR(INDEX($B$9:$B$511,MATCH(0,INDEX(COUNTIF($F$8:F18,$B$9:$B$511),0,0),0)),"") -> TECNORED | G19: -404603647.4 | J19: CHACAYES | K19: =$II19*K$64/$II$64 -> 51362221.31 | L19: 23309064.13 | M19: 2122566.612 | N19: 64062357.21 | O19: 9518863.249 | P19: 2172851.855 | Q19: 155453.824 | R19: 26638.78831 | S19: 115680.5636 | T19: 1917512.815 | U19: =$II19*U$64/$II$64 -> 1089664.46 | V19: 181077.7639 | W19: 10110620.17 | X19: 233356.6976 | Y19: 119956.2376 | Z19: 162488.3719 | AA19: 649488.1439 | AB19: 442040.6341 | AC19: 2787675.417 | AD19: 439387.4166 | AE19: =$II19*AE$64/$II$64 -> 419311.8504 | AF19: 93997.79923 | AG19: 199291.8529 | AH19: 168.0398794 | AI19: 96356.74812 | AJ19: 326691.078 | AK19: 855089.3313 | AL19: 209993.5131 | AM19: 730954.6878 | AN19: 987178.6407 | AO19: =$II19*AO$64/$II$64 -> 1823141.801 | AP19: 11791.59532 | AQ19: 118519.0366 | AR19: 7096358.631 | AS19: 315216.4909 | AT19: 867.7654443 | AU19: 318621.0585 | AV19: 5918.33213 | AW19: 4256404.799 | AX19: 40180.70179 | AY19: =$II19*AY$64/$II$64 -> 268317.4391 | AZ19: 457174.2813 | BA19: 81720.85339 | BB19: 224442.7565 | BC19: 424445.3445 | BD19: 6840.664626 | BE19: 381311.5929 | BF19: 121641.7214 | BG19: 11952.16855 | BH19: 491356.3746 | BI19: =$II19*BI$64/$II$64 -> 3120.358156 | BJ19: 26120.84776 | BK19: 1615544.367 | BL19: 553933.5488 | BM19: 56333.32134 | BN19: 10249870.51 | BO19: 144311.7801 | BP19: 4025878.033 | BQ19: 1996103.336 | BR19: 556000.0243 | BS19: =$II19*BS$64/$II$64 -> 3978.457322 | BT19: 425914.8632 | BU19: 56258.56907 | BV19: 3037690.722 | BW19: 1280662.563 | BX19: 114887.0968 | BY19: 112705.9727 | BZ19: 31094.70308 | CA19: 32970920.05 | CB19: 3911097.049 | CC19: =$II19*CC$64/$II$64 -> 194463.5889 | CD19: 27114.16353 | CE19: 1640698.666 | CF19: 336792.7479 | CG19: 2588.321879 | CH19: 229099.0238 | CI19: 22253.96285 | CJ19: 20210.44642 | CK19: 105741.0163 | CL19: 3493206.029 | CM19: =$II19*CM$64/$II$64 -> 49042.47371 | CN19: 51965.45656 | CO19: 202328.4549 | CP19: 238177.129 | CQ19: 33693.76249 | CR19: 30573.92138 | CS19: 28537.75376 | CT19: 2350140.784 | CU19: 165507.5079 | CV19: 1041636.056 | CW19: =$II19*CW$64/$II$64 -> 1199664.947 | CX19: 1871574.904 | CY19: 72396.19898 | CZ19: 115523.6064 | DA19: 120180.6271 | DB19: 129425.0066 | DC19: 42226.97344 | DD19: 638646.6053 | DE19: 15290.9429 | DF19: 54310.81753 | DG19: =$II19*DG$64/$II$64 -> 292346.3258 | DH19: 28221.84067 | DI19: 192996.4785 | DJ19: 1461492.797 | DK19: 9765.16124 | DL19: 37838.13893 | DM19: 228146.448 | DN19: 348755.3956 | DO19: 91995.77658 | DP19: 348379.9205 | DQ19: =$II19*DQ$64/$II$64 -> 159998.5348 | DR19: 128886.8695 | DS19: 2504625.044 | DT19: 160.0956379 | DU19: 57108.75255 | DV19: 166943.9406 | DW19: 631003.5541 | DX19: 1065976.726 | DY19: 69123.46079 | DZ19: 193052.4834 | EA19: =$II19*EA$64/$II$64 -> 173629.6694 | EB19: 4179072.643 | EC19: 2499.328342 | ED19: 148518.4654 | EE19: 659459.3594 | EF19: 174557.3182 | EG19: 1336595.683 | EH19: 54312.0639 | EI19: 194360.0112 | EJ19: 147317.138 | EK19: =$II19*EK$64/$II$64 -> 339505.3615 | EL19: 781378.4833 | EM19: 34284.2161 | EN19: 188493.8216 | EO19: 155213.1064 | EP19: 225154.0065 | EQ19: 207883.3695 | ER19: 177979.2322 | ES19: 340596.0056 | ET19: 191695.0375 | EU19: =$II19*EU$64/$II$64 -> 525064.3632 | EV19: 177487.5484 | EW19: 165533.6041 | EX19: 174233.0319 | EY19: 75374.9098 | EZ19: 184550.1342 | FA19: 190181.206 | FB19: 154463.6952 | FC19: 1784422.63 | FD19: 204329.664 | FE19: =$II19*FE$64/$II$64 -> 174298.6982 | FF19: 189096.2865 | FG19: 1263725.804 | FH19: 187292.4162 | FI19: 185378.3331 | FJ19: 190112.8727 | FK19: 184889.6012 | FL19: 154386.695 | FM19: 429179.9794 | FN19: 197766.4804 | FO19: =$II19*FO$64/$II$64 -> 193956.4947 | FP19: 220821.9381 | FQ19: 63106.22947 | FR19: 453006.3767 | FS19: 596526.9007 | FT19: 209602.9709 | FU19: 205265.2334 | FV19: 238807.7797 | FW19: 0.03743371451 | FX19: 1061.770415 | FY19: =$II19*FY$64/$II$64 -> 98859.68135 | FZ19: 148527.6154 | GA19: 177450.188 | GB19: 25851.88164 | GC19: 266110.093 | GD19: 191729.6936 | GE19: 39756.47576 | GF19: 36484.53125 | GG19: 559249.491 | GH19: 536075.4775 | GI19: =$II19*GI$64/$II$64 -> 199136.1946 | GJ19: 5203149.574 | GK19: 7825.374748 | GL19: 143328.1356 | GM19: 495522.4492 | GN19: 184596.6146 | GO19: 376985.3917 | GP19: 204769.6989 | GQ19: 448.6982954 | GR19: 142017.816 | GS19: =$II19*GS$64/$II$64 -> 806238.7882 | GT19: 163977.9986 | GU19: 171161.4618 | GV19: 197329.7488 | GW19: 360866.3532 | GX19: 392585.5432 | GY19: 4200.667377 | GZ19: 336009.804 | HA19: 8352065.005 | HB19: 3304989.718 | HC19: =$II19*HC$64/$II$64 -> 2437994.495 | HD19: 8773681.704 | HE19: 5817865.316 | HF19: 1565516.637 | HG19: 832141.9563 | HH19: 532505.1599 | HI19: 307492.0862 | HJ19: 327825.9004 | HK19: 925174.4687 | HL19: 60386.37948 | HM19: =$II19*HM$64/$II$64 -> 2748674.903 | HN19: 847936.6018 | HO19: 181043.9027 | HP19: 105173.484 | HQ19: 165521.945 | HR19: 167943.0216 | HS19: 250963.4196 | HT19: 245842.5143 | HU19: 144556.4122 | HV19: 230964.9317 | HW19: =$II19*HW$64/$II$64 -> 617321.7503 | HX19: 1480272.634 | HY19: 179991.3148 | HZ19: 332549.3877 | IA19: 143717.2353 | IB19: 165319.2222 | IC19: 2.557349822e-06 | ID19: 10116.22653 | IE19: 2200489.52 | IF19: 975609.5146 | IG19: 30039.68948 | IH19: 836958.4088 | II19: 350521796.8
A20: =+MATCH(B20,RUT[EMPRESA],0) -> 231 | B20: NUEVA ENERGIA | C20: 23109942.85 | D20: 23109942.85 | F20: =IFERROR(INDEX($B$9:$B$511,MATCH(0,INDEX(COUNTIF($F$8:F19,$B$9:$B$511),0,0),0)),"") -> NUEVA ENERGIA | H20: 23109942.85 | J20: CAPULLO | K20: 1875772.203 | L20: 851257.8594 | M20: 77517.11953 | N20: 2339587.07 | O20: 347633.3115 | P20: 79353.55999 | Q20: 5677.24593 | R20: 972.8609345 | S20: 4224.707965 | T20: 70028.45954 | U20: 39795.05271 | V20: 6613.044128 | W20: 369244.5492 | X20: 8522.295092 | Y20: 4380.857568 | Z20: 5934.15089 | AA20: 23719.60899 | AB20: 16143.52948 | AC20: 101807.2023 | AD20: 16046.63274 | AE20: 15313.46373 | AF20: 3432.843331 | AG20: 7278.231126 | AH20: 6.136894524 | AI20: 3518.993241 | AJ20: 11930.91006 | AK20: 31228.25994 | AL20: 7669.060732 | AM20: 26694.80504 | AN20: 36052.22293 | AO20: 66581.98621 | AP20: 430.6345434 | AQ20: 4328.370319 | AR20: 259162.3166 | AS20: 11511.8528 | AT20: 31.69119748 | AU20: 11636.1892 | AV20: 216.140241 | AW20: 155445.8822 | AX20: 1467.417911 | AY20: 9799.077627 | AZ20: 16696.21731 | BA20: 2984.483561 | BB20: 8196.753821 | BC20: 15500.94132 | BD20: 249.8242526 | BE20: 13925.67666 | BF20: 4442.412222 | BG20: 436.4987526 | BH20: 17944.56325 | BI20: 113.9569306 | BJ20: 953.9455048 | BK20: 59000.43142 | BL20: 20229.91074 | BM20: 2057.319087 | BN20: 374330.0366 | BO20: 5270.333304 | BP20: 147026.9375 | BQ20: 72898.62189 | BR20: 20305.37939 | BS20: 145.2951111 | BT20: 15554.60883 | BU20: 2054.589099 | BV20: 110937.8775 | BW20: 46770.39222 | BX20: 4195.730191 | BY20: 4116.074525 | BZ20: 1135.593013 | CA20: 1204113.33 | CB20: 142835.0826 | CC20: 7101.90068 | CD20: 990.2218585 | CE20: 59919.0781 | CF20: 12299.82774 | CG20: 94.52671844 | CH20: 8366.802866 | CI20: 812.72507 | CJ20: 738.0948998 | CK20: 3861.711077 | CL20: 127573.5083 | CM20: 1791.053942 | CN20: 1897.802634 | CO20: 7389.129242 | CP20: 8698.33949 | CQ20: 1230.511872 | CR20: 1116.573824 | CS20: 1042.212035 | CT20: 85828.23411 | CU20: 6044.411138 | CV20: 38041.03307 | CW20: 43812.32162 | CX20: 68350.78565 | CY20: 2643.942846 | CZ20: 4218.975818 | DA20: 4389.052377 | DB20: 4726.661417 | DC20: 1542.148703 | DD20: 23323.67096 | DE20: 558.4323441 | DF20: 1983.456307 | DG20: 10676.62374 | DH20: 1030.674743 | DI20: 7048.321125 | DJ20: 53374.39646 | DK20: 356.6282287 | DL20: 1381.866426 | DM20: 8332.014356 | DN20: 12736.7092 | DO20: 3359.728533 | DP20: 12722.99667 | DQ20: 5843.220879 | DR20: 4707.008397 | DS20: 91470.07111 | DT20: 5.84676713 | DU20: 2085.638195 | DV20: 6096.87033 | DW20: 23044.54317 | DX20: 38929.96563 | DY20: 2524.420926 | DZ20: 7050.36645 | EA20: 6341.036253 | EB20: 152621.6759 | EC20: 91.27663309 | ED20: 5423.963409 | EE20: 24083.76241 | EF20: 6374.91442 | EG20: 48813.09578 | EH20: 1983.501825 | EI20: 7098.117972 | EJ20: 5380.090373 | EK20: 12398.89365 | EL20: 28536.3055 | EM20: 1252.075512 | EN20: 6883.882004 | EO20: 5668.45481 | EP20: 8222.729 | EQ20: 7591.997305 | ER20: 6499.884308 | ES20: 12438.72448 | ET20: 7000.791897 | EU20: 19175.59467 | EV20: 6481.927789 | EW20: 6045.364185 | EX20: 6363.071331 | EY20: 2752.72675 | EZ20: 6739.856705 | FA20: 6945.506064 | FB20: 5641.085966 | FC20: 65167.94409 | FD20: 7462.214329 | FE20: 6365.469497 | FF20: 6905.8843 | FG20: 46151.85391 | FH20: 6840.006117 | FI20: 6770.102915 | FJ20: 6943.010503 | FK20: 6752.254197 | FL20: 5638.273882 | FM20: 15673.85239 | FN20: 7222.523811 | FO20: 7083.381365 | FP20: 8064.519847 | FQ20: 2304.668841 | FR20: 16544.0035 | FS20: 21785.43976 | FT20: 7654.797948 | FU20: 7496.381759 | FV20: 8721.371145 | FW20: 0.001367096658 | FX20: 38.7763492 | FY20: 3610.401527 | FZ20: 5424.29757 | GA20: 6480.563368 | GB20: 944.122737 | GC20: 9718.464321 | GD20: 7002.057554 | GE20: 1451.924979 | GF20: 1332.432044 | GG20: 20424.05143 | GH20: 19577.72568 | GI20: 7272.546411 | GJ20: 190021.4416 | GK20: 285.7863241 | GL20: 5234.410151 | GM20: 18096.71023 | GN20: 6741.55419 | GO20: 13767.68178 | GP20: 7478.284608 | GQ20: 16.38667036 | GR20: 5186.556668 | GS20: 29444.21539 | GT20: 5988.552749 | GU20: 6250.896165 | GV20: 7206.574174 | GW20: 13179.007 | GX20: 14337.40656 | GY20: 153.4103256 | GZ20: 12271.23427 | HA20: 305021.2972 | HB20: 120699.7611 | HC20: 89036.69249 | HD20: 320418.935 | HE20: 212471.1463 | HF20: 57173.39545 | HG20: 30390.21114 | HH20: 19447.33602 | HI20: 11229.75395 | HJ20: 11972.3543 | HK20: 33787.80174 | HL20: 2205.338654 | HM20: 100382.8854 | HN20: 30967.03893 | HO20: 6611.807499 | HP20: 3840.984534 | HQ20: 6044.938389 | HR20: 6133.35723 | HS20: 9165.300766 | HT20: 8978.282922 | HU20: 5279.267384 | HV20: 8434.946692 | HW20: 22544.87734 | HX20: 54060.24484 | HY20: 6573.3665 | HZ20: 12144.85825 | IA20: 5248.620252 | IB20: 6037.534858 | IC20: 9.33956045e-08 | ID20: 369.4492964 | IE20: 80362.90036 | IF20: 35629.71307 | IG20: 1097.063426 | IH20: 30566.11022 | II20: 12801218.99
A21: =+MATCH(B21,RUT[EMPRESA],0) -> 102 | B21: ELEKTRAGEN | C21: 3960152.665 | D21: 3960152.665 | F21: =IFERROR(INDEX($B$9:$B$511,MATCH(0,INDEX(COUNTIF($F$8:F20,$B$9:$B$511),0,0),0)),"") -> ELEKTRAGEN | H21: 3960152.665 | J21: EL CANELO | K21: 597422.8944 | L21: 271120.8395 | M21: 24688.7665 | N21: 745145.3207 | O21: 110719.2541 | P21: 25273.66246 | Q21: 1808.170892 | R21: 309.8507349 | S21: 1345.545721 | T21: 22303.67042 | U21: 12674.50042 | V21: 2106.217353 | W21: 117602.3118 | X21: 2714.303045 | Y21: 1395.278491 | Z21: 1889.993676 | AA21: 7554.562029 | AB21: 5141.623325 | AC21: 32425.02123 | AD21: 5110.762258 | AE21: 4877.252053 | AF21: 1093.34129 | AG21: 2318.07567 | AH21: 1.954566383 | AI21: 1120.779551 | AJ21: 3799.927737 | AK21: 9946.025118 | AL21: 2442.552701 | AM21: 8502.145236 | AN21: 11482.43019 | AO21: 21205.98806 | AP21: 137.1546796 | AQ21: 1378.561598 | AR21: 82541.73992 | AS21: 3666.460358 | AT21: 10.09346812 | AU21: 3706.0608 | AV21: 68.83945089 | AW21: 49508.63904 | AX21: 467.3643497 | AY21: 3120.9511 | AZ21: 5317.651289 | BA21: 950.5412251 | BB21: 2610.619981 | BC21: 4936.962611 | BD21: 79.56761908 | BE21: 4435.249677 | BF21: 1414.883302 | BG21: 139.0223972 | BH21: 5715.242449 | BI21: 36.29464135 | BJ21: 303.8262769 | BK21: 18791.3055 | BL21: 6443.11277 | BM21: 655.2445558 | BN21: 119222.0109 | BO21: 1678.571509 | BP21: 46827.25252 | BQ21: 23217.80098 | BR21: 6467.149109 | BS21: 46.27567554 | BT21: 4954.055409 | BU21: 654.3750701 | BV21: 35333.08991 | BW21: 14896.10682 | BX21: 1336.316463 | BY21: 1310.946581 | BZ21: 361.6799865 | CA21: 383503.3218 | CB21: 45492.17031 | CC21: 2261.915415 | CD21: 315.3800915 | CE21: 19083.8893 | CF21: 3917.425943 | CG21: 30.10622807 | CH21: 2664.779646 | CI21: 258.8483628 | CJ21: 235.0790735 | CK21: 1229.933254 | CL21: 40631.44474 | CM21: 570.4406049 | CN21: 604.4394629 | CO21: 2353.396096 | CP21: 2770.372195 | CQ21: 391.9111089 | CR21: 355.6224817 | CS21: 331.9386704 | CT21: 27335.80974 | CU21: 1925.110945 | CV21: 12115.85504 | CW21: 13953.97797 | CX21: 21769.34072 | CY21: 842.0809232 | CZ21: 1343.720064 | DA21: 1397.888492 | DB21: 1505.415072 | DC21: 491.1656866 | DD21: 7428.457993 | DE21: 177.8575602 | DF21: 631.7196761 | DG21: 3400.444601 | DH21: 328.2641075 | DI21: 2244.850628 | DJ21: 16999.44502 | DK21: 113.5840846 | DL21: 440.1166831 | DM21: 2653.699701 | DN21: 4056.57023 | DO21: 1070.054638 | DP21: 4052.202868 | DQ21: 1861.032979 | DR21: 1499.155695 | DS21: 29132.70309 | DT21: 1.86216244 | DU21: 664.2640325 | DV21: 1941.818903 | DW21: 7339.557364 | DX21: 12398.97506 | DY21: 804.0138639 | DZ21: 2245.502053 | EA21: 2019.584375 | EB21: 48609.14522 | EC21: 29.07109417 | ED21: 1727.501833 | EE21: 7670.542846 | EF21: 2030.374381 | EG21: 15546.69641 | EH21: 631.7341732 | EI21: 2260.710644 | EJ21: 1713.528519 | EK21: 3948.977878 | EL21: 9088.652773 | EM21: 398.779007 | EN21: 2192.477693 | EO21: 1805.370969 | EP21: 2618.89293 | EQ21: 2418.008433 | ER21: 2070.176587 | ES21: 3961.663773 | ET21: 2229.712836 | EU21: 6107.31903 | EV21: 2064.457537 | EW21: 1925.414485 | EX21: 2026.602424 | EY21: 876.7279846 | EZ21: 2146.606446 | FA21: 2212.10461 | FB21: 1796.654146 | FC21: 20755.62359 | FD21: 2376.673286 | FE21: 2027.366226 | FF21: 2199.485301 | FG21: 14699.10585 | FH21: 2178.50347 | FI21: 2156.239694 | FJ21: 2211.309788 | FK21: 2150.554977 | FL21: 1795.758514 | FM21: 4992.033813 | FN21: 2300.333204 | FO21: 2256.017118 | FP21: 2568.504205 | FQ21: 734.024061 | FR21: 5269.172046 | FS21: 6938.540011 | FT21: 2438.010085 | FU21: 2387.55542 | FV21: 2777.707648 | FW21: 0.000435412595 | FX21: 12.35004908 | FY21: 1149.892576 | FZ21: 1727.608262 | GA21: 2064.022977 | GB21: 300.6977806 | GC21: 3095.276215 | GD21: 2230.115941 | GE21: 462.4299381 | GF21: 424.3721106 | GG21: 6504.945485 | GH21: 6235.395495 | GI21: 2316.265121 | GJ21: 60520.76018 | GK21: 91.02133655 | GL21: 1667.130187 | GM21: 5763.700407 | GN21: 2147.147085 | GO21: 4384.929197 | GP21: 2381.791579 | GQ21: 5.219062328 | GR21: 1651.889122 | GS21: 9377.816966 | GT21: 1907.320362 | GU21: 1990.875265 | GV21: 2295.253334 | GW21: 4197.439591 | GX21: 4566.383336 | GY21: 48.86032571 | GZ21: 3908.319083 | HA21: 97147.56727 | HB21: 38442.19493 | HC21: 28357.68569 | HD21: 102051.6283 | HE21: 67670.86485 | HF21: 18209.40482 | HG21: 9679.111289 | HH21: 6193.867122 | HI21: 3576.613461 | HJ21: 3813.127495 | HK21: 10761.22478 | HL21: 702.3879554 | HM21: 31971.38431 | HN21: 9862.827697 | HO21: 2105.823494 | HP21: 1223.331967 | HQ21: 1925.278871 | HR21: 1953.439775 | HS21: 2919.096735 | HT21: 2859.532604 | HU21: 1681.416963 | HV21: 2686.483071 | HW21: 7180.416606 | HX21: 17217.88387 | HY21: 2093.580252 | HZ21: 3868.069033 | IA21: 1671.656024 | IB21: 1922.920889 | IC21: 2.974597464e-08 | ID21: 117.6675226 | IE21: 25595.13169 | IF21: 11347.86318 | IG21: 349.4085298 | IH21: 9735.134158 | II21: 4077116.235
A22: =+MATCH(B22,RUT[EMPRESA],0) -> 138 | B22: GESAN | C22: 17197204.57 | D22: 17197204.57 | F22: =IFERROR(INDEX($B$9:$B$511,MATCH(0,INDEX(COUNTIF($F$8:F21,$B$9:$B$511),0,0),0)),"") -> GESAN | H22: 17197204.57 | J22: ORAZUL_CHILE | K22: 1202212.104 | L22: 545584.6402 | M22: 49681.94925 | N22: 1499478.397 | O22: 222803.6935 | P22: 50858.95301 | Q22: 3638.636805 | R22: 623.5219764 | S22: 2707.682226 | T22: 44882.34849 | U22: 25505.27936 | V22: 4238.404687 | W22: 236654.6779 | X22: 5462.07386 | Y22: 2807.760978 | Z22: 3803.291262 | AA22: 15202.27296 | AB22: 10346.64365 | AC22: 65249.8479 | AD22: 10284.54099 | AE22: 9814.641365 | AF22: 2200.163644 | AG22: 4664.733567 | AH22: 3.933232867 | AI22: 2255.378485 | AJ22: 7646.70916 | AK22: 20014.68624 | AL22: 4915.222449 | AM22: 17109.12322 | AN22: 23106.4405 | AO22: 42673.44917 | AP22: 276.0004972 | AQ22: 2774.121069 | AR22: 166101.232 | AS22: 7378.12873 | AT22: 20.31139024 | AU22: 7457.817893 | AV22: 138.5277027 | AW22: 99627.72712 | AX22: 940.4913729 | AY22: 6280.384002 | AZ22: 10700.87003 | BA22: 1912.802768 | BB22: 5253.429304 | BC22: 9934.798723 | BD22: 160.116319 | BE22: 8925.186657 | BF22: 2847.212331 | BG22: 279.7589617 | BH22: 11500.95471 | BI22: 73.03680115 | BJ22: 611.398778 | BK22: 37814.31066 | BL22: 12965.6701 | BM22: 1318.568377 | BN22: 239914.0473 | BO22: 3377.840061 | BP22: 94231.89218 | BQ22: 46721.88098 | BR22: 13014.03915 | BS22: 93.12193721 | BT22: 9969.195075 | BU22: 1316.818684 | BV22: 71101.84219 | BW22: 29975.8849 | BX22: 2689.109911 | BY22: 2638.057333 | BZ22: 727.8195423 | CA22: 771735.2979 | CB22: 91545.26599 | CC22: 4551.720591 | CD22: 634.6488675 | CE22: 38403.08587 | CF22: 7883.154344 | CG22: 60.58367051 | CH22: 5362.41643 | CI22: 520.8883654 | CJ22: 473.0567077 | CK22: 2475.031773 | CL22: 81763.88137 | CM22: 1147.914829 | CN22: 1216.331756 | CO22: 4735.809925 | CP22: 5574.903501 | CQ22: 788.6545415 | CR22: 715.6298426 | CS22: 667.9701951 | CT22: 55008.67418 | CU22: 3873.958801 | CV22: 24381.10041 | CW22: 28080.01061 | CX22: 43807.10073 | CY22: 1694.544832 | CZ22: 2704.008401 | DA22: 2813.013161 | DB22: 3029.39214 | DC22: 988.3875207 | DD22: 14948.51 | DE22: 357.9081311 | DF22: 1271.228552 | DG22: 6842.8172 | DH22: 660.5757614 | DI22: 4517.380606 | DJ22: 34208.49578 | DK22: 228.5686783 | DL22: 885.6600718 | DM22: 5340.119923 | DN22: 8163.158587 | DO22: 2153.303212 | DP22: 8154.370013 | DQ22: 3745.012778 | DR22: 3016.796209 | DS22: 58624.61684 | DT22: 3.747285627 | DU22: 1336.718542 | DV22: 3907.580728 | DW22: 14769.61259 | DX22: 24950.83136 | DY22: 1617.941341 | DZ22: 4518.691488 | EA22: 4064.070533 | EB22: 97817.6486 | EC22: 58.50063934 | ED22: 3476.304027 | EE22: 15435.66465 | EF22: 4085.783587 | EG22: 31285.08595 | EH22: 1271.257725 | EI22: 4549.296194 | EJ22: 3448.185104 | EK22: 7946.647255 | EL22: 18289.37002 | EM22: 802.4750199 | EN22: 4411.98897 | EO22: 3633.002437 | EP22: 5270.077208 | EQ22: 4865.831278 | ER22: 4165.878767 | ES22: 7972.175463 | ET22: 4486.918371 | EU22: 12289.94223 | EV22: 4154.370149 | EW22: 3874.569623 | EX22: 4078.193164 | EY22: 1764.266159 | EZ22: 4319.680876 | FA22: 4451.484806 | FB22: 3615.461312 | FC22: 41767.16719 | FD22: 4782.651314 | FE22: 4079.730186 | FF22: 4426.09059 | FG22: 29579.4539 | FH22: 4383.86822 | FI22: 4339.06615 | FJ22: 4449.885361 | FK22: 4327.626625 | FL22: 3613.659003 | FM22: 10045.62016 | FN22: 4629.029866 | FO22: 4539.851269 | FP22: 5168.678457 | FQ22: 1477.09875 | FR22: 10603.31378 | FS22: 13962.63328 | FT22: 4906.081204 | FU22: 4804.549761 | FV22: 5589.664854 | FW22: 0.0008761938936 | FX22: 24.85237615 | FY22: 2313.963503 | FZ22: 3476.518196 | GA22: 4153.495671 | GB22: 605.1032106 | GC22: 6228.717657 | GD22: 4487.729551 | GE22: 930.5617077 | GF22: 853.9767939 | GG22: 13090.09794 | GH22: 12547.67437 | GI22: 4661.090142 | GJ22: 121787.7505 | GK22: 183.16498 | GL22: 3354.816343 | GM22: 11598.46812 | GN22: 4320.768821 | GO22: 8823.925238 | GP22: 4792.95101 | GQ22: 10.50247649 | GR22: 3324.146288 | GS22: 18871.26384 | GT22: 3838.158275 | GU22: 4006.298324 | GV22: 4618.807491 | GW22: 8446.634251 | GX22: 9189.070874 | GY22: 98.32310668 | GZ22: 7864.828334 | HA22: 195492.9788 | HB22: 77358.38797 | HC22: 57065.02595 | HD22: 205361.5687 | HE22: 136176.1218 | HF22: 36643.33438 | HG22: 19477.56749 | HH22: 12464.10557 | HI22: 7197.32711 | HJ22: 7673.271432 | HK22: 21655.13711 | HL22: 1413.436461 | HM22: 64336.98066 | HN22: 19847.26556 | HO22: 4237.612112 | HP22: 2461.747803 | HQ22: 3874.296724 | HR22: 3930.965759 | HS22: 5874.186377 | HT22: 5754.32368 | HU22: 3383.566054 | HV22: 5406.090887 | HW22: 14449.36884 | HX22: 34648.06687 | HY22: 4212.974667 | HZ22: 7783.831946 | IA22: 3363.923822 | IB22: 3869.551684 | IC22: 5.985872168e-08 | ID22: 236.7859036 | IE22: 51505.85524 | IF22: 22835.64724 | IG22: 703.1253199 | IH22: 19590.304 | II22: 8204503.933
A23: =+MATCH(B23,RUT[EMPRESA],0) -> 237 | B23: PACIFIC HYDRO | C23: -28576211.72 | D23: -28576211.72 | F23: =IFERROR(INDEX($B$9:$B$511,MATCH(0,INDEX(COUNTIF($F$8:F22,$B$9:$B$511),0,0),0)),"") -> PACIFIC HYDRO | G23: -28576211.72 | J23: RUCATAYO | K23: 89519709.46 | L23: 40625592.03 | M23: 3699441.76 | N23: 111654898.5 | O23: 16590518.3 | P23: 3787084.394 | Q23: 270941.9649 | R23: 46429.00032 | S23: 201620.7667 | T23: 3342051.526 | U23: 1899186.666 | V23: 315602.1761 | W23: 17621897.12 | X23: 406719.6323 | Y23: 209072.88 | Z23: 283202.546 | AA23: 1131999.132 | AB23: 770436.8722 | AC23: 4858666.292 | AD23: 765812.5537 | AE23: 730822.6564 | AF23: 163829.6682 | AG23: 347347.687 | AH23: 292.8783218 | AI23: 167941.1029 | AJ23: 569393.0214 | AK23: 1490343.419 | AL23: 365999.7134 | AM23: 1273987.955 | AN23: 1720563.146 | AO23: 3177571.377 | AP23: 20551.68488 | AQ23: 206567.9686 | AR23: 12368311.7 | AS23: 549393.8532 | AT23: 1512.436738 | AU23: 555327.7069 | AV23: 10315.11798 | AW23: 7418528.857 | AX23: 70031.33155 | AY23: 467653.0449 | AZ23: 796813.4513 | BA23: 142432.0613 | BB23: 391183.4388 | BC23: 739769.8727 | BD23: 11922.66016 | BE23: 664591.6421 | BF23: 212010.526 | BG23: 20831.54951 | BH23: 856389.7505 | BI23: 5438.502238 | BJ23: 45526.27676 | BK23: 2815747.814 | BL23: 965456.1091 | BM23: 98183.8875 | BN23: 17864597.88 | BO23: 251522.3893 | BP23: 7016741.539 | BQ23: 3479027.7 | BR23: 969057.7891 | BS23: 6934.091526 | BT23: 742331.1108 | BU23: 98053.60105 | BV23: 5294420.371 | BW23: 2232079.096 | BX23: 200237.8259 | BY23: 196436.3237 | BZ23: 54195.25702 | CA23: 57465333.62 | CB23: 6816688.658 | CC23: 338932.4592 | CD23: 47257.53636 | CE23: 2859589.483 | CF23: 586999.3191 | CG23: 4511.211094 | CH23: 399298.8918 | CI23: 38786.64586 | CJ23: 35224.98142 | CK23: 184297.0341 | CL23: 6088342.381 | CM23: 85476.59906 | CN23: 90571.09396 | CO23: 352640.2097 | CP23: 415121.2087 | CQ23: 58725.18267 | CR23: 53287.5816 | CS23: 49738.72546 | CT23: 4096082.973 | CU23: 288464.6271 | CV23: 1815477.5 | CW23: 2090907.572 | CX23: 3261985.898 | CY23: 126180.0314 | CZ23: 201347.2046 | DA23: 209463.9707 | DB23: 225576.0887 | DC23: 73597.79808 | DD23: 1113103.31 | DE23: 26650.73143 | DF23: 94658.84616 | DG23: 509533.2226 | DH23: 49188.1175 | DI23: 336375.4183 | DJ23: 2547249.851 | DK23: 17019.79343 | DL23: 65948.45622 | DM23: 397638.6383 | DN23: 607849.1329 | DO23: 160340.3237 | DP23: 607194.7137 | DQ23: 278862.9849 | DR23: 224638.1642 | DS23: 4365335.076 | DT23: 279.0322269 | DU23: 99535.39402 | DV23: 290968.1996 | DW23: 1099782.163 | DX23: 1857901.086 | DY23: 120475.9445 | DZ23: 336473.0298 | EA23: 302620.8205 | EB23: 7283745.899 | EC23: 4356.103403 | ED23: 258854.2616 | EE23: 1149378.059 | EF23: 304237.6286 | EG23: 2329565.469 | EH23: 94661.01846 | EI23: 338751.9325 | EJ23: 256760.4565 | EK23: 591727.1595 | EL23: 1361872.073 | EM23: 59754.28993 | EN23: 328527.6944 | EO23: 270522.4158 | EP23: 392423.0831 | EQ23: 362321.9238 | ER23: 310201.7153 | ES23: 593628.0535 | ET23: 334107.1244 | EU23: 915139.728 | EV23: 309344.755 | EW23: 288510.1105 | EX23: 303672.4268 | EY23: 131371.6551 | EZ23: 321654.2036 | FA23: 331468.6528 | FB23: 269216.2598 | FC23: 3110087.362 | FD23: 356128.1363 | FE23: 303786.8773 | FF23: 329577.7362 | FG23: 2202559.856 | FH23: 326433.7532 | FI23: 323097.6795 | FJ23: 331349.5542 | FK23: 322245.8639 | FL23: 269082.0554 | FM23: 748021.9133 | FN23: 344689.1005 | FO23: 338048.6399 | FP23: 384872.6794 | FQ23: 109988.4542 | FR23: 789549.1703 | FS23: 1039692.472 | FT23: 365319.0336 | FU23: 357758.7493 | FV23: 416220.3757 | FW23: 0.065243581 | FX23: 1850.569866 | FY23: 172303.4893 | FZ23: 258870.2092 | GA23: 309279.6391 | GB23: 45057.49312 | GC23: 463805.8402 | GD23: 334167.5268 | GE23: 69291.94393 | GF23: 63589.24038 | GG23: 974721.316 | GH23: 934331.1049 | GI23: 347076.3885 | GJ23: 9068619.429 | GK23: 13638.9209 | GL23: 249807.9859 | GM23: 863650.842 | GN23: 321735.2147 | GO23: 657051.4645 | GP23: 356895.0773 | GQ23: 782.0405739 | GR23: 247524.2172 | GS23: 1405201.337 | GT23: 285798.8307 | GU23: 298318.9578 | GV23: 343927.9169 | GW23: 628957.4373 | GX23: 684241.1186 | GY23: 7321.383567 | GZ23: 585634.7187 | HA23: 14556894.42 | HB23: 5760298.363 | HC23: 4249204.051 | HD23: 15291734.21 | HE23: 10140013.41 | HF23: 2728554.002 | HG23: 1450348.218 | HH23: 928108.3641 | HI23: 535930.914 | HJ23: 571370.9144 | HK23: 1612495.479 | HL23: 105248.0015 | HM23: 4790691.922 | HN23: 1477876.858 | HO23: 315543.159 | HP23: 183307.8766 | HQ23: 288489.7897 | HR23: 292709.5073 | HS23: 437406.5575 | HT23: 428481.2823 | HU23: 251948.761 | HV23: 402551.0006 | HW23: 1075936.015 | HX23: 2579981.41 | HY23: 313708.5934 | HZ23: 579603.5258 | IA23: 250486.1514 | IB23: 288136.4622 | IC23: 4.457229598e-06 | ID23: 17631.66851 | IE23: 3835254.346 | IF23: 1700399.205 | IG23: 52356.46367 | IH23: 1458742.859 | II23: 610927810.4
A24: =+MATCH(B24,RUT[EMPRESA],0) -> 100 | B24: ELECTRICA CENIZAS | C24: -274184422.1 | D24: -274184422.1 | F24: =IFERROR(INDEX($B$9:$B$511,MATCH(0,INDEX(COUNTIF($F$8:F23,$B$9:$B$511),0,0),0)),"") -> ELECTRICA CENIZAS | G24: -274184422.1 | J24: KALTEMP | K24: 503155.3576 | L24: 228340.6013 | M24: 20793.11867 | N24: 627568.6182 | O24: 93248.82998 | P24: 21285.72371 | Q24: 1522.859067 | R24: 260.9592949 | S24: 1133.23166 | T24: 18784.36761 | U24: 10674.58722 | V24: 1773.876689 | W24: 99045.8079 | X24: 2286.012358 | Y24: 1175.117082 | Z24: 1591.77101 | AA24: 6362.525432 | AB24: 4330.325046 | AC24: 27308.66745 | AD24: 4304.333556 | AE24: 4107.668996 | AF24: 920.8226412 | AG24: 1952.305819 | AH24: 1.64615477 | AI24: 943.9314115 | AJ24: 3200.336005 | AK24: 8376.638846 | AL24: 2057.141581 | AM24: 7160.589202 | AN24: 9670.614107 | AO24: 17859.88887 | AP24: 115.5130018 | AQ24: 1161.037952 | AR24: 69517.45414 | AS24: 3087.928484 | AT24: 8.500816774 | AU24: 3121.28036 | AV24: 57.97725339 | AW24: 41696.65611 | AX24: 393.6187895 | AY24: 2628.495294 | AZ24: 4478.577505 | BA24: 800.5550415 | BB24: 2198.689475 | BC24: 4157.957808 | BD24: 67.01262072 | BE24: 3735.410307 | BF24: 1191.628444 | BG24: 117.0860117 | BH24: 4813.432637 | BI24: 30.56769906 | BJ24: 255.885438 | BK24: 15826.2198 | BL24: 5426.452083 | BM24: 551.8533218 | BN24: 100409.9342 | BO24: 1413.70921 | BP24: 39438.36637 | BQ24: 19554.25724 | BR24: 5446.695721 | BS24: 38.97382289 | BT24: 4172.353528 | BU24: 551.1210325 | BV24: 29757.8711 | BW24: 12545.64568 | BX24: 1125.45869 | BY24: 1104.091929 | BZ24: 304.6103935 | CA24: 322990.2182 | CB24: 38313.94718 | CC24: 1905.007107 | CD24: 265.6161727 | CE24: 16072.63672 | CF24: 3299.294134 | CG24: 25.35575736 | CH24: 2244.30327 | CI24: 218.0046024 | CJ24: 197.9858763 | CK24: 1035.861719 | CL24: 34220.19695 | CM24: 480.4306116 | CN24: 509.0647797 | CO24: 1982.053024 | CP24: 2333.23434 | CQ24: 330.0713381 | CR24: 299.5087042 | CS24: 279.5619685 | CT24: 23022.48416 | CU24: 1621.347114 | CV24: 10204.09065 | CW24: 11752.17562 | CX24: 18334.34995 | CY24: 709.208723 | CZ24: 1131.694074 | DA24: 1177.31525 | DB24: 1267.875178 | DC24: 413.6645063 | DD24: 6256.31939 | DE24: 149.7933627 | DF24: 532.0404398 | DG24: 2863.887432 | DH24: 276.467216 | DI24: 1890.634978 | DJ24: 14317.09751 | DK24: 95.66161803 | DL24: 370.6705403 | DM24: 2234.971633 | DN24: 3416.482803 | DO24: 901.2103971 | DP24: 3412.804568 | DQ24: 1567.38003 | DR24: 1262.603471 | DS24: 24535.84517 | DT24: 1.568331273 | DU24: 559.4496126 | DV24: 1635.418718 | DW24: 6181.446417 | DX24: 10442.53708 | DY24: 677.1482764 | DZ24: 1891.183614 | EA24: 1700.913554 | EB24: 40939.09369 | EC24: 24.48395754 | ED24: 1454.918804 | EE24: 6460.205601 | EF24: 1710.001001 | EG24: 13093.57854 | EH24: 532.0526495 | EI24: 1903.992437 | EJ24: 1443.150342 | EK24: 3325.867481 | EL24: 7654.551539 | EM24: 335.8555485 | EN24: 1846.525984 | EO24: 1520.500945 | EP24: 2205.657033 | EQ24: 2036.470161 | ER24: 1743.522806 | ES24: 3336.551664 | ET24: 1877.885783 | EU24: 5143.643337 | EV24: 1738.706166 | EW24: 1621.602759 | EX24: 1706.824222 | EY24: 738.3888143 | EZ24: 1807.892774 | FA24: 1863.055963 | FB24: 1513.159552 | FC24: 17480.58755 | FD24: 2001.657299 | FE24: 1707.467504 | FF24: 1852.427859 | FG24: 12379.72955 | FH24: 1834.756758 | FI24: 1816.005989 | FJ24: 1862.386556 | FK24: 1811.218266 | FL24: 1512.405242 | FM24: 4204.339308 | FN24: 1937.362941 | FO24: 1900.039503 | FP24: 2163.21916 | FQ24: 618.2021853 | FR24: 4437.747816 | FS24: 5843.705712 | FT24: 2053.315746 | FU24: 2010.822338 | FV24: 2339.412329 | FW24: 0.0003667087117 | FX24: 10.40133115 | FY24: 968.4506833 | FZ24: 1455.008439 | GA24: 1738.340175 | GB24: 253.2505881 | GC24: 2606.871658 | GD24: 1878.225281 | GE24: 389.4629802 | GF24: 357.4103086 | GG24: 5478.528196 | GH24: 5251.510579 | GI24: 1950.780956 | GJ24: 50971.17137 | GK24: 76.65905269 | GL24: 1404.073217 | GM24: 4854.2444 | GN24: 1808.348106 | GO24: 3693.02991 | GP24: 2005.967975 | GQ24: 4.395544926 | GR24: 1391.237045 | GS24: 7898.088429 | GT24: 1606.363713 | GU24: 1676.734462 | GV24: 1933.084625 | GW24: 3535.124346 | GX24: 3845.852347 | GY24: 41.15064034 | GZ24: 3291.624248 | HA24: 81818.62363 | HB24: 32376.38952 | HC24: 23883.118 | HD24: 85948.87142 | HE24: 56993.05889 | HF24: 15336.1374 | HG24: 8151.84143 | HH24: 5216.534981 | HI24: 3012.258556 | HJ24: 3211.45297 | HK24: 9063.207914 | HL24: 591.5579503 | HM24: 26926.61004 | HN24: 8306.569171 | HO24: 1773.544976 | HP24: 1030.302051 | HQ24: 1621.488544 | HR24: 1645.20593 | HS24: 2458.49159 | HT24: 2408.326101 | HU24: 1416.105679 | HV24: 2262.582105 | HW24: 6047.416527 | HX24: 14501.06883 | HY24: 1763.233599 | HZ24: 3257.725266 | IA24: 1407.884921 | IB24: 1619.502628 | IC24: 2.505234843e-08 | ID24: 99.10072908 | IE24: 21556.46822 | IF24: 9557.280462 | IG24: 294.2752536 | IH24: 8199.024434 | II24: 3433786.848
A25: =+MATCH(B25,RUT[EMPRESA],0) -> 261 | B25: PUNTILLA | C25: 285059643 | D25: 285059643 | F25: =IFERROR(INDEX($B$9:$B$511,MATCH(0,INDEX(COUNTIF($F$8:F24,$B$9:$B$511),0,0),0)),"") -> PUNTILLA | H25: 285059643 | J25: ESTANCILLA SPA | K25: 385684.5558 | L25: 175030.3203 | M25: 15938.5856 | N25: 481051.2699 | O25: 71478.18864 | P25: 16316.18301 | Q25: 1167.319823 | R25: 200.0335845 | S25: 868.6580454 | T25: 14398.81414 | U25: 8182.41 | V25: 1359.732799 | W25: 75921.75626 | X25: 1752.301048 | Y25: 900.7645507 | Z25: 1220.143015 | AA25: 4877.077741 | AB25: 3319.331627 | AC25: 20932.9606 | AD25: 3299.408325 | AE25: 3148.658696 | AF25: 705.8397888 | AG25: 1496.504392 | AH25: 1.261829894 | AI25: 723.5533949 | AJ25: 2453.159152 | AK25: 6420.959617 | AL25: 1576.864332 | AM25: 5488.818958 | AN25: 7412.832736 | AO25: 13690.17184 | AP25: 88.54438315 | AQ25: 889.9724506 | AR25: 53287.33564 | AS25: 2366.995218 | AT25: 6.516145941 | AU25: 2392.560491 | AV25: 44.44140538 | AW25: 31961.81069 | AX25: 301.7212987 | AY25: 2014.825093 | AZ25: 3432.971844 | BA25: 613.6508553 | BB25: 1685.365287 | BC25: 3187.206666 | BD25: 51.3673013 | BE25: 2863.310592 | BF25: 913.4210339 | BG25: 89.75014519 | BH25: 3689.648933 | BI25: 23.43111179 | BJ25: 196.1443121 | BK25: 12131.29993 | BL25: 4159.547801 | BM25: 423.0130914 | BN25: 76967.40239 | BO25: 1083.652992 | BP25: 30230.75991 | BQ25: 14988.95898 | BR25: 4175.065192 | BS25: 29.87467259 | BT25: 3198.241443 | BU25: 422.4517684 | BV25: 22810.35296 | BW25: 9616.63571 | BX25: 862.6998166 | BY25: 846.3215163 | BZ25: 233.4935374 | CA25: 247582.2566 | CB25: 29368.8569 | CC25: 1460.248427 | CD25: 203.6032292 | CE25: 12320.18632 | CF25: 2529.0137 | CG25: 19.43599301 | CH25: 1720.329709 | CI25: 167.107449 | CJ25: 151.7624599 | CK25: 794.0208942 | CL25: 26230.86738 | CM25: 368.2653165 | CN25: 390.2143154 | CO25: 1519.306569 | CP25: 1788.498197 | CQ25: 253.0101598 | CR25: 229.5829305 | CS25: 214.2931244 | CT25: 17647.46503 | CU25: 1242.814038 | CV25: 7821.759446 | CW25: 9008.415723 | CX25: 14053.86132 | CY25: 543.6310022 | CZ25: 867.479437 | DA25: 902.4495162 | DB25: 971.8665766 | DC25: 317.0869771 | DD25: 4795.667438 | DE25: 114.8213681 | DF25: 407.8258884 | DG25: 2195.26064 | DH25: 211.9208984 | DI25: 1449.231734 | DJ25: 10974.50978 | DK25: 73.32766728 | DL25: 284.1307372 | DM25: 1713.176713 | DN25: 2618.842535 | DO25: 690.806381 | DP25: 2616.023051 | DQ25: 1201.446554 | DR25: 967.8256456 | DS25: 18807.50429 | DT25: 1.202175712 | DU25: 428.8358895 | DV25: 1253.600369 | DW25: 4738.274928 | DX25: 8004.536202 | DY25: 519.055652 | DZ25: 1449.652281 | EA25: 1303.80424 | EB25: 31381.11505 | EC25: 18.76773077 | ED25: 1115.241454 | EE25: 4951.952692 | EF25: 1310.770057 | EG25: 10036.64365 | EH25: 407.8352475 | EI25: 1459.470651 | EJ25: 1106.220554 | EK25: 2549.383014 | EL25: 5867.456772 | EM25: 257.4439407 | EN25: 1415.42079 | EO25: 1165.512247 | EP25: 1690.706141 | EQ25: 1561.019032 | ER25: 1336.465584 | ES25: 2557.572779 | ET25: 1439.459071 | EU25: 3942.765919 | EV25: 1332.773477 | EW25: 1243.009997 | EX25: 1308.334955 | EY25: 565.9984685 | EZ25: 1385.807208 | FA25: 1428.091544 | FB25: 1159.884837 | FC25: 13399.42533 | FD25: 1534.333868 | FE25: 1308.828051 | FF25: 1419.944765 | FG25: 9489.45573 | FH25: 1406.399305 | FI25: 1392.026245 | FJ25: 1427.578423 | FK25: 1388.356303 | FL25: 1159.306634 | FM25: 3222.759559 | FN25: 1485.050202 | FO25: 1456.440602 | FP25: 1658.176164 | FQ25: 473.8716018 | FR25: 3401.674591 | FS25: 4479.385954 | FT25: 1573.931708 | FU25: 1541.359161 | FV25: 1793.233822 | FW25: 0.0002810938698 | FX25: 7.972950551 | FY25: 742.3481952 | FZ25: 1115.310162 | GA25: 1332.492933 | GB25: 194.124616 | GC25: 1998.249889 | GD25: 1439.719308 | GE25: 298.535739 | GF25: 273.9663486 | GG25: 4199.465794 | GH25: 4025.449584 | GI25: 1495.335536 | GJ25: 39071.02109 | GK25: 58.76159766 | GL25: 1076.266698 | GM25: 3720.932445 | GN25: 1386.156235 | GO25: 2830.824673 | GP25: 1537.638138 | GQ25: 3.369324735 | GR25: 1066.427364 | GS25: 6054.135529 | GT25: 1231.328785 | GU25: 1285.270198 | GV25: 1481.770737 | GW25: 2709.785044 | GX25: 2947.967922 | GY25: 31.54327227 | GZ25: 2523.134489 | HA25: 62716.57259 | HB25: 24817.53045 | HC25: 18307.16819 | HD25: 65882.53865 | HE25: 43686.98905 | HF25: 11755.63621 | HG25: 6248.645261 | HH25: 3998.639677 | HI25: 2308.991816 | HJ25: 2461.680658 | HK25: 6947.236605 | HL25: 453.4479497 | HM25: 20640.10146 | HN25: 6367.248987 | HO25: 1359.478531 | HP25: 789.7592318 | HQ25: 1242.922448 | HR25: 1261.102577 | HS25: 1884.511856 | HT25: 1846.058416 | HU25: 1085.489961 | HV25: 1734.341016 | HW25: 4635.536762 | HX25: 11115.52964 | HY25: 1351.574533 | HZ25: 2497.149843 | IA25: 1079.18849 | IB25: 1241.40018 | IC25: 1.920342043e-08 | ID25: 75.96385509 | IE25: 16523.71727 | IF25: 7325.958899 | IG25: 225.5713245 | IH25: 6284.812531 | II25: 2632106.635
A26: =+MATCH(B26,RUT[EMPRESA],0) -> 91 | B26: EL MANZANO | C26: 161990761.9 | D26: 161990761.9 | F26: =IFERROR(INDEX($B$9:$B$511,MATCH(0,INDEX(COUNTIF($F$8:F25,$B$9:$B$511),0,0),0)),"") -> EL MANZANO | H26: 161990761.9 | J26: TALINAY | K26: 11082147.25 | L26: 5029270.045 | M26: 457974.6582 | N26: 13822386.53 | O26: 2053833.372 | P26: 468824.4317 | Q26: 33541.42646 | R26: 5747.706528 | S26: 24959.76628 | T26: 413731.3153 | U26: 235110.9764 | V26: 39070.16466 | W26: 2181513.545 | X26: 50350.10596 | Y26: 25882.30522 | Z26: 35059.23262 | AA26: 140136.5258 | AB26: 95376.7044 | AC26: 601481.5691 | AD26: 94804.23407 | AE26: 90472.6383 | AF26: 20281.39411 | AG26: 43000.11962 | AH26: 36.25705121 | AI26: 20790.37168 | AJ26: 70488.35778 | AK26: 184497.9762 | AL26: 45309.15866 | AM26: 157714.119 | AN26: 212998.1684 | AO26: 393369.3946 | AP26: 2544.208415 | AQ26: 25572.20817 | AR26: 1531142.721 | AS26: 68012.54851 | AT26: 187.2330322 | AU26: 68747.13356 | AV26: 1276.966348 | AW26: 918381.3229 | AX26: 8669.571576 | AY26: 57893.39509 | AZ26: 98642.00917 | BA26: 17632.46425 | BB26: 48426.79336 | BC26: 91580.26442 | BD26: 1475.973016 | BE26: 82273.52933 | BF26: 26245.97291 | BG26: 2578.854429 | BH26: 106017.2936 | BI26: 673.2627151 | BJ26: 5635.953311 | BK26: 348577.225 | BL26: 119519.2303 | BM26: 12154.73448 | BN26: 2211558.835 | BO26: 31137.36821 | BP26: 868641.8159 | BQ26: 430688.3646 | BR26: 119965.1024 | BS26: 858.4101068 | BT26: 91897.33447 | BU26: 12138.60559 | BV26: 655426.0121 | BW26: 276321.5986 | BX26: 24788.56428 | BY26: 24317.95499 | BZ26: 6709.135031 | CA26: 7113956.168 | CB26: 843876.1469 | CC26: 41958.35134 | CD26: 5850.275655 | CE26: 354004.6312 | CF26: 72667.94018 | CG26: 558.4681401 | CH26: 49431.45084 | CI26: 4801.616577 | CJ26: 4360.698147 | CK26: 22815.1642 | CL26: 753710.0736 | CM26: 10581.62793 | CN26: 11212.30404 | CO26: 43655.31072 | CP26: 51390.18424 | CQ26: 7269.919951 | CR26: 6596.768797 | CS26: 6157.435978 | CT26: 507077.1001 | CU26: 35710.65517 | CV26: 224748.1489 | CW26: 258845.1833 | CX26: 403819.5419 | CY26: 15620.53426 | CZ26: 24925.90049 | DA26: 25930.72052 | DB26: 27925.33004 | DC26: 9111.084485 | DD26: 137797.3059 | DE26: 3299.243618 | DF26: 11718.34983 | DG26: 63077.97733 | DH26: 6089.273128 | DI26: 41641.8009 | DJ26: 315338.3552 | DK26: 2106.975751 | DL26: 8164.129524 | DM26: 49225.91874 | DN26: 75249.05565 | DO26: 19849.42856 | DP26: 75168.04143 | DQ26: 34522.01399 | DR26: 27809.21911 | DS26: 540409.329 | DT26: 34.5429654 | DU26: 12322.04506 | DV26: 36020.58645 | DW26: 136148.2063 | DX26: 230000.0027 | DY26: 14914.39333 | DZ26: 41653.88478 | EA26: 37463.1298 | EB26: 901695.7841 | EC26: 539.2664884 | ED26: 32045.02184 | EE26: 142287.9607 | EF26: 37663.28355 | EG26: 288389.9839 | EH26: 11718.61875 | EI26: 41936.00294 | EJ26: 31785.81796 | EK26: 73253.22608 | EL26: 168593.7873 | EM26: 7397.318916 | EN26: 40670.28712 | EO26: 33489.48812 | EP26: 48580.2559 | EQ26: 44853.86444 | ER26: 38401.61131 | ES26: 73488.54841 | ET26: 41360.99607 | EU26: 113290.2831 | EV26: 38295.52338 | EW26: 35716.28581 | EX26: 37593.31404 | EY26: 16263.2345 | EZ26: 39819.37912 | FA26: 41034.36486 | FB26: 33327.79175 | FC26: 385015.1696 | FD26: 44087.10073 | FE26: 37607.48251 | FF26: 40800.27768 | FG26: 272667.2463 | FH26: 40411.06639 | FI26: 39998.0751 | FJ26: 41019.62097 | FK26: 39892.62407 | FL26: 33311.17783 | FM26: 92601.83084 | FN26: 42670.99828 | FO26: 41848.93839 | FP26: 47645.54904 | FQ26: 13616.08805 | FR26: 97742.72305 | FS26: 128709.3662 | FT26: 45224.89348 | FU26: 44288.96346 | FV26: 51526.25631 | FW26: 0.008076869064 | FX26: 229.0924299 | FY26: 21330.41598 | FZ26: 32046.99608 | GA26: 38287.46232 | GB26: 5577.919954 | GC26: 57417.12802 | GD26: 41368.47363 | GE26: 8578.038633 | GF26: 7872.068955 | GG26: 120666.2222 | GH26: 115666.0913 | GI26: 42966.53406 | GJ26: 1122655.296 | GK26: 1688.438565 | GL26: 30925.13259 | GM26: 106916.1849 | GN26: 39829.40794 | GO26: 81340.08842 | GP26: 44182.04466 | GQ26: 96.81319177 | GR26: 30642.41205 | GS26: 173957.7601 | GT26: 35380.64127 | GU26: 36930.57807 | GV26: 42576.76709 | GW26: 77862.17112 | GX26: 84706.0483 | GY26: 906.3551623 | GZ26: 72499.00864 | HA26: 1802079.659 | HB26: 713099.6634 | HC26: 526032.8177 | HD26: 1893049.602 | HE26: 1255289.17 | HF26: 337783.0136 | HG26: 179546.7458 | HH26: 114895.7433 | HI26: 66345.8957 | HJ26: 70733.21225 | HK26: 199619.8653 | HL26: 13029.2408 | HM26: 593066.6403 | HN26: 182954.6706 | HO26: 39062.8586 | HP26: 22692.71084 | HQ26: 35713.77019 | HR26: 36236.15271 | HS26: 54149.01265 | HT26: 53044.10274 | HU26: 31190.15116 | HV26: 49834.04765 | HW26: 133196.1579 | HX26: 319390.3786 | HY26: 38835.74743 | HZ26: 71752.37342 | IA26: 31009.08651 | IB26: 35670.02979 | IC26: 5.517854676e-07 | ID26: 2182.723201 | IE26: 474787.6604 | IF26: 210501.9609 | IG26: 6481.500483 | IH26: 180585.9656 | II26: 75630182.42
A27: =+MATCH(B27,RUT[EMPRESA],0) -> 125 | B27: ESPINOS | C27: 26919226.99 | D27: 26919226.99 | F27: =IFERROR(INDEX($B$9:$B$511,MATCH(0,INDEX(COUNTIF($F$8:F26,$B$9:$B$511),0,0),0)),"") -> ESPINOS | H27: 26919226.99 | J27: ARRAYAN | K27: 8667.879838 | L27: 3933.633746 | M27: 358.2039848 | N27: 10811.15264 | O27: 1606.401762 | P27: 366.6901139 | Q27: 26.23436122 | R27: 4.495557439 | S27: 19.52223247 | T27: 323.5991405 | U27: 183.8915912 | V27: 30.55865301 | W27: 1706.26656 | X27: 39.38123707 | Y27: 20.2437945 | Z27: 27.42151034 | AA27: 109.60751 | AB27: 74.59870314 | AC27: 470.447635 | AD27: 74.15094659 | AE27: 70.76299741 | AF27: 15.8630528 | AG27: 33.63245961 | AH27: 0.02835838181 | AI27: 16.26114862 | AJ27: 55.13233142 | AK27: 144.3047319 | AL27: 35.43846998 | AM27: 123.3557903 | AN27: 166.5961015 | AO27: 307.673104 | AP27: 1.989947645 | AQ27: 20.0012527 | AR27: 1197.58029 | AS27: 53.19588203 | AT27: 0.1464439506 | AU27: 53.77043629 | AV27: 0.9987767358 | AW27: 718.3101587 | AX27: 6.780888482 | AY27: 45.28120594 | AZ27: 77.15265489 | BA27: 13.79119749 | BB27: 37.87692188 | BC27: 71.62932502 | BD27: 1.154429413 | BE27: 64.35008034 | BF27: 20.52823647 | BG27: 2.017045957 | BH27: 82.92121922 | BI27: 0.5265911181 | BJ27: 4.408149879 | BK27: 272.638996 | BL27: 93.48173261 | BM27: 9.506801843 | BN27: 1729.766425 | BO27: 24.35403176 | BP27: 679.4065004 | BQ27: 336.8620635 | BR27: 93.83047067 | BS27: 0.6714037891 | BT27: 71.87732074 | BU27: 9.494186663 | BV27: 512.6401758 | BW27: 216.1243989 | BX27: 19.38832715 | BY27: 19.02024102 | BZ27: 5.247536866 | CA27: 5564.166927 | CB27: 660.0360807 | CC27: 32.81764258 | CD27: 4.575781681 | CE27: 276.8840312 | CF27: 56.83708754 | CG27: 0.4368047654 | CH27: 38.66271276 | CI27: 3.755575031 | CJ27: 3.410711542 | CK27: 17.84483614 | CL27: 589.5128625 | CM27: 8.276399623 | CN27: 8.769681716 | CO27: 34.14491605 | CP27: 40.19473227 | CQ27: 5.686153696 | CR27: 5.159649835 | CS27: 4.816026529 | CT27: 396.6093639 | CU27: 27.93101922 | CV27: 175.7863258 | CW27: 202.4552548 | CX27: 315.8466663 | CY27: 12.21757037 | CZ27: 19.49574441 | DA27: 20.28166243 | DB27: 21.84174237 | DC27: 7.126216942 | DD27: 107.7778938 | DE27: 2.580496955 | DF27: 9.165484441 | DG27: 49.33631682 | DH27: 4.762713089 | DI27: 32.57005327 | DJ27: 246.6412789 | DK27: 1.64796697 | DL27: 6.385557968 | DM27: 38.50195624 | DN27: 58.85590196 | DO27: 15.5251918 | DP27: 58.79253685 | DQ27: 27.00132584 | DR27: 21.75092643 | DS27: 422.6801016 | DT27: 0.02701771295 | DU27: 9.637663485 | DV27: 28.17343137 | DW27: 106.4880538 | DX27: 179.8940531 | DY27: 11.66526363 | DZ27: 32.57950466 | EA27: 29.30171383 | EB27: 705.2595971 | EC27: 0.4217862311 | ED27: 25.06395127 | EE27: 111.2902507 | EF27: 29.45826369 | EG27: 225.5636629 | EH27: 9.165694777 | EI27: 32.80016282 | EJ27: 24.86121546 | EK27: 57.29486776 | EL27: 131.8653015 | EM27: 5.785798548 | EN27: 31.81018567 | EO27: 26.19373775 | EP27: 37.9969523 | EQ27: 35.0823625 | ER27: 30.03574531 | ES27: 57.47892467 | ET27: 32.35042232 | EU27: 88.60977371 | EV27: 29.95276885 | EW27: 27.93542321 | EX27: 29.40353718 | EY27: 12.72025711 | EZ27: 31.14464964 | FA27: 32.09494836 | FB27: 26.06726725 | FC27: 301.1388632 | FD27: 34.48263976 | FE27: 29.41461902 | FF27: 31.91185753 | FG27: 213.2661543 | FH27: 31.60743668 | FI27: 31.28441635 | FJ27: 32.08341646 | FK27: 31.20193803 | FL27: 26.05427271 | FM27: 72.4283412 | FN27: 33.37503799 | FO27: 32.73206546 | FP27: 37.26587316 | FQ27: 10.64979668 | FR27: 76.44928001 | FS27: 100.6697795 | FT27: 35.37256214 | FU27: 34.6405263 | FV27: 40.30116077 | FW27: 6.31730737e-06 | FX27: 0.1791841967 | FY27: 16.68354321 | FZ27: 25.06549542 | GA27: 29.94646391 | GB27: 4.362759202 | GC27: 44.90869458 | GD27: 32.35627088 | GE27: 6.709296169 | GF27: 6.157123364 | GG27: 94.37885013 | GH27: 90.4680075 | GI27: 33.60619073 | GJ27: 878.0826477 | GK27: 1.320608928 | GL27: 24.18803208 | GM27: 83.62428527 | GN27: 31.15249366 | GO27: 63.61999135 | GP27: 34.55689997 | GQ27: 0.07572224893 | GR27: 23.96690276 | GS27: 136.0607224 | GT27: 27.67289949 | GU27: 28.88517954 | GV27: 33.30133526 | GW27: 60.89974513 | GX27: 66.2526703 | GY27: 0.7089039206 | GZ27: 56.70495807 | HA27: 1409.493087 | HB27: 557.7495095 | HC27: 411.4355414 | HD27: 1480.64505 | HE27: 981.8219732 | HF27: 264.1963246 | HG27: 140.4321367 | HH27: 89.8654813 | HI27: 51.89231279 | HJ27: 55.32384387 | HK27: 156.1322879 | HL27: 10.19079525 | HM27: 463.8659148 | HN27: 143.0976384 | HO27: 30.55293859 | HP27: 17.74905948 | HQ27: 27.93345562 | HR27: 28.3420361 | HS27: 42.35254452 | HT27: 41.4883414 | HU27: 24.39531583 | HV27: 38.97760307 | HW27: 104.1791148 | HX27: 249.810561 | HY27: 30.37530403 | HZ27: 56.12097878 | IA27: 24.25369648 | IB27: 27.89924416 | IC27: 4.315779262e-10 | ID27: 1.70721269 | IE27: 371.3542417 | IF27: 164.6436978 | IG27: 5.069492948 | IH27: 141.2449604 | II27: 59153.99952
A28: =+MATCH(B28,RUT[EMPRESA],0) -> 119 | B28: ENLASA | C28: 1503056330 | D28: 1503056330 | F28: =IFERROR(INDEX($B$9:$B$511,MATCH(0,INDEX(COUNTIF($F$8:F27,$B$9:$B$511),0,0),0)),"") -> ENLASA | H28: 1503056330 | J28: AELA_GENERACION | K28: 56234817.01 | L28: 25520332.31 | M28: 2323928.794 | N28: 70139780.63 | O28: 10421892.19 | P28: 2378984.463 | Q28: 170201.3099 | R28: 29165.93846 | S28: 126654.8673 | T28: 2099422.096 | U28: 1193037.995 | V28: 198256.124 | W28: 11069787.49 | X28: 255494.6194 | Y28: 131336.163 | Z28: 177903.2065 | AA28: 711103.3361 | AB28: 483975.8394 | AC28: 3052134.681 | AD28: 481070.9182 | AE28: 459090.8371 | AF28: 102915.1175 | AG28: 218198.1346 | AH28: 183.9813705 | AI28: 105497.8535 | AJ28: 357683.3813 | AK28: 936209.3548 | AL28: 229915.0325 | AM28: 800298.3917 | AN28: 1080829.621 | AO28: 1996098.357 | AP28: 12910.23223 | AQ28: 129762.6186 | AR28: 7769571.075 | AS28: 345120.231 | AT28: 950.0880165 | AU28: 348847.7808 | AV28: 6479.788371 | AW28: 4660198.467 | AX28: 43992.53682 | AY28: 293771.9924 | AZ28: 500545.1749 | BA28: 89473.49081 | BB28: 245735.0368 | BC28: 464711.332 | BD28: 7489.620068 | BE28: 417485.5974 | BF28: 133181.5441 | BG28: 13086.03862 | BH28: 537970.0315 | BI28: 3416.378137 | BJ28: 28598.86229 | BK28: 1768806.713 | BL28: 606483.7337 | BM28: 61677.51192 | BN28: 11222248.14 | BO28: 158002.2503 | BP28: 4407802.247 | BQ28: 2185468.287 | BR28: 608746.2502 | BS28: 4355.882861 | BT28: 466320.2599 | BU28: 61595.66811 | BV28: 3325868.265 | BW28: 1402155.573 | BX28: 125786.1265 | BY28: 123398.085 | BZ28: 34044.57387 | CA28: 36098782.5 | CB28: 4282132.3 | CC28: 212911.8262 | CD28: 29686.41125 | CE28: 1796347.333 | CF28: 368743.3694 | CG28: 2833.86901 | CH28: 250833.0316 | CI28: 24365.13641 | CJ28: 22127.75708 | CK28: 115772.3819 | CL28: 3824597.084 | CM28: 53695.0012 | CN28: 56895.27956 | CO28: 221522.8108 | CP28: 260772.3522 | CQ28: 36890.19906 | CR28: 33474.38702 | CS28: 31245.05365 | CT28: 2573092.315 | CU28: 181208.7597 | CV28: 1140453.266 | CW28: 1313473.931 | CX28: 2049126.178 | CY28: 79264.23153 | CZ28: 126483.02 | DA28: 131581.8397 | DB28: 141703.2087 | DC28: 46232.93276 | DD28: 699233.2899 | DE28: 16741.5535 | DF28: 59463.13862 | DG28: 320080.4349 | DH28: 30899.17074 | DI28: 211305.5349 | DJ28: 1600140.686 | DK28: 10691.55581 | DL28: 41427.74133 | DM28: 249790.0875 | DN28: 381840.8814 | DO28: 100723.1683 | DP28: 381429.786 | DQ28: 175177.1651 | DR28: 141114.0199 | DS28: 2742232.081 | DT28: 175.2834802 | DU28: 62526.50621 | DV28: 182781.463 | DW28: 690865.163 | DX28: 1167103.069 | DY28: 75681.01748 | DZ28: 211366.8529 | EA28: 190101.4488 | EB28: 4575530.018 | EC28: 2736.432895 | ED28: 162608.0125 | EE28: 722020.4939 | EF28: 191117.1012 | EG28: 1463394.918 | EH28: 59464.50322 | EI28: 212798.4223 | EJ28: 161292.7184 | EK28: 371713.3214 | EL28: 855505.757 | EM28: 37536.66741 | EN28: 206375.7232 | EO28: 169937.7561 | EP28: 246513.7611 | EQ28: 227604.7052 | ER28: 194863.6429 | ES28: 372907.4319 | ET28: 209880.6298 | EU28: 574875.8062 | EV28: 194325.3144 | EW28: 181237.3316 | EX28: 190762.0507 | EY28: 82525.52463 | EZ28: 202057.9087 | FA28: 208223.1851 | FB28: 169117.2503 | FC28: 1953706.002 | FD28: 223713.8693 | FE28: 190833.9466 | FF28: 207035.3422 | FG28: 1383612.07 | FH28: 205060.3436 | FI28: 202964.6767 | FJ28: 208148.3693 | FK28: 202429.58 | FL28: 169032.9453 | FM28: 469895.1289 | FN28: 216528.0541 | FO28: 212356.6254 | FP28: 241770.721 | FQ28: 69092.94762 | FR28: 495981.8724 | FS28: 653117.8023 | FT28: 229487.4406 | FU28: 224738.1937 | FV28: 261462.831 | FW28: 0.04098495025 | FX28: 1162.497716 | FY28: 108238.2333 | FZ28: 162618.0305 | GA28: 194284.4097 | GB28: 28304.38008 | GC28: 291355.2413 | GD28: 209918.5737 | GE28: 43528.06562 | GF28: 39945.72054 | GG28: 612303.9851 | GH28: 586931.5152 | GI28: 218027.7094 | GJ28: 5696758.37 | GK28: 8567.746989 | GL28: 156925.2901 | GM28: 542531.3304 | GN28: 202108.7986 | GO28: 412748.9812 | GP28: 224195.6491 | GQ28: 491.265095 | GR28: 155490.6639 | GS28: 882724.4921 | GT28: 179534.15 | GU28: 187399.0891 | GV28: 216049.891 | GW28: 395100.7729 | GX28: 429829.0771 | GY28: 4599.173385 | GZ28: 367886.1498 | HA28: 9144402.934 | HB28: 3618525.198 | HC28: 2669280.472 | HD28: 9606017.274 | HE28: 6369790.541 | HF28: 1714032.987 | HG28: 911085.0241 | HH28: 583022.4912 | HI28: 336663.0328 | HJ28: 358925.8613 | HK28: 1012943.281 | HL28: 66115.07278 | HM28: 3009434.294 | HN28: 928378.0651 | HO28: 198219.0504 | HP28: 115151.0093 | HQ28: 181224.5664 | HR28: 183875.324 | HS28: 274771.6438 | HT28: 269164.9319 | HU28: 158270.09 | HV28: 252875.9532 | HW28: 675885.4033 | HX28: 1620702.115 | HY28: 197066.6064 | HZ28: 364097.4531 | IA28: 157351.3026 | IB28: 181002.6119 | IC28: 2.799958717e-06 | ID28: 11075.92572 | IE28: 2409244.039 | IF28: 1068162.964 | IG28: 32889.47397 | IH28: 916358.4005 | II28: 383774856.2
A29: =+MATCH(B29,RUT[EMPRESA],0) -> 241 | B29: PARQUE_EOLICO_LEBU | C29: 34691072.92 | D29: 34691072.92 | F29: =IFERROR(INDEX($B$9:$B$511,MATCH(0,INDEX(COUNTIF($F$8:F28,$B$9:$B$511),0,0),0)),"") -> PARQUE_EOLICO_LEBU | H29: 34691072.92 | J29: AGUAS DEL MELADO | K29: =$II29*K$64/$II$64 -> 32715031.87 | L29: 14846647.14 | M29: 1351963.225 | N29: 40804350.05 | O29: 6063014.928 | P29: 1383992.278 | Q29: 99015.90464 | R29: 16967.5062 | S29: 73682.43091 | T29: 1221354.748 | U29: =$II29*U$64/$II$64 -> 694058.9139 | V29: 115337.0058 | W29: 6439932.94 | X29: 148635.9352 | Y29: 76405.81024 | Z29: 103496.5414 | AA29: 413689.7662 | AB29: 281556.6201 | AC29: 1775602.53 | AD29: 279866.6601 | AE29: =$II29*AE$64/$II$64 -> 267079.581 | AF29: 59871.65116 | AG29: 126938.4219 | AH29: 107.0325595 | AI29: 61374.17746 | AJ29: 208085.0234 | AK29: 544646.9021 | AL29: 133754.8162 | AM29: 465579.6672 | AN29: 628780.8406 | AO29: =$II29*AO$64/$II$64 -> 1161245.378 | AP29: 7510.625647 | AQ29: 75490.38883 | AR29: 4520006.978 | AS29: 200776.3154 | AT29: 552.720919 | AU29: 202944.8458 | AV29: 3769.666095 | AW29: 2711105.85 | AX29: 25592.99239 | AY29: =$II29*AY$64/$II$64 -> 170904.0876 | AZ29: 291195.9569 | BA29: 52051.88278 | BB29: 142958.2239 | BC29: 270349.3466 | BD29: 4357.143354 | BE29: 242875.4169 | BF29: 77479.37474 | BG29: 7612.902347 | BH29: 312968.1514 | BI29: =$II29*BI$64/$II$64 -> 1987.503926 | BJ29: 16637.60533 | BK29: 1029016.739 | BL29: 352826.518 | BM29: 35881.36096 | BN29: 6528628.082 | BO29: 91919.00902 | BP29: 2564272.432 | BQ29: 1271412.773 | BR29: 354142.7541 | BS29: =$II29*BS$64/$II$64 -> 2534.067935 | BT29: 271285.3526 | BU29: 35833.7477 | BV29: 1934849.121 | BW29: 815714.6533 | BX29: 73177.03436 | BY29: 71787.77309 | BZ29: 19805.6894 | CA29: 21000740.87 | CB29: 2491162.986 | CC29: =$II29*CC$64/$II$64 -> 123863.0718 | CD29: 17270.2952 | CE29: 1045038.703 | CF29: 214519.2556 | CG29: 1648.624818 | CH29: 145924.0211 | CI29: 14174.60315 | CJ29: 12872.99073 | CK29: 67351.4624 | CL29: 2224988.399 | CM29: =$II29*CM$64/$II$64 -> 31237.47473 | CN29: 33099.26097 | CO29: 128872.5775 | CP29: 151706.2963 | CQ29: 21461.15346 | CR29: 19473.97887 | CS29: 18177.04725 | CT29: 1496915.996 | CU29: 105419.5721 | CV29: 663467.3483 | CW29: =$II29*CW$64/$II$64 -> 764123.4346 | CX29: 1192094.716 | CY29: 46112.56866 | CZ29: 73582.45747 | DA29: 76548.73455 | DB29: 82436.9178 | DC29: 26896.35974 | DD29: 406784.2767 | DE29: 9739.525892 | DF29: 34593.13248 | DG29: =$II29*DG$64/$II$64 -> 186209.2238 | DH29: 17975.82724 | DI29: 122928.5997 | DJ29: 930893.9959 | DK29: 6219.893786 | DL29: 24100.90314 | DM29: 145317.2804 | DN29: 222138.8326 | DO29: 58596.4681 | DP29: 221899.6747 | DQ29: =$II29*DQ$64/$II$64 -> 101910.6462 | DR29: 82094.15275 | DS29: 1595314.339 | DT29: 101.9724958 | DU29: 36375.26984 | DV29: 106334.5042 | DW29: 401916.0553 | DX29: 678971.0737 | DY29: 44028.00667 | DZ29: 122964.2719 | EA29: =$II29*EA$64/$II$64 -> 110592.9616 | EB29: 2661849.336 | EC29: 1591.940618 | ED29: 94598.44619 | EE29: 420040.9057 | EF29: 111183.8251 | EG29: 851341.1073 | EH29: 34593.92635 | EI29: 123797.0983 | EJ29: 93833.26386 | EK29: =$II29*EK$64/$II$64 -> 216247.0477 | EL29: 497696.9712 | EM29: 21837.24133 | EN29: 120060.6443 | EO29: 98862.58016 | EP29: 143411.2527 | EQ29: 132410.7658 | ER29: 113363.4041 | ES29: 216941.7305 | ET29: 122099.6503 | EU29: =$II29*EU$64/$II$64 -> 334438.3661 | EV29: 113050.2275 | EW29: 105436.1941 | EX29: 110977.2717 | EY29: 48009.85068 | EZ29: 117548.7229 | FA29: 121135.4193 | FB29: 98385.2447 | FC29: 1136583.304 | FD29: 130147.2424 | FE29: =$II29*FE$64/$II$64 -> 111019.0977 | FF29: 120444.3827 | FG29: 804926.8293 | FH29: 119295.4122 | FI29: 118076.242 | FJ29: 121091.8946 | FK29: 117764.9455 | FL29: 98336.19961 | FM29: 273365.0598 | FN29: 125966.8399 | FO29: =$II29*FO$64/$II$64 -> 123540.0795 | FP29: 140651.9531 | FQ29: 40195.347 | FR29: 288541.221 | FS29: 379956.2415 | FT29: 133506.0614 | FU29: 130743.1509 | FV29: 152107.9876 | FW29: 0.02384330607 | FX29: 676.2918749 | FY29: =$II29*FY$64/$II$64 -> 62968.4142 | FZ29: 94604.27424 | GA29: 113026.4308 | GB29: 16466.28806 | GC29: 169498.1243 | GD29: 122121.7244 | GE29: 25322.78274 | GF29: 23238.72629 | GG29: 356212.4934 | GH29: 341451.8664 | GI29: =$II29*GI$64/$II$64 -> 126839.2757 | GJ29: 3314132.445 | GK29: 4984.351878 | GL29: 91292.47926 | GM29: 315621.7216 | GN29: 117578.3285 | GO29: 240119.8544 | GP29: 130427.5215 | GQ29: 285.7971999 | GR29: 90457.87461 | GS29: =$II29*GS$64/$II$64 -> 513531.6771 | GT29: 104445.3552 | GU29: 109020.8432 | GV29: 125688.6649 | GW29: 229852.8752 | GX29: 250056.3299 | GY29: 2675.604045 | GZ29: 214020.5615 | HA29: 5319825.853 | HB29: 2105104.514 | HC29: =$II29*HC$64/$II$64 -> 1552874.186 | HD29: 5588373.501 | HE29: 3705674.022 | HF29: 997151.7072 | HG29: 530030.6319 | HH29: 339177.762 | HI29: 195856.2761 | HJ29: 208807.8456 | HK29: 589287.4462 | HL29: 38462.94569 | HM29: =$II29*HM$64/$II$64 -> 1750761.255 | HN29: 540090.9899 | HO29: 115315.438 | HP29: 66989.97418 | HQ29: 105428.7678 | HR29: 106970.8662 | HS29: 159850.4905 | HT29: 156588.7433 | HU29: 92074.82682 | HV29: 147112.5062 | HW29: =$II29*HW$64/$II$64 -> 393201.4663 | HX29: 942855.7638 | HY29: 114644.9949 | HZ29: 211816.4584 | IA29: 91540.31527 | IB29: 105299.6441 | IC29: 1.628897248e-06 | ID29: 6443.503902 | IE29: 1401596.016 | IF29: 621411.9161 | IG29: 19133.70126 | IH29: 533098.4587 | II29: 223263937.2
A30: =+MATCH(B30,RUT[EMPRESA],0) -> 234 | B30: ORAFTI | C30: 17832831.14 | D30: 17832831.14 | F30: =IFERROR(INDEX($B$9:$B$511,MATCH(0,INDEX(COUNTIF($F$8:F29,$B$9:$B$511),0,0),0)),"") -> ORAFTI | H30: 17832831.14 | J30: ENORCHILE | K30: 123509040.1 | L30: 56050537.99 | M30: 5104065.948 | N30: 154048638.2 | O30: 22889696.61 | P30: 5224985.214 | Q30: 373814.6851 | R30: 64057.41594 | S30: 278173.237 | T30: 4610979.844 | U30: 2620280.2 | V30: 435431.7285 | W30: 24312674.95 | X30: 561145.1566 | Y30: 288454.8094 | Z30: 390730.4305 | AA30: 1561802.725 | AB30: 1062960.538 | AC30: 6703431.162 | AD30: 1056580.433 | AE30: 1008305.381 | AF30: 226033.4086 | AG30: 479230.5478 | AH30: 404.0799575 | AI30: 231705.8952 | AJ30: 785583.2637 | AK30: 2056205.122 | AL30: 504964.4772 | AM30: 1757702.637 | AN30: 2373835.929 | AO30: 4384048.977 | AP30: 28354.86048 | AQ30: 284998.8195 | AR30: 17064379.62 | AS30: 757990.7024 | AT30: 2086.686953 | AU30: 766177.554 | AV30: 14231.61814 | AW30: 10235236.28 | AX30: 96621.20878 | AY30: 645214.0991 | AZ30: 1099351.921 | BA30: 196511.4417 | BB30: 539710.0965 | BC30: 1020649.725 | BD30: 16449.52068 | BE30: 916927.415 | BF30: 292507.8368 | BG30: 28740.98564 | BH30: 1181548.473 | BI30: 7503.422376 | BJ30: 62811.94138 | BK30: 3884846.274 | BL30: 1332025.741 | BM30: 135462.8804 | BN30: 24647525.67 | BO30: 347021.7794 | BP30: 9680896.168 | BQ30: 4799963.878 | BR30: 1336994.926 | BS30: 9566.865147 | BT30: 1024183.428 | BU30: 135283.1261 | BV30: 7304634.722 | BW30: 3079567.039 | BX30: 276265.2137 | BY30: 271020.3365 | BZ30: 74772.40725 | CA30: 79284084.35 | CB30: 9404886.119 | CC30: 467620.1805 | CD30: 65200.53505 | CE30: 3945333.986 | CF30: 809874.4163 | CG30: 6224.052283 | CH30: 550906.8689 | CI30: 53513.37072 | CJ30: 48599.39414 | CK30: 254271.9354 | CL30: 8399997.363 | CM30: 117930.8195 | CN30: 124959.62 | CO30: 486532.5644 | CP30: 572736.6892 | CQ30: 81022.27974 | CR30: 73520.10069 | CS30: 68623.79553 | CT30: 5651306.057 | CU30: 397990.4472 | CV30: 2504787.881 | CW30: 2884794.742 | CX30: 4500514.463 | CY30: 174088.7527 | CZ30: 277795.8074 | DA30: 288994.3914 | DB30: 311224.0461 | DC30: 101541.8107 | DD30: 1535732.435 | DE30: 36769.62624 | DF30: 130599.4322 | DG30: 702995.5706 | DH30: 67864.12974 | DI30: 464092.2684 | DJ30: 3514403.542 | DK30: 23481.96126 | DL30: 90988.12511 | DM30: 548616.2413 | DN30: 838640.601 | DO30: 221219.2107 | DP30: 837737.7084 | DQ30: 384743.2012 | DR30: 309930.0054 | DS30: 6022789.263 | DT30: 384.9767019 | DU30: 137327.5343 | DV30: 401444.5897 | DW30: 1517353.441 | DX30: 2563319.086 | DY30: 166218.9071 | DZ30: 464226.9416 | EA30: 417521.5412 | EB30: 10049278.2 | EC30: 6010.052458 | ED30: 357137.4569 | EE30: 1585780.178 | EF30: 419752.2278 | EG30: 3214067.57 | EH30: 130602.4293 | EI30: 467371.1105 | EJ30: 354248.6645 | EK30: 816397.3489 | EL30: 1878955.076 | EM30: 82442.12405 | EN30: 453264.878 | EO30: 373235.8394 | EP30: 541420.4158 | EQ30: 499890.2843 | ER30: 427980.7914 | ES30: 819019.9847 | ET30: 460962.7363 | EU30: 1262604.962 | EV30: 426798.4557 | EW30: 398053.2 | EX30: 418972.427 | EY30: 181251.5604 | EZ30: 443781.6228 | FA30: 457322.4755 | FB30: 371433.7551 | FC30: 4290942.264 | FD30: 491344.806 | FE30: 419130.3328 | FF30: 454713.6053 | FG30: 3038839.774 | FH30: 450375.8979 | FI30: 445773.1655 | FJ30: 457158.1568 | FK30: 444597.9279 | FL30: 371248.5952 | FM30: 1032034.946 | FN30: 475562.5347 | FO30: 466400.7879 | FP30: 531003.2337 | FQ30: 151749.4693 | FR30: 1089329.498 | FS30: 1434448.57 | FT30: 504025.3531 | FU30: 493594.5389 | FV30: 574253.194 | FW30: 0.09001561903 | FX30: 2553.204308 | FY30: 237724.6162 | FZ30: 357159.4596 | GA30: 426708.6163 | GB30: 62165.16741 | GC30: 639906.1666 | GD30: 461046.0727 | GE30: 95601.08644 | GF30: 87733.14936 | GG30: 1344808.812 | GH30: 1289083.026 | GI30: 478856.2413 | GJ30: 12511842.23 | GK30: 18817.42064 | GL30: 344656.442 | GM30: 1191566.496 | GN30: 443893.3927 | GO30: 906524.3416 | GP30: 492402.9433 | GQ30: 1078.969997 | GR30: 341505.5595 | GS30: 1938735.831 | GT30: 394312.4867 | GU30: 411586.3238 | GV30: 474512.3408 | GW30: 867763.4213 | GX30: 944037.5116 | GY30: 10101.20634 | GZ30: 807991.6971 | HA30: 20083935.34 | HB30: 7947399.806 | HC30: 5862564.979 | HD30: 21097783.11 | HE30: 13990028.9 | HF30: 3764546.24 | HG30: 2001024.326 | HH30: 1280497.601 | HI30: 739416.0812 | HJ30: 788312.1339 | HK30: 2224736.541 | HL30: 145209.1357 | HM30: 6609647.913 | HN30: 2039005.189 | HO30: 435350.3035 | HP30: 252907.2092 | HQ30: 398025.1637 | HR30: 403847.0466 | HS30: 603483.4606 | HT30: 591169.3883 | HU30: 347610.0382 | HV30: 555393.7562 | HW30: 1484453.259 | HX30: 3559562.797 | HY30: 432819.18 | HZ30: 799670.5479 | IA30: 345592.0971 | IB30: 397537.6829 | IC30: 6.149574798e-06 | ID30: 24326.1564 | IE30: 5291444.596 | IF30: 2346016.033 | IG30: 72235.45084 | IH30: 2012606.29 | II30: 842888207.5
A31: =+MATCH(B31,RUT[EMPRESA],0) -> 130 | B31: GAS SUR | C31: -2828516.479 | D31: -2828516.479 | F31: =IFERROR(INDEX($B$9:$B$511,MATCH(0,INDEX(COUNTIF($F$8:F30,$B$9:$B$511),0,0),0)),"") -> GAS SUR | G31: -2828516.479 | J31: ARRAYAN_EOLICO | K31: 67462876.12 | L31: 30615819.68 | M31: 2787933.325 | N31: 84144158.07 | O31: 12502767.13 | P31: 2853981.619 | Q31: 204184.3559 | R31: 34989.32153 | S31: 151943.2635 | T31: 2518600.758 | U31: 1431244.534 | V31: 237840.7017 | W31: 13280023.69 | X31: 306507.6545 | Y31: 157559.2447 | Z31: 213424.0426 | AA31: 853084.9538 | AB31: 580608.3106 | AC31: 3661535.59 | AD31: 577123.3817 | AE31: 550754.6733 | AF31: 123463.5443 | AG31: 261764.4105 | AH31: 220.7157961 | AI31: 126561.9593 | AJ31: 429099.8162 | AK31: 1123136.503 | AL31: 275820.7492 | AM31: 960089.0361 | AN31: 1296632.206 | AO31: 2394647.006 | AP31: 15487.93868 | AQ31: 155671.5204 | AR31: 9320873.417 | AS31: 414028.2591 | AT31: 1139.786232 | AU31: 418500.0658 | AV31: 7773.567754 | AW31: 5590671.555 | AX31: 52776.25535 | AY31: 352427.6344 | AZ31: 600485.9431 | BA31: 107338.1109 | BB31: 294799.4361 | BC31: 557497.3778 | BD31: 8985.026318 | BE31: 500842.372 | BF31: 159773.0817 | BG31: 15698.84725 | BH31: 645383.1899 | BI31: 4098.50529 | BJ31: 34309.02075 | BK31: 2121973.442 | BL31: 727576.6006 | BM31: 73992.28036 | BN31: 13462925.22 | BO31: 189549.5852 | BP31: 5287880.938 | BQ31: 2621827.262 | BR31: 730290.8597 | BS31: 5225.595128 | BT31: 559427.5504 | BU31: 73894.09529 | BV31: 3989923.871 | BW31: 1682115.329 | BX31: 150901.0666 | BY31: 148036.2196 | BZ31: 40842.04398 | CA31: 43306403.78 | CB31: 5137119.248 | CC31: 255422.6175 | CD31: 35613.71391 | CE31: 2155012.926 | CF31: 442368.084 | CG31: 3399.690159 | CH31: 300915.3161 | CI31: 29229.97294 | CJ31: 26545.86987 | CK31: 138887.9394 | CL31: 4588230.797 | CM31: 64415.95095 | CN31: 68255.20915 | CO31: 265752.9043 | CP31: 312839.1596 | CQ31: 44255.8376 | CR31: 40158.01144 | CS31: 37483.56082 | CT31: 3086845.79 | CU31: 217389.5952 | CV31: 1368160.536 | CW31: 1575727.171 | CX31: 2458262.565 | CY31: 95090.43182 | CZ31: 151737.1046 | DA31: 157853.9742 | DB31: 169996.2145 | DC31: 55463.97732 | DD31: 838844.8887 | DE31: 20084.23624 | DF31: 71335.7768 | DG31: 383988.9214 | DH31: 37068.6176 | DI31: 253495.608 | DJ31: 1919630.908 | DK31: 12826.27282 | DL31: 49699.36296 | DM31: 299664.1339 | DN31: 458080.6953 | DO31: 120833.9422 | DP31: 457587.519 | DQ31: 210153.7094 | DR31: 169289.386 | DS31: 3289756.65 | DT31: 210.2812517 | DU31: 75010.7881 | DV31: 219276.3105 | DW31: 828805.9495 | DX31: 1400131.341 | DY31: 90791.77951 | DZ31: 253569.1689 | EA31: 228057.8328 | EB31: 5489097.879 | EC31: 3282.799576 | ED31: 195074.9516 | EE31: 866181.8732 | EF31: 229276.2742 | EG31: 1755581.957 | EH31: 71337.41386 | EI31: 255286.571 | EJ31: 193497.0408 | EK31: 445931.0279 | EL31: 1026319.316 | EM31: 45031.3823 | EN31: 247581.4911 | EO31: 203868.1798 | EP31: 295733.6435 | EQ31: 273049.1331 | ER31: 233770.8648 | ES31: 447363.5591 | ET31: 251786.2008 | EU31: 689657.7131 | EV31: 233125.0516 | EW31: 217423.8719 | EX31: 228850.3329 | EY31: 99002.88719 | EZ31: 242401.5653 | FA31: 249797.8244 | FB31: 202883.8487 | FC31: 2343790.431 | FD31: 268381.4379 | FE31: 228936.5839 | FF31: 248372.8122 | FG31: 1659869.359 | FH31: 246003.4778 | FI31: 243489.382 | FJ31: 249708.0706 | FK31: 242847.4459 | FL31: 202782.711 | FM31: 563716.1915 | FN31: 259760.8753 | FO31: 254756.5631 | FP31: 290043.5899 | FQ31: 82888.31037 | FR31: 595011.5141 | FS31: 783521.806 | FT31: 275307.7826 | FU31: 269610.2828 | FV31: 313667.502 | FW31: 0.04916816251 | FX31: 1394.606466 | FY31: 129849.4938 | FZ31: 195086.9698 | GA31: 233075.9797 | GB31: 33955.74109 | GC31: 349528.3456 | GD31: 251831.7207 | GE31: 52219.04604 | GF31: 47921.43621 | GG31: 734558.9457 | GH31: 704120.5113 | GI31: 261559.9575 | GJ31: 6834194.982 | GK31: 10278.41619 | GL31: 188257.595 | GM31: 650855.2153 | GN31: 242462.616 | GO31: 495160.0248 | GP31: 268959.4117 | GQ31: 589.3529669 | GR31: 186536.5259 | GS31: 1058972.648 | GT31: 215380.6266 | GU31: 224815.9095 | GV31: 259187.2404 | GW31: 473988.1076 | GX31: 515650.3981 | GY31: 5517.461972 | GZ31: 441339.7086 | HA31: 10970209.47 | HB31: 4341013.809 | HC31: 3202239.242 | HD31: 11523991.5 | HE31: 7641607.335 | HF31: 2056263.383 | HG31: 1092995.752 | HH31: 699430.9965 | HI31: 403882.4644 | HJ31: 430590.3745 | HK31: 1215191.419 | HL31: 79315.86163 | HM31: 3610309.48 | HN31: 1113741.588 | HO31: 237796.2258 | HP31: 138142.5012 | HQ31: 217408.558 | HR31: 220588.576 | HS31: 329633.6034 | HT31: 322907.4339 | HU31: 189870.9028 | HV31: 303366.1353 | HW31: 810835.2735 | HX31: 1944297.712 | HY31: 236413.6803 | HZ31: 436794.5461 | IA31: 188768.6668 | IB31: 217142.2872 | IC31: 3.359009206e-06 | ID31: 13287.3875 | IE31: 2890282.938 | IF31: 1281436.475 | IG31: 39456.31241 | IH31: 1099322.031 | II31: 460400815
A32: =+MATCH(B32,RUT[EMPRESA],0) -> 246 | B32: PETROPOWER | C32: 0 | D32: 0 | F32: =IFERROR(INDEX($B$9:$B$511,MATCH(0,INDEX(COUNTIF($F$8:F31,$B$9:$B$511),0,0),0)),"") -> PETROPOWER | J32: LOS_PADRES | K32: 5779.172682 | L32: 2622.68849 | M32: 238.8268783 | N32: 7208.166144 | O32: 1071.043133 | P32: 244.4848716 | Q32: 17.49134812 | R32: 2.997342283 | S32: 13.01614174 | T32: 215.7546422 | U32: 122.6068289 | V32: 20.37450172 | W32: 1137.626418 | X32: 26.25682101 | Y32: 13.49723189 | Z32: 18.28286114 | AA32: 73.07908502 | AB32: 49.73751313 | AC32: 313.6635684 | AD32: 49.43897849 | AE32: 47.18011661 | AF32: 10.5764412 | AG32: 22.42391397 | AH32: 0.01890750547 | AI32: 10.84186533 | AJ32: 36.75861567 | AK32: 96.21291248 | AL32: 23.62804301 | AM32: 82.24553485 | AN32: 111.0753329 | AO32: 205.1362075 | AP32: 1.326766324 | AQ32: 13.33552095 | AR32: 798.4678406 | AS32: 35.46751846 | AT32: 0.09763920293 | AU32: 35.85059349 | AV32: 0.6659186946 | AW32: 478.9220113 | AX32: 4.521050846 | AY32: 30.19053255 | AZ32: 51.44032033 | BA32: 9.19506422 | BB32: 25.25384249 | BC32: 47.75772693 | BD32: 0.7696976711 | BE32: 42.90440492 | BF32: 13.6868791 | BG32: 1.344833697 | BH32: 55.28641995 | BI32: 0.3510963536 | BJ32: 2.939064666 | BK32: 181.7777665 | BL32: 62.32747632 | BM32: 6.338510747 | BN32: 1153.294584 | BO32: 16.23766799 | BP32: 452.9836085 | BQ32: 224.5974877 | BR32: 62.55999194 | BS32: 0.4476479265 | BT32: 47.92307418 | BU32: 6.330099773 | BV32: 341.794782 | BW32: 144.0975469 | BX32: 12.92686248 | BY32: 12.68144683 | BZ32: 3.49871275 | CA32: 3709.820868 | CB32: 440.0686855 | CC32: 21.88064752 | CD32: 3.050830536 | CE32: 184.608077 | CF32: 37.89523502 | CG32: 0.2912327137 | CH32: 25.77775622 | CI32: 2.50397064 | CJ32: 2.274038327 | CK32: 11.8977641 | CL32: 393.0484379 | CM32: 5.5181594 | CN32: 5.847047484 | CO32: 22.76558625 | CP32: 26.79920616 | CQ32: 3.791153629 | CR32: 3.440115453 | CS32: 3.211010013 | CT32: 264.4330613 | CU32: 18.62256818 | CV32: 117.2027706 | CW32: 134.9838599 | CX32: 210.5858018 | CY32: 8.14587307 | CZ32: 12.99848124 | DA32: 13.52247974 | DB32: 14.56263852 | DC32: 4.75129317 | DD32: 71.85921715 | DE32: 1.720505797 | DF32: 6.110942732 | DG32: 32.89421401 | DH32: 3.175464114 | DI32: 21.71557124 | DJ32: 164.4441972 | DK32: 1.098756082 | DL32: 4.257470437 | DM32: 25.67057433 | DN32: 39.24124782 | DO32: 10.35117768 | DP32: 39.19900012 | DQ32: 18.00270973 | DR32: 14.50208842 | DS32: 281.8153161 | DT32: 0.01801363557 | DU32: 6.42576069 | DV32: 18.78419267 | DW32: 70.99923657 | DX32: 119.9415332 | DY32: 7.777631225 | DZ32: 21.7218728 | EA32: 19.53645727 | EB32: 470.2207544 | EC32: 0.2812193419 | ED32: 16.71099567 | EE32: 74.20102591 | EF32: 19.64083443 | EG32: 150.3910279 | EH32: 6.11108297 | EI32: 21.86899317 | EJ32: 16.57582476 | EK32: 38.20045279 | EL32: 87.91911777 | EM32: 3.857590268 | EN32: 21.20894145 | EO32: 17.46426306 | EP32: 25.33387089 | EQ32: 23.39061394 | ER32: 20.02586123 | ES32: 38.32316984 | ET32: 21.56913575 | EU32: 59.07917427 | EV32: 19.97053797 | EW32: 18.62550447 | EX32: 19.60434639 | EY32: 8.481031553 | EZ32: 20.76520576 | FA32: 21.39880251 | FB32: 17.37994084 | FC32: 200.7796052 | FD32: 22.99075823 | FE32: 19.61173504 | FF32: 21.27672957 | FG32: 142.1918573 | FH32: 21.07376175 | FI32: 20.85839302 | FJ32: 21.39111379 | FK32: 20.8034019 | FL32: 17.37127693 | FM32: 48.29045841 | FN32: 22.25228215 | FO32: 21.82359032 | FP32: 24.84643537 | FQ32: 7.100584595 | FR32: 50.97135618 | FS32: 67.11999365 | FT32: 23.58409999 | FU32: 23.0960266 | FV32: 26.87016568 | FW32: 4.211965423e-06 | FX32: 0.1194682476 | FY32: 11.12349029 | FZ32: 16.71202521 | GA32: 19.96633425 | GB32: 2.908801145 | GC32: 29.94216645 | GD32: 21.57303519 | GE32: 4.473317796 | GF32: 4.105165254 | GG32: 62.92561533 | GH32: 60.31812246 | GI32: 22.40639961 | GJ32: 585.4478079 | GK32: 0.8804952514 | GL32: 16.12699032 | GM32: 55.7551782 | GN32: 20.77043564 | GO32: 42.41762956 | GP32: 23.04027006 | GQ32: 0.05048661963 | GR32: 15.97955582 | GS32: 90.71634872 | GT32: 18.45047091 | GU32: 19.25873958 | GV32: 22.20314201 | GW32: 40.60394813 | GX32: 44.17292688 | GY32: 0.4726505499 | GZ32: 37.80713977 | HA32: 939.757368 | HB32: 371.8707214 | HC32: 274.3181822 | HD32: 987.1968214 | HE32: 654.614373 | HF32: 176.148748 | HG32: 93.63092052 | HH32: 59.91639758 | HI32: 34.59838416 | HJ32: 36.88630358 | HK32: 104.0987496 | HL32: 6.794552605 | HM32: 309.2753099 | HN32: 95.4081019 | HO32: 20.37069172 | HP32: 11.83390651 | HQ32: 18.62419261 | HR32: 18.89660722 | HS32: 28.23789357 | HT32: 27.66169971 | HU32: 16.2651935 | HV32: 25.98770438 | HW32: 69.45978783 | HX32: 166.5572662 | HY32: 20.25225667 | HZ32: 37.41778076 | IA32: 16.17077102 | IB32: 18.60138266 | IC32: 2.877478008e-10 | ID32: 1.138257235 | IE32: 247.5946054 | IF32: 109.7735984 | IG32: 3.380004765 | IH32: 94.17285795 | II32: 39439.99968
A33: =+MATCH(B33,RUT[EMPRESA],0) -> 336 | B33: ALTO_MANGA_ENERGY | C33: 24155706.77 | D33: 24155706.77 | F33: =IFERROR(INDEX($B$9:$B$511,MATCH(0,INDEX(COUNTIF($F$8:F32,$B$9:$B$511),0,0),0)),"") -> ALTO_MANGA_ENERGY | H33: 24155706.77 | J33: ALMEYDA | K33: 27670080.18 | L33: 12557160.83 | M33: 1143478.355 | N33: 34511952.86 | O33: 5128043.581 | P33: 1170568.241 | Q33: 83746.763 | R33: 14350.96438 | S33: 62319.93841 | T33: 1033010.878 | U33: 587028.7968 | V33: 97551.0038 | W33: 5446837.452 | X33: 125714.9393 | Y33: 64623.34819 | Z33: 87536.44536 | AA33: 349895.0894 | AB33: 238138.0609 | AC33: 1501788.675 | AD33: 236708.708 | AE33: 225893.5113 | AF33: 50638.90492 | AG33: 107363.3774 | AH33: 90.52717772 | AI33: 51909.72817 | AJ33: 175996.4443 | AK33: 460657.459 | AL33: 113128.6225 | AM33: 393783.1017 | AN33: 531817.1886 | AO33: 982170.9132 | AP33: 6352.419728 | AQ33: 63849.09299 | AR33: 3822981.314 | AS33: 169814.8046 | AT33: 467.4863899 | AU33: 171648.9281 | AV33: 3188.349732 | AW33: 2293028.982 | AX33: 21646.32315 | AY33: 144549.1426 | AZ33: 246290.9254 | BA33: 44025.01504 | BB33: 120912.782 | BC33: 228659.0497 | BD33: 3685.232722 | BE33: 205421.8466 | BF33: 65531.35941 | BG33: 6438.924442 | BH33: 264705.652 | BI33: 1681.012973 | BJ33: 14071.93718 | BK33: 870333.1172 | BL33: 298417.5006 | BM33: 30348.1329 | BN33: 5521855.006 | BO33: 77744.27242 | BP33: 2168838.596 | BQ33: 1075349.507 | BR33: 299530.7613 | BS33: 2143.291904 | BT33: 229450.7152 | BU33: 30307.86203 | BV33: 1636478.012 | BW33: 689924.1288 | BX33: 61892.47855 | BY33: 60717.45384 | BZ33: 16751.47424 | CA33: 17762238.04 | CB33: 2107003.283 | CC33: 104762.2739 | CD33: 14607.06059 | CE33: 883884.3507 | CF33: 181438.46 | CG33: 1394.392067 | CH33: 123421.2267 | CI33: 11988.75206 | CJ33: 10887.85996 | CK33: 56965.26209 | CL33: 1881875.208 | CM33: 26420.37562 | CN33: 27995.0577 | CO33: 108999.2688 | CP33: 128311.8231 | CQ33: 18151.65088 | CR33: 16470.91645 | CS33: 15373.98334 | CT33: 1266078.107 | CU33: 89162.92746 | CV33: 561154.7254 | CW33: 646288.7393 | CX33: 1008263.006 | CY33: 39001.59649 | CZ33: 62235.38177 | DA33: 64744.23229 | DB33: 69724.40481 | DC33: 22748.69955 | DD33: 344054.4884 | DE33: 8237.60354 | DF33: 29258.56081 | DG33: 157494.0894 | DH33: 15203.79326 | DI33: 103971.9057 | DJ33: 787341.7825 | DK33: 5260.730311 | DL33: 20384.32746 | DM33: 122908.0509 | DN33: 187883.0299 | DO33: 49560.36653 | DP33: 187680.7523 | DQ33: 86195.10941 | DR33: 69434.49721 | DS33: 1349302.542 | DT33: 86.24742123 | DU33: 30765.87659 | DV33: 89936.76879 | DW33: 339936.9904 | DX33: 574267.6371 | DY33: 37238.49268 | DZ33: 104002.077 | EA33: 93538.53379 | EB33: 2251368.266 | EC33: 1346.44908 | ED33: 80010.51631 | EE33: 355266.8261 | EF33: 94038.28082 | EG33: 720056.6636 | EH33: 29259.23226 | EI33: 104706.474 | EJ33: 79363.33197 | EK33: 182899.8111 | EL33: 420947.629 | EM33: 18469.74263 | EN33: 101546.2148 | EO33: 83617.08254 | EP33: 121295.9497 | EQ33: 111991.8367 | ER33: 95881.74924 | ES33: 183487.3676 | ET33: 103270.7878 | EU33: 282864.9669 | EV33: 95616.86722 | EW33: 89176.98614 | EX33: 93863.57985 | EY33: 40606.30059 | EZ33: 99421.65428 | FA33: 102455.2499 | FB33: 83213.35648 | FC33: 961311.9524 | FD33: 110077.369 | FE33: 93898.95592 | FF33: 101870.7773 | FG33: 680799.8841 | FH33: 100898.9884 | FI33: 99867.82522 | FJ33: 102418.4371 | FK33: 99604.53342 | FL33: 83171.87459 | FM33: 231209.7128 | FN33: 106541.622 | FO33: 104489.0899 | FP33: 118962.1589 | FQ33: 33996.86355 | FR33: 244045.5737 | FS33: 321363.5771 | FT33: 112918.2279 | FU33: 110581.383 | FV33: 128651.57 | FW33: 0.02016645416 | FX33: 572.0015948 | FY33: 53258.11929 | FZ33: 80015.44563 | GA33: 95596.74024 | GB33: 13927.03858 | GC33: 143359.9915 | GD33: 103289.4579 | GE33: 21417.78225 | GF33: 19655.10602 | GG33: 301281.3282 | GH33: 288796.9224 | GI33: 107279.5204 | GJ33: 2803063.462 | GK33: 4215.72006 | GL33: 77214.35917 | GM33: 266950.0179 | GN33: 99446.69439 | GO33: 203091.2166 | GP33: 110314.4265 | GQ33: 241.7247053 | GR33: 76508.45805 | GS33: 434340.4811 | GT33: 88338.94356 | GU33: 92208.85023 | GV33: 106306.3441 | GW33: 194407.4978 | GX33: 211495.3984 | GY33: 2263.001875 | GZ33: 181016.6691 | HA33: 4499460.935 | HB33: 1780478.495 | HC33: 1313407.042 | HD33: 4726596.125 | HE33: 3134225.812 | HF33: 843381.9597 | HG33: 448295.1489 | HH33: 286873.5053 | HI33: 165653.4796 | HJ33: 176607.8008 | HK33: 498414.0303 | HL33: 32531.61408 | HM33: 1480778.148 | HN33: 456804.1093 | HO33: 97532.76191 | HP33: 56659.51861 | HQ33: 89170.70509 | HR33: 90474.99803 | HS33: 135200.1094 | HT33: 132441.353 | HU33: 77876.06171 | HV33: 124426.4367 | HW33: 332566.2693 | HX33: 797458.9384 | HY33: 96965.70716 | HZ33: 179152.4585 | IA33: 77423.97664 | IB33: 89061.49339 | IC33: 1.377706665e-06 | ID33: 5449.857739 | IE33: 1185457.324 | IF33: 525584.6185 | IG33: 16183.11271 | IH33: 450889.8892 | II33: 188834633.2
A34: =+MATCH(B34,RUT[EMPRESA],0) -> 136 | B34: GENPAC | C34: 96553648.52 | D34: 96553648.52 | F34: =IFERROR(INDEX($B$9:$B$511,MATCH(0,INDEX(COUNTIF($F$8:F33,$B$9:$B$511),0,0),0)),"") -> GENPAC | H34: 96553648.52 | J34: PUNTA_PALMERAS | K34: 401303.9362 | L34: 182118.6652 | M34: 16584.06343 | N34: 500532.7934 | O34: 74372.89884 | P34: 16976.95271 | Q34: 1214.593721 | R34: 208.1345069 | S34: 903.836795 | T34: 14981.9346 | U34: 8513.779696 | V34: 1414.799001 | W34: 78996.42122 | X34: 1823.265406 | Y34: 937.2435435 | Z34: 1269.556136 | AA34: 5074.588715 | AB34: 3453.757293 | AC34: 21780.69969 | AD34: 3433.027141 | AE34: 3276.172481 | AF34: 734.4247554 | AG34: 1557.109544 | AH34: 1.312931242 | AI34: 752.8557237 | AJ34: 2552.506729 | AK34: 6680.994429 | AL34: 1640.723887 | AM34: 5711.104112 | AN34: 7713.036238 | AO34: 14244.59383 | AP34: 92.13023687 | AQ34: 926.014387 | AR34: 55445.35611 | AS34: 2462.853344 | AT34: 6.78003559 | AU34: 2489.453954 | AV34: 46.24118503 | AW34: 33256.19407 | AX34: 313.940351 | AY34: 2096.421099 | AZ34: 3571.99969 | BA34: 638.5023719 | BB34: 1753.618892 | BC34: 3316.281561 | BD34: 53.44756457 | BE34: 2979.268404 | BF34: 950.4125866 | BG34: 93.38482963 | BH34: 3839.07164 | BI34: 24.38002054 | BJ34: 204.0877274 | BK34: 12622.59102 | BL34: 4328.000383 | BM34: 440.1441957 | BN34: 80084.41373 | BO34: 1127.538566 | BP34: 31455.03952 | BQ34: 15595.97901 | BR34: 4344.146194 | BS34: 31.08453144 | BT34: 3327.763221 | BU34: 439.5601404 | BV34: 23734.12233 | BW34: 10006.08841 | BX34: 897.637271 | BY34: 880.5956854 | BZ34: 242.9495146 | CA34: 257608.7961 | CB34: 30558.23133 | CC34: 1519.385293 | CD34: 211.8487143 | CE34: 12819.1269 | CF34: 2631.43322 | CG34: 20.22310819 | CH34: 1789.999297 | CI34: 173.8749349 | CJ34: 157.9085073 | CK34: 826.1770025 | CL34: 27293.1601 | CM34: 383.1792558 | CN34: 406.0171412 | CO34: 1580.83516 | CP34: 1860.92846 | CQ34: 263.2565175 | CR34: 238.8805367 | CS34: 222.9715269 | CT34: 18362.14874 | CU34: 1293.145286 | CV34: 8138.523584 | CW34: 9373.236843 | CX34: 14623.01194 | CY34: 565.6468679 | CZ34: 902.6104555 | DA34: 938.9967464 | DB34: 1011.225046 | DC34: 329.9283057 | DD34: 4989.881473 | DE34: 119.4713822 | DF34: 424.3419442 | DG34: 2284.163891 | DH34: 220.5032309 | DI34: 1507.922448 | DJ34: 11418.95341 | DK34: 76.29727732 | DL34: 295.6374102 | DM34: 1782.55662 | DN34: 2724.899926 | DO34: 718.7825275 | DP34: 2721.966259 | DQ34: 1250.10251 | DR34: 1007.020466 | DS34: 19569.16705 | DT34: 1.250861197 | DU34: 446.2028044 | DV34: 1304.36844 | DW34: 4930.164691 | DX34: 8328.702399 | DY34: 540.0762698 | DZ34: 1508.360026 | EA34: 1356.605458 | EB34: 32651.98152 | EC34: 19.52778279 | ED34: 1160.406292 | EE34: 5152.495938 | EF34: 1363.853375 | EG34: 10443.10575 | EH34: 424.3516823 | EI34: 1518.576018 | EJ34: 1151.020066 | EK34: 2652.627446 | EL34: 6105.075929 | EM34: 267.8698568 | EN34: 1472.742234 | EO34: 1212.712942 | EP34: 1759.176039 | EQ34: 1624.236886 | ER34: 1390.589515 | ES34: 2661.148879 | ET34: 1497.754013 | EU34: 4102.439309 | EV34: 1386.747886 | EW34: 1293.349182 | EX34: 1361.319657 | EY34: 588.9201677 | EZ34: 1441.929367 | FA34: 1485.926126 | FB34: 1206.857634 | FC34: 13942.07273 | FD34: 1596.471031 | FE34: 1361.832722 | FF34: 1477.44942 | FG34: 9873.757917 | FH34: 1463.355398 | FI34: 1448.400261 | FJ34: 1485.392224 | FK34: 1444.581695 | FL34: 1206.256015 | FM34: 3353.274268 | FN34: 1545.191485 | FO34: 1515.423258 | FP34: 1725.328669 | FQ34: 493.0623645 | FR34: 3539.434967 | FS34: 4660.791281 | FT34: 1637.672497 | FU34: 1603.780834 | FV34: 1865.855867 | FW34: 0.0002924775563 | FX34: 8.295837598 | FY34: 772.4116723 | FZ34: 1160.477782 | GA34: 1386.45598 | GB34: 201.986238 | GC34: 2079.174636 | GD34: 1498.024789 | GE34: 310.625783 | GF34: 285.0613861 | GG34: 4369.534968 | GH34: 4188.471482 | GI34: 1555.893353 | GJ34: 40653.31193 | GK34: 61.14131375 | GL34: 1119.853143 | GM34: 3871.622065 | GN34: 1442.292528 | GO34: 2945.466876 | GP34: 1599.909117 | GQ34: 3.505775013 | GR34: 1109.615338 | GS34: 6299.314767 | GT34: 1281.194906 | GU34: 1337.320828 | GV34: 1541.779209 | GW34: 2819.525407 | GX34: 3067.354171 | GY34: 32.82070576 | GZ34: 2625.315913 | HA34: 65256.45652 | HB34: 25822.58612 | HC34: 19048.56843 | HD34: 68550.63727 | HE34: 45456.21649 | HF34: 12231.71375 | HG34: 6501.701718 | HH34: 4160.575832 | HI34: 2402.500931 | HJ34: 2561.373337 | HK34: 7228.584482 | HL34: 471.8115992 | HM34: 21475.9804 | HN34: 6625.108635 | HO34: 1414.534436 | HP34: 821.7427521 | HQ34: 1293.258086 | HR34: 1312.174471 | HS34: 1960.830462 | HT34: 1920.819741 | HU34: 1129.449929 | HV34: 1804.578031 | HW34: 4823.265855 | HX34: 11565.68426 | HY34: 1406.310343 | HZ34: 2598.278946 | IA34: 1122.893262 | IB34: 1291.67417 | IC34: 1.998111693e-08 | ID34: 79.04022496 | IE34: 17192.89165 | IF34: 7622.6442 | IG34: 234.7064695 | IH34: 6539.333683 | II34: 2738701.192
A35: =+MATCH(B35,RUT[EMPRESA],0) -> 229 | B35: NORVIND | C35: 65714265.03 | D35: 65714265.03 | F35: =IFERROR(INDEX($B$9:$B$511,MATCH(0,INDEX(COUNTIF($F$8:F34,$B$9:$B$511),0,0),0)),"") -> NORVIND | H35: 65714265.03 | J35: ATRIA_ENERGIA | K35: 2366264.668 | L35: 1073851.821 | M35: 97786.93855 | N35: 2951361.692 | O35: 438535.3516 | P35: 100103.5867 | Q35: 7161.779259 | R35: 1227.252676 | S35: 5329.419626 | T35: 88340.08166 | U35: 50200.99298 | V35: 8342.277727 | W35: 465797.6749 | X35: 10750.77546 | Y35: 5526.400521 | Z35: 7485.861857 | AA35: 29922.00897 | AB35: 20364.87339 | AC35: 128428.5935 | AD35: 20242.63929 | AE35: 19317.75517 | AF35: 4330.491663 | AG35: 9181.403336 | AH35: 7.741620578 | AI35: 4439.168765 | AJ35: 15050.70332 | AK35: 39394.08422 | AL35: 9674.430307 | AM35: 33675.18396 | AN35: 45479.45705 | AO35: 83992.39592 | AP35: 543.2404337 | AQ35: 5460.188471 | AR35: 326930.2275 | AS35: 14522.0675 | AT35: 39.97807451 | AU35: 14678.91641 | AV35: 272.658383 | AW35: 196093.1601 | AX35: 1851.130511 | AY35: 12361.42168 | AZ35: 21062.08262 | BA35: 3764.891063 | BB35: 10340.10896 | BC35: 19554.25596 | BD35: 315.1503692 | BE35: 17567.07803 | BF35: 5604.050996 | BG35: 550.6380649 | BH35: 22636.85641 | BI35: 143.7553335 | BJ35: 1203.391083 | BK35: 74428.35333 | BL35: 25519.79551 | BM35: 2595.283936 | BN35: 472212.9577 | BO35: 6648.463746 | BP35: 185472.76 | BQ35: 91960.75785 | BR35: 25614.99832 | BS35: 183.2880812 | BT35: 19621.95689 | BU35: 2591.840089 | BV35: 139946.8333 | BW35: 59000.30209 | BX35: 5292.864503 | BY35: 5192.379812 | BZ35: 1432.537288 | CA35: 1518974.865 | CB35: 180184.7841 | CC35: 8958.964542 | CD35: 1249.153279 | CE35: 75587.21536 | CF35: 15516.08866 | CG35: 119.2443484 | CH35: 10554.62384 | CI35: 1025.243159 | CJ35: 931.0980729 | CK35: 4871.503302 | CL35: 160932.4868 | CM35: 2259.393574 | CN35: 2394.055799 | CO35: 9321.30001 | CP35: 10972.85341 | CQ35: 1552.276316 | CR35: 1408.544803 | CS35: 1314.738278 | CT35: 108271.3123 | CU35: 7624.953869 | CV35: 47988.31775 | CW35: 55268.73066 | CX35: 86223.71569 | CY35: 3335.302939 | CZ35: 5322.188589 | DA35: 5536.738177 | DB35: 5962.628027 | DC35: 1945.40253 | DD35: 29422.53779 | DE35: 704.4558627 | DF35: 2502.106905 | DG35: 13468.43582 | DH35: 1300.184118 | DI35: 8891.374561 | DJ35: 67331.1761 | DK35: 449.8823343 | DL35: 1743.208315 | DM35: 10510.73854 | DN35: 16067.2095 | DO35: 4238.258201 | DP35: 16049.91131 | DQ35: 7371.154713 | DR35: 5937.835973 | DS35: 115388.4236 | DT35: 7.375628267 | DU35: 2631.00816 | DV35: 7691.130526 | DW35: 29070.42135 | DX35: 49109.69577 | DY35: 3184.527437 | DZ35: 8893.954715 | EA35: 7999.142978 | EB35: 192530.457 | EC35: 115.1444038 | ED35: 6842.266324 | EE35: 30381.38425 | EF35: 8041.879889 | EG35: 61577.14871 | EH35: 2502.164325 | EI35: 8954.192701 | EJ35: 6786.921004 | EK35: 15641.05915 | EL35: 35998.21522 | EM35: 1579.478596 | EN35: 8683.936536 | EO35: 7150.689363 | EP35: 10372.87634 | EQ35: 9577.215696 | ER35: 8199.527939 | ES35: 15691.30527 | ET35: 8831.416997 | EU35: 24189.78812 | EV35: 8176.876 | EW35: 7626.156126 | EX35: 8026.939971 | EY35: 3472.53256 | EZ35: 8502.250308 | FA35: 8761.674566 | FB35: 7116.163887 | FC35: 82208.59834 | FD35: 9413.495992 | FE35: 8029.965229 | FF35: 8711.692175 | FG35: 58220.02326 | FH35: 8628.587619 | FI35: 8540.405548 | FJ35: 8758.526445 | FK35: 8517.889599 | FL35: 7112.616476 | FM35: 19772.38124 | FN35: 9111.12921 | FO35: 8935.602644 | FP35: 10173.29735 | FQ35: 2907.312754 | FR35: 20870.06668 | FS35: 27482.07714 | FT35: 9656.437971 | FU35: 9456.597805 | FV35: 11001.90757 | FW35: 0.001724576425 | FX35: 48.91591043 | FY35: 4554.479247 | FZ35: 6842.687865 | GA35: 8175.1548 | GB35: 1190.999777 | GC35: 12259.72894 | GD35: 8833.013608 | GE35: 1831.586359 | GF35: 1680.847421 | GG35: 25764.7017 | GH35: 24697.07168 | GI35: 9174.232134 | GJ35: 239709.8233 | GK35: 360.5161012 | GL35: 6603.147109 | GM35: 22828.78804 | GN35: 8504.391665 | GO35: 17367.76934 | GP35: 9433.76846 | GQ35: 20.67159277 | GR35: 6542.780501 | GS35: 37143.53292 | GT35: 7554.489165 | GU35: 7885.432313 | GV35: 9091.008929 | GW35: 16625.163 | GX35: 18086.47049 | GY35: 193.5253293 | GZ35: 15480.01833 | HA35: 384780.7945 | HB35: 152261.3352 | HC35: 112318.7449 | HD35: 404204.7343 | HE35: 268029.863 | HF35: 72123.56884 | HG35: 38336.89547 | HH35: 24532.58666 | HI35: 14166.20311 | HJ35: 15102.98475 | HK35: 42622.91624 | HL35: 2782.008888 | HM35: 126631.8345 | HN35: 39064.55698 | HO35: 8340.717734 | HP35: 4845.35701 | HQ35: 7625.618989 | HR35: 7737.158322 | HS35: 11561.91959 | HT35: 11325.99877 | HU35: 6659.733983 | HV35: 10640.58648 | HW35: 28440.09875 | HX35: 68196.36581 | HY35: 8292.224863 | HZ35: 15320.59647 | IA35: 6621.072985 | IB35: 7616.279523 | IC35: 1.178174614e-07 | ID35: 466.0559611 | IE35: 101376.8577 | IF35: 44946.46581 | IG35: 1383.932665 | IH35: 38558.79011 | II35: 16148587.85
A36: =+MATCH(B36,RUT[EMPRESA],0) -> 226 | B36: MONTE REDONDO | C36: -530116943.2 | D36: -530116943.2 | F36: =IFERROR(INDEX($B$9:$B$511,MATCH(0,INDEX(COUNTIF($F$8:F35,$B$9:$B$511),0,0),0)),"") -> MONTE REDONDO | G36: -530116943.2 | J36: EOLICA_TALTAL | K36: 39043400.5 | L36: 17718570.25 | M36: 1613485.87 | N36: 48697509.69 | O36: 7235839.508 | P36: 1651710.597 | Q36: 118169.4591 | R36: 20249.68653 | S36: 87935.49924 | T36: 1457612.598 | U36: 828317.0946 | V36: 137647.7006 | W36: 7685668.228 | X36: 177387.9472 | Y36: 91185.68681 | Z36: 123516.8266 | AA36: 493713.5715 | AB36: 336020.6992 | AC36: 2119073.611 | AD36: 334003.8348 | AE36: 318743.2337 | AF36: 71453.17372 | AG36: 151493.285 | AH36: 127.7368491 | AI36: 73246.34745 | AJ36: 248336.8178 | AK36: 650002.9472 | AL36: 159628.237 | AM36: 555641.0119 | AN36: 750411.685 | AO36: 1385875.721 | AP36: 8963.474844 | AQ36: 90093.18705 | AR36: 5394353.38 | AS36: 239614.3193 | AT36: 659.6387952 | AU36: 242202.3284 | AV36: 4498.867178 | AW36: 3235539.917 | AX36: 30543.67962 | AY36: 203963.6326 | AZ36: 347524.6613 | BA36: 62120.75582 | BB36: 170611.9441 | BC36: 322645.5 | BD36: 5199.985551 | BE36: 289857.0361 | BF36: 92466.92074 | BG36: 9085.535863 | BH36: 373508.451 | BI36: 2371.965038 | BJ36: 19855.96991 | BK36: 1228068.883 | BL36: 421076.987 | BM36: 42822.22168 | BN36: 7791520.485 | BO36: 109699.7459 | BP36: 3060303.165 | BQ36: 1517353.806 | BR36: 422647.8348 | BS36: 3024.255934 | BT36: 323762.5663 | BU36: 42765.39815 | BV36: 2309124.731 | BW36: 973505.8194 | BX36: 87332.3392 | BY36: 85674.34039 | BZ36: 23636.88553 | CA36: 25063106.77 | CB36: 2973051.488 | CC36: 147823.0417 | CD36: 20611.04678 | CE36: 1247190.123 | CF36: 256015.6825 | CG36: 1967.533436 | CH36: 174151.4427 | CI36: 16916.52663 | CJ36: 15363.13138 | CK36: 80379.87343 | CL36: 2655388.31 | CM36: 37280.02594 | CN36: 39501.95457 | CO36: 153801.5821 | CP36: 181052.2365 | CQ36: 25612.58119 | CR36: 23241.00919 | CS36: 21693.2002 | CT36: 1786478.185 | CU36: 125811.8467 | CV36: 791807.922 | CW36: 911934.8381 | CX36: 1422692.529 | CY36: 55032.5457 | CZ36: 87816.18703 | DA36: 91356.25828 | DB36: 98383.44682 | DC36: 32099.16927 | DD36: 485472.2898 | DE36: 11623.5317 | DF36: 41284.79934 | DG36: 222229.3817 | DH36: 21453.05635 | DI36: 146707.8061 | DJ36: 1110965.359 | DK36: 7423.064882 | DL36: 28762.96186 | DM36: 173427.3347 | DN36: 265109.1842 | DO36: 69931.32029 | DP36: 264823.7638 | DQ36: 121624.1571 | DR36: 97974.37758 | DS36: 1903910.622 | DT36: 121.6979708 | DU36: 43411.67187 | DV36: 126903.7625 | DW36: 479662.3637 | DX36: 810310.6751 | DY36: 52544.74777 | DZ36: 146750.3787 | EA36: 131985.9723 | EB36: 3176755.264 | EC36: 1899.884292 | ED36: 112897.4912 | EE36: 501293.2701 | EF36: 132691.132 | EG36: 1016023.825 | EH36: 41285.74677 | EI36: 147744.3063 | EJ36: 111984.2926 | EK36: 258077.6973 | EL36: 593971.0606 | EM36: 26061.41919 | EN36: 143285.0757 | EO36: 117986.4757 | EP36: 171152.6065 | EQ36: 158024.1945 | ER36: 135292.327 | ES36: 258906.759 | ET36: 145718.5054 | EU36: 399131.8463 | EV36: 134918.5697 | EW36: 125831.684 | EX36: 132444.6231 | EY36: 57296.83639 | EZ36: 140287.2504 | FA36: 144567.7543 | FB36: 117416.8048 | FC36: 1356443.036 | FD36: 155322.8171 | FE36: 132494.5399 | FF36: 143743.0442 | FG36: 960631.2077 | FH36: 142371.8178 | FI36: 140916.8124 | FJ36: 144515.8103 | FK36: 140545.2989 | FL36: 117358.2725 | FM36: 326244.5703 | FN36: 150333.7609 | FO36: 147437.5701 | FP36: 167859.5502 | FQ36: 47970.70159 | FR36: 344356.3955 | FS36: 453454.6618 | FT36: 159331.3632 | FU36: 156033.9976 | FV36: 181531.6306 | FW36: 0.02845553542 | FX36: 807.1132143 | FY36: 75148.97203 | FZ36: 112904.4466 | GA36: 134890.1699 | GB36: 19651.51317 | GC36: 202285.7009 | GD36: 145744.8495 | GE36: 30221.20084 | GF36: 27734.00623 | GG36: 425117.9427 | GH36: 407502.0323 | GI36: 151374.96 | GJ36: 3955215.477 | GK36: 5948.520772 | GL36: 108952.0207 | GM36: 376675.3258 | GN36: 140322.5828 | GO36: 286568.4399 | GP36: 155657.3131 | GQ36: 341.0815733 | GR36: 107955.9709 | GS36: 612868.8189 | GT36: 124649.1781 | GU36: 130109.7448 | GV36: 150001.776 | GW36: 274315.4248 | GX36: 298427.019 | GY36: 3193.170673 | GZ36: 255420.5215 | HA36: 6348888.555 | HB36: 2512314.186 | HC36: 1853260.881 | HD36: 6669383.837 | HE36: 4422496.532 | HF36: 1190039.907 | HG36: 632559.3179 | HH36: 404788.027 | HI36: 233742.5517 | HJ36: 249199.4621 | HK36: 703278.7211 | HL36: 45903.18601 | HM36: 2089427.061 | HN36: 644565.7431 | HO36: 137621.9606 | HP36: 79948.45924 | HQ36: 125822.8212 | HR36: 127663.2218 | HS36: 190771.8368 | HT36: 186879.14 | HU36: 109885.705 | HV36: 175569.8274 | HW36: 469262.0319 | HX36: 1125241.001 | HY36: 136821.8276 | HZ36: 252790.0585 | IA36: 109247.7979 | IB36: 125668.7199 | IC36: 1.94398978e-06 | ID36: 7689.929953 | IE36: 1672719.587 | IF36: 741617.3219 | IG36: 22834.90856 | IH36: 636220.5825 | II36: 266451928
A37: =+MATCH(B37,RUT[EMPRESA],0) -> 240 | B37: PANGUIPULLI | C37: 414419008.2 | D37: 414419008.2 | F37: =IFERROR(INDEX($B$9:$B$511,MATCH(0,INDEX(COUNTIF($F$8:F36,$B$9:$B$511),0,0),0)),"") -> PANGUIPULLI | H37: 414419008.2 | J37: ACCIONA_ENERGIA | K37: 280847048.2 | L37: 127453246.6 | M37: 11606129.03 | N37: 350291001.1 | O37: 52048851.81 | P37: 11881087.19 | Q37: 850016.734 | R37: 145660.0761 | S37: 632537.7676 | T37: 10484901.17 | U37: 5958251.791 | V37: 990127.6501 | W37: 55284560.45 | X37: 1275987.253 | Y37: 655917.0218 | Z37: 888481.4258 | AA37: 3551381.217 | AB37: 2417064.607 | AC37: 15242923.54 | AD37: 2402556.895 | AE37: 2292784.316 | AF37: 513977.0784 | AG37: 1089721.729 | AH37: 918.8368982 | AI37: 526875.7385 | AJ37: 1786336.778 | AK37: 4675602.194 | AL37: 1148238.078 | AM37: 3996837.776 | AN37: 5397862.48 | AO37: 9968883.357 | AP37: 64476.08095 | AQ37: 648058.4508 | AR37: 38802670.98 | AS37: 1723594.088 | AT37: 4744.91479 | AU37: 1742210.159 | AV37: 32361.25827 | AW37: 23273890.68 | AX37: 219706.843 | AY37: 1467151.514 | AZ37: 2499814.925 | BA37: 446847.1157 | BB37: 1227246.098 | BC37: 2320854.104 | BD37: 37404.54402 | BE37: 2085000.075 | BF37: 665133.1957 | BG37: 65354.09047 | BH37: 2686721.561 | BI37: 17062.02254 | BJ37: 142827.9931 | BK37: 8833746.969 | BL37: 3028891.627 | BM37: 308028.8704 | BN37: 56045977.07 | BO37: 789092.38 | BP37: 22013377.4 | BQ37: 10914631.72 | BR37: 3040191.051 | BS37: 21754.08241 | BT37: 2328889.387 | BU37: 307620.1273 | BV37: 16609999.54 | BW37: 7002623.549 | BX37: 628199.1159 | BY37: 616272.7963 | BZ37: 170024.8811 | CA37: 180283977.9 | CB37: 21385758.51 | CC37: 1063320.93 | CD37: 148259.4132 | CE37: 8971289.901 | CF37: 1841572.399 | CG37: 14152.86452 | CH37: 1252706.424 | CI37: 121683.9852 | CJ37: 110510.1001 | CK37: 578188.6285 | CL37: 19100743.25 | CM37: 268162.7396 | CN37: 284145.52 | CO37: 1106325.775 | CP37: 1302345.224 | CQ37: 184236.4582 | CR37: 167177.2628 | CS37: 156043.5608 | CT37: 12850497.61 | CU37: 904989.9684 | CV37: 5695633.955 | CW37: 6559731.072 | CX37: 10233714.08 | CY37: 395860.1919 | CZ37: 631679.5308 | DA37: 657143.9767 | DB37: 707691.9601 | DC37: 230895.7935 | DD37: 3492100.018 | DE37: 83610.40603 | DF37: 296969.8817 | DG37: 1598540.728 | DH37: 154316.1577 | DI37: 1055298.815 | DJ37: 7991397.716 | DK37: 53395.60166 | DL37: 206897.7812 | DM37: 1247497.769 | DN37: 1906983.789 | DO37: 503030.0801 | DP37: 1904930.703 | DQ37: 874867.0726 | DR37: 704749.4426 | DS37: 13695212.8 | DT37: 875.3980296 | DU37: 312268.9045 | DV37: 912844.3386 | DW37: 3450308.048 | DX37: 5828727.987 | DY37: 377964.96 | DZ37: 1055605.048 | EA37: 949401.6981 | EB37: 22851040.83 | EC37: 13666.25059 | ED37: 812094.4062 | EE37: 3605903.517 | EF37: 954474.0534 | EG37: 7308464.132 | EH37: 296976.6968 | EI37: 1062754.57 | EJ37: 805525.5848 | EK37: 1856404.887 | EL37: 4272553.541 | EM37: 187465.0404 | EN37: 1030678.426 | EO37: 848700.4973 | EP37: 1231135.19 | EQ37: 1136699.878 | ER37: 973184.9737 | ES37: 1862368.495 | ET37: 1048182.576 | EU37: 2871035.807 | EV37: 970496.462 | EW37: 905132.6618 | EX37: 952700.8655 | EY37: 412147.6911 | EZ37: 1009114.464 | FA37: 1039904.992 | FB37: 844602.7401 | FC37: 9757168.121 | FD37: 1117268.325 | FE37: 953059.9271 | FF37: 1033972.685 | FG37: 6910013.872 | FH37: 1024109.178 | FI37: 1013643.03 | FJ37: 1039531.348 | FK37: 1010970.659 | FL37: 844181.7053 | FM37: 2346742.942 | FN37: 1081381.039 | FO37: 1060548.154 | FP37: 1207447.573 | FQ37: 345062.924 | FR37: 2477024.951 | FS37: 3261790.767 | FT37: 1146102.605 | FU37: 1122383.99 | FV37: 1305793.603 | FW37: 0.2046864009 | FX37: 5805.728007 | FY37: 540561.7005 | FZ37: 812144.4379 | GA37: 970292.1763 | GB37: 141357.2946 | GC37: 1455081.813 | GD37: 1048372.075 | GE37: 217387.1881 | GF37: 199496.296 | GG37: 3057959.036 | GH37: 2931244.242 | GI37: 1088870.594 | GJ37: 28450662.02 | GK37: 42788.90871 | GL37: 783713.8422 | GM37: 2709501.529 | GN37: 1009368.617 | GO37: 2061344.54 | GP37: 1119674.423 | GQ37: 2453.468494 | GR37: 776549.0546 | GS37: 4408488.925 | GT37: 896626.6588 | GU37: 935905.6149 | GV37: 1078993.004 | GW37: 1973206.133 | GX37: 2146645.689 | GY37: 22969.12016 | GZ37: 1837291.286 | HA37: 45668834.86 | HB37: 18071582.24 | HC37: 13330879 | HD37: 47974222.01 | HE37: 31811908.82 | HF37: 8560196.876 | HG37: 4550126.652 | HH37: 2911721.855 | HI37: 1681357.281 | HJ37: 1792541.952 | HK37: 5058825.572 | HL37: 330190.8678 | HM37: 15029669.93 | HN37: 4636491.289 | HO37: 989942.4978 | HP37: 575085.3792 | HQ37: 905068.9101 | HR37: 918307.2824 | HS37: 1372260.268 | HT37: 1344259.315 | HU37: 790430.021 | HV37: 1262909.151 | HW37: 3375496.365 | HX37: 8094085.289 | HY37: 984186.9795 | HZ37: 1818369.835 | IA37: 785841.4272 | IB37: 903960.4282 | IC37: 1.398351026e-05 | ID37: 55315.2159 | IE37: 12032209.09 | IF37: 5334602.854 | IG37: 164256.0992 | IH37: 4576462.867 | II37: 1916642416
A38: =+MATCH(B38,RUT[EMPRESA],0) -> 171 | B38: HIDROPALOMA | C38: 65319834.67 | D38: 65319834.67 | F38: =IFERROR(INDEX($B$9:$B$511,MATCH(0,INDEX(COUNTIF($F$8:F37,$B$9:$B$511),0,0),0)),"") -> HIDROPALOMA | H38: 65319834.67 | J38: LLEUQUEREO | K38: 25358.99972 | L38: 11508.35255 | M38: 1047.971929 | N38: 31629.42056 | O38: 4699.735415 | P38: 1072.799193 | Q38: 76.75200526 | R38: 13.15233275 | S38: 57.11480742 | T38: 946.7309963 | U38: 537.9985529 | V38: 89.40327828 | W38: 4991.902753 | X38: 115.2148851 | Y38: 59.22583014 | Z38: 80.22516304 | AA38: 320.6708986 | AB38: 218.2481215 | AC38: 1376.355195 | AD38: 216.938152 | AE38: 207.02627 | AF38: 46.40940566 | AG38: 98.39609568 | AH38: 0.08296610128 | AI38: 47.57408629 | AJ38: 161.2967419 | AK38: 422.1820934 | AL38: 103.6798118 | AM38: 360.8932645 | AN38: 487.3983686 | AO38: 900.1373235 | AP38: 5.821848331 | AQ38: 58.51624284 | AR38: 3503.675502 | AS38: 155.6314096 | AT38: 0.4284406534 | AU38: 157.3123422 | AV38: 2.922050079 | AW38: 2101.508957 | AX38: 19.83836328 | AY38: 132.4760045 | AZ38: 225.7200365 | BA38: 40.34792588 | BB38: 110.8138171 | BC38: 209.5608231 | BD38: 3.377432048 | BE38: 188.2644545 | BF38: 60.05800179 | BG38: 5.901127936 | BH38: 242.596715 | BI38: 1.540610192 | BJ38: 12.89661066 | BK38: 797.6405248 | BL38: 273.4928582 | BM38: 27.81337418 | BN38: 5060.654637 | BO38: 71.25085904 | BP38: 1987.69129 | BQ38: 985.5333871 | BR38: 274.5131363 | BS38: 1.964278326 | BT38: 210.2863665 | BU38: 27.77646685 | BV38: 1499.794911 | BW38: 632.2997865 | BX38: 56.72305017 | BY38: 55.64616673 | BZ38: 15.35234549 | CA38: 16278.68755 | CB38: 1931.02063 | CC38: 96.01224344 | CD38: 13.38703911 | CE38: 810.0599225 | CF38: 166.2842257 | CG38: 1.277928644 | CH38: 113.1127497 | CI38: 10.98741883 | CJ38: 9.978476243 | CK38: 52.20736825 | CL38: 1724.695865 | CM38: 24.21367389 | CN38: 25.65683424 | CO38: 99.89535304 | CP38: 117.5948702 | CQ38: 16.63557556 | CR38: 15.09522065 | CS38: 14.08990638 | CT38: 1160.331815 | CU38: 81.71579692 | CV38: 514.2855544 | CW38: 592.3089436 | CX38: 924.0501335 | CY38: 35.74407693 | CZ38: 57.03731319 | DA38: 59.33661767 | DB38: 63.90083262 | DC38: 20.8486662 | DD38: 315.3181205 | DE38: 7.549576457 | DF38: 26.81480613 | DG38: 144.3397541 | DH38: 13.93393104 | DI38: 95.28788901 | DJ38: 721.5808525 | DK38: 4.821339787 | DL38: 18.68177291 | DM38: 112.6424357 | DN38: 172.1905275 | DO38: 45.42094974 | DP38: 172.0051447 | DQ38: 78.99585911 | DR38: 63.63513889 | DS38: 1236.605119 | DT38: 0.07904380171 | DU38: 28.19622678 | DV38: 82.42500491 | DW38: 311.5445271 | DX38: 526.30324 | DY38: 34.12823235 | DZ38: 95.31554024 | EA38: 85.72594069 | EB38: 2063.327856 | EC38: 1.233989986 | ED38: 73.32782008 | EE38: 325.5939732 | EF38: 86.18394749 | EG38: 659.91557 | EH38: 26.81542149 | EI38: 95.96110415 | EJ38: 72.73469033 | EK38: 167.6235207 | EL38: 385.7889366 | EM38: 16.92709942 | EN38: 93.06479838 | EO38: 76.63315607 | EP38: 111.1649816 | EQ38: 102.6379735 | ER38: 87.87344441 | ES38: 168.1620029 | ET38: 94.64533034 | EU38: 259.2393144 | EV38: 87.63068605 | EW38: 81.72868138 | EX38: 86.02383802 | EY38: 37.21475177 | EZ38: 91.11768693 | FA38: 93.89790834 | FB38: 76.26315031 | FC38: 881.0205599 | FD38: 100.8834073 | FE38: 86.05625938 | FF38: 93.36225252 | FG38: 623.9376236 | FH38: 92.47163008 | FI38: 91.52659246 | FJ38: 93.86417028 | FK38: 91.28529151 | FL38: 76.2251331 | FM38: 211.8984479 | FN38: 97.64297556 | FO38: 95.76187653 | FP38: 109.0261154 | FQ38: 31.15735291 | FR38: 223.6622227 | FS38: 294.5224159 | FT38: 103.4869899 | FU38: 101.3453247 | FV38: 117.9062405 | FW38: 1.848209699e-05 | FX38: 0.5242264637 | FY38: 48.80985611 | FZ38: 73.33233768 | GA38: 87.61224014 | GB38: 12.76381439 | GC38: 131.3861745 | GD38: 94.66244106 | GE38: 19.62891074 | GF38: 18.01345803 | GG38: 276.1174911 | GH38: 264.6758169 | GI38: 98.31924269 | GJ38: 2568.943967 | GK38: 3.863611639 | GL38: 70.76520559 | GM38: 244.6536254 | GN38: 91.14063562 | GO38: 186.1284851 | GP38: 101.1006651 | GQ38: 0.2215351995 | GR38: 70.11826326 | GS38: 398.0631811 | GT38: 80.96063439 | GU38: 84.50731592 | GV38: 97.4273487 | GW38: 178.1700541 | GX38: 193.8307267 | GY38: 2.073989795 | GZ38: 165.8976639 | HA38: 4123.653704 | HB38: 1631.768082 | HC38: 1203.707709 | HD38: 4331.817943 | HE38: 2872.446736 | HF38: 772.9404015 | HG38: 410.8523171 | HH38: 262.9130489 | HI38: 151.8176498 | HJ38: 161.8570363 | HK38: 456.785133 | HL38: 29.81448507 | HM38: 1357.099524 | HN38: 418.650586 | HO38: 89.38656 | HP38: 51.9271613 | HQ38: 81.72292494 | HR38: 82.91827978 | HS38: 123.9078281 | HT38: 121.3794904 | HU38: 71.37164093 | HV38: 114.0340018 | HW38: 304.7894288 | HX38: 730.8529959 | HY38: 88.86686721 | HZ38: 164.1891572 | IA38: 70.95731524 | IB38: 81.6228349 | IC38: 1.262636852e-09 | ID38: 4.994670777 | IE38: 1086.4447 | IF38: 481.6863597 | IG38: 14.83145506 | IH38: 413.2303377 | II38: 173062.6503
A39: =+MATCH(B39,RUT[EMPRESA],0) -> 106 | B39: EMELDA | C39: 62335378.1 | D39: 62335378.1 | F39: =IFERROR(INDEX($B$9:$B$511,MATCH(0,INDEX(COUNTIF($F$8:F38,$B$9:$B$511),0,0),0)),"") -> EMELDA | H39: 62335378.1 | J39: JAVIERA | K39: =$II39*K$64/$II$64 -> 62896719.78 | L39: 28543618.98 | M39: 2599234.885 | N39: 78448946.08 | O39: 11656530.02 | P39: 2660812.768 | Q39: 190364.3448 | R39: 32621.10479 | S39: 141659.1379 | T39: 2348131.82 | U39: =$II39*U$64/$II$64 -> 1334372.199 | V39: 221742.695 | W39: 12381178.76 | X39: 285761.9948 | Y39: 146895.007 | Z39: 198978.6527 | AA39: 795344.764 | AB39: 541310.426 | AC39: 3413708.268 | AD39: 538061.371 | AE39: =$II39*AE$64/$II$64 -> 513477.4019 | AF39: 115107.0395 | AG39: 244047.1519 | AH39: 205.7768714 | AI39: 117995.7414 | AJ39: 400056.6304 | AK39: 1047118.148 | AL39: 257152.1015 | AM39: 895106.3836 | AN39: 1208870.971 | AO39: =$II39*AO$64/$II$64 -> 2232567.752 | AP39: 14439.65326 | AQ39: 145135.0514 | AR39: 8689999.554 | AS39: 386005.1764 | AT39: 1062.640957 | AU39: 390174.3134 | AV39: 7247.421705 | AW39: 5212272.622 | AX39: 49204.14804 | AY39: =$II39*AY$64/$II$64 -> 328573.9275 | AZ39: 559842.6612 | BA39: 100073.0398 | BB39: 274846.2353 | BC39: 519763.7333 | BD39: 8376.883925 | BE39: 466943.3641 | BF39: 148959.0028 | BG39: 14636.28669 | BH39: 601701.0834 | BI39: =$II39*BI$64/$II$64 -> 3821.102117 | BJ39: 31986.84948 | BK39: 1978349.822 | BL39: 678331.3164 | BM39: 68984.18792 | BN39: 12551700.78 | BO39: 176720.1138 | BP39: 4929976.081 | BQ39: 2444371.543 | BR39: 680861.8637 | BS39: =$II39*BS$64/$II$64 -> 4871.906023 | BT39: 521563.2641 | BU39: 68892.64841 | BV39: 3719869.921 | BW39: 1568263.06 | BX39: 140687.481 | BY39: 138016.5383 | BZ39: 38077.69166 | CA39: 40375253.77 | CB39: 4789418.542 | CC39: =$II39*CC$64/$II$64 -> 238134.5967 | CD39: 33203.23581 | CE39: 2009153.062 | CF39: 412426.8489 | CG39: 3169.585579 | CH39: 280548.1682 | CI39: 27251.57187 | CJ39: 24749.1396 | CK39: 129487.4501 | CL39: 4277681.05 | CM39: =$II39*CM$64/$II$64 -> 60056.02265 | CN39: 63635.42456 | CO39: 247765.6886 | CP39: 291664.9584 | CQ39: 41260.42612 | CR39: 37439.95717 | CS39: 34946.52403 | CT39: 2877915.764 | CU39: 202675.801 | CV39: 1275557.978 | CW39: =$II39*CW$64/$II$64 -> 1469075.676 | CX39: 2291877.556 | CY39: 88654.33239 | CZ39: 141466.9326 | DA39: 147169.7881 | DB39: 158490.1931 | DC39: 51709.95428 | DD39: 782068.5233 | DE39: 18724.85509 | DF39: 66507.4871 | DG39: =$II39*DG$64/$II$64 -> 357999.0208 | DH39: 34559.66582 | DI39: 236338.0149 | DJ39: 1789702.637 | DK39: 11958.13955 | DL39: 46335.51199 | DM39: 279381.6709 | DN39: 427075.9681 | DO39: 112655.4194 | DP39: 426616.172 | DQ39: =$II39*DQ$64/$II$64 -> 195929.6687 | DR39: 157831.2056 | DS39: 3067092.808 | DT39: 196.0485785 | DU39: 69933.75899 | DV39: 204434.8158 | DW39: 772709.0595 | DX39: 1305364.871 | DY39: 84646.63001 | DZ39: 236406.5969 | EA39: =$II39*EA$64/$II$64 -> 212621.9697 | EB39: 5117573.857 | EC39: 3060.606616 | ED39: 181871.5013 | EE39: 807555.2317 | EF39: 213757.9421 | EG39: 1636757.173 | EH39: 66509.01336 | EI39: 238007.7584 | EJ39: 180400.3899 | EK39: =$II39*EK$64/$II$64 -> 415748.6386 | EL39: 956853.9337 | EM39: 41983.47886 | EN39: 230824.189 | EO39: 190069.5688 | EP39: 275717.2119 | EQ39: 254568.0795 | ER39: 217948.3209 | ES39: 417084.2104 | ET39: 234744.3072 | EU39: =$II39*EU$64/$II$64 -> 642978.9304 | EV39: 217346.2189 | EW39: 202707.7577 | EX39: 213360.8302 | EY39: 92301.97719 | EZ39: 225994.8612 | FA39: 232890.512 | FB39: 189151.8612 | FC39: 2185153.353 | FD39: 250216.3125 | FE39: =$II39*FE$64/$II$64 -> 213441.2434 | FF39: 231561.9504 | FG39: 1547522.785 | FH39: 229352.9819 | FI39: 227009.0501 | FJ39: 232806.8331 | FK39: 226410.5629 | FL39: 189057.5689 | FM39: 525561.6328 | FN39: 242179.2239 | FO39: =$II39*FO$64/$II$64 -> 237513.6236 | FP39: 270412.2837 | FQ39: 77278.09916 | FR39: 554738.7634 | FS39: 730489.9274 | FT39: 256673.8546 | FU39: 251361.9843 | FV39: 292437.2353 | FW39: 0.04584026531 | FX39: 1300.213942 | FY39: =$II39*FY$64/$II$64 -> 121060.7625 | FZ39: 181882.7061 | GA39: 217300.4684 | GB39: 31657.4812 | GC39: 325870.874 | GD39: 234786.7461 | GE39: 48684.65288 | GF39: 44677.92241 | GG39: 684841.0685 | GH39: 656462.8287 | GI39: =$II39*GI$64/$II$64 -> 243856.5371 | GJ39: 6371629.427 | GK39: 9582.732019 | GL39: 175515.5706 | GM39: 606802.7402 | GN39: 226051.7797 | GO39: 461645.6208 | GP39: 250755.1667 | GQ39: 549.4632091 | GR39: 173910.9903 | GS39: =$II39*GS$64/$II$64 -> 987297.1582 | GT39: 200802.8073 | GU39: 209599.4727 | GV39: 241644.4149 | GW39: 441906.7034 | GX39: 480749.124 | GY39: 5144.018155 | GZ39: 411468.0781 | HA39: 10227701.97 | HB39: 4047196.692 | HC39: =$II39*HC$64/$II$64 -> 2985498.927 | HD39: 10744001.83 | HE39: 7124392.894 | HF39: 1917087.282 | HG39: 1019017.443 | HH39: 652090.719 | HI39: 376546.0894 | HJ39: 401446.3018 | HK39: 1132942.42 | HL39: 73947.44799 | HM39: =$II39*HM$64/$II$64 -> 3365949.345 | HN39: 1038359.118 | HO39: 221701.2295 | HP39: 128792.4662 | HQ39: 202693.4803 | HR39: 205658.262 | HS39: 307322.6873 | HT39: 301051.7718 | HU39: 177019.6833 | HV39: 282833.1061 | HW39: =$II39*HW$64/$II$64 -> 755954.7105 | HX39: 1812699.893 | HY39: 220412.2602 | HZ39: 407230.5503 | IA39: 175992.051 | IB39: 202445.2317 | IC39: 3.131658075e-06 | ID39: 12388.04416 | IE39: 2694657.069 | IF39: 1194703.747 | IG39: 36785.75192 | IH39: 1024915.534 | II39: 429239052.9
A40: =+MATCH(B40,RUT[EMPRESA],0) -> 300 | B40: SWO | C40: 13973820.08 | D40: 13973820.08 | F40: =IFERROR(INDEX($B$9:$B$511,MATCH(0,INDEX(COUNTIF($F$8:F39,$B$9:$B$511),0,0),0)),"") -> SWO | H40: 13973820.08 | J40: LOS_GUINDOS | K40: 661575.1887 | L40: 300234.2599 | M40: 27339.88856 | N40: 825160.3022 | O40: 122608.4774 | P40: 27987.59164 | Q40: 2002.335381 | R40: 343.1230378 | S40: 1490.032726 | T40: 24698.67677 | U40: 14035.51 | V40: 2332.386582 | W40: 130230.6495 | X40: 3005.769558 | Y40: 1545.105887 | Z40: 2092.944436 | AA40: 8365.783846 | AB40: 5693.739649 | AC40: 35906.87558 | AD40: 5659.564668 | AE40: 5400.979736 | AF40: 1210.746151 | AG40: 2566.994608 | AH40: 2.164451071 | AI40: 1241.13078 | AJ40: 4207.970489 | AK40: 11014.04634 | AL40: 2704.838196 | AM40: 9415.120162 | AN40: 12715.43323 | AO40: 23483.12339 | AP40: 151.8825841 | AQ40: 1526.593904 | AR40: 91405.21341 | AS40: 4060.171154 | AT40: 11.17732202 | AU40: 4104.02396 | AV40: 76.23154909 | AW40: 54824.96154 | AX40: 517.5507345 | AY40: 3456.084178 | AZ40: 5888.669798 | BA40: 1052.611971 | BB40: 2890.952829 | BC40: 5467.102117 | BD40: 88.11172637 | BE40: 4911.514388 | BF40: 1566.815896 | BG40: 153.9508605 | BH40: 6328.954978 | BI40: 40.19202214 | BJ40: 336.4516632 | BK40: 20809.14809 | BL40: 7134.985261 | BM40: 725.6058391 | BN40: 132024.2747 | BO40: 1858.819395 | BP40: 51855.64314 | BQ40: 25710.96824 | BR40: 7161.602663 | BS40: 51.24483689 | BT40: 5486.030369 | BU40: 724.6429866 | BV40: 39127.21765 | BW40: 16495.67629 | BX40: 1479.812415 | BY40: 1451.718272 | BZ40: 400.5178033 | CA40: 424684.5657 | CB40: 50377.19751 | CC40: 2504.803769 | CD40: 349.2461462 | CE40: 21133.15004 | CF40: 4338.085854 | CG40: 33.33908643 | CH40: 2950.928251 | CI40: 286.6439436 | CJ40: 260.3222673 | CK40: 1362.005595 | CL40: 44994.5189 | CM40: 631.6954947 | CN40: 669.3452083 | CO40: 2606.107802 | CP40: 3067.859509 | CQ40: 433.9951954 | CR40: 393.8098332 | CS40: 367.5828137 | CT40: 30271.17584 | CU40: 2131.832657 | CV40: 13416.87631 | CW40: 15452.38004 | CX40: 24106.96984 | CY40: 932.5050158 | CZ40: 1488.011028 | DA40: 1547.996154 | DB40: 1667.069122 | DC40: 543.9078997 | DD40: 8226.138543 | DE40: 196.9562098 | DF40: 699.5548175 | DG40: 3765.590169 | DH40: 363.5136699 | DI40: 2485.906536 | DJ40: 18824.87455 | DK40: 125.7809383 | DL40: 487.3771668 | DM40: 2938.658523 | DN40: 4492.171693 | DO40: 1184.958939 | DP40: 4487.335356 | DQ40: 2060.87389 | DR40: 1660.137603 | DS40: 32261.02267 | DT40: 2.062124634 | DU40: 735.5938427 | DV40: 2150.334744 | DW40: 8127.691612 | DX40: 13730.39825 | DY40: 890.3502505 | DZ40: 2486.627912 | EA40: 2236.450807 | EB40: 53828.87854 | EC40: 32.19279808 | ED40: 1913.003941 | EE40: 8494.218882 | EF40: 2248.399462 | EG40: 17216.12731 | EH40: 699.5708714 | EI40: 2503.469627 | EJ40: 1897.530147 | EK40: 4373.025891 | EL40: 10064.60788 | EM40: 441.6005802 | EN40: 2427.909705 | EO40: 1999.234798 | EP40: 2900.114141 | EQ40: 2677.658323 | ER40: 2292.475697 | ES40: 4387.074018 | ET40: 2469.143222 | EU40: 6763.133413 | EV40: 2286.142525 | EW40: 2132.168792 | EX40: 2244.222465 | EY40: 970.8725381 | EZ40: 2377.112725 | FA40: 2449.644194 | FB40: 1989.581948 | FC40: 22984.39803 | FD40: 2631.884536 | FE40: 2245.068286 | FF40: 2435.669802 | FG40: 16277.52102 | FH40: 2412.434906 | FI40: 2387.780407 | FJ40: 2448.764022 | FK40: 2381.485256 | FL40: 1988.59014 | FM40: 5528.086959 | FN40: 2547.346926 | FO40: 2498.272102 | FP40: 2844.314588 | FQ40: 812.8448226 | FR40: 5834.98477 | FS40: 7683.612328 | FT40: 2699.807786 | FU40: 2643.935212 | FV40: 3075.982655 | FW40: 0.0004821679457 | FX40: 13.67621852 | FY40: 1273.370011 | FZ40: 1913.121798 | GA40: 2285.661301 | GB40: 332.9872236 | GC40: 3427.65228 | GD40: 2469.589613 | GE40: 512.0864573 | GF40: 469.9419151 | GG40: 7203.457679 | GH40: 6904.962949 | GI40: 2564.989639 | GJ40: 67019.58313 | GK40: 100.7953637 | GL40: 1846.149484 | GM40: 6382.616434 | GN40: 2377.711419 | GO40: 4855.790409 | GP40: 2637.55244 | GQ40: 5.779494185 | GR40: 1829.271807 | GS40: 10384.82302 | GT40: 2112.131691 | GU40: 2204.658862 | GV40: 2541.72157 | GW40: 4648.167848 | GX40: 5056.729405 | GY40: 54.10703122 | GZ40: 4328.001083 | HA40: 107579.4395 | HB40: 42570.1837 | HC40: 31402.78257 | HD40: 113010.107 | HE40: 74937.47829 | HF40: 20164.76192 | HG40: 10718.47085 | HH40: 6858.975189 | HI40: 3960.676344 | HJ40: 4222.58766 | HK40: 11916.78354 | HL40: 777.8115778 | HM40: 35404.52635 | HN40: 10921.91504 | HO40: 2331.95043 | HP40: 1354.69545 | HQ40: 2132.018616 | HR40: 2163.203486 | HS40: 3232.554345 | HT40: 3166.594115 | HU40: 1861.970398 | HV40: 2974.962227 | HW40: 7951.462047 | HX40: 19066.76975 | HY40: 2318.392487 | HZ40: 4283.428915 | IA40: 1851.161313 | IB40: 2129.407429 | IC40: 3.294014838e-08 | ID40: 130.3028628 | IE40: 28343.58079 | IF40: 12566.41618 | IG40: 386.9286165 | IH40: 10780.50955 | II40: 4514923.963
A41: =+MATCH(B41,RUT[EMPRESA],0) -> 131 | B41: GEN. INDUSTRIAL | C41: 0 | D41: 0 | F41: =IFERROR(INDEX($B$9:$B$511,MATCH(0,INDEX(COUNTIF($F$8:F40,$B$9:$B$511),0,0),0)),"") -> GEN. INDUSTRIAL | J41: ERNC1 | K41: 18021660.02 | L41: 8178540.927 | M41: 744753.1059 | N41: 22477805.52 | O41: 3339920.137 | P41: 762396.8823 | Q41: 54544.68077 | R41: 9346.854048 | S41: 40589.28398 | T41: 672805.092 | U41: 382334.7575 | V41: 63535.45105 | W41: 3547552.16 | X41: 81878.76145 | Y41: 42089.50616 | Z41: 57012.91963 | AA41: 227888.4015 | AB41: 155100.4964 | AC41: 978122.3888 | AD41: 154169.5517 | AE41: 147125.5607 | AF41: 32981.36912 | AG41: 69926.29846 | AH41: 58.9607984 | AI41: 33809.06259 | AJ41: 114627.3542 | AK41: 300028.4804 | AL41: 73681.2311 | AM41: 256472.8809 | AN41: 346375.1642 | AO41: 639692.7714 | AP41: 4137.362374 | AQ41: 41585.22992 | AR41: 2489926.63 | AS41: 110601.2218 | AT41: 304.4761969 | AU41: 111795.7955 | AV41: 2076.587943 | AW41: 1493461.113 | AX41: 14098.35728 | AY41: 94145.57121 | AZ41: 160410.4973 | BA41: 28673.70994 | BB41: 78751.09269 | BC41: 148926.7695 | BD41: 2400.210291 | BE41: 133792.2643 | BF41: 42680.89836 | BG41: 4193.703322 | BH41: 172404.0998 | BI41: 1094.85206 | BJ41: 9165.122257 | BK41: 566852.262 | BL41: 194360.7934 | BM41: 19765.88899 | BN41: 3596411.465 | BO41: 50635.22898 | BP41: 1412575.3 | BQ41: 700380.45 | BR41: 195085.8656 | BS41: 1395.936613 | BT41: 149442.3852 | BU41: 19739.66038 | BV41: 1065846.22 | BW41: 449350.9959 | BX41: 40310.87726 | BY41: 39545.57786 | BZ41: 10910.31799 | CA41: 11568633.45 | CB41: 1372301.655 | CC41: 68232.18691 | CD41: 9513.650779 | CE41: 575678.2474 | CF41: 118171.766 | CG41: 908.1744467 | CH41: 80384.85509 | CI41: 7808.333484 | CJ41: 7091.31702 | CK41: 37101.75683 | CL41: 1225674.627 | CM41: 17207.72126 | CN41: 18233.31948 | CO41: 70991.76266 | CP41: 83570.12476 | CQ41: 11822.25996 | CR41: 10727.58931 | CS41: 10013.15135 | CT41: 824602.9304 | CU41: 58072.25546 | CV41: 365482.8469 | CW41: 420931.051 | CX41: 656686.6804 | CY41: 25401.93261 | CZ41: 40534.21183 | DA41: 42168.23857 | DB41: 45411.84956 | DC41: 14816.34048 | DD41: 224084.3892 | DE41: 5365.191911 | DF41: 19056.24531 | DG41: 102576.679 | DH41: 9902.305713 | DI41: 67717.41623 | DJ41: 512799.5954 | DK41: 3426.339659 | DL41: 13276.41325 | DM41: 80050.62117 | DN41: 122369.1462 | DO41: 32278.91174 | DP41: 122237.4018 | DQ41: 56139.30089 | DR41: 45223.0313 | DS41: 878807.4165 | DT41: 56.17337184 | DU41: 20037.96752 | DV41: 58576.26214 | DW41: 221402.6424 | DX41: 374023.3511 | DY41: 24253.61438 | DZ41: 67737.06689 | EA41: 60922.10949 | EB41: 1466327.282 | EC41: 876.9489423 | ED41: 52111.24483 | EE41: 231387.0402 | EF41: 61247.59721 | EG41: 468976.4649 | EH41: 19056.68262 | EI41: 68195.84419 | EJ41: 51689.73047 | EK41: 119123.5512 | EL41: 274165.2719 | EM41: 12029.43468 | EN41: 66137.55173 | EO41: 54460.21924 | EP41: 79000.6517 | EQ41: 72940.8369 | ER41: 62448.2573 | ES41: 119506.2296 | ET41: 67260.77465 | EU41: 184231.3513 | EV41: 62275.73833 | EW41: 58081.41195 | EX41: 61133.8136 | EY41: 26447.08432 | EZ41: 64753.81495 | FA41: 66729.61075 | FB41: 54197.27047 | FC41: 626107.2271 | FD41: 71693.9346 | FE41: 61156.85421 | FF41: 66348.94088 | FG41: 443408.3303 | FH41: 65716.00997 | FI41: 65044.40829 | FJ41: 66705.63441 | FK41: 64872.92504 | FL41: 54170.2531 | FM41: 150588.029 | FN41: 69391.08513 | FO41: 68054.26083 | FP41: 77480.6422 | FQ41: 22142.3253 | FR41: 158948.0886 | FS41: 209305.6866 | FT41: 73544.20005 | FU41: 72022.20144 | FV41: 83791.40358 | FW41: 0.01313451129 | FX41: 372.5474666 | FY41: 34687.27639 | FZ41: 52114.45532 | GA41: 62262.62953 | GB41: 9070.74908 | GC41: 93371.0712 | GD41: 67272.93457 | GE41: 13949.50747 | GF41: 12801.46772 | GG41: 196226.0185 | GH41: 188094.8633 | GI41: 69871.68202 | GJ41: 1825649.091 | GK41: 2745.719317 | GL41: 50290.09386 | GM41: 173865.8664 | GN41: 64770.1237 | GO41: 132274.3134 | GP41: 71848.33133 | GQ41: 157.4364956 | GR41: 49830.33697 | GS41: 282888.1026 | GT41: 57535.59067 | GU41: 60056.08002 | GV41: 69237.84747 | GW41: 126618.5644 | GX41: 137747.9985 | GY41: 1473.904309 | GZ41: 117897.0515 | HA41: 2930521.152 | HB41: 1159634.446 | HC41: 855428.4997 | HD41: 3078455.423 | HE41: 2041336.766 | HF41: 549298.8399 | HG41: 291976.8468 | HH41: 186842.1323 | HI41: 107890.9302 | HJ41: 115025.5338 | HK41: 324619.522 | HL41: 21188.00108 | HM41: 964438.1286 | HN41: 297518.7747 | HO41: 63523.57002 | HP41: 36902.62458 | HQ41: 58077.32107 | HR41: 58926.81351 | HS41: 88056.49969 | HT41: 86259.70794 | HU41: 50721.06399 | HV41: 81039.55338 | HW41: 216602.0554 | HX41: 519388.9491 | HY41: 63154.24445 | HZ41: 116682.8819 | IA41: 50426.61876 | IB41: 58006.19095 | IC41: 8.973071619e-07 | ID41: 3549.519288 | IE41: 772094.2161 | IF41: 342315.8604 | IG41: 10540.14131 | IH41: 293666.814 | II41: 122988930.2
A42: =+MATCH(B42,RUT[EMPRESA],0) -> 230 | B42: NUEVA DEGAN | C42: 29626954.24 | D42: 29626954.24 | F42: =IFERROR(INDEX($B$9:$B$511,MATCH(0,INDEX(COUNTIF($F$8:F41,$B$9:$B$511),0,0),0)),"") -> NUEVA DEGAN | H42: 29626954.24 | J42: AGSA | K42: 1983299.194 | L42: 900055.4672 | M42: 81960.7202 | N42: 2473701.841 | O42: 367561.0852 | P42: 83902.43299 | Q42: 6002.689058 | R42: 1028.629332 | S42: 4466.885632 | T42: 74042.77937 | U42: 42076.26909 | V42: 6992.131064 | W42: 390411.1681 | X42: 9010.82816 | Y42: 4631.986374 | Z42: 6274.320868 | AA42: 25079.3147 | AB42: 17068.9431 | AC42: 107643.2106 | AD42: 16966.49184 | AE42: 16191.29456 | AF42: 3629.628054 | AG42: 7695.449322 | AH42: 6.488686603 | AI42: 3720.716432 | AJ42: 12614.83898 | AK42: 33018.39246 | AL42: 8108.68289 | AM42: 28225.06125 | AN42: 38118.88489 | AO42: 70398.73999 | AP42: 455.3202897 | AQ42: 4576.490339 | AR42: 274018.5683 | AS42: 12171.75963 | AT42: 33.50786749 | AU42: 12303.2235 | AV42: 228.5302902 | AW42: 164356.6806 | AX42: 1551.536351 | AY42: 10360.80113 | AZ42: 17653.31328 | BA42: 3155.566455 | BB42: 8666.625521 | BC42: 16389.51914 | BD42: 264.1452081 | BE42: 14723.95382 | BF42: 4697.069594 | BG42: 461.5206595 | BH42: 18973.21955 | BI42: 120.4894114 | BJ42: 1008.629591 | BK42: 62382.57924 | BL42: 21389.57258 | BM42: 2175.253093 | BN42: 395788.1766 | BO42: 5572.450524 | BP42: 155455.1274 | BQ42: 77077.47124 | BR42: 21469.3674 | BS42: 153.6240255 | BT42: 16446.26309 | BU42: 2172.366611 | BV42: 117297.2937 | BW42: 49451.4638 | BX42: 4436.246733 | BY42: 4352.024875 | BZ42: 1200.689884 | CA42: 1273138.067 | CB42: 151022.9781 | CC42: 7509.010887 | CD42: 1046.985455 | CE42: 63353.88653 | CF42: 13004.90454 | CG42: 99.9453794 | CH42: 8846.422479 | CI42: 859.3138195 | CJ42: 780.4055405 | CK42: 4083.080267 | CL42: 134886.5474 | CM42: 1893.724533 | CN42: 2006.5925 | CO42: 7812.704574 | CP42: 9196.964147 | CQ42: 1301.049882 | CR42: 1180.580436 | CS42: 1101.955923 | CT42: 90748.26211 | CU42: 6390.901688 | CV42: 40221.70182 | CW42: 46323.8244 | CX42: 72268.93429 | CY42: 2795.504544 | CZ42: 4460.824894 | DA42: 4640.650943 | DB42: 4997.613123 | DC42: 1630.55102 | DD42: 24660.67987 | DE42: 590.4439869 | DF42: 2097.156195 | DG42: 11288.6518 | DH42: 1089.757265 | DI42: 7452.359931 | DJ42: 56434.03677 | DK42: 377.0716281 | DL42: 1461.080703 | DM42: 8809.639748 | DN42: 13466.82985 | DO42: 3552.322015 | DP42: 13452.33126 | DQ42: 6178.178374 | DR42: 4976.833512 | DS42: 96713.51245 | DT42: 6.181927911 | DU42: 2205.19557 | DV42: 6446.368057 | DW42: 24365.55133 | DX42: 41161.59166 | DY42: 2669.131134 | DZ42: 7454.522503 | EA42: 6704.530577 | EB42: 161370.5792 | EC42: 96.50898576 | ED42: 5734.887339 | EE42: 25464.3429 | EF42: 6740.35078 | EG42: 51611.26354 | EH42: 2097.204322 | EI42: 7505.011339 | EJ42: 5688.49932 | EK42: 13109.64932 | EL42: 30172.12411 | EM42: 1323.849639 | EN42: 7278.494483 | EO42: 5993.393994 | EP42: 8694.089704 | EQ42: 8027.20187 | ER42: 6872.484457 | ES42: 13151.76341 | ET42: 7402.106132 | EU42: 20274.81876 | EV42: 6853.498596 | EW42: 6391.909367 | EX42: 6727.828796 | EY42: 2910.524389 | EZ42: 7126.21306 | FA42: 7343.651088 | FB42: 5964.456255 | FC42: 68903.63915 | FD42: 7889.9792 | FE42: 6730.364435 | FF42: 7301.758041 | FG42: 48797.46833 | FH42: 7232.103449 | FI42: 7158.193107 | FJ42: 7341.012471 | FK42: 7139.321228 | FL42: 5961.482971 | FM42: 16572.34219 | FN42: 7636.548634 | FO42: 7489.429969 | FP42: 8526.811351 | FQ42: 2436.781954 | FR42: 17492.37394 | FS42: 23034.27093 | FT42: 8093.602504 | FU42: 7926.105248 | FV42: 9221.316072 | FW42: 0.001445464271 | FX42: 40.99916929 | FY42: 3817.364617 | FZ42: 5735.240655 | GA42: 6852.055961 | GB42: 998.2437422 | GC42: 10275.56674 | GD42: 7403.444342 | GE42: 1535.155301 | GF42: 1408.812539 | GG42: 21594.8422 | GH42: 20700.00158 | GI42: 7689.438735 | GJ42: 200914.2535 | GK42: 302.1687737 | GL42: 5534.468107 | GM42: 19134.08822 | GN42: 7128.007852 | GO42: 14556.90202 | GP42: 7906.970693 | GQ42: 17.32602182 | GR42: 5483.871466 | GS42: 31132.07913 | GT42: 6331.841266 | GU42: 6609.223288 | GV42: 7619.684697 | GW42: 13934.48198 | GX42: 15159.28578 | GY42: 162.2044376 | GZ42: 12974.67197 | HA42: 322506.3746 | HB42: 127618.7687 | HC42: 94140.64254 | HD42: 338786.6685 | HE42: 224650.8678 | HF42: 60450.81004 | HG42: 32132.30325 | HH42: 20562.13745 | HI42: 11873.48972 | HJ42: 12658.65898 | HK42: 35724.65775 | HL42: 2331.757752 | HM42: 106137.246 | HN42: 32742.19719 | HO42: 6990.823546 | HP42: 4061.165592 | HQ42: 6391.459163 | HR42: 6484.946536 | HS42: 9690.693568 | HT42: 9492.955091 | HU42: 5581.896741 | HV42: 8918.472589 | HW42: 23837.24259 | HX42: 57159.20081 | HY42: 6950.17895 | HZ42: 12841.05157 | IA42: 5549.492789 | IB42: 6383.631232 | IC42: 9.874942535e-08 | ID42: 390.6276522 | IE42: 84969.63291 | IF42: 37672.15502 | IG42: 1159.951622 | IH42: 32318.2856 | II42: 13535037.6
A43: =+MATCH(B43,RUT[EMPRESA],0) -> 23 | B43: BARRICK | C43: 24981.0002 | D43: 24981.0002 | F43: =IFERROR(INDEX($B$9:$B$511,MATCH(0,INDEX(COUNTIF($F$8:F42,$B$9:$B$511),0,0),0)),"") -> BARRICK | H43: 24981.0002 | J43: KDM_ENERGIA | K43: 69654531.62 | L43: 31610430.84 | M43: 2878504.462 | N43: 86877735.67 | O43: 12908942.49 | P43: 2946698.456 | Q43: 210817.6599 | R43: 36126.01393 | S43: 156879.4197 | T43: 2600422.132 | U43: 1477741.142 | V43: 245567.3939 | W43: 13711449.66 | X43: 316465.1188 | Y43: 162677.8463 | Z43: 220357.5148 | AA43: 880798.9861 | AB43: 599470.4384 | AC43: 3780487.302 | AD43: 595872.2952 | AE43: 568646.9509 | AF43: 127474.4844 | AG43: 270268.3084 | AH43: 227.8861544 | AI43: 130673.5571 | AJ43: 443039.9122 | AK43: 1159623.656 | AL43: 284781.293 | AM43: 991279.2927 | AN43: 1338755.686 | AO43: 2472441.514 | AP43: 15991.09283 | AQ43: 160728.7958 | AR43: 9623679.117 | AS43: 427478.7279 | AT43: 1176.814282 | AU43: 432095.8095 | AV43: 8026.106387 | AW43: 5772294.794 | AX43: 54490.78898 | AY43: 363876.8938 | AZ43: 619993.8324 | BA43: 110825.1867 | BB43: 304376.5375 | BC43: 575608.7045 | BD43: 9276.921408 | BE43: 517113.1568 | BF43: 164963.6039 | BG43: 16208.85315 | BH43: 666349.6488 | BI43: 4231.652766 | BJ43: 35423.61234 | BK43: 2190909.648 | BL43: 751213.2634 | BM43: 76396.05555 | BN43: 13900293.08 | BO43: 195707.4517 | BP43: 5459667.468 | BQ43: 2707002.138 | BR43: 754015.7003 | BS43: 5395.358189 | BT43: 577601.5824 | BU43: 76294.68077 | BV43: 4119543.879 | BW43: 1736761.937 | BX43: 155803.3651 | BY43: 152845.4483 | BZ43: 42168.87283 | CA43: 44713291.88 | CB43: 5304008.006 | CC43: 263720.4906 | CD43: 36770.69085 | CE43: 2225022.481 | CF43: 456739.2241 | CG43: 3510.135341 | CH43: 310691.1031 | CI43: 30179.56232 | CJ43: 27408.26123 | CK43: 143399.9694 | CL43: 4737287.906 | CM43: 66508.62149 | CN43: 70472.60505 | CO43: 274386.3758 | CP43: 323002.3146 | CQ43: 45693.56981 | CR43: 41462.61823 | CS43: 38701.28318 | CT43: 3187127.647 | CU43: 224451.8957 | CV43: 1412607.745 | CW43: 1626917.564 | CX43: 2538123.741 | CY43: 98179.61923 | CZ43: 156666.5633 | DA43: 162982.1506 | DB43: 175518.8539 | DC43: 57265.82654 | DD43: 866096.3064 | DE43: 20736.70956 | DF43: 73653.25059 | DG43: 396463.5071 | DH43: 38272.85976 | DI43: 261730.8786 | DJ43: 1981993.646 | DK43: 13242.95786 | DL43: 51313.93809 | DM43: 309399.2739 | DN43: 472962.2885 | DO43: 124759.4548 | DP43: 472453.0905 | DQ43: 216980.9388 | DR43: 174789.0628 | DS43: 3396630.439 | DT43: 217.1126245 | DU43: 77447.65139 | DV43: 226399.9043 | DW43: 855731.2337 | DX43: 1445617.18 | DY43: 93741.3173 | DZ43: 261806.8293 | EA43: 235466.7105 | EB43: 5667421.31 | EC43: 3389.447352 | ED43: 201412.3198 | EE43: 894321.3831 | EF43: 236724.7353 | EG43: 1812615.263 | EH43: 73654.94084 | EI43: 263580.0243 | EJ43: 199783.1477 | EK43: 460417.9168 | EL43: 1059661.184 | EM43: 46494.3095 | EN43: 255624.6308 | EO43: 210491.2122 | EP43: 305341.0944 | EQ43: 281919.6359 | ER43: 241365.3409 | ES43: 461896.9864 | ET43: 259965.9382 | EU43: 712062.5112 | EV43: 240698.5473 | EW43: 224487.2859 | EX43: 236284.9565 | EY43: 102219.1779 | EZ43: 250276.4255 | FA43: 257912.9657 | FB43: 209474.9033 | FC43: 2419932.77 | FD43: 277100.3021 | FE43: 236374.0095 | FF43: 256441.6594 | FG43: 1713793.265 | FH43: 253995.3528 | FI43: 251399.582 | FJ43: 257820.2961 | FK43: 250736.7914 | FL43: 209370.48 | FM43: 582029.5478 | FN43: 268199.6847 | FO43: 263032.7982 | FP43: 299466.1889 | FQ43: 85581.08945 | FR43: 614341.5566 | FS43: 808975.9517 | FT43: 284251.6618 | FU43: 278369.0683 | FV43: 323857.5672 | FW43: 0.05076548062 | FX43: 1439.91282 | FY43: 134067.8932 | FZ43: 201424.7285 | GA43: 240647.8811 | GB43: 35058.85574 | GC43: 360883.4161 | GD43: 260012.9369 | GE43: 53915.47771 | GF43: 49478.25213 | GG43: 758422.4428 | GH43: 726995.1599 | GI43: 270057.2134 | GJ43: 7056216.364 | GK43: 10612.32943 | GL43: 194373.4889 | GM43: 671999.4429 | GN43: 250339.4596 | GO43: 511246.2081 | GP43: 277697.0524 | GQ43: 608.499181 | GR43: 192596.5077 | GS43: 1093375.32 | GT43: 222377.662 | GU43: 232119.4674 | GV43: 267607.4142 | GW43: 489386.4823 | GX43: 532402.2489 | GY43: 5696.706863 | GZ43: 455677.44 | HA43: 11326596.89 | HB43: 4482039.619 | HC43: 3306269.868 | HD43: 11898369.54 | HE43: 7889858.992 | HF43: 2123064.877 | HG43: 1128503.728 | HH43: 722153.2977 | HI43: 417003.3284 | HJ43: 444578.894 | HK43: 1254669.145 | HL43: 81892.58314 | HM43: 3727597.018 | HN43: 1149923.53 | HO43: 245521.4732 | HP43: 142630.3142 | HQ43: 224471.4745 | HR43: 227754.8012 | HS43: 340342.3567 | HT43: 333397.6753 | HU43: 196039.208 | HV43: 313221.5417 | HW43: 837176.7474 | HX43: 2007461.796 | HY43: 244094.0132 | HZ43: 450984.6196 | IA43: 194901.1638 | IB43: 224196.5534 | IC43: 3.468132793e-06 | ID43: 13719.0527 | IE43: 2984179.09 | IF43: 1323066.294 | IG43: 40738.12322 | IH43: 1135035.527 | II43: 475357781.5
A44: =+MATCH(B44,RUT[EMPRESA],0) -> 36 | B44: CARRAN | C44: 14324504.12 | D44: 14324504.12 | F44: =IFERROR(INDEX($B$9:$B$511,MATCH(0,INDEX(COUNTIF($F$8:F43,$B$9:$B$511),0,0),0)),"") -> CARRAN | H44: 14324504.12 | J44: SAN_JUAN_LAP | K44: 22501798.07 | L44: 10211705.04 | M44: 929896.8013 | N44: 28065729.82 | O44: 4170215.642 | P44: 951926.775 | Q44: 68104.3473 | R44: 11670.45778 | S44: 50679.67498 | T44: 840062.6974 | U44: 477382.1892 | V44: 79330.19981 | W44: 4429464.45 | X44: 102233.6097 | Y44: 52552.84851 | Z44: 71186.18396 | AA44: 284540.8686 | AB44: 193658.0786 | AC44: 1221281.084 | AD44: 192495.7035 | AE44: 183700.5945 | AF44: 41180.45216 | AG44: 87309.79536 | AH44: 73.61830035 | AI44: 42213.90808 | AJ44: 143123.418 | AK44: 374614.7845 | AL44: 91998.19454 | AM44: 320231.3756 | AN44: 432483.1339 | AO44: 798718.7395 | AP44: 5165.899957 | AQ44: 51923.2105 | AR44: 3108915.948 | AS44: 138096.3994 | AT44: 380.1681918 | AU44: 139587.941 | AV44: 2592.822334 | AW44: 1864731.682 | AX44: 17603.17243 | AY44: 117549.9167 | AZ44: 200288.132 | BA44: 35801.92006 | BB44: 98328.41061 | BC44: 185949.5791 | BD44: 2996.89636 | BE44: 167052.675 | BF44: 53291.25927 | BG44: 5236.247119 | BH44: 215263.313 | BI44: 1367.02945 | BJ44: 11443.54794 | BK44: 707770.2678 | BL44: 242678.3839 | BM44: 24679.63786 | BN44: 4490470.051 | BO44: 63223.01591 | BP44: 1763737.865 | BQ44: 874493.218 | BR44: 243583.7072 | BS44: 1742.962843 | BT44: 186593.3755 | BU44: 24646.88888 | BV44: 1330812.833 | BW44: 561058.4911 | BX44: 50332.05706 | BY44: 49376.50621 | BZ44: 13622.59482 | CA44: 14444565.8 | CB44: 1713452.296 | CC44: 85194.53206 | CD44: 11878.71975 | CE44: 718790.3704 | CF44: 147548.9613 | CG44: 1133.944265 | CH44: 100368.3221 | CI44: 9749.464988 | CJ44: 8854.200086 | CK44: 46325.15759 | CL44: 1530374.168 | CM44: 21485.51625 | CN44: 22766.07554 | CO44: 88640.13121 | CP44: 104345.4416 | CQ44: 14761.2432 | CR44: 13394.44027 | CS44: 12502.39488 | CT44: 1029597.086 | CU44: 72508.86794 | CV44: 456340.9371 | CW44: 525573.4214 | CX44: 819937.2903 | CY44: 31716.78734 | CZ44: 50610.91203 | DA44: 52651.15359 | DB44: 56701.11788 | DC44: 18499.64439 | DD44: 279791.1887 | DE44: 6698.96474 | DF44: 23793.57859 | DG44: 128076.9761 | DH44: 12363.9933 | DI44: 84551.79072 | DJ44: 640280.2482 | DK44: 4278.118835 | DL44: 16576.89524 | DM44: 99950.9985 | DN44: 152789.7994 | DO44: 40303.36569 | DP44: 152625.3037 | DQ44: 70095.38586 | DR44: 56465.35989 | DS44: 1097276.667 | DT44: 70.13792675 | DU44: 25019.35441 | DV44: 73138.16937 | DW44: 276442.7666 | DX44: 467004.5886 | DY44: 30283.00017 | DZ44: 84576.32649 | EA44: 76067.18831 | EB44: 1830852.451 | EC44: 1094.956181 | ED44: 65065.96549 | EE44: 288909.2598 | EF44: 76473.59142 | EG44: 585562.8008 | EH44: 23794.12462 | EI44: 85149.15463 | EJ44: 64539.66374 | EK44: 148737.3578 | EL44: 342322.0492 | EM44: 15019.92102 | EN44: 82579.17599 | EO44: 67998.88886 | EP44: 98640.00934 | EQ44: 91073.74025 | ER44: 77972.73251 | ES44: 149215.1692 | ET44: 83981.62922 | EU44: 230030.7887 | EV44: 77757.32578 | EW44: 72520.3007 | EX44: 76331.52151 | EY44: 33021.76107 | EZ44: 80851.44583 | FA44: 83318.41935 | FB44: 67670.5717 | FC44: 781755.864 | FD44: 89516.86127 | FE44: 76360.28995 | FF44: 82843.11594 | FG44: 553638.4941 | FH44: 82052.84004 | FI44: 81214.27993 | FJ44: 83288.48256 | FK44: 81000.16638 | FL44: 67636.83789 | FM44: 188023.8235 | FN44: 86641.52938 | FO44: 84972.37401 | FP44: 96742.12941 | FQ44: 27646.85009 | FR44: 198462.1723 | FS44: 261338.5388 | FT44: 91827.09792 | FU44: 89926.7344 | FV44: 104621.7297 | FW44: 0.01639971682 | FX44: 465.161803 | FY44: 43310.44357 | FZ44: 65069.97409 | GA44: 77740.95816 | GB44: 11325.71384 | GC44: 116582.8779 | GD44: 83996.81207 | GE44: 17417.31893 | GF44: 15983.87948 | GG44: 245007.2991 | GH44: 234854.7598 | GI44: 87241.60141 | GJ44: 2279500.732 | GK44: 3428.298036 | GL44: 62792.08109 | GM44: 217088.471 | GN44: 80871.80889 | GO44: 165157.3655 | GP44: 89709.64063 | GQ44: 196.5748011 | GR44: 62218.02983 | GS44: 353213.3531 | GT44: 71838.78966 | GU44: 74985.86614 | GV44: 86450.19723 | GW44: 158095.612 | GX44: 171991.7946 | GY44: 1840.313107 | GZ44: 147205.9535 | HA44: 3659041.129 | HB44: 1447916.569 | HC44: 1068085.812 | HD44: 3843751.478 | HE44: 2548807.805 | HF44: 685853.1105 | HG44: 364561.5355 | HH44: 233290.603 | HI44: 134712.3363 | HJ44: 143620.5839 | HK44: 405319.0954 | HL44: 26455.28333 | HM44: 1204194.952 | HN44: 371481.1725 | HO44: 79315.36519 | HP44: 46076.52159 | HQ44: 72515.19284 | HR44: 73575.8669 | HS44: 109947.1177 | HT44: 107703.6482 | HU44: 63330.18929 | HV44: 101185.7767 | HW44: 270448.766 | HX44: 648507.6981 | HY44: 78854.22625 | HZ44: 145689.9445 | IA44: 62962.54573 | IB44: 72426.37996 | IC44: 1.120375401e-06 | ID44: 4431.920601 | IE44: 964034.8408 | IF44: 427414.6977 | IG44: 13160.39318 | IH44: 366671.6242 | II44: 153563660
A45: =+MATCH(B45,RUT[EMPRESA],0) -> 77 | B45: DONGO | C45: 48566268.39 | D45: 48566268.39 | F45: =IFERROR(INDEX($B$9:$B$511,MATCH(0,INDEX(COUNTIF($F$8:F44,$B$9:$B$511),0,0),0)),"") -> DONGO | H45: 48566268.39 | J45: SAFIRA_ENERGIA_CHILE | K45: 3149822.106 | L45: 1429443.735 | M45: 130167.7978 | N45: 3928666.318 | O45: 583750.5684 | P45: 133251.5734 | Q45: 9533.308312 | R45: 1633.641267 | S45: 7094.186875 | T45: 117592.7384 | U45: 66824.39187 | V45: 11104.71333 | W45: 620040.4517 | X45: 14310.75343 | Y45: 7356.395405 | Z45: 9964.706603 | AA45: 39830.28889 | AB45: 27108.4335 | AC45: 170956.034 | AD45: 26945.72319 | AE45: 25714.57585 | AF45: 5764.477048 | AG45: 12221.70435 | AH45: 10.30515646 | AI45: 5909.141145 | AJ45: 20034.54587 | AK45: 52438.91735 | AL45: 12877.99072 | AM45: 44826.27844 | AN45: 60539.38139 | AO45: 111805.3737 | AP45: 723.127362 | AQ45: 7268.258105 | AR45: 435188.8745 | AS45: 19330.85925 | AT45: 53.21628834 | AU45: 19539.64661 | AV45: 362.9456222 | AW45: 261026.8323 | AX45: 2464.108044 | AY45: 16454.74396 | AZ45: 28036.5144 | BA45: 5011.585246 | BB45: 13764.10011 | BC45: 26029.39076 | BD45: 419.508271 | BE45: 23384.18498 | BF45: 7459.758813 | BG45: 732.9746215 | BH45: 30132.75382 | BI45: 191.3580224 | BJ45: 1601.878221 | BK45: 99074.32411 | BL45: 33970.34031 | BM45: 3454.678094 | BN45: 628580.071 | BO45: 8850.015116 | BP45: 246889.6263 | BQ45: 122412.3539 | BR45: 34097.06828 | BS45: 243.9815199 | BT45: 26119.50996 | BU45: 3450.093862 | BV45: 186288.3875 | BW45: 78537.47651 | BX45: 7045.527004 | BY45: 6911.768129 | BZ45: 1906.903179 | CA45: 2021963.423 | CB45: 239850.6067 | CC45: 11925.60788 | CD45: 1662.793966 | CE45: 100616.9281 | CF45: 20654.03745 | CG45: 158.7305468 | CH45: 14049.64877 | CI45: 1364.738953 | CJ45: 1239.41896 | CK45: 6484.637581 | CL45: 214223.1642 | CM45: 3007.562054 | CN45: 3186.815905 | CO45: 12407.92597 | CP45: 14606.36956 | CQ45: 2066.292213 | CR45: 1874.965899 | CS45: 1750.096576 | CT45: 144123.934 | CU45: 10149.85711 | CV45: 63879.01833 | CW45: 73570.24427 | CX45: 114775.5657 | CY45: 4439.744662 | CZ45: 7084.561375 | DA45: 7370.156239 | DB45: 7937.073914 | DC45: 2589.597003 | DD45: 39165.42439 | DE45: 937.727161 | DF45: 3330.646714 | DG45: 17928.33129 | DH45: 1730.722997 | DI45: 11835.63636 | DJ45: 89627.00994 | DK45: 598.8549552 | DL45: 2320.448832 | DM45: 13991.23144 | DN45: 21387.65471 | DO45: 5641.701689 | DP45: 21364.62845 | DQ45: 9812.015696 | DR45: 7904.072297 | DS45: 153597.7831 | DT45: 9.817970609 | DU45: 3502.231925 | DV45: 10237.94729 | DW45: 38696.70923 | DX45: 65371.72593 | DY45: 4239.041834 | DZ45: 11839.0709 | EA45: 10647.95402 | EB45: 256284.3868 | EC45: 153.2729594 | ED45: 9107.99287 | EE45: 40441.78026 | EF45: 10704.8427 | EG45: 81967.61201 | EH45: 3330.723148 | EI45: 11919.2559 | EJ45: 9034.320674 | EK45: 20820.39027 | EL45: 47918.55097 | EM45: 2102.50217 | EN45: 11559.50796 | EO45: 9518.546144 | EP45: 13807.71798 | EQ45: 12748.58477 | ER45: 10914.69383 | ES45: 20887.27473 | ET45: 11755.82464 | EU45: 32199.91846 | EV45: 10884.541 | EW45: 10151.45748 | EX45: 10684.95562 | EY45: 4622.416068 | EZ45: 11317.65873 | FA45: 11662.98792 | FB45: 9472.58801 | FC45: 109430.895 | FD45: 12530.65144 | FE45: 10688.98265 | FF45: 11596.45452 | FG45: 77498.81861 | FH45: 11485.83098 | FI45: 11368.44857 | FJ45: 11658.79734 | FK45: 11338.47676 | FL45: 9467.865921 | FM45: 26319.74537 | FN45: 12128.15987 | FO45: 11894.50999 | FP45: 13542.05103 | FQ45: 3870.031154 | FR45: 27780.9149 | FS45: 36582.40571 | FT45: 12854.04046 | FU45: 12588.02585 | FV45: 14645.04463 | FW45: 0.002295647237 | FX45: 65.11377113 | FY45: 6062.635177 | FZ45: 9108.553998 | GA45: 10882.24984 | GB45: 1585.383696 | GC45: 16319.37701 | GD45: 11757.94995 | GE45: 2438.092104 | GF45: 2237.437948 | GG45: 34296.34397 | GH45: 32875.18231 | GI45: 12212.1585 | GJ45: 319086.5801 | GK45: 479.8962688 | GL45: 8789.69247 | GM45: 30388.2411 | GN45: 11320.50917 | GO45: 23118.87784 | GP45: 12557.63687 | GQ45: 27.51671897 | GR45: 8709.336253 | GS45: 49443.12556 | GT45: 10056.05894 | GU45: 10496.58956 | GV45: 12101.37703 | GW45: 22130.36717 | GX45: 24075.56743 | GY45: 257.6086981 | GZ45: 20606.0229 | HA45: 512195.8963 | HB45: 202680.6748 | HC45: 149511.6208 | HD45: 538051.8185 | HE45: 356784.4286 | HF45: 96006.34054 | HG45: 51031.65444 | HH45: 32656.23022 | HI45: 18857.15504 | HJ45: 20104.13961 | HK45: 56736.93463 | HL45: 3703.234559 | HM45: 168564.3018 | HN45: 52000.27149 | HO45: 11102.63677 | HP45: 6449.833288 | HQ45: 10150.74247 | HR45: 10299.21659 | HS45: 15390.49727 | HT45: 15076.45437 | HU45: 8865.017343 | HV45: 14164.07681 | HW45: 37857.66358 | HX45: 90778.69585 | HY45: 11038.08612 | HZ45: 20393.81058 | IA45: 8813.554264 | IB45: 10138.31036 | IC45: 1.568311649e-07 | ID45: 620.3842659 | IE45: 134946.4715 | IF45: 59829.8971 | IG45: 1842.203774 | IH45: 51327.02656 | II45: 21495980.43
A46: =+MATCH(B46,RUT[EMPRESA],0) -> 178 | B46: INACAL | C46: -815413.6343 | D46: -815413.6343 | F46: =IFERROR(INDEX($B$9:$B$511,MATCH(0,INDEX(COUNTIF($F$8:F45,$B$9:$B$511),0,0),0)),"") -> INACAL | G46: -815413.6343 | J46: ENERKEY | K46: 51940.75407 | L46: 23571.6123 | M46: 2146.474735 | N46: 64783.94151 | O46: 9626.08163 | P46: 2197.32638 | Q46: 157.2048217 | R46: 26.93884176 | S46: 116.983564 | T46: 1939.111258 | U46: 1101.938201 | V46: 183.117384 | W46: 10224.50397 | X46: 235.9851761 | Y46: 121.3073982 | Z46: 164.3186052 | AA46: 656.8038354 | AB46: 447.0196826 | AC46: 2819.075179 | AD46: 444.3365797 | AE46: 424.0348868 | AF46: 95.05656975 | AG46: 201.5366325 | AH46: 0.1699326436 | AI46: 97.44208932 | AJ46: 330.3708544 | AK46: 864.7208693 | AL46: 212.3588338 | AM46: 739.1880005 | AN46: 998.2980037 | AO46: 1843.677269 | AP46: 11.92441325 | AQ46: 119.8540089 | AR46: 7176.290453 | AS46: 318.76702 | AT46: 0.8775397633 | AU46: 322.209936 | AV46: 5.984994921 | AW46: 4304.348006 | AX46: 40.63328837 | AY46: 271.3397077 | AZ46: 462.3237918 | BA46: 82.6413391 | BB46: 226.9708304 | BC46: 429.2262035 | BD46: 6.917716366 | BE46: 385.6066027 | BF46: 123.011867 | BG46: 12.08679515 | BH46: 496.8909047 | BI46: 3.155505184 | BJ46: 26.41506724 | BK46: 1633.741504 | BL46: 560.1729343 | BM46: 56.96784747 | BN46: 10365.3228 | BO46: 145.9372762 | BP46: 4071.224637 | BQ46: 2018.587004 | BR46: 562.2626862 | BS46: 4.02326979 | BT46: 430.7122744 | BU46: 56.89225321 | BV46: 3071.906601 | BW46: 1295.087664 | BX46: 116.1811598 | BY46: 113.975468 | BZ46: 31.44494697 | CA46: 33342.29724 | CB46: 3955.150785 | CC46: 196.653984 | CD46: 27.4195715 | CE46: 1659.179135 | CF46: 340.5863073 | CG46: 2.617476167 | CH46: 231.6795448 | CI46: 22.50462659 | CJ46: 20.43809244 | CK46: 106.9320598 | CL46: 3532.552733 | CM46: 49.59487734 | CN46: 52.55078402 | CO46: 204.6074381 | CP46: 240.8599038 | CQ46: 34.07328162 | CR46: 30.9182993 | CS46: 28.85919673 | CT46: 2376.612253 | CU46: 167.371748 | CV46: 1053.368816 | CW46: 1213.177708 | CX46: 1892.655912 | CY46: 73.21165383 | CZ46: 116.8248389 | DA46: 121.5343152 | DB46: 130.8828214 | DC46: 42.70260877 | DD46: 645.8401801 | DE46: 15.46317672 | DF46: 54.92256263 | DG46: 295.6392505 | DH46: 28.53972527 | DI46: 195.1703483 | DJ46: 1477.95473 | DK46: 9.875153867 | DL46: 38.2643394 | DM46: 230.7162394 | DN46: 352.6836996 | DO46: 93.03199676 | DP46: 352.3039953 | DQ46: 161.800723 | DR46: 130.3386228 | DS46: 2532.83659 | DT46: 0.1618989199 | DU46: 57.75201297 | DV46: 168.8243604 | DW46: 638.1110392 | DX46: 1077.983653 | DY46: 69.90205224 | DZ46: 195.2269841 | EA46: 175.5853958 | EB46: 4226.144798 | EC46: 2.527480227 | ED46: 150.1913447 | EE46: 666.8873644 | EF46: 176.5234934 | EG46: 1351.650803 | EH46: 54.92382303 | EI46: 196.5492395 | EJ46: 148.9764858 | EK46: 343.3294752 | EL46: 790.1797586 | EM46: 34.67038596 | EN46: 190.6169746 | EO46: 156.9613927 | EP46: 227.6900917 | EQ46: 210.224922 | ER46: 179.9839511 | ES46: 344.432404 | ET46: 193.8542482 | EU46: 530.9785726 | EV46: 179.4867291 | EW46: 167.3981382 | EX46: 176.1955544 | EY46: 76.22391619 | EZ46: 186.6288663 | FA46: 192.3233652 | FB46: 156.2035403 | FC46: 1804.521974 | FD46: 206.6311884 | FE46: 176.2619604 | FF46: 191.2262254 | FG46: 1277.960133 | FH46: 189.4020367 | FI46: 187.4663939 | FJ46: 192.2542623 | FK46: 186.972157 | FL46: 156.1256728 | FM46: 434.0141682 | FN46: 199.9940785 | FO46: 196.141178 | FP46: 223.3092278 | FQ46: 63.81704415 | FR46: 458.1089408 | FS46: 603.2460484 | FT46: 211.9638926 | FU46: 207.5772958 | FV46: 241.497658 | FW46: 3.785535963e-05 | FX46: 1.073729963 | FY46: 99.97321505 | FZ46: 150.2005978 | GA46: 179.4489478 | GB46: 26.14307155 | GC46: 269.1074985 | GD46: 193.8892947 | GE46: 40.20428396 | GF46: 36.89548498 | GG46: 565.5487542 | GH46: 542.1137137 | GI46: 201.3792208 | GJ46: 5261.756705 | GK46: 7.913518047 | GL46: 144.9425522 | GM46: 501.103905 | GN46: 186.6758702 | GO46: 381.2316721 | GP46: 207.0761797 | GQ46: 0.4537523342 | GR46: 143.6174734 | GS46: 815.3200845 | GT46: 165.8250107 | GU46: 173.0893869 | GV46: 199.5524277 | GW46: 364.9310724 | GX46: 397.0075403 | GY46: 4.247982769 | GZ46: 339.7945445 | HA46: 8446.140827 | HB46: 3342.216395 | HC46: 2465.455529 | HD46: 8872.506523 | HE46: 5883.396471 | HF46: 1583.150272 | HG46: 841.5150202 | HH46: 538.5031808 | HI46: 310.9556094 | HJ46: 331.5184592 | HK46: 935.5954303 | HL46: 61.06655837 | HM46: 2779.635373 | HN46: 857.4875731 | HO46: 183.0831413 | HP46: 106.3581349 | HQ46: 167.3863478 | HR46: 169.8346948 | HS46: 253.7902163 | HT46: 248.6116302 | HU46: 146.1846638 | HV46: 233.5664699 | HW46: 624.2751266 | HX46: 1496.9461 | HY46: 182.0186973 | HZ46: 336.2951508 | IA46: 145.3360346 | IB46: 167.1813415 | IC46: 2.586155248e-09 | ID46: 10.23017348 | IE46: 2225.27535 | IF46: 986.5985655 | IG46: 30.37804993 | IH46: 846.3857241 | II46: 354469.9971
A47: =+MATCH(B47,RUT[EMPRESA],0) -> 166 | B47: HIDROLIRCAY | C47: 127118555.6 | D47: 127118555.6 | F47: =IFERROR(INDEX($B$9:$B$511,MATCH(0,INDEX(COUNTIF($F$8:F46,$B$9:$B$511),0,0),0)),"") -> HIDROLIRCAY | H47: 127118555.6 | J47: EL_PELICANO | K47: 32071630.44 | L47: 14554660.44 | M47: 1325374.375 | N47: 40001857.26 | O47: 5943774.558 | P47: 1356773.518 | Q47: 97068.57427 | R47: 16633.8089 | S47: 72233.33002 | T47: 1197334.554 | U47: 680408.9654 | V47: 113068.6909 | W47: 6313279.783 | X47: 145712.7354 | Y47: 74903.14908 | Z47: 101461.0911 | AA47: 405553.794 | AB47: 276019.2899 | AC47: 1740682.032 | AD47: 274362.5661 | AE47: 261826.9685 | AF47: 58694.16473 | AG47: 124441.9437 | AH47: 104.9275669 | AI47: 60167.14107 | AJ47: 203992.6477 | AK47: 533935.4164 | AL47: 131124.2811 | AM47: 456423.1844 | AN47: 616414.7058 | AO47: 1138407.346 | AP47: 7362.915343 | AQ47: 74005.73112 | AR47: 4431112.706 | AS47: 196827.6788 | AT47: 541.8506428 | AU47: 198953.5611 | AV47: 3695.528659 | AW47: 2657786.953 | AX47: 25089.659 | AY47: 167542.9436 | AZ47: 285469.0514 | BA47: 51028.18651 | BB47: 140146.6868 | BC47: 265032.4281 | BD47: 4271.452094 | BE47: 238098.8239 | BF47: 75955.59995 | BG47: 7463.180582 | BH47: 306813.0555 | BI47: 1948.415996 | BJ47: 16310.39614 | BK47: 1008779.227 | BL47: 345887.5338 | BM47: 35175.68783 | BN47: 6400230.571 | BO47: 90111.2522 | BP47: 2513841.285 | BQ47: 1246408.096 | BR47: 347177.8837 | BS47: 2484.230815 | BT47: 265950.0259 | BU47: 35129.01097 | BV47: 1896796.745 | BW47: 799672.1203 | BX47: 71737.87303 | BY47: 70375.93414 | BZ47: 19416.17399 | CA47: 20587722.57 | CB47: 2442169.671 | CC47: 121427.0761 | CD47: 16930.64299 | CE47: 1024486.09 | CF47: 210300.3388 | CG47: 1616.201571 | CH47: 143054.1561 | CI47: 13895.83344 | CJ47: 12619.81962 | CK47: 66026.87168 | CL47: 2181229.899 | CM47: 30623.13218 | CN47: 32448.30296 | CO47: 126338.0606 | CP47: 148722.7122 | CQ47: 21039.0803 | CR47: 19090.98716 | CS47: 17819.56209 | CT47: 1467476.382 | CU47: 103346.3018 | CV47: 650419.0394 | CW47: 749095.5381 | CX47: 1168649.975 | CY47: 45205.67996 | CZ47: 72135.32275 | DA47: 75043.26251 | DB47: 80815.64379 | DC47: 26367.39323 | DD47: 398784.1137 | DE47: 9547.980154 | DF47: 33912.79473 | DG47: 182547.076 | DH47: 17622.29944 | DI47: 120510.9821 | DJ47: 912586.2488 | DK47: 6097.568104 | DL47: 23626.91443 | DM47: 142459.3481 | DN47: 217770.0628 | DO47: 57444.06049 | DP47: 217535.6084 | DQ47: 99906.38539 | DR47: 80479.61984 | DS47: 1563939.54 | DT47: 99.96701858 | DU47: 35659.88308 | DV47: 104243.2401 | DW47: 394011.6349 | DX47: 665617.8554 | DY47: 43162.11472 | DZ47: 120545.9527 | EA47: 108417.947 | EB47: 2609499.16 | EC47: 1560.63217 | ED47: 92737.99329 | EE47: 411780.0266 | EF47: 108997.1901 | EG47: 834597.9144 | EH47: 33913.57299 | EI47: 121362.4 | EJ47: 91987.85968 | EK47: 211994.1507 | EL47: 487908.8424 | EM47: 21407.77171 | EN47: 117699.4303 | EO47: 96918.26521 | EP47: 140590.8059 | EQ47: 129806.6639 | ER47: 111133.9037 | ES47: 212675.1713 | ET47: 119698.3355 | EU47: 327861.0189 | EV47: 110826.8863 | EW47: 103362.5969 | EX47: 108794.699 | EY47: 47065.64843 | EZ47: 115236.9105 | FA47: 118753.0679 | FB47: 96450.31742 | FC47: 1114230.297 | FD47: 127587.6569 | FE47: 108835.7024 | FF47: 118075.6218 | FG47: 789096.4588 | FH47: 116949.2479 | FI47: 115754.055 | FJ47: 118710.3992 | FK47: 115448.8807 | FL47: 96402.23689 | FM47: 267988.8318 | FN47: 123489.4697 | FO47: 121110.436 | FP47: 137885.773 | FQ47: 39404.83137 | FR47: 282866.5257 | FS47: 372483.7013 | FT47: 130880.4185 | FU47: 128171.8457 | FV47: 149116.5035 | FW47: 0.02337438348 | FX47: 662.991348 | FY47: 61730.02421 | FZ47: 92743.70672 | GA47: 110803.5576 | GB47: 16142.44814 | GC47: 166164.6311 | GD47: 119719.9755 | GE47: 24824.76352 | GF47: 22781.69388 | GG47: 349206.9178 | GH47: 334736.5857 | GI47: 124344.7475 | GJ47: 3248953.919 | GK47: 4886.325406 | GL47: 89497.0443 | GM47: 309414.4384 | GN47: 115265.9338 | GO47: 235397.4546 | GP47: 127862.4238 | GQ47: 280.1764709 | GR47: 88678.85368 | GS47: 503432.1296 | GT47: 102391.2447 | GU47: 106876.7473 | GV47: 123216.7655 | GW47: 225332.3945 | GX47: 245138.511 | GY47: 2622.983357 | GZ47: 209811.4525 | HA47: 5215201.667 | HB47: 2063703.752 | HC47: 1522334.051 | HD47: 5478467.83 | HE47: 3632795.109 | HF47: 977540.88 | HG47: 519606.6021 | HH47: 332507.2058 | HI47: 192004.4012 | HJ47: 204701.2543 | HK47: 577698.0218 | HL47: 37706.50094 | HM47: 1716329.307 | HN47: 529469.1045 | HO47: 113047.5472 | HP47: 65672.4928 | HQ47: 103355.3167 | HR47: 104867.0868 | HS47: 156706.7358 | HT47: 153509.1369 | HU47: 90264.00555 | HV47: 144219.2675 | HW47: 385468.4344 | HX47: 924312.7665 | HY47: 112390.2896 | HZ47: 207650.6971 | IA47: 89740.00616 | IB47: 103228.7324 | IC47: 1.596861979e-06 | ID47: 6316.780514 | IE47: 1374031.046 | IF47: 609190.7048 | IG47: 18757.40174 | IH47: 522614.0944 | II47: 218873040.1
A48: =+MATCH(B48,RUT[EMPRESA],0) -> 200 | B48: LOS MORROS | C48: 31217875.25 | D48: 31217875.25 | F48: =IFERROR(INDEX($B$9:$B$511,MATCH(0,INDEX(COUNTIF($F$8:F47,$B$9:$B$511),0,0),0)),"") -> LOS MORROS | H48: 31217875.25 | J48: ERSA | K48: 115812563.4 | L48: 52557743.77 | M48: 4786005.629 | N48: 144449083.7 | O48: 21463323.14 | P48: 4899389.8 | Q48: 350520.3901 | R48: 60065.67242 | S48: 260838.8473 | T48: 4323646.229 | U48: 2456997.208 | V48: 408297.762 | W48: 22797628.47 | X48: 526177.3467 | Y48: 270479.7225 | Z48: 366382.0293 | AA48: 1464478.851 | AB48: 996722.0586 | AC48: 6285706.258 | AD48: 990739.5306 | AE48: 945472.7426 | AF48: 211948.1168 | AG48: 449367.2539 | AH48: 378.8996794 | AI48: 217267.1219 | AJ48: 736629.5734 | AK48: 1928072.518 | AL48: 473497.5713 | AM48: 1648171.242 | AN48: 2225910.134 | AO48: 4110856.579 | AP48: 26587.92485 | AQ48: 267239.0929 | AR48: 16001011.3 | AS48: 710756.445 | AT48: 1956.654871 | AU48: 718433.1322 | AV48: 13344.7736 | AW48: 9597426.63 | AX48: 90600.24963 | AY48: 605007.5256 | AZ48: 1030845.709 | BA48: 184265.8139 | BB48: 506078.0142 | BC48: 957047.8478 | BD48: 15424.46735 | BE48: 859789.0023 | BF48: 274280.1852 | BG48: 26949.98859 | BH48: 1107920.176 | BI48: 7035.845949 | BJ48: 58897.80971 | BK48: 3642761.736 | BL48: 1249020.439 | BM48: 127021.4991 | BN48: 23111612.93 | BO48: 325397.0866 | BP48: 9077630.269 | BQ48: 4500853.705 | BR48: 1253679.97 | BS48: 8970.705102 | BT48: 960361.3478 | BU48: 126852.9462 | BV48: 6849445.765 | BW48: 2887663.548 | BX48: 259049.7226 | BY48: 254131.6804 | BZ48: 70112.9581 | CA48: 74343489.64 | CB48: 8818819.811 | CC48: 438480.3877 | CD48: 61137.55796 | CE48: 3699480.151 | CF48: 759407.0207 | CG48: 5836.199916 | CH48: 516577.0588 | CI48: 50178.68031 | CJ48: 45570.91861 | CK48: 238426.9573 | CL48: 7876550.787 | CM48: 110581.9501 | CN48: 117172.7503 | CO48: 456214.2447 | CP48: 537046.5519 | CQ48: 75973.36923 | CR48: 68938.68913 | CS48: 64347.49766 | CT48: 5299144.422 | CU48: 373189.6374 | CV48: 2348701.803 | CW48: 2705028.504 | CX48: 4220064.507 | CY48: 163240.3967 | CZ48: 260484.9372 | DA48: 270985.6804 | DB48: 291830.0923 | DC48: 95214.22385 | DD48: 1440033.133 | DE48: 34478.32373 | DF48: 122461.1171 | DG48: 659188.3396 | DH48: 63635.17051 | DI48: 435172.3178 | DJ48: 3295403.176 | DK48: 22018.68078 | DL48: 85318.19208 | DM48: 514429.1719 | DN48: 786380.638 | DO48: 207433.9161 | DP48: 785534.0092 | DQ48: 360767.8947 | DR48: 290616.6898 | DS48: 5647478.619 | DT48: 360.9868447 | DU48: 128769.9569 | DV48: 376428.5347 | DW48: 1422799.428 | DX48: 2403585.631 | DY48: 155860.9612 | DZ48: 435298.5988 | EA48: 391503.6495 | EB48: 9423056.539 | EC48: 5635.535509 | ED48: 334882.4048 | EE48: 1486962.147 | EF48: 393595.3307 | EG48: 3013782.666 | EH48: 122463.9274 | EI48: 438246.8386 | EJ48: 332173.6278 | EK48: 765523.4761 | EL48: 1761867.824 | EM48: 77304.73583 | EN48: 425019.6372 | EO48: 349977.6151 | EP48: 507681.7549 | EQ48: 468739.5772 | ER48: 401311.1306 | ES48: 767982.6821 | ET48: 432237.8028 | EU48: 1183925.623 | EV48: 400202.4723 | EW48: 373248.4797 | EX48: 392864.1233 | EY48: 169956.8534 | EZ48: 416127.3319 | FA48: 428824.3851 | FB48: 348287.8279 | FC48: 4023551.818 | FD48: 460726.6111 | FE48: 393012.1891 | FF48: 426378.0869 | FG48: 2849474.205 | FH48: 422310.6841 | FI48: 417994.7714 | FJ48: 428670.306 | FK48: 416892.7688 | FL48: 348114.2062 | FM48: 967723.5971 | FN48: 445927.8134 | FO48: 437336.9817 | FP48: 497913.7204 | FQ48: 142293.1878 | FR48: 1021447.834 | FS48: 1345060.781 | FT48: 472616.9688 | FU48: 462836.1517 | FV48: 538468.5556 | FW48: 0.08440628779 | FX48: 2394.101156 | FY48: 222910.7858 | FZ48: 334903.0364 | GA48: 400118.2312 | GB48: 58291.33952 | GC48: 600030.3575 | GD48: 432315.946 | GE48: 89643.69631 | GF48: 82266.05042 | GG48: 1261006.932 | GH48: 1208753.703 | GI48: 449016.2724 | GJ48: 11732165.67 | GK48: 17644.81142 | GL48: 323179.1454 | GM48: 1117313.924 | GN48: 416232.1368 | GO48: 850034.1973 | GP48: 461718.8105 | GQ48: 1011.733886 | GR48: 320224.6105 | GS48: 1817923.337 | GT48: 369740.8693 | GU48: 385938.2858 | GV48: 444943.0625 | GW48: 813688.6672 | GX48: 885209.7309 | GY48: 9471.748776 | GZ48: 757641.6232 | HA48: 18832403.14 | HB48: 7452156.886 | HC48: 5497238.726 | HD48: 19783072.9 | HE48: 13118239.02 | HF48: 3529958.209 | HG48: 1876330.318 | HH48: 1200703.28 | HI48: 693339.3029 | HJ48: 739188.3937 | HK48: 2086101.887 | HL48: 136160.4156 | HM48: 6197767.121 | HN48: 1911944.401 | HO48: 408221.4109 | HP48: 237147.2742 | HQ48: 373222.1905 | HR48: 378681.2823 | HS48: 565877.3355 | HT48: 554330.6158 | HU48: 325948.688 | HV48: 520784.3453 | HW48: 1391949.423 | HX48: 3337748.328 | HY48: 405848.0147 | HZ48: 749839.0072 | IA48: 324056.4951 | IB48: 372765.0871 | IC48: 5.766363502e-06 | ID48: 22810.26982 | IE48: 4961707.759 | IF48: 2199823.837 | IG48: 67734.09235 | IH48: 1887190.552 | II48: 790363554.5
A49: =+MATCH(B49,RUT[EMPRESA],0) -> 75 | B49: DIUTO | C49: 108664557.9 | D49: 108664557.9 | F49: =IFERROR(INDEX($B$9:$B$511,MATCH(0,INDEX(COUNTIF($F$8:F48,$B$9:$B$511),0,0),0)),"") -> DIUTO | H49: 108664557.9 | J49: ENGIE | K49: =$II49*K$64/$II$64 -> 2225716302 | L49: 1010068543 | M49: 91978714.9 | N49: 2776060481 | O49: 412487789 | P49: 94157761.71 | Q49: 6736393.044 | R49: 1154357.89 | S49: 5012869.567 | T49: 83092970.35 | U49: =$II49*U$64/$II$64 -> 47219218.53 | V49: 7846773.772 | W49: 438130819.7 | X49: 10112214.63 | Y49: 5198150.443 | Z49: 7041226.198 | AA49: 28144739.71 | AB49: 19155266.66 | AC49: 120800356 | AD49: 19040292.86 | AE49: =$II49*AE$64/$II$64 -> 18170343.83 | AF49: 4073274.651 | AG49: 8636058.07 | AH49: 7281.793688 | AI49: 4175496.69 | AJ49: 14156740.87 | AK49: 37054204.74 | AL49: 9099800.854 | AM49: 31674988.4 | AN49: 42778126.36 | AO49: =$II49*AO$64/$II$64 -> 79003522.88 | AP49: 510973.7324 | AQ49: 5135871.172 | AR49: 307511643.5 | AS49: 13659504.29 | AT49: 37603.50791 | AU49: 13807036.88 | AV49: 256463.3687 | AW49: 184445869.1 | AX49: 1741179.425 | AY49: =$II49*AY$64/$II$64 -> 11627193.74 | AZ49: 19811063.94 | BA49: 3541268.873 | BB49: 9725940.376 | BC49: 18392797.24 | BD49: 296431.4701 | BE49: 16523651.17 | BF49: 5271188.734 | BG49: 517931.9686 | BH49: 21292301.33 | BI49: =$II49*BI$64/$II$64 -> 135216.7379 | BJ49: 1131913.597 | BK49: 70007553.08 | BL49: 24004003.29 | BM49: 2441132.576 | BN49: 444165055.7 | BO49: 6253566.79 | BP49: 174456285.9 | BQ49: 86498590.23 | BR49: 24093551.37 | BS49: =$II49*BS$64/$II$64 -> 172401.3699 | BT49: 18456476.96 | BU49: 2437893.282 | BV49: 131634450.1 | BW49: 55495877.52 | BX49: 4978485.699 | BY49: 4883969.47 | BZ49: 1347449.269 | CA49: 1428752736 | CB49: 169482398.5 | CC49: =$II49*CC$64/$II$64 -> 8426831.411 | CD49: 1174957.668 | CE49: 71097582.5 | CF49: 14594483.85 | CG49: 112161.6249 | CH49: 9927713.775 | CI49: 964347.0752 | CJ49: 875793.899 | CK49: 4582151.973 | CL49: 151373624.6 | CM49: =$II49*CM$64/$II$64 -> 2125193.001 | CN49: 2251856.731 | CO49: 8767645.34 | CP49: 10321101.88 | CQ49: 1460076.191 | CR49: 1324881.859 | CS49: 1236647.134 | CT49: 101840351.2 | CU49: 7172056.6 | CV49: 45137968.96 | CW49: =$II49*CW$64/$II$64 -> 51985949.21 | CX49: 81102309.58 | CY49: 3137196.876 | CZ49: 5006068.03 | DA49: 5207874.076 | DB49: 5608467.464 | DC49: 1829851.995 | DD49: 27674935.47 | DE49: 662613.4933 | DF49: 2353489.955 | DG49: =$II49*DG$64/$II$64 -> 12668454.88 | DH49: 1222957.443 | DI49: 8363256.054 | DJ49: 63331924.92 | DK49: 423160.7981 | DL49: 1639667.454 | DM49: 9886435.12 | DN49: 15112869.92 | DO49: 3986519.555 | DP49: 15096599.18 | DQ49: =$II49*DQ$64/$II$64 -> 6933332.282 | DR49: 5585147.977 | DS49: 108534729.4 | DT49: 6937.540122 | DU49: 2474734.898 | DV49: 7234302.58 | DW49: 27343733.6 | DX49: 46192740.79 | DY49: 2995376.944 | DZ49: 8365682.955 | EA49: =$II49*EA$64/$II$64 -> 7524020.103 | EB49: 181094778.8 | EC49: 108305.2036 | ED49: 6435858.13 | EE49: 28576829.6 | EF49: 7564218.581 | EG49: 57919667.89 | EH49: 2353543.965 | EI49: 8422343.002 | EJ49: 6383800.14 | EK49: =$II49*EK$64/$II$64 -> 14712031.5 | EL49: 33860039.22 | EM49: 1485662.744 | EN49: 8168139.168 | EO49: 6725961.852 | EP49: 9756761.485 | EQ49: 9008360.473 | ER49: 7712502.854 | ES49: 14759293.16 | ET49: 8306859.772 | EU49: =$II49*EU$64/$II$64 -> 22752993.99 | EV49: 7691196.366 | EW49: 7173187.447 | EX49: 7550166.045 | EY49: 3266275.508 | EZ49: 7997244.506 | FA49: 8241259.813 | FB49: 6693487.076 | FC49: 77325677.04 | FD49: 8854365.183 | FE49: =$II49*FE$64/$II$64 -> 7553011.613 | FF49: 8194246.212 | FG49: 54761944.69 | FH49: 8116077.794 | FI49: 8033133.449 | FJ49: 8238298.681 | FK49: 8011954.875 | FL49: 6690150.369 | FM49: 18597966.6 | FN49: 8569957.997 | FO49: =$II49*FO$64/$II$64 -> 8404857.133 | FP49: 9569036.83 | FQ49: 2734627.906 | FR49: 19630453.12 | FS49: 25849731.83 | FT49: 9082877.205 | FU49: 8894906.89 | FV49: 10348430.32 | FW49: 1.622142238 | FX49: 46010.46567 | FY49: =$II49*FY$64/$II$64 -> 4283958.107 | FZ49: 6436254.632 | GA49: 7689577.399 | GB49: 1120258.294 | GC49: 11531541.22 | GD49: 8308361.55 | GE49: 1722796.132 | GF49: 1581010.593 | GG49: 24234362.87 | GH49: 23230146.57 | GI49: =$II49*GI$64/$II$64 -> 8629312.814 | GJ49: 225471845.5 | GK49: 339102.6264 | GL49: 6210941.813 | GM49: 21472832.85 | GN49: 7999258.673 | GO49: 16336180.76 | GP49: 8873433.533 | GQ49: 19443.76791 | GR49: 6154160.783 | GS49: =$II49*GS$64/$II$64 -> 34937328.8 | GT49: 7105777.269 | GU49: 7417063.478 | GV49: 8551032.795 | GW49: 15637682.81 | GX49: 17012193.42 | GY49: 182030.559 | GZ49: 14560555.97 | HA49: 361926076.4 | HB49: 143217511 | HC49: =$II49*HC$64/$II$64 -> 105647379.6 | HD49: 380196297.9 | HE49: 252109767.6 | HF49: 67839665.24 | HG49: 36059809.53 | HH49: 23075431.41 | HI49: 13324777.07 | HJ49: 14205916.96 | HK49: 40091254.71 | HL49: 2616766.678 | HM49: =$II49*HM$64/$II$64 -> 119110318.5 | HN49: 36744250.33 | HO49: 7845306.437 | HP49: 4557558.684 | HQ49: 7172682.214 | HR49: 7277596.477 | HS49: 10875179.46 | HT49: 10653271.56 | HU49: 6264167.612 | HV49: 10008570.51 | HW49: =$II49*HW$64/$II$64 -> 26750850.1 | HX49: 64145725.19 | HY49: 7799693.884 | HZ49: 14410603.25 | IA49: 6227802.95 | IB49: 7163897.481 | IC49: 0.0001108194903 | ID49: 438373.7645 | IE49: 95355404.65 | IF49: 42276793.05 | IG49: 1301731.601 | IH49: 36268524.35 | II49: 1.518941466e+10
A50: =+MATCH(B50,RUT[EMPRESA],0) -> 195 | B50: LICAN | C50: 146755103.1 | D50: 146755103.1 | F50: =IFERROR(INDEX($B$9:$B$511,MATCH(0,INDEX(COUNTIF($F$8:F49,$B$9:$B$511),0,0),0)),"") -> LICAN | H50: 146755103.1 | J50: GEOTERMICA_DEL_NORTE | K50: 40890811.19 | L50: 18556957.16 | M50: 1689830.937 | N50: 51001722.4 | O50: 7578216.634 | P50: 1729864.338 | Q50: 123760.8656 | R50: 21207.83789 | S50: 92096.32999 | T50: 1526582.233 | U50: 867510.4496 | V50: 144160.756 | W50: 8049329.832 | X50: 185781.386 | Y50: 95500.30619 | Z50: 129361.2536 | AA50: 517074.5421 | AB50: 351920.1399 | AC50: 2219341.497 | AD50: 349807.8438 | AE50: 333825.1592 | AF50: 74834.11275 | AG50: 158661.4699 | AH50: 133.7809543 | AI50: 76712.13382 | AJ50: 260087.3336 | AK50: 680759.0386 | AL50: 167181.3422 | AM50: 581932.1938 | AN50: 785918.8014 | AO50: 1451450.994 | AP50: 9387.598231 | AQ50: 94356.11278 | AR50: 5649597.185 | AS50: 250952.1139 | AT50: 690.8508245 | AU50: 253662.5795 | AV50: 4711.739398 | AW50: 3388635.471 | AX50: 31988.9103 | AY50: 213614.549 | AZ50: 363968.4332 | BA50: 65060.11425 | BB50: 178684.7638 | BC50: 337912.0685 | BD50: 5446.032483 | BE50: 303572.1577 | BF50: 96842.16408 | BG50: 9515.434793 | BH50: 391181.6941 | BI50: 2484.198949 | BJ50: 20795.49184 | BK50: 1286177.233 | BL50: 441001.0233 | BM50: 44848.43428 | BN50: 8160190.684 | BO50: 114890.3922 | BP50: 3205107.068 | BQ50: 1589150.207 | BR50: 442646.1986 | BS50: 3167.354196 | BT50: 339081.9908 | BU50: 44788.92204 | BV50: 2418385.237 | BW50: 1019569.047 | BX50: 91464.63032 | BY50: 89728.18022 | BZ50: 24755.30848 | CA50: 26249014.01 | CB50: 3113726.916 | CC50: 154817.5623 | CD50: 21586.29657 | CE50: 1306203.23 | CF50: 268129.5379 | CG50: 2060.630918 | CH50: 182391.7402 | CI50: 17716.96336 | CJ50: 16090.06635 | CK50: 84183.19577 | CL50: 2781032.918 | CM50: 39043.9993 | CN50: 41371.06259 | CO50: 161078.9883 | CP50: 189619.0578 | CQ50: 26824.48783 | CR50: 24340.70051 | CS50: 22719.65408 | CT50: 1871008.703 | CU50: 131764.8669 | CV50: 829273.778 | CW50: 955084.7212 | CX50: 1490009.857 | CY50: 57636.51236 | CZ50: 91971.3723 | DA50: 95678.94857 | DB50: 103038.6415 | DC50: 33618.00082 | DD50: 508443.3089 | DE50: 12173.5206 | DF50: 43238.26596 | DG50: 232744.5758 | DH50: 22468.14738 | DI50: 153649.5572 | DJ50: 1163532.739 | DK50: 7774.300923 | DL50: 30123.93458 | DM50: 181633.3697 | DN50: 277653.3154 | DO50: 73240.25002 | DP50: 277354.3899 | DQ50: 127379.029 | DR50: 102610.2164 | DS50: 1993997.673 | DT50: 127.4563353 | DU50: 45465.7754 | DV50: 132908.4487 | DW50: 502358.4754 | DX50: 848652.0231 | DY50: 55030.99967 | DZ50: 153694.1442 | EA50: 138231.1327 | EB50: 3327069.314 | EC50: 1989.78083 | ED50: 118239.4447 | EE50: 525012.8882 | EF50: 138969.6582 | EG50: 1064098.871 | EH50: 43239.25822 | EI50: 154735.1013 | EJ50: 117283.0365 | EK50: 270289.1207 | EL50: 622075.8997 | EM50: 27294.56343 | EN50: 150064.874 | EO50: 123569.224 | EP50: 179251.0085 | EQ50: 165501.4015 | ER50: 141693.9337 | ES50: 271157.411 | ET50: 152613.446 | EU50: 418017.5077 | EV50: 141302.4913 | EW50: 131785.6428 | EX50: 138711.4854 | EY50: 60007.94215 | EZ50: 146925.2011 | FA50: 151408.245 | FB50: 122972.5981 | FC50: 1420625.646 | FD50: 162672.2034 | FE50: 138763.7641 | FF50: 150544.5121 | FG50: 1006085.25 | FH50: 149108.4036 | FI50: 147584.5519 | FJ50: 151353.8431 | FK50: 147195.4596 | FL50: 122911.2962 | FM50: 341681.4354 | FN50: 157447.0808 | FO50: 154413.8513 | FP50: 175802.1352 | FQ50: 50240.52404 | FR50: 360650.2551 | FS50: 474910.7076 | FT50: 166870.4212 | FU50: 163417.0347 | FV50: 190121.1354 | FW50: 0.02980196169 | FX50: 845.3032685 | FY50: 78704.7846 | FZ50: 118246.7293 | GA50: 141272.7477 | GB50: 20581.36086 | GC50: 211857.2229 | GD50: 152641.0366 | GE50: 31651.17284 | GF50: 29046.29202 | GG50: 445233.1843 | GH50: 426783.7445 | GI50: 158537.5462 | GJ50: 4142363.811 | GK50: 6229.986032 | GL50: 114107.2871 | GM50: 394498.4153 | GN50: 146962.2053 | GO50: 300127.9555 | GP50: 163022.5267 | GQ50: 357.2204786 | GR50: 113064.1072 | GS50: 641867.8403 | GT50: 130547.1845 | GU50: 136266.1279 | GV50: 157099.3874 | GW50: 287295.1663 | GX50: 312547.6452 | GY50: 3344.261447 | GZ50: 267506.2157 | HA50: 6649297.956 | HB50: 2631188.977 | HC50: 1940951.346 | HD50: 6984958.066 | HE50: 4631755.133 | HF50: 1246348.845 | HG50: 662490.0317 | HH50: 423941.321 | HI50: 244802.5128 | HJ50: 260990.7955 | HK50: 736555.6542 | HL50: 48075.18014 | HM50: 2188292.166 | HN50: 675064.5631 | HO50: 144133.7982 | HP50: 83731.36842 | HQ50: 131776.3607 | HR50: 133703.8432 | HS50: 199798.5591 | HT50: 195721.672 | HU50: 115085.1503 | HV50: 183877.2385 | HW50: 491466.0327 | HX50: 1178483.86 | HY50: 143295.8054 | HZ50: 264751.2875 | IA50: 114417.0595 | IB50: 131614.9678 | IC50: 2.035973251e-06 | ID50: 8053.793208 | IE50: 1751867.408 | IF50: 776708.3168 | IG50: 23915.38449 | IH50: 666324.5358 | II50: 279059593.7
A51: =+MATCH(B51,RUT[EMPRESA],0) -> 111 | B51: ENERGIA PACIFICO | C51: 271030340.3 | D51: 271030340.3 | F51: =IFERROR(INDEX($B$9:$B$511,MATCH(0,INDEX(COUNTIF($F$8:F50,$B$9:$B$511),0,0),0)),"") -> ENERGIA PACIFICO | H51: 271030340.3 | J51: ATACAMA_GX_CHILE | K51: 45802011.76 | L51: 20785744.9 | M51: 1892788.482 | N51: 57127296.36 | O51: 8488400.139 | P51: 1937630.104 | Q51: 138625.1937 | R51: 23755.01029 | S51: 103157.5815 | T51: 1709932.754 | U51: 971702.9977 | V51: 161475.2178 | W51: 9016096.499 | X51: 208094.7034 | Y51: 106970.3931 | Z51: 144898.2176 | AA51: 579177.9025 | AB51: 394187.5917 | AC51: 2485896.034 | AD51: 391821.5978 | AE51: 373919.309 | AF51: 83822.0816 | AG51: 177717.5433 | AH51: 149.8487475 | AI51: 85925.66283 | AJ51: 291325.1844 | AK51: 762521.7642 | AL51: 187260.6969 | AM51: 651825.2979 | AN51: 880311.7653 | AO51: 1625777.859 | AP51: 10515.09794 | AQ51: 105688.7761 | AR51: 6328143.394 | AS51: 281092.777 | AT51: 773.8256265 | AU51: 284128.7837 | AV51: 5277.643975 | AW51: 3795628.337 | AX51: 35830.94595 | AY51: 239270.7751 | AZ51: 407682.9482 | BA51: 72874.17469 | BB51: 200145.7397 | BC51: 378497.0775 | BD51: 6100.129504 | BE51: 340032.7637 | BF51: 108473.4151 | BG51: 10658.28834 | BH51: 438164.6641 | BI51: 2782.564253 | BJ51: 23293.13931 | BK51: 1440653.855 | BL51: 493967.5557 | BM51: 50234.9661 | BN51: 9140272.32 | BO51: 128689.33 | BP51: 3590057.211 | BQ51: 1780015.469 | BR51: 495810.3252 | BS51: 3547.770022 | BT51: 379807.5136 | BU51: 50168.30613 | BV51: 2708845.969 | BW51: 1142024.629 | BX51: 102450.0114 | BY51: 100505.0046 | BZ51: 27728.55067 | CA51: 29401658.05 | CB51: 3487701.825 | CC51: 173411.9623 | CD51: 24178.92383 | CE51: 1463085.078 | CF51: 300333.2996 | CG51: 2308.123483 | CH51: 204297.9434 | CI51: 19844.86345 | CJ51: 18022.56758 | CK51: 94294.03845 | CL51: 3115049.535 | CM51: 43733.38809 | CN51: 46339.94386 | CO51: 180425.4184 | CP51: 212393.2997 | CQ51: 30046.2493 | CR51: 27264.14612 | CS51: 25448.40351 | CT51: 2095726.647 | CU51: 147590.5175 | CV51: 928873.9016 | CW51: 1069795.398 | CX51: 1668967.844 | CY51: 64558.95934 | CZ51: 103017.6158 | DA51: 107170.4914 | DB51: 115414.122 | DC51: 37655.69877 | DD51: 569510.013 | DE51: 13635.62418 | DF51: 48431.40814 | DG51: 260698.4182 | DH51: 25166.68955 | DI51: 172103.6737 | DJ51: 1303279.114 | DK51: 8708.035178 | DL51: 33741.97689 | DM51: 203448.4886 | DN51: 311000.9327 | DO51: 82036.78761 | DP51: 310666.1046 | DQ51: 142677.9174 | DR51: 114934.2408 | DS51: 2233487.236 | DT51: 142.7645087 | DU51: 50926.45313 | DV51: 148871.4494 | DW51: 562694.3591 | DX51: 950579.5754 | DY51: 61640.51093 | DZ51: 172153.6158 | EA51: 154833.4156 | EB51: 3726667.762 | EC51: 2228.763928 | ED51: 132440.6213 | EE51: 588069.6855 | EF51: 155660.642 | EG51: 1191902.718 | EH51: 48432.51958 | EI51: 173319.5973 | EJ51: 131369.3434 | EK51: 302752.2596 | EL51: 696790.473 | EM51: 30572.78344 | EN51: 168088.4513 | EO51: 138410.5349 | EP51: 200779.9934 | EQ51: 185378.9865 | ER51: 158712.1171 | ES51: 303724.8362 | ET51: 170943.12 | EU51: 468223.5995 | EV51: 158273.6605 | EW51: 147613.7887 | EX51: 155371.4612 | EY51: 67215.21026 | EZ51: 164571.6871 | FA51: 169593.1681 | FB51: 137742.2511 | FC51: 1591250.226 | FD51: 182209.9869 | FE51: 155430.0188 | FF51: 168625.6964 | FG51: 1126921.357 | FH51: 167017.1038 | FI51: 165310.2295 | FJ51: 169532.2323 | FK51: 164874.4052 | FL51: 137673.5865 | FM51: 382719.1652 | FN51: 176357.2997 | FO51: 172959.7635 | FP51: 196916.8923 | FQ51: 56274.67408 | FR51: 403966.2394 | FS51: 531949.9707 | FT51: 186912.4327 | FU51: 183044.2764 | FV51: 212955.6794 | FW51: 0.03338133337 | FX51: 946.8286179 | FY51: 88157.6414 | FZ51: 132448.7807 | GA51: 158240.3445 | GB51: 23053.29008 | GC51: 237302.3849 | GD51: 170974.0245 | GE51: 35452.64445 | GF51: 32534.9038 | GG51: 498708.0214 | GH51: 478042.7072 | GI51: 177578.7357 | GJ51: 4639883.398 | GK51: 6978.239981 | GL51: 127812.1698 | GM51: 441879.741 | GN51: 164613.1358 | GO51: 336174.8947 | GP51: 182602.3859 | GQ51: 400.1245288 | GR51: 126643.6986 | GS51: 718959.5293 | GT51: 146226.585 | GU51: 152632.4035 | GV51: 175967.8465 | GW51: 321800.8204 | GX51: 350086.2542 | GY51: 3745.924761 | GZ51: 299635.1132 | HA51: 7447913.463 | HB51: 2947208.553 | HC51: 2174069.768 | HD51: 7823888.109 | HE51: 5188053.181 | HF51: 1396041.869 | HG51: 742058.5539 | HH51: 474858.8938 | HI51: 274204.5766 | HJ51: 292337.1568 | HK51: 825019.8456 | HL51: 53849.26104 | HM51: 2451117.515 | HN51: 756143.3524 | HO51: 161445.0222 | HP51: 93787.94426 | HQ51: 147603.3917 | HR51: 149762.375 | HS51: 223795.4123 | HT51: 219228.8698 | HU51: 128907.4795 | HV51: 205961.8578 | HW51: 550493.677 | HX51: 1320025.943 | HY51: 160506.382 | HZ51: 296549.3037 | IA51: 128159.1476 | IB51: 147422.6147 | IC51: 2.280504301e-06 | ID51: 9021.09595 | IE51: 1962275.858 | IF51: 869995.0532 | IG51: 26787.74741 | IH51: 746353.602 | II51: 312576112.3
A52: =+MATCH(B52,RUT[EMPRESA],0) -> 78 | B52: DONGUIL | C52: 1752952.014 | D52: 1752952.014 | F52: =IFERROR(INDEX($B$9:$B$511,MATCH(0,INDEX(COUNTIF($F$8:F51,$B$9:$B$511),0,0),0)),"") -> DONGUIL | H52: 1752952.014 | J52: ANDINA | K52: 334555126.4 | L52: 151826901.2 | M52: 13825639.22 | N52: 417279266.2 | O52: 62002468.28 | P52: 14153179.29 | Q52: 1012570.571 | R52: 173515.5327 | S52: 753501.7875 | T52: 12489992.18 | U52: 7097684.288 | V52: 1179475.744 | W52: 65856961.04 | X52: 1520002.007 | Y52: 781351.9977 | Z52: 1058391.098 | AA52: 4230533.309 | AB52: 2879294.479 | AC52: 18157919.92 | AD52: 2862012.369 | AE52: 2731247.316 | AF52: 612268.0212 | AG52: 1298115.801 | AH52: 1094.551631 | AI52: 627633.37 | AJ52: 2127948.755 | AK52: 5569745.857 | AL52: 1367822.585 | AM52: 4761177.218 | AN52: 6430128.342 | AO52: 11875293.17 | AP52: 76806.23156 | AQ52: 771990.5847 | AR52: 46223140.25 | AS52: 2053207.401 | AT52: 5652.31352 | AU52: 2075383.537 | AV52: 38549.89725 | AW52: 27724697.44 | AX52: 261722.7103 | AY52: 1747723.764 | AZ52: 2977869.64 | BA52: 532300.3901 | BB52: 1461939.785 | BC52: 2764685.06 | BD52: 44557.64101 | BE52: 2483727.24 | BF52: 792330.6362 | BG52: 77852.14813 | BH52: 3200519.562 | BI52: 20324.89621 | BJ52: 170141.8533 | BK52: 10523077.79 | BL52: 3608124.877 | BM52: 366935.0928 | BN52: 66763987.96 | BO52: 939995.2844 | BP52: 26223128.59 | BQ52: 13001902.7 | BR52: 3621585.159 | BS52: 25914.24706 | BT52: 2774256.978 | BU52: 366448.1833 | BV52: 19786430.13 | BW52: 8341777.568 | BX52: 748333.4292 | BY52: 734126.3674 | BZ52: 202539.7667 | CA52: 214760772.5 | CB52: 25475486.34 | CC52: 1266666.217 | CD52: 176611.9567 | CE52: 10686923.88 | CF52: 2193747.417 | CG52: 16859.40233 | CH52: 1492269.044 | CI52: 144954.349 | CJ52: 131643.6144 | CK52: 688759.134 | CL52: 22753493.81 | CM52: 319445.1208 | CN52: 338484.3849 | CO52: 1317895.139 | CP52: 1551400.572 | CQ52: 219469.1094 | CR52: 199147.5811 | CS52: 185884.714 | CT52: 15307975.92 | CU52: 1078056.669 | CV52: 6784844.457 | CW52: 7814188.086 | CX52: 12190769.06 | CY52: 471562.9286 | CZ52: 752479.4248 | DA52: 782813.5907 | DB52: 843028.1703 | DC52: 275051.3914 | DD52: 4159915.407 | DE52: 99599.72925 | DF52: 353761.2269 | DG52: 1904239.332 | DH52: 183826.9692 | DI52: 1257109.985 | DJ52: 9519640.995 | DK52: 63606.76525 | DL52: 246464.0942 | DM52: 1486064.306 | DN52: 2271667.823 | DO52: 599227.5622 | DP52: 2269222.113 | DQ52: 1042173.19 | DR52: 839522.9375 | DS52: 16314231.1 | DT52: 1042.805685 | DU52: 371985.9742 | DV52: 1087413.078 | DW52: 4110131.307 | DX52: 6943390.864 | DY52: 450245.4834 | DZ52: 1257474.781 | EA52: 1130961.522 | EB52: 27220983.46 | EC52: 16279.73028 | ED52: 967396.1271 | EE52: 4295482.238 | EF52: 1137003.895 | EG52: 8706105.895 | EH52: 353769.3452 | EI52: 1265991.549 | EJ52: 959571.1104 | EK52: 2211416.412 | EL52: 5089619.775 | EM52: 223315.1129 | EN52: 1227781.29 | EO52: 1011002.622 | EP52: 1466572.613 | EQ52: 1354077.865 | ER52: 1159293.017 | ES52: 2218520.477 | ET52: 1248632.864 | EU52: 3420081.335 | EV52: 1156090.365 | EW52: 1078226.651 | EX52: 1134891.609 | EY52: 490965.1848 | EZ52: 1202093.521 | FA52: 1238772.307 | FB52: 1006121.226 | FC52: 11623090.34 | FD52: 1330930.299 | FE52: 1135319.337 | FF52: 1231705.53 | FG52: 8231457.583 | FH52: 1219955.765 | FI52: 1207488.113 | FJ52: 1238327.209 | FK52: 1204304.688 | FL52: 1005619.674 | FM52: 2795524.777 | FN52: 1288180.07 | FO52: 1263363.187 | FP52: 1438355.07 | FQ52: 411051.3923 | FR52: 2950721.401 | FS52: 3885562.727 | FT52: 1365278.733 | FU52: 1337024.263 | FV52: 1555508.405 | FW52: 0.2438298183 | FX52: 6915.992459 | FY52: 643936.5812 | FZ52: 967455.7267 | GA52: 1155847.013 | GB52: 168389.9043 | GC52: 1733345.902 | GD52: 1248858.602 | GE52: 258959.4538 | GF52: 237647.1783 | GG52: 3642751.022 | GH52: 3491803.792 | GI52: 1297101.898 | GJ52: 33891454.05 | GK52: 50971.69031 | GL52: 933588.1764 | GM52: 3227655.881 | GN52: 1202396.278 | GO52: 2455547.913 | GP52: 1333796.529 | GQ52: 2922.660101 | GR52: 925053.2232 | GS52: 5251550.903 | GT52: 1068093.993 | GU52: 1114884.502 | GV52: 1285335.357 | GW52: 2350554.266 | GX52: 2557161.717 | GY52: 27361.64382 | GZ52: 2188647.601 | HA52: 54402362.13 | HB52: 21527520.13 | HC52: 15880223.55 | HD52: 57148622.41 | HE52: 37895492.38 | HF52: 10197215.06 | HG52: 5420274.869 | HH52: 3468548.021 | HI52: 2002893.394 | HJ52: 2135340.582 | HK52: 6026255.357 | HL52: 393335.2629 | HM52: 17903884.54 | HN52: 5523155.537 | HO52: 1179255.184 | HP52: 685062.4317 | HQ52: 1078150.707 | HR52: 1093920.733 | HS52: 1634685.892 | HT52: 1601330.148 | HU52: 941588.7306 | HV52: 1504422.9 | HW52: 4021012.934 | HX52: 9641966.132 | HY52: 1172399.003 | HZ52: 2166107.688 | IA52: 936122.6324 | IB52: 1076830.244 | IC52: 1.665766143e-05 | ID52: 65893.47891 | IE52: 14333201.15 | IF52: 6354771.195 | IG52: 195667.7857 | IH52: 5451647.517 | II52: 2283173528
A53: =+MATCH(B53,RUT[EMPRESA],0) -> 245 | B53: PEHUI | C53: 17619175.2 | D53: 17619175.2 | F53: =IFERROR(INDEX($B$9:$B$511,MATCH(0,INDEX(COUNTIF($F$8:F52,$B$9:$B$511),0,0),0)),"") -> PEHUI | H53: 17619175.2 | J53: TAMAKAYA_ENERGIA | K53: 217296350.6 | L53: 98612841.15 | M53: 8979868.216 | N53: 271026370.7 | O53: 40271121.32 | P53: 9192608.231 | Q53: 657673.048 | R53: 112699.7886 | S53: 489405.7081 | T53: 8112354.301 | U53: 4610005.262 | V53: 766079.3529 | W53: 42774646.57 | X53: 987254.0064 | Y53: 507494.6524 | Z53: 687433.8634 | AA53: 2747766.74 | AB53: 1870125.827 | AC53: 11793720.74 | AD53: 1858900.952 | AE53: 1773967.958 | AF53: 397673.1966 | AG53: 843137.0612 | AH53: 710.9204316 | AI53: 407653.119 | AJ53: 1382120.5 | AK53: 3617596.481 | AL53: 888412.2001 | AM53: 3092424.393 | AN53: 4176422.096 | AO53: 7713102.155 | AP53: 49886.28928 | AQ53: 501414.3364 | AR53: 30022315.88 | AS53: 1333575.366 | AT53: 3671.224869 | AU53: 1347978.951 | AV53: 25038.48043 | AW53: 18007422.69 | AX53: 169991.0876 | AY53: 1135161.191 | AZ53: 1934151.218 | BA53: 345733.5519 | BB53: 949542.1082 | BC53: 1795686.051 | BD53: 28940.56021 | BE53: 1613201.599 | BF53: 514625.3699 | BG53: 50565.62084 | BH53: 2078764.203 | BI53: 13201.18995 | BJ53: 110508.5557 | BK53: 6834826.965 | BL53: 2343507.261 | BM53: 238327.4093 | BN53: 43363768.14 | BO53: 610534.7929 | BP53: 17032141.17 | BQ53: 8444844.462 | BR53: 2352249.827 | BS53: 16831.52003 | BT53: 1801903.092 | BU53: 238011.1575 | BV53: 12851451.73 | BW53: 5418054.244 | BX53: 486048.8162 | BY53: 476821.2108 | BZ53: 131551.2711 | CA53: 139488916.5 | CB53: 16546541.28 | CC53: 822710.2937 | CD53: 114710.9419 | CE53: 6941246.375 | CF53: 1424857.281 | CG53: 10950.32271 | CH53: 969241.2151 | CI53: 94149.06111 | CJ53: 85503.62773 | CK53: 447354.8136 | CL53: 14778584.39 | CM53: 207482.2756 | CN53: 219848.4368 | CO53: 855983.9068 | CP53: 1007647.637 | CQ53: 142547.0207 | CR53: 129348.0182 | CS53: 120733.6752 | CT53: 9942658.294 | CU53: 700206.8161 | CV53: 4406813.177 | CW53: 5075380.467 | CX53: 7918006.387 | CY53: 306284.0631 | CZ53: 488741.675 | DA53: 508443.9692 | DB53: 547553.842 | DC53: 178648.1774 | DD53: 2701899.822 | DE53: 64690.85652 | DF53: 229770.8733 | DG53: 1236819.36 | DH53: 119397.1527 | DI53: 816503.441 | DJ53: 6183086.383 | DK53: 41313.1256 | DL53: 160080.489 | DM53: 965211.1861 | DN53: 1475467.236 | DO53: 389203.3095 | DP53: 1473878.727 | DQ53: 676900.1965 | DR53: 545277.1639 | DS53: 10596229.44 | DT53: 677.3110073 | DU53: 241607.999 | DV53: 706283.8818 | DW53: 2669564.633 | DX53: 4509790.394 | DY53: 292438.2043 | DZ53: 816740.3791 | EA53: 734568.9603 | EB53: 17680256.25 | EC53: 10573.82087 | ED53: 628331.8693 | EE53: 2789951.612 | EF53: 738493.5318 | EG53: 5654688.537 | EH53: 229776.1463 | EI53: 822272.091 | EJ53: 623249.4555 | EK53: 1436333.441 | EL53: 3305750.579 | EM53: 145045.0321 | EN53: 797454.2086 | EO53: 656654.6523 | EP53: 952551.1685 | EQ53: 879484.8893 | ER53: 752970.5032 | ES53: 1440947.59 | ET53: 810997.4805 | EU53: 2221371.409 | EV53: 750890.3539 | EW53: 700317.2205 | EX53: 737121.5848 | EY53: 318885.9906 | EZ53: 780769.7882 | FA53: 804592.9663 | FB53: 653484.1448 | FC53: 7549294.315 | FD53: 864450.3521 | FE53: 737399.3971 | FF53: 800003.0354 | FG53: 5346400.492 | FH53: 792371.4645 | FI53: 784273.6204 | FJ53: 804303.8713 | FK53: 782205.9593 | FL53: 653158.3826 | FM53: 1815716.705 | FN53: 836683.721 | FO53: 820564.9482 | FP53: 934223.6383 | FQ53: 266981.3145 | FR53: 1916518.21 | FS53: 2523705.463 | FT53: 886759.9467 | FU53: 868408.4328 | FV53: 1010315.708 | FW53: 0.1583695047 | FX53: 4491.994901 | FY53: 418242.191 | FZ53: 628370.5797 | GA53: 750732.2945 | GB53: 109370.6501 | GC53: 1125822.649 | GD53: 811144.0989 | GE53: 168196.3294 | GF53: 154353.8284 | GG53: 2365997.232 | GH53: 2267955.745 | GI53: 842478.5229 | GJ53: 22012782.64 | GK53: 33106.53884 | GL53: 606373.3227 | GM53: 2096389.469 | GN53: 780966.4311 | GO53: 1594898.891 | GP53: 866311.9922 | GQ53: 1898.292161 | GR53: 600829.7993 | GS53: 3410926.2 | GT53: 693735.9748 | GU53: 724126.801 | GV53: 834836.0563 | GW53: 1526704.64 | GX53: 1660897.906 | GY53: 17771.61633 | GZ53: 1421544.908 | HA53: 35334788.86 | HB53: 13982304.23 | HC53: 10314337.91 | HD53: 37118507.85 | HE53: 24613439 | HF53: 6623176.398 | HG53: 3520513.826 | HH53: 2252850.927 | HI53: 1300895.998 | HJ53: 1386921.554 | HK53: 3914103.217 | HL53: 255474.5404 | HM53: 11628722.63 | HN53: 3587335.679 | HO53: 765936.0973 | HP53: 444953.7746 | HQ53: 700267.8947 | HR53: 710510.6585 | HS53: 1061742.148 | HT53: 1040077.314 | HU53: 611569.7495 | HV53: 977135.2464 | HW53: 2611681.505 | HX53: 6262537.583 | HY53: 761482.9505 | HZ53: 1406905.046 | IA53: 608019.4731 | IB53: 699410.2425 | IC53: 1.081929031e-05 | ID53: 42798.36524 | IE53: 9309533.933 | IF53: 4127476.999 | IG53: 127087.862 | IH53: 3540890.623 | II53: 1482940287
A54: =+MATCH(B54,RUT[EMPRESA],0) -> 61 | B54: COMASA | C54: 1054952771 | D54: 1054952771 | F54: =IFERROR(INDEX($B$9:$B$511,MATCH(0,INDEX(COUNTIF($F$8:F53,$B$9:$B$511),0,0),0)),"") -> COMASA | H54: 1054952771 | J54: VALLE_DE_LOS_VIENTOS | K54: 3290141.473 | L54: 1493123.09 | M54: 135966.5579 | N54: 4103681.907 | O54: 609755.691 | P54: 139187.7107 | Q54: 9958.001435 | R54: 1706.417284 | S54: 7410.221171 | T54: 122831.3005 | U54: 69801.30804 | V54: 11599.40995 | W54: 647662.2286 | X54: 14948.27383 | Y54: 7684.110657 | Z54: 10408.61781 | AA54: 41604.66241 | AB54: 28316.0694 | AC54: 178571.8426 | AD54: 28146.1106 | AE54: 26860.11768 | AF54: 6021.27497 | AG54: 12766.16107 | AH54: 10.76423414 | AI54: 6172.383613 | AJ54: 20927.05177 | AK54: 54774.98441 | AL54: 13451.68392 | AM54: 46823.21503 | AN54: 63236.31073 | AO54: 116786.1182 | AP54: 755.3414903 | AQ54: 7592.046986 | AR54: 454575.8194 | AS54: 20192.01707 | AT54: 55.586986 | AU54: 20410.10556 | AV54: 379.1142496 | AW54: 272655.1461 | AX54: 2573.879984 | AY54: 17187.7756 | AZ54: 29285.49476 | BA54: 5234.843082 | BB54: 14377.26801 | BC54: 27188.95708 | BD54: 438.1966708 | BE54: 24425.91176 | BF54: 7792.078735 | BG54: 765.627429 | BH54: 31475.11818 | BI54: 199.882706 | BJ54: 1673.239247 | BK54: 103487.9214 | BL54: 35483.6628 | BM54: 3608.578292 | BN54: 656582.2739 | BO54: 9244.268657 | BP54: 257888.1509 | BQ54: 127865.6219 | BR54: 35616.0363 | BS54: 254.8504932 | BT54: 27283.09094 | BU54: 3603.78984 | BV54: 194587.2271 | BW54: 82036.19124 | BX54: 7359.393583 | BY54: 7219.675971 | BZ54: 1991.852563 | CA54: 2112038.551 | CB54: 250535.5546 | CC54: 12456.87399 | CD54: 1736.868688 | CE54: 105099.2459 | CF54: 21574.14067 | CG54: 165.8017302 | CH54: 14675.5374 | CI54: 1425.535817 | CJ54: 1294.633025 | CK54: 6773.517463 | CL54: 223766.452 | CM54: 3141.543971 | CN54: 3328.783285 | CO54: 12960.67856 | CP54: 15257.05918 | CQ54: 2158.342114 | CR54: 1958.492529 | CS54: 1828.060484 | CT54: 150544.417 | CU54: 10602.01646 | CV54: 66724.72298 | CW54: 76847.67701 | CX54: 119888.6273 | CY54: 4637.527947 | CZ54: 7400.16687 | DA54: 7698.484514 | DB54: 8290.657433 | DC54: 2704.959268 | DD54: 40910.17929 | DE54: 979.5013556 | DF54: 3479.021518 | DG54: 18727.00881 | DH54: 1807.823845 | DI54: 12362.89439 | DJ54: 93619.74505 | DK54: 625.5329533 | DL54: 2423.820991 | DM54: 14614.51766 | DN54: 22340.43937 | DO54: 5893.030171 | DP54: 22316.38733 | DQ54: 10249.12477 | DR54: 8256.185649 | DS54: 160440.3104 | DT54: 10.25534497 | DU54: 3658.250567 | DV54: 10694.03092 | DW54: 40420.58364 | DX54: 68283.92823 | DY54: 4427.884139 | DZ54: 12366.48193 | EA54: 11122.30277 | EB54: 267701.4325 | EC54: 160.1010163 | ED54: 9513.738893 | EE54: 42243.3947 | EF54: 11181.72574 | EG54: 85619.13361 | EH54: 3479.101358 | EI54: 12450.23905 | EJ54: 9436.784723 | EK54: 21747.90423 | EL54: 50053.24318 | EM54: 2196.165165 | EN54: 12074.46493 | EO54: 9942.581637 | EP54: 14422.82899 | EQ54: 13316.51315 | ER54: 11400.92539 | ES54: 21817.76829 | ET54: 12279.52719 | EU54: 33634.37159 | EV54: 11369.4293 | EW54: 10603.68812 | EX54: 11160.95273 | EY54: 4828.337061 | EZ54: 11821.84171 | FA54: 12182.55475 | FB54: 9894.576144 | FC54: 114305.8604 | FD54: 13088.87124 | FE54: 11165.15916 | FF54: 12113.05739 | FG54: 80951.26284 | FH54: 11997.50576 | FI54: 11874.89416 | FJ54: 12178.17748 | FK54: 11843.58716 | FL54: 9889.643693 | FM54: 27492.24651 | FN54: 12668.44934 | FO54: 12424.39075 | FP54: 14145.32701 | FQ54: 4042.434643 | FR54: 29018.50873 | FS54: 38212.0914 | FT54: 13426.66671 | FU54: 13148.80159 | FV54: 15297.45716 | FW54: 0.002397914526 | FX54: 68.01448197 | FY54: 6332.71555 | FZ54: 9514.325018 | GA54: 11367.03608 | GB54: 1656.009919 | GC54: 17046.37827 | GD54: 12281.74718 | GE54: 2546.705076 | GF54: 2337.112109 | GG54: 35824.18939 | GH54: 34339.71732 | GI54: 12756.18997 | GJ54: 333301.3597 | GK54: 501.2748542 | GL54: 9181.258737 | GM54: 31741.98699 | GN54: 11824.81913 | GO54: 24148.78563 | GP54: 13117.05883 | GQ54: 28.7425433 | GR54: 9097.322783 | GS54: 51645.73506 | GT54: 10504.03974 | GU54: 10964.19527 | GV54: 12640.47336 | GW54: 23116.23844 | GX54: 25148.09415 | GY54: 269.0847396 | GZ54: 21523.98715 | HA54: 535013.3766 | HB54: 211709.7637 | HC54: 156172.1163 | HD54: 562021.1374 | HE54: 372678.585 | HF54: 100283.2643 | HG54: 53305.03027 | HH54: 34111.01129 | HI54: 19697.21012 | HJ54: 20999.74579 | HK54: 59264.47126 | HL54: 3868.207535 | HM54: 176073.5627 | HN54: 54316.79761 | HO54: 11597.24088 | HP54: 6737.162696 | HQ54: 10602.94127 | HR54: 10758.02966 | HS54: 16076.11848 | HT54: 15748.08549 | HU54: 9259.939208 | HV54: 14795.06301 | HW54: 39544.1599 | HX54: 94822.73665 | HY54: 11529.8146 | HZ54: 21302.32113 | IA54: 9206.183534 | IB54: 10589.95533 | IC54: 1.63817734e-07 | ID54: 648.0213592 | IE54: 140958.1137 | IF54: 62495.22009 | IG54: 1924.270907 | IH54: 53613.56073 | II54: 22453590.81
A55: =+MATCH(B55,RUT[EMPRESA],0) -> 44 | B55: CHACAYES | C55: -350521796.8 | D55: -350521796.8 | F55: =IFERROR(INDEX($B$9:$B$511,MATCH(0,INDEX(COUNTIF($F$8:F54,$B$9:$B$511),0,0),0)),"") -> CHACAYES | G55: -350521796.8 | J55: POZO_ALMONTE_SOLAR_2 | K55: 630230.0809 | L55: 286009.308 | M55: 26044.53806 | N55: 786064.6121 | O55: 116799.3479 | P55: 26661.55329 | Q55: 1907.465713 | R55: 326.8660366 | S55: 1419.435707 | T55: 23528.46559 | U55: 13370.51442 | V55: 2221.879251 | W55: 124060.3853 | X55: 2863.357671 | Y55: 1471.899528 | Z55: 1993.781756 | AA55: 7969.417113 | AB55: 5423.973058 | AC55: 34205.62543 | AD55: 5391.417272 | AE55: 5145.083967 | AF55: 1153.381593 | AG55: 2445.371664 | AH55: 2.061900441 | AI55: 1182.326613 | AJ55: 4008.598912 | AK55: 10492.20623 | AL55: 2576.68429 | AM55: 8969.03639 | AN55: 12112.98224 | AO55: 22370.50453 | AP55: 144.6864618 | AQ55: 1454.264634 | AR55: 87074.47926 | AS55: 3867.802238 | AT55: 10.64774599 | AU55: 3909.577319 | AV55: 72.61973571 | AW55: 52227.38177 | AX55: 493.0294347 | AY55: 3292.336605 | AZ55: 5609.667513 | BA55: 1002.739732 | BB55: 2753.980903 | BC55: 5208.073502 | BD55: 83.93703602 | BE55: 4678.809247 | BF55: 1492.580928 | BG55: 146.6567443 | BH55: 6029.092197 | BI55: 38.28774385 | BJ55: 320.5107485 | BK55: 19823.22087 | BL55: 6796.933161 | BM55: 691.2269906 | BN55: 125769.0294 | BO55: 1770.749444 | BP55: 49398.74822 | BQ55: 24492.79519 | BR55: 6822.289444 | BS55: 48.81688167 | BT55: 5226.104943 | BU55: 690.3097575 | BV55: 37273.38928 | BW55: 15714.11925 | BX55: 1409.699629 | BY55: 1382.936573 | BZ55: 381.5414664 | CA55: 404563.2194 | CB55: 47990.35062 | CC55: 2386.127395 | CD55: 332.6990352 | CE55: 20131.87176 | CF55: 4132.549476 | CG55: 31.75949688 | CH55: 2811.114719 | CI55: 273.0628943 | CJ55: 247.988326 | CK55: 1297.474438 | CL55: 42862.70068 | CM55: 601.7660722 | CN55: 637.6319609 | CO55: 2482.631694 | CP55: 2922.505832 | CQ55: 413.4327161 | CR55: 375.1513166 | CS55: 350.1669204 | CT55: 28836.94238 | CU55: 2030.827472 | CV55: 12781.1913 | CW55: 14720.25386 | CX55: 22964.79344 | CY55: 888.3233859 | CZ55: 1417.509795 | DA55: 1474.652856 | DB55: 1588.084205 | DC55: 518.1378104 | DD55: 7836.388136 | DE55: 187.6245212 | DF55: 666.4102536 | DG55: 3587.178355 | DH55: 346.2905706 | DI55: 2368.125504 | DJ55: 17932.96124 | DK55: 119.8214992 | DL55: 464.2854758 | DM55: 2799.426324 | DN55: 4279.334803 | DO55: 1128.816166 | DP55: 4274.727609 | DQ55: 1963.230696 | DR55: 1581.481098 | DS55: 30732.51125 | DT55: 1.964422181 | DU55: 700.7417675 | DV55: 2048.452939 | DW55: 7742.605572 | DX55: 13079.85872 | DY55: 848.1658926 | DZ55: 2368.812701 | EA55: 2130.488865 | EB55: 51278.49269 | EC55: 30.6675191 | ED55: 1822.366753 | EE55: 8091.76696 | EF55: 2141.871399 | EG55: 16400.43565 | EH55: 666.4255468 | EI55: 2384.856465 | EJ55: 1807.6261 | EK55: 4165.83407 | EL55: 9587.751701 | EM55: 420.6777615 | EN55: 2312.876535 | EO55: 1904.512034 | EP55: 2762.708156 | EQ55: 2550.792185 | ER55: 2183.859324 | ES55: 4179.216604 | ET55: 2352.156428 | EU55: 6442.699472 | EV55: 2177.826214 | EW55: 2031.147681 | EX55: 2137.892306 | EY55: 924.8730737 | EZ55: 2264.48629 | FA55: 2333.581254 | FB55: 1895.316531 | FC55: 21895.40853 | FD55: 2507.187138 | FE55: 2138.698052 | FF55: 2320.268962 | FG55: 15506.30006 | FH55: 2298.134924 | FI55: 2274.648543 | FJ55: 2332.742785 | FK55: 2268.651654 | FL55: 1894.371715 | FM55: 5266.168912 | FN55: 2426.654878 | FO55: 2379.905196 | FP55: 2709.552359 | FQ55: 774.3326338 | FR55: 5558.526055 | FS55: 7319.566547 | FT55: 2571.892218 | FU55: 2518.66686 | FV55: 2930.244107 | FW55: 0.0004593230651 | FX55: 13.028246 | FY55: 1213.038365 | FZ55: 1822.479026 | GA55: 2177.36779 | GB55: 317.2104524 | GC55: 3265.251797 | GD55: 2352.581669 | GE55: 487.8240523 | GF55: 447.6762978 | GG55: 6862.161389 | GH55: 6577.809193 | GI55: 2443.461688 | GJ55: 63844.22817 | GK55: 96.01972879 | GL55: 1758.679827 | GM55: 6080.2112 | GN55: 2265.056619 | GO55: 4625.725442 | GP55: 2512.5865 | GQ55: 5.505664587 | GR55: 1742.601806 | GS55: 9892.795205 | GT55: 2012.059928 | GU55: 2100.203207 | GV55: 2421.29605 | GW55: 4427.939937 | GX55: 4817.144047 | GY55: 51.54346664 | GZ55: 4122.942516 | HA55: 102482.3785 | HB55: 40553.22929 | HC55: 29914.93415 | HD55: 107655.7436 | HE55: 71386.97734 | HF55: 19209.3654 | HG55: 10210.63496 | HH55: 6534.00031 | HI55: 3773.021443 | HJ55: 4022.523529 | HK55: 11352.17219 | HL55: 740.959247 | HM55: 33727.07727 | HN55: 10404.44006 | HO55: 2221.463763 | HP55: 1290.510644 | HQ55: 2031.00462 | HR55: 2060.711966 | HS55: 3079.397507 | HT55: 3016.56244 | HU55: 1773.751155 | HV55: 2834.009977 | HW55: 7574.725678 | HX55: 18163.39555 | HY55: 2208.548189 | HZ55: 4080.482155 | IA55: 1763.454198 | IB55: 2028.51715 | IC55: 3.137946031e-08 | ID55: 124.1291771 | IE55: 27000.67584 | IF55: 11971.02554 | IG55: 368.5961286 | IH55: 10269.7343 | II55: 4301009.082
A56: =+MATCH(B56,RUT[EMPRESA],0) -> 109 | B56: ENERBOSCH | C56: 46860443.18 | D56: 46860443.18 | F56: =IFERROR(INDEX($B$9:$B$511,MATCH(0,INDEX(COUNTIF($F$8:F55,$B$9:$B$511),0,0),0)),"") -> ENERBOSCH | H56: 46860443.18 | J56: HORNITOS | K56: 198880421.7 | L56: 90255374.21 | M56: 8218821.775 | N56: 248056807 | O56: 36858132.09 | P56: 8413532.013 | Q56: 601935.0661 | R56: 103148.4488 | S56: 447928.4322 | T56: 7424829.917 | U56: 4219305.977 | V56: 701153.9052 | W56: 39149482.85 | X56: 903583.9425 | Y56: 464484.3332 | Z56: 629173.6438 | AA56: 2514892.71 | AB56: 1711632.12 | AC56: 10794199.48 | AD56: 1701358.556 | AE56: 1623623.658 | AF56: 363970.2777 | AG56: 771680.9503 | AH56: 650.6697185 | AI56: 373104.3988 | AJ56: 1264985.386 | AK56: 3311004.129 | AL56: 813119.008 | AM56: 2830340.527 | AN56: 3822469.11 | AO56: 7059414.506 | AP56: 45658.41177 | AQ56: 458919.3258 | AR56: 27477915.89 | AS56: 1220554.467 | AT56: 3360.087494 | AU56: 1233737.344 | AV56: 22916.46194 | AW56: 16481288.38 | AX56: 155584.2935 | AY56: 1038955.95 | AZ56: 1770231.34 | BA56: 316432.5329 | BB56: 869068.1387 | BC56: 1643501.137 | BD56: 26487.83933 | BE56: 1476482.295 | BF56: 471010.7203 | BG56: 46280.16978 | BH56: 1902588.333 | BI56: 12082.38527 | BJ56: 101142.9235 | BK56: 6255573.394 | BL56: 2144894.34 | BM56: 218129.0921 | BN56: 39688676.19 | BO56: 558791.7919 | BP56: 15588662.26 | BQ56: 7729141.441 | BR56: 2152895.971 | BS56: 15405.04382 | BT56: 1649191.282 | BU56: 217839.6428 | BV56: 11762287.46 | BW56: 4958872.573 | BX56: 444856.0378 | BY56: 436410.4747 | BZ56: 120402.2627 | CA56: 127667190.3 | CB56: 15144217.1 | CC56: 752985.3573 | CD56: 104989.1562 | CE56: 6352973.728 | CF56: 1304100.213 | CG56: 10022.27968 | CH56: 887097.7405 | CI56: 86169.90083 | CJ56: 78257.17044 | CK56: 409441.3632 | CL56: 13526095.07 | CM56: 189898.0925 | CN56: 201216.2179 | CO56: 783439.022 | CP56: 922249.2069 | CQ56: 130466.1193 | CR56: 118385.7361 | CS56: 110501.4611 | CT56: 9100015.115 | CU56: 640864.085 | CV56: 4033334.48 | CW56: 4645240.498 | CX56: 7246953.045 | CY56: 280326.3998 | CZ56: 447320.6761 | DA56: 465353.1951 | DB56: 501148.4948 | DC56: 163507.6924 | DD56: 2472913.027 | DE56: 59208.28763 | DF56: 210297.725 | DG56: 1131998.56 | DH56: 109278.2094 | DI56: 747304.5372 | DJ56: 5659068.016 | DK56: 37811.8262 | DL56: 146513.621 | DM56: 883409.2577 | DN56: 1350420.959 | DO56: 356218.2159 | DP56: 1348967.076 | DQ56: 619532.7082 | DR56: 499064.7659 | DS56: 9698195.918 | DT56: 619.9087026 | DU56: 221131.6509 | DV56: 646426.1176 | DW56: 2443318.255 | DX56: 4127584.348 | DY56: 267653.9815 | DZ56: 747521.3947 | EA56: 672314.0275 | EB56: 16181849.39 | EC56: 9677.686479 | ED56: 575080.5608 | EE56: 2553502.402 | EF56: 675905.9904 | EG56: 5175452.041 | EH56: 210302.5511 | EI56: 752584.2924 | EJ56: 570428.8831 | EK56: 1314603.764 | EL56: 3025587.257 | EM56: 132752.4235 | EN56: 729869.7327 | EO56: 601002.9798 | EP56: 871822.1802 | EQ56: 804948.2894 | ER56: 689156.0343 | ES56: 1318826.863 | ET56: 742265.2084 | EU56: 2033109.537 | EV56: 687252.1783 | EW56: 640965.1326 | EX56: 674650.3163 | EY56: 291860.3103 | EZ56: 714599.3218 | FA56: 736403.4787 | FB56: 598101.1737 | FC56: 6909489.429 | FD56: 791187.9336 | FE56: 674904.584 | FF56: 732202.5458 | FG56: 4893291.497 | FH56: 725217.7527 | FI56: 717806.2032 | FJ56: 736138.8846 | FK56: 715913.777 | FL56: 597803.0199 | FM56: 1661834.187 | FN56: 765774.5325 | FO56: 751021.8305 | FP56: 855047.9136 | FQ56: 244354.5705 | FR56: 1754092.735 | FS56: 2309820.692 | FT56: 811606.7836 | FU56: 794810.5659 | FV56: 924691.1586 | FW56: 0.1449476432 | FX56: 4111.297028 | FY56: 382796.0438 | FZ56: 575115.9905 | GA56: 687107.5144 | GB56: 100101.4557 | GC56: 1030408.852 | GD56: 742399.4008 | GE56: 153941.6416 | GF56: 141272.2966 | GG56: 2165478.279 | GH56: 2075745.836 | GI56: 771078.2233 | GJ56: 20147192.92 | GK56: 30300.75005 | GL56: 554983.0075 | GM56: 1918719.852 | GN56: 714779.2992 | GO56: 1459730.747 | GP56: 792891.7992 | GQ56: 1737.411349 | GR56: 549909.2993 | GS56: 3121849.213 | GT56: 634941.6494 | GU56: 662756.8443 | GV56: 764083.4579 | GW56: 1397315.978 | GX56: 1520136.326 | GY56: 16265.46668 | GZ56: 1301068.564 | HA56: 32340155.24 | HB56: 12797299.89 | HC56: 9440194.778 | HD56: 33972703.53 | HE56: 22527442.9 | HF56: 6061860.274 | HG56: 3222149.256 | HH56: 2061921.156 | HI56: 1190644.684 | HJ56: 1269379.549 | HK56: 3582381.832 | HL56: 233822.9989 | HM56: 10643185.01 | HN56: 3283307.938 | HO56: 701022.7905 | HP56: 407243.8129 | HQ56: 640919.9872 | HR56: 650294.6738 | HS56: 971759.1929 | HT56: 951930.4591 | HU56: 559739.0356 | HV56: 894322.7504 | HW56: 2390340.739 | HX56: 5731785.703 | HY56: 696947.0492 | HZ56: 1287669.434 | IA56: 556489.6461 | IB56: 640135.0213 | IC56: 9.902352314e-06 | ID56: 39171.19135 | IE56: 8520548.227 | IF56: 3777672.125 | IG56: 116317.1288 | IH56: 3240799.114 | II56: 1357260667
A57: =+MATCH(B57,RUT[EMPRESA],0) -> 168 | B57: HIDROMUCHI | C57: 129003.001 | D57: 129003.001 | F57: =IFERROR(INDEX($B$9:$B$511,MATCH(0,INDEX(COUNTIF($F$8:F56,$B$9:$B$511),0,0),0)),"") -> HIDROMUCHI | H57: 129003.001 | J57: ON GROUP | K57: 7912223.182 | L57: 3590703.69 | M57: 326976.1378 | N57: 9868647.712 | O57: 1466357.345 | P57: 334722.4551 | Q57: 23947.27718 | R57: 4103.639466 | S57: 17820.30475 | T57: 295388.1075 | U57: 167860.1155 | V57: 27894.58175 | W57: 1557516.034 | X57: 35948.02221 | Y57: 18478.96176 | Z57: 25030.93189 | AA57: 100052.0425 | AB57: 68095.26659 | AC57: 429434.5045 | AD57: 67686.54498 | AE57: 64593.95365 | AF57: 14480.12853 | AG57: 30700.41712 | AH57: 25.88612789 | AI57: 14843.51877 | AJ57: 50325.9527 | AK57: 131724.397 | AL57: 32348.98141 | AM57: 112601.7621 | AN57: 152072.4285 | AO57: 280850.4861 | AP57: 1816.4661 | AQ57: 18257.5645 | AR57: 1093176.499 | AS57: 48558.32093 | AT57: 133.6771208 | AU57: 49082.78616 | AV57: 911.7044295 | AW57: 655688.6338 | AX57: 6189.737749 | AY57: 41333.63798 | AZ57: 70426.56751 | BA57: 12588.89538 | BB57: 34574.85163 | BC57: 65384.75573 | BD57: 1053.78747 | BE57: 58740.10795 | BF57: 18738.60638 | BG57: 1841.20201 | BH57: 75692.23446 | BI57: 480.6834578 | BJ57: 4023.852005 | BK57: 248870.6148 | BL57: 85332.09339 | BM57: 8678.008848 | BN57: 1578967.206 | BO57: 22230.87286 | BP57: 620176.5556 | BQ57: 307494.7828 | BR57: 85650.42883 | BS57: 612.8715123 | BT57: 65611.13144 | BU57: 8666.493446 | BV57: 467948.7439 | BW57: 197282.9009 | BX57: 17698.07317 | BY57: 17362.07639 | BZ57: 4790.062116 | CA57: 5079088.701 | CB57: 602494.8288 | CC57: 29956.63499 | CD57: 4176.869842 | CE57: 252745.5723 | CF57: 51882.08997 | CG57: 398.724585 | CH57: 35292.13809 | CI57: 3428.167946 | CJ57: 3113.369293 | CK57: 16289.14208 | CL57: 538119.7506 | CM57: 7554.8718 | CN57: 8005.150079 | CO57: 31168.19814 | CP57: 36690.59775 | CQ57: 5190.440792 | CR57: 4709.836984 | CS57: 4396.170397 | CT57: 362033.3763 | CU57: 25496.02231 | CV57: 160461.4587 | CW57: 184805.4184 | CX57: 288311.4858 | CY57: 11152.45543 | CZ57: 17796.1259 | DA57: 18513.52841 | DB57: 19937.60222 | DC57: 6504.960837 | DD57: 98381.93027 | DE57: 2355.531942 | DF57: 8366.447138 | DG57: 45035.22856 | DH57: 4347.504766 | DI57: 29730.63025 | DJ57: 225139.3514 | DK57: 1504.298941 | DL57: 5828.871734 | DM57: 35145.39615 | DN57: 53724.90627 | DO57: 14171.72189 | DP57: 53667.06526 | DQ57: 24647.37863 | DR57: 19854.70352 | DS57: 385831.2945 | DT57: 24.66233712 | DU57: 8797.462109 | DV57: 25717.30123 | DW57: 97204.53712 | DX57: 164211.0786 | DY57: 10648.2982 | DZ57: 29739.25767 | EA57: 26747.22121 | EB57: 643775.8065 | EC57: 385.0153506 | ED57: 22878.90233 | EE57: 101588.0836 | EF57: 26890.12322 | EG57: 205899.2598 | EH57: 8366.639137 | EI57: 29940.67909 | EJ57: 22693.84082 | EK57: 52299.96139 | EL57: 120369.4231 | EM57: 5281.39871 | EN57: 29037.00711 | EO57: 23910.19522 | EP57: 34684.41793 | EQ57: 32023.919 | ER57: 27417.2606 | ES57: 52467.97241 | ET57: 29530.1465 | EU57: 80884.86674 | EV57: 27341.51793 | EW57: 25500.04237 | EX57: 26840.1677 | EY57: 11611.31846 | EZ57: 28429.49181 | FA57: 29296.94449 | FB57: 23794.75028 | FC57: 274885.8935 | FD57: 31476.47946 | FE57: 26850.28345 | FF57: 29129.81532 | FG57: 194673.8351 | FH57: 28851.93356 | FI57: 28557.0738 | FJ57: 29286.41792 | FK57: 28481.78586 | FL57: 23782.88859 | FM57: 66114.11452 | FN57: 30465.43725 | FO57: 29878.51839 | FP57: 34017.0735 | FQ57: 9721.358598 | FR57: 69784.51211 | FS57: 91893.49392 | FT57: 32288.81934 | FU57: 31620.60162 | FV57: 36787.74792 | FW57: 0.005766571151 | FX57: 163.5631068 | FY57: 15229.08945 | FZ57: 22880.31186 | GA57: 27335.76265 | GB57: 3982.418439 | GC57: 40993.60178 | GD57: 29535.48518 | GE57: 6124.386779 | GF57: 5620.351819 | GG57: 86151.00115 | GH57: 82581.10167 | GI57: 30676.43834 | GJ57: 801532.3252 | GK57: 1205.479629 | GL57: 22079.34486 | GM57: 76334.00795 | GN57: 28436.65199 | GO57: 58073.66735 | GP57: 31544.26574 | GQ57: 69.12086283 | GR57: 21877.49336 | GS57: 124199.0916 | GT57: 25260.40519 | GU57: 26366.99994 | GV57: 30398.15984 | GW57: 55590.56934 | GX57: 60476.83212 | GY57: 647.1024217 | GZ57: 51761.47941 | HA57: 1286614.961 | HB57: 509125.4933 | HC57: 375567.0232 | HD57: 1351563.97 | HE57: 896227.7652 | HF57: 241163.9666 | HG57: 128189.4106 | HH57: 82031.10307 | HI57: 47368.39549 | HJ57: 50500.76929 | HK57: 142520.8391 | HL57: 9302.372432 | HM57: 423426.5718 | HN57: 130622.5367 | HO57: 27889.36551 | HP57: 16201.71513 | HQ57: 25498.24631 | HR57: 25871.20717 | HS57: 38660.2942 | HT57: 37871.43139 | HU57: 22268.55783 | HV57: 35579.57659 | HW57: 95096.88908 | HX57: 228032.3388 | HY57: 27727.21695 | HZ57: 51228.41082 | IA57: 22139.2847 | IB57: 25467.01737 | IC57: 3.939534161e-07 | ID57: 1558.379681 | IE57: 338979.9691 | IF57: 150290.2332 | IG57: 4627.53988 | IH57: 128931.3732 | II57: 53997016
A58: =+MATCH(B58,RUT[EMPRESA],0) -> 184 | B58: LA ARENA SPA | C58: 47366570.09 | D58: 47366570.09 | F58: =IFERROR(INDEX($B$9:$B$511,MATCH(0,INDEX(COUNTIF($F$8:F57,$B$9:$B$511),0,0),0)),"") -> LA ARENA SPA | H58: 47366570.09 | J58: HIDROANGOL | K58: 45925533.96 | L58: 20841801.41 | M58: 1897893.092 | N58: 57281361.41 | O58: 8511292.274 | P58: 1942855.646 | Q58: 138999.0482 | R58: 23819.07453 | S58: 103435.7844 | T58: 1714544.225 | U58: 974323.5571 | V58: 161910.6959 | W58: 9040411.764 | X58: 208655.9083 | Y58: 107258.8786 | Z58: 145288.9897 | AA58: 580739.8716 | AB58: 395250.6655 | AC58: 2492600.179 | AD58: 392878.2908 | AE58: 374927.7218 | AF58: 84048.13909 | AG58: 178196.8249 | AH58: 150.2528705 | AI58: 86157.39341 | AJ58: 292110.8514 | AK58: 764578.1884 | AL58: 187765.7152 | AM58: 653583.1878 | AN58: 882685.8541 | AO58: 1630162.375 | AP58: 10543.45582 | AQ58: 105973.8053 | AR58: 6345209.591 | AS58: 281850.8485 | AT58: 775.9125358 | AU58: 284895.0429 | AV58: 5291.877109 | AW58: 3805864.664 | AX58: 35927.57746 | AY58: 239916.0579 | AZ58: 408782.4172 | BA58: 73070.70706 | BB58: 200685.5073 | BC58: 379517.836 | BD58: 6116.580778 | BE58: 340949.7888 | BF58: 108765.9541 | BG58: 10687.03239 | BH58: 439346.3385 | BI58: 2790.068475 | BJ58: 23355.95795 | BK58: 1444539.115 | BL58: 495299.7233 | BM58: 50370.44342 | BN58: 9164922.471 | BO58: 129036.3888 | BP58: 3599739.139 | BQ58: 1784815.944 | BR58: 497147.4625 | BS58: 3557.337907 | BT58: 380831.8062 | BU58: 50303.60367 | BV58: 2716151.382 | BW58: 1145104.525 | BX58: 102726.3061 | BY58: 100776.0538 | BZ58: 27803.33104 | CA58: 29480950.59 | CB58: 3497107.713 | CC58: 173879.6323 | CD58: 24244.13131 | CE58: 1467030.833 | CF58: 301143.2603 | CG58: 2314.348199 | CH58: 204848.909 | CI58: 19898.38252 | CJ58: 18071.17215 | CK58: 94548.33747 | CL58: 3123450.428 | CM58: 43851.33147 | CN58: 46464.9168 | CO58: 180912.0028 | CP58: 212966.0974 | CQ58: 30127.28021 | CR58: 27337.67405 | CS58: 25517.03462 | CT58: 2101378.555 | CU58: 147988.5503 | CV58: 931378.9563 | CW58: 1072680.5 | CX58: 1673468.838 | CY58: 64733.06664 | CZ58: 103295.4412 | DA58: 107459.5165 | DB58: 115725.3792 | DC58: 37757.2514 | DD58: 571045.9091 | DE58: 13672.39772 | DF58: 48562.02149 | DG58: 261401.4887 | DH58: 25234.56091 | DI58: 172567.8154 | DJ58: 1306793.892 | DK58: 8731.519641 | DL58: 33832.97471 | DM58: 203997.1633 | DN58: 311839.6626 | DO58: 82258.03039 | DP58: 311503.9315 | DQ58: 143062.7016 | DR58: 115244.2038 | DS58: 2239510.667 | DT58: 143.1495264 | DU58: 51063.79529 | DV58: 149272.9368 | DW58: 564211.8742 | DX58: 953143.1676 | DY58: 61806.74754 | DZ58: 172617.8922 | EA58: 155250.9816 | EB58: 3736718.111 | EC58: 2234.774621 | ED58: 132797.7968 | EE58: 589655.6346 | EF58: 156080.4389 | EG58: 1195117.128 | EH58: 48563.13592 | EI58: 173787.0183 | EJ58: 131723.6298 | EK58: 303568.7439 | EL58: 698669.6282 | EM58: 30655.23434 | EN58: 168541.7645 | EO58: 138783.8105 | EP58: 201321.4715 | EQ58: 185878.9301 | ER58: 159140.1435 | ES58: 304543.9434 | ET58: 171404.1319 | EU58: 469486.3389 | EV58: 158700.5045 | EW58: 148011.8843 | EX58: 155790.4782 | EY58: 67396.48113 | EZ58: 165015.516 | FA58: 170050.5393 | FB58: 138113.7244 | FC58: 1595541.626 | FD58: 182701.3841 | FE58: 155849.1938 | FF58: 169080.4584 | FG58: 1129960.52 | FH58: 167467.5277 | FI58: 165756.0502 | FJ58: 169989.4391 | FK58: 165319.0505 | FL58: 138044.8747 | FM58: 383751.3101 | FN58: 176832.9129 | FO58: 173426.214 | FP58: 197447.9522 | FQ58: 56426.43972 | FR58: 405055.685 | FS58: 533384.5721 | FT58: 187416.5118 | FU58: 183537.9235 | FV58: 213529.9938 | FW58: 0.03347135858 | FX58: 949.3820942 | FY58: 88395.39135 | FZ58: 132805.9782 | GA58: 158667.0986 | GB58: 23115.46187 | GC58: 237942.3592 | GD58: 171435.1197 | GE58: 35548.25572 | GF58: 32622.6463 | GG58: 500052.9735 | GH58: 479331.9276 | GI58: 178057.643 | GJ58: 4652396.574 | GK58: 6997.059406 | GL58: 128156.863 | GM58: 443071.4344 | GN58: 165057.0765 | GO58: 337081.5157 | GP58: 183094.8413 | GQ58: 401.2036138 | GR58: 126985.2406 | GS58: 720898.4717 | GT58: 146620.9395 | GU58: 153044.0337 | GV58: 176442.4094 | GW58: 322668.6762 | GX58: 351030.3923 | GY58: 3756.027044 | GZ58: 300443.191 | HA58: 7467999.538 | HB58: 2955156.799 | HC58: 2179932.957 | HD58: 7844988.14 | HE58: 5202044.7 | HF58: 1399806.816 | HG58: 744059.7914 | HH58: 476139.5278 | HI58: 274944.0714 | HJ58: 293125.5529 | HK58: 827244.8192 | HL58: 53994.48565 | HM58: 2457727.867 | HN58: 758182.5748 | HO58: 161880.4189 | HP58: 94040.87842 | HQ58: 148001.4593 | HR58: 150166.2651 | HS58: 224398.9601 | HT58: 219820.1022 | HU58: 129255.1266 | HV58: 206517.3107 | HW58: 551978.2884 | HX58: 1323585.885 | HY58: 160939.2473 | HZ58: 297349.0594 | IA58: 128504.7765 | IB58: 147820.1947 | IC58: 2.286654531e-06 | ID58: 9045.424698 | IE58: 1967567.866 | IF58: 872341.3192 | IG58: 26859.99055 | IH58: 748366.4227 | II58: 313419090.3
A59: =+MATCH(B59,RUT[EMPRESA],0) -> 34 | B59: CARDONES SA | C59: 879826.0071 | D59: 879826.0071 | F59: =IFERROR(INDEX($B$9:$B$511,MATCH(0,INDEX(COUNTIF($F$8:F58,$B$9:$B$511),0,0),0)),"") -> CARDONES SA | H59: 879826.0071 | J59: TRANSELEC | K59: 3997483.669 | L59: 1814127.209 | M59: 165197.7884 | N59: 4985925.846 | O59: 740846.0812 | P59: 169111.4516 | Q59: 12098.85606 | R59: 2073.277177 | S59: 9003.33264 | T59: 149238.6032 | U59: 84807.77841 | V59: 14093.14834 | W59: 786902.084 | X59: 18161.97905 | Y59: 9336.105184 | Z59: 12646.34972 | AA59: 50549.18152 | AB59: 34403.69538 | AC59: 216962.7144 | AD59: 34197.19741 | AE59: 32634.73096 | AF59: 7315.779141 | AG59: 15510.7374 | AH59: 13.07841944 | AI59: 7499.374387 | AJ59: 25426.12479 | AK59: 66550.96975 | AL59: 16343.6397 | AM59: 56889.66233 | AN59: 76831.38294 | AO59: 141893.7769 | AP59: 917.7311361 | AQ59: 9224.248893 | AR59: 552304.3398 | AS59: 24533.06617 | AT59: 67.53754225 | AU59: 24798.04115 | AV59: 460.6194092 | AW59: 331272.8351 | AX59: 3127.23428 | AY59: 20882.94769 | AZ59: 35581.53593 | BA59: 6360.273533 | BB59: 17468.21362 | BC59: 33034.26701 | BD59: 532.4038646 | BE59: 29677.19904 | BF59: 9467.285144 | BG59: 930.2284321 | BH59: 38241.90296 | BI59: 242.8551657 | BJ59: 2032.966248 | BK59: 125736.6224 | BL59: 43112.2381 | BM59: 4384.380704 | BN59: 797739.8354 | BO59: 11231.67903 | BP59: 313331.1075 | BQ59: 155355.2452 | BR59: 43273.07036 | BS59: 309.6403887 | BT59: 33148.63855 | BU59: 4378.562791 | BV59: 236421.2205 | BW59: 99673.01936 | BX59: 8941.577711 | BY59: 8771.822436 | BZ59: 2420.077725 | CA59: 2566102.304 | CB59: 304397.7885 | CC59: 15134.95719 | CD59: 2110.275279 | CE59: 127694.3628 | CF59: 26212.33029 | CG59: 201.4471761 | CH59: 17830.60745 | CI59: 1732.009457 | CJ59: 1572.964086 | CK59: 8229.745032 | CL59: 271873.6397 | CM59: 3816.93943 | CN59: 4044.433021 | CO59: 15747.07389 | CP59: 18537.14966 | CQ59: 2622.360596 | CR59: 2379.545672 | CS59: 2221.072253 | CT59: 182909.7178 | CU59: 12881.32684 | CV59: 81069.76329 | CW59: 93369.03485 | CX59: 145663.2895 | CY59: 5634.542582 | CZ59: 8991.116782 | DA59: 9353.569253 | DB59: 10073.05247 | DC59: 3286.494088 | DD59: 49705.39259 | DE59: 1190.082768 | DF59: 4226.97073 | DG59: 22753.09815 | DH59: 2196.484971 | DI59: 15020.77307 | DJ59: 113746.9027 | DK59: 760.0152716 | DL59: 2944.914347 | DM59: 17756.46919 | DN59: 27143.37431 | DO59: 7159.9632 | DP59: 27114.15136 | DQ59: 12452.56754 | DR59: 10031.16965 | DS59: 194933.1134 | DT59: 12.460125 | DU59: 4444.731942 | DV59: 12993.12333 | DW59: 49110.53957 | DX59: 82964.17957 | DY59: 5379.827791 | DZ59: 15025.13189 | EA59: 13513.46866 | EB59: 325254.1307 | EC59: 194.520875 | ED59: 11559.08224 | EE59: 51325.23384 | EF59: 13585.66688 | EG59: 104026.2527 | EH59: 4227.067734 | EI59: 15126.89581 | EJ59: 11465.58381 | EK59: 26423.451 | EL59: 60814.10901 | EM59: 2668.315163 | EN59: 14670.33462 | EO59: 12080.12119 | EP59: 17523.56968 | EQ59: 16179.40878 | ER59: 13851.99191 | ES59: 26508.33502 | ET59: 14919.48289 | EU59: 40865.37076 | EV59: 13813.72452 | EW59: 12883.35789 | EX59: 13560.42791 | EY59: 5866.37344 | EZ59: 14363.40035 | FA59: 14801.6625 | FB59: 12021.79507 | FC59: 138880.2925 | FD59: 15902.82651 | FE59: 13565.53867 | FF59: 14717.22402 | FG59: 98354.84396 | FH59: 14576.83012 | FI59: 14427.85846 | FJ59: 14796.34417 | FK59: 14389.82081 | FL59: 12015.8022 | FM59: 33402.76013 | FN59: 15392.01879 | FO59: 15095.49043 | FP59: 17186.408 | FQ59: 4911.511131 | FR59: 35257.151 | FS59: 46427.24716 | FT59: 16313.24408 | FU59: 15975.64119 | FV59: 18586.23274 | FW59: 0.002913438293 | FX59: 82.63680549 | FY59: 7694.175828 | FZ59: 11559.79437 | GA59: 13810.81679 | GB59: 2012.032814 | GC59: 20711.15157 | GD59: 14922.18015 | GE59: 3094.217083 | GF59: 2839.564063 | GG59: 43525.97395 | GH59: 41722.35763 | GI59: 15498.62263 | GJ59: 404957.2802 | GK59: 609.0431246 | GL59: 11155.12271 | GM59: 38566.14546 | GN59: 14367.01788 | GO59: 29340.494 | GP59: 15937.0741 | GQ59: 34.92185622 | GR59: 11053.1415 | GS59: 62748.96814 | GT59: 12762.28626 | GU59: 13321.36989 | GV59: 15358.0283 | GW59: 28085.96117 | GX59: 30554.64225 | GY59: 326.9348328 | GZ59: 26151.39435 | HA59: 650035.0375 | HB59: 257224.9036 | HC59: 189747.3071 | HD59: 682849.1531 | HE59: 452800.1514 | HF59: 121843.0011 | HG59: 64764.99255 | HH59: 41444.48246 | HI59: 23931.88147 | HJ59: 25514.44719 | HK59: 72005.64412 | HL59: 4699.82722 | HM59: 213927.3333 | HN59: 65994.27811 | HO59: 14090.51294 | HP59: 8185.574412 | HQ59: 12882.45047 | HR59: 13070.88106 | HS59: 19532.2972 | HT59: 19133.74092 | HU59: 11250.71857 | HV59: 17975.82969 | HW59: 48045.69491 | HX59: 115208.5235 | HY59: 14008.59081 | HZ59: 25882.0727 | IA59: 11185.40605 | IB59: 12866.6727 | IC59: 1.990366438e-07 | ID59: 787.3384235 | IE59: 171262.4706 | IF59: 75930.96642 | IG59: 2337.966798 | IH59: 65139.85348 | II59: 27280852
A60: =+MATCH(B60,RUT[EMPRESA],0) -> 32 | B60: CAPULLO | C60: -12801218.99 | D60: -12801218.99 | F60: =IFERROR(INDEX($B$9:$B$511,MATCH(0,INDEX(COUNTIF($F$8:F59,$B$9:$B$511),0,0),0)),"") -> CAPULLO | G60: -12801218.99 | J60: STS | K60: 17327.26103 | L60: 7863.410662 | M60: 716.0567594 | N60: 21611.70521 | O60: 3211.228487 | P60: 733.0206973 | Q60: 52.4430003 | R60: 8.986707095 | S60: 39.02532387 | T60: 646.8810001 | U60: 367.6028812 | V60: 61.08734402 | W60: 3410.860168 | X60: 78.72386181 | Y60: 40.46774045 | Z60: 54.81613457 | AA60: 219.1075526 | AB60: 149.1242641 | AC60: 940.4340076 | AD60: 148.22919 | AE60: 141.4566134 | AF60: 31.71055227 | AG60: 67.23194342 | AH60: 0.05668895893 | AI60: 32.50635359 | AJ60: 110.2106069 | AK60: 288.4679765 | AL60: 70.84219342 | AM60: 246.5906332 | AN60: 333.0288597 | AO60: 615.044542 | AP60: 3.977944195 | AQ60: 39.98289465 | AR60: 2393.986382 | AS60: 106.3396068 | AT60: 0.2927443164 | AU60: 107.488152 | AV60: 1.996574196 | AW60: 1435.916032 | AX60: 13.55512847 | AY60: 90.51801477 | AZ60: 154.2296635 | BA60: 27.56887304 | BB60: 75.71670637 | BC60: 143.1884192 | BD60: 2.307726936 | BE60: 128.637067 | BF60: 41.0363455 | BG60: 4.03211425 | BH60: 165.7611362 | BI60: 1.052665927 | BJ60: 8.811977676 | BK60: 545.0106761 | BL60: 186.8718087 | BM60: 19.0042825 | BN60: 3457.836857 | BO60: 48.68418498 | BP60: 1358.146859 | BQ60: 673.3938421 | BR60: 187.5689429 | BS60: 1.342149283 | BT60: 143.6841675 | BU60: 18.97906451 | BV60: 1024.77772 | BW60: 432.0368931 | BX60: 38.75764453 | BY60: 38.02183315 | BZ60: 10.48992865 | CA60: 11122.87833 | CB60: 1319.425012 | CC60: 65.60310828 | CD60: 9.147076921 | CE60: 553.4965844 | CF60: 113.6184477 | CG60: 0.8731812545 | CH60: 77.28751769 | CI60: 7.507467813 | CJ60: 6.818078965 | CK60: 35.67217585 | CL60: 1178.447722 | CM60: 16.54468444 | CN60: 17.53076498 | CO60: 68.25635384 | CP60: 80.3500546 | CQ60: 11.36673226 | CR60: 10.31424076 | CS60: 9.627331062 | CT60: 792.829862 | CU60: 55.83465276 | CV60: 351.4002975 | CW60: 404.7120072 | CX60: 631.3836526 | CY60: 24.42316172 | CZ60: 38.97237372 | DA60: 40.54343919 | DB60: 43.66206945 | DC60: 14.2454468 | DD60: 215.450114 | DE60: 5.158463796 | DF60: 18.32198235 | DG60: 98.62426059 | DH60: 9.520756455 | DI60: 65.10817241 | DJ60: 493.0407321 | DK60: 3.294318149 | DL60: 12.76485505 | DM60: 76.96616225 | DN60: 117.6540972 | DO60: 31.03516153 | DP60: 117.5274291 | DQ60: 53.97617755 | DR60: 43.48052662 | DS60: 844.9457758 | DT60: 0.05400893569 | DU60: 19.26587748 | DV60: 56.31923938 | DW60: 212.8716986 | DX60: 359.6117245 | DY60: 23.31908975 | DZ60: 65.12706591 | EA60: 58.57469805 | EB60: 1409.827704 | EC60: 0.8431589111 | ED60: 50.10332795 | EE60: 222.471384 | EF60: 58.88764428 | EG60: 450.9061661 | EH60: 18.32240282 | EI60: 65.56816589 | EJ60: 49.6980551 | EK60: 114.5335593 | EL60: 263.6013124 | EM60: 11.56592426 | EN60: 63.58918223 | EO60: 52.36179319 | EP60: 75.95664953 | EQ60: 70.1303276 | ER60: 60.04204132 | ES60: 114.9014927 | ET60: 64.66912585 | EU60: 177.1326677 | EV60: 59.87616974 | EW60: 55.84345643 | EX60: 58.77824491 | EY60: 25.42804232 | EZ60: 62.25876271 | FA60: 64.15842842 | FB60: 52.10897619 | FC60: 601.9824672 | FD60: 68.93147014 | FE60: 58.80039774 | FF60: 63.79242627 | FG60: 426.3232064 | FH60: 63.18388305 | FI60: 62.5381591 | FJ60: 64.13537592 | FK60: 62.37328332 | FL60: 52.08299984 | FM60: 144.7856682 | FN60: 66.71735258 | FO60: 65.43203793 | FP60: 74.49520806 | FQ60: 21.2891515 | FR60: 152.8236034 | FS60: 201.2408548 | FT60: 70.71044235 | FU60: 69.24708841 | FV60: 80.56280725 | FW60: 1.262842077e-05 | FX60: 0.3581927078 | FY60: 33.35072862 | FZ60: 50.10641473 | GA60: 59.86356604 | GB60: 8.721240825 | GC60: 89.77335729 | GD60: 64.68081723 | GE60: 13.41201404 | GF60: 12.30820982 | GG60: 188.6651641 | GH60: 180.8473133 | GI60: 67.17943142 | GJ60: 1755.304357 | GK60: 2.639923031 | GL60: 48.35234839 | GM60: 167.166579 | GN60: 62.27444306 | GO60: 127.1776049 | GP60: 69.07991775 | GQ60: 0.1513702541 | GR60: 47.91030656 | GS60: 271.9880406 | GT60: 55.31866639 | GU60: 57.74203787 | GV60: 66.57001937 | GW60: 121.7397796 | GX60: 132.4403815 | GY60: 1.417112778 | GZ60: 113.3543183 | HA60: 2817.6042 | HB60: 1114.952159 | HC60: 822.4676803 | HD60: 2959.838364 | HE60: 1962.681294 | HF60: 528.1336112 | HG60: 280.7265832 | HH60: 179.6428517 | HI60: 103.7337465 | HJ60: 110.5934441 | HK60: 312.1114919 | HL60: 20.37159868 | HM60: 927.2770206 | HN60: 286.0549732 | HO60: 61.07592078 | HP60: 35.48071645 | HQ60: 55.83952318 | HR60: 56.65628352 | HS60: 84.66356342 | HT60: 82.9360045 | HU60: 48.76671266 | HV60: 77.91698956 | HW60: 208.2560846 | HX60: 499.376189 | HY60: 60.72082583 | HZ60: 112.1869323 | IA60: 48.4836128 | IB60: 55.7711338 | IC60: 8.627327009e-10 | ID60: 3.4127515 | IE60: 742.3443796 | IF60: 329.1259664 | IG60: 10.13401538 | IH60: 282.3514337 | II60: 118250
A61: =+MATCH(B61,RUT[EMPRESA],0) -> 24 | B61: BE FORESTALES | C61: 632761993.9 | D61: 632761993.9 | F61: =IFERROR(INDEX($B$9:$B$511,MATCH(0,INDEX(COUNTIF($F$8:F60,$B$9:$B$511),0,0),0)),"") -> BE FORESTALES | H61: 632761993.9 | J61: CODELCO | K61: 574709.2752 | L61: 260813.0063 | M61: 23750.1161 | N61: 716815.3935 | O61: 106509.7821 | P61: 24312.7747 | Q61: 1739.425443 | R61: 298.0704169 | S61: 1294.388972 | T61: 21455.69978 | U61: 12192.62438 | V61: 2026.140377 | W61: 113131.1505 | X61: 2611.107057 | Y61: 1342.230935 | Z61: 1818.137379 | AA61: 7267.342628 | AB61: 4946.142241 | AC61: 31192.24359 | AD61: 4916.454492 | AE61: 4691.822189 | AF61: 1051.773184 | AG61: 2229.943982 | AH61: 1.880255075 | AI61: 1078.168262 | AJ61: 3655.457023 | AK61: 9567.883889 | AL61: 2349.68848 | AM61: 8178.899355 | AN61: 11045.87587 | AO61: 20399.75056 | AP61: 131.9401503 | AQ61: 1326.149607 | AR61: 79403.55812 | AS61: 3527.063985 | AT61: 9.709721207 | AU61: 3565.158844 | AV61: 66.22222096 | AW61: 47626.35366 | AX61: 449.5954694 | AY61: 3002.294624 | AZ61: 5115.47774 | BA61: 914.4022828 | BB61: 2511.365954 | BC61: 4749.262592 | BD61: 76.54251137 | BE61: 4266.624448 | BF61: 1361.090384 | BG61: 133.7368586 | BH61: 5497.95275 | BI61: 34.91474334 | BJ61: 292.2750049 | BK61: 18076.87262 | BL61: 6198.149927 | BM61: 630.3325956 | BN61: 114689.2697 | BO61: 1614.753342 | BP61: 45046.91166 | BQ61: 22335.0757 | BR61: 6221.272421 | BS61: 44.51630528 | BT61: 4765.705533 | BU61: 629.4961672 | BV61: 33989.74944 | BW61: 14329.76679 | BX61: 1285.510604 | BY61: 1261.105268 | BZ61: 347.9291551 | CA61: 368922.7818 | CB61: 43762.58839 | CC61: 2175.918902 | CD61: 303.3895511 | CE61: 18358.33258 | CF61: 3768.488026 | CG61: 28.96160939 | CH61: 2563.466504 | CI61: 249.007121 | CJ61: 226.1415242 | CK61: 1183.172014 | CL61: 39086.66436 | CM61: 548.7528343 | CN61: 581.4590784 | CO61: 2263.921549 | CP61: 2665.044496 | CQ61: 377.0109104 | CR61: 342.1019525 | CS61: 319.3185839 | CT61: 26296.52052 | CU61: 1851.919513 | CV61: 11655.21832 | CW61: 13423.45705 | CX61: 20941.68494 | CY61: 810.0655692 | CZ61: 1292.632725 | DA61: 1344.741705 | DB61: 1448.180196 | DC61: 472.4918953 | DD61: 7146.032984 | DE61: 171.0955346 | DF61: 607.7021161 | DG61: 3271.161969 | DH61: 315.7837255 | DI61: 2159.502907 | DJ61: 16353.13748 | DK61: 109.2656936 | DL61: 423.3837409 | DM61: 2552.807812 | DN61: 3902.34214 | DO61: 1029.371875 | DP61: 3898.140822 | DQ61: 1790.277749 | DR61: 1442.158798 | DS61: 28025.09718 | DT61: 1.791364268 | DU61: 639.0091579 | DV61: 1867.992245 | DW61: 7060.512297 | DX61: 11927.57431 | DY61: 773.4457941 | DZ61: 2160.129565 | EA61: 1942.801127 | EB61: 46761.058 | EC61: 27.96583059 | ED61: 1661.823368 | EE61: 7378.913932 | EF61: 1953.180904 | EG61: 14955.6214 | EH61: 607.7160621 | EI61: 2174.759936 | EJ61: 1648.381309 | EK61: 3798.840378 | EL61: 8743.108267 | EM61: 383.6176956 | EN61: 2109.121156 | EO61: 1736.731971 | EP61: 2519.324371 | EQ61: 2326.077368 | ER61: 1991.469857 | ES61: 3811.043963 | ET61: 2144.940644 | EU61: 5875.122841 | EV61: 1985.968241 | EW61: 1852.211513 | EX61: 1949.552354 | EY61: 843.3953725 | EZ61: 2064.993903 | FA61: 2128.001871 | FB61: 1728.346556 | FC61: 19966.50865 | FD61: 2286.313755 | FE61: 1950.287117 | FF61: 2115.862339 | FG61: 14140.25566 | FH61: 2095.678224 | FI61: 2074.260901 | FJ61: 2127.237267 | FK61: 2068.792314 | FL61: 1727.484975 | FM61: 4802.240023 | FN61: 2212.876073 | FO61: 2170.244854 | FP61: 2470.851391 | FQ61: 706.1169566 | FR61: 5068.841645 | FS61: 6674.741356 | FT61: 2345.31857 | FU61: 2296.782158 | FV61: 2672.101059 | FW61: 0.0004188584991 | FX61: 11.88050847 | FY61: 1106.174429 | FZ61: 1661.92575 | GA61: 1985.550202 | GB61: 289.2654519 | GC61: 2977.595882 | GD61: 2145.328423 | GE61: 444.8486608 | GF61: 408.2377665 | GG61: 6257.631804 | GH61: 5998.329925 | GI61: 2228.202268 | GJ61: 58219.80132 | GK61: 87.56076615 | GL61: 1603.747011 | GM61: 5544.568369 | GN61: 2065.513988 | GO61: 4218.217119 | GP61: 2291.237454 | GQ61: 5.020637066 | GR61: 1589.085401 | GS61: 9021.278631 | GT61: 1834.805316 | GU61: 1915.183517 | GV61: 2207.989336 | GW61: 4037.855743 | GX61: 4392.772493 | GY61: 47.00268878 | GZ61: 3759.727403 | HA61: 93454.08167 | HB61: 36980.64836 | HC61: 27279.54542 | HD61: 98171.69358 | HE61: 65098.06378 | HF61: 17517.09542 | HG61: 9311.117945 | HH61: 5958.380433 | HI61: 3440.633007 | HJ61: 3668.154936 | HK61: 10352.09021 | HL61: 675.6836347 | HM61: 30755.85364 | HN61: 9487.849578 | HO61: 2025.761492 | HP61: 1176.821703 | HQ61: 1852.081055 | HR61: 1879.1713 | HS61: 2808.114628 | HT61: 2750.815085 | HU61: 1617.490614 | HV61: 2584.34478 | HW61: 6907.421965 | HX61: 16563.27143 | HY61: 2013.98373 | HZ61: 3721.007633 | IA61: 1608.100779 | IB61: 1849.812721 | IC61: 2.861505256e-08 | ID61: 113.193882 | IE61: 24622.02188 | IF61: 10916.425 | IG61: 336.124251 | IH61: 9365.010862 | II61: 3922107
A62: =+MATCH(B62,RUT[EMPRESA],0) -> 10 | B62: ALLIPEN | C62: 5973308.973 | D62: 5973308.973 | F62: =IFERROR(INDEX($B$9:$B$511,MATCH(0,INDEX(COUNTIF($F$8:F61,$B$9:$B$511),0,0),0)),"") -> ALLIPEN | H62: 5973308.973 | J62: EDELNOR_TRANSMISION | K62: 116990.0032 | L62: 53092.08633 | M62: 4834.663853 | N62: 145917.6645 | O62: 21681.53584 | P62: 4949.200775 | Q62: 354.0840507 | R62: 60.67634637 | S62: 263.4907361 | T62: 4367.603751 | U62: 2481.976936 | V62: 412.4488319 | W62: 23029.40674 | X62: 531.5268714 | Y62: 273.229628 | Z62: 370.1069516 | AA62: 1479.367872 | AB62: 1006.855504 | AC62: 6349.611596 | AD62: 1000.812153 | AE62: 955.0851477 | AF62: 214.1029448 | AG62: 453.935868 | AH62: 0.3827518657 | AI62: 219.476027 | AJ62: 744.1187178 | AK62: 1947.67479 | AL62: 478.3115128 | AM62: 1664.927822 | AN62: 2248.540453 | AO62: 4152.650717 | AP62: 26.8582382 | AQ62: 269.9560517 | AR62: 16163.68992 | AS62: 717.9825432 | AT62: 1.976547734 | AU62: 725.7372775 | AV62: 13.48044686 | AW62: 9695.001471 | AX62: 91.52136165 | AY62: 611.1584987 | AZ62: 1041.326081 | BA62: 186.1392023 | BB62: 511.2231936 | BC62: 966.7779344 | BD62: 15.58128438 | BE62: 868.5302804 | BF62: 277.0687291 | BG62: 27.22398296 | BH62: 1119.184147 | BI62: 7.107377786 | BJ62: 59.49661027 | BK62: 3679.796861 | BL62: 1261.718944 | BM62: 128.3128976 | BN62: 23346.58342 | BO62: 328.7053244 | BP62: 9169.92046 | BQ62: 4546.612855 | BR62: 1266.425847 | BS62: 9.061908209 | BT62: 970.125122 | BU62: 128.1426311 | BV62: 6919.082514 | BW62: 2917.021763 | BX62: 261.6834219 | BY62: 256.715379 | BZ62: 70.82578051 | CA62: 75099.3229 | CB62: 8908.478735 | CC62: 442.9383175 | CD62: 61.75912953 | CE62: 3737.091919 | CF62: 767.1277382 | CG62: 5.895535226 | CH62: 521.8289796 | CI62: 50.68883547 | CJ62: 46.03422772 | CK62: 240.8509897 | CL62: 7956.629877 | CM62: 111.7062115 | CN62: 118.3640188 | CO62: 460.8524706 | CP62: 542.5065814 | CQ62: 76.7457731 | CR62: 69.63957302 | CS62: 65.00170395 | CT62: 5353.019611 | CU62: 376.9837711 | CV62: 2372.580517 | CW62: 2732.52991 | CX62: 4262.968938 | CY62: 164.9000245 | CZ62: 263.1332279 | DA62: 273.7407299 | DB62: 294.7970621 | DC62: 96.18224509 | DD62: 1454.67362 | DE62: 34.82885697 | DF62: 123.7061513 | DG62: 665.8901567 | DH62: 64.28213474 | DI62: 439.5966152 | DJ62: 3328.906786 | DK62: 22.24253967 | DL62: 86.18560262 | DM62: 519.6592556 | DN62: 794.37559 | DO62: 209.5428493 | DP62: 793.5203538 | DQ62: 364.4357393 | DR62: 293.5713232 | DS62: 5704.895243 | DT62: 0.3646569154 | DU62: 130.0791316 | DV62: 380.2555975 | DW62: 1437.264704 | DX62: 2428.022336 | DY62: 157.445564 | DZ62: 439.7241801 | EA62: 395.4839776 | EB62: 9518.8586 | EC62: 5.69283071 | ED62: 338.2870776 | EE62: 1502.079751 | EF62: 397.5969244 | EG62: 3044.423105 | EH62: 123.7089902 | EI62: 442.7023939 | EJ62: 335.5507611 | EK62: 773.3063782 | EL62: 1779.780332 | EM62: 78.09067539 | EN62: 429.3407146 | EO62: 353.5357575 | EP62: 512.8432391 | EQ62: 473.5051453 | ER62: 405.3911691 | ES62: 775.7905864 | ET62: 436.6322656 | EU62: 1195.962324 | EV62: 404.2712393 | EW62: 377.0432116 | EX62: 396.858283 | EY62: 171.6847659 | EZ62: 420.3580033 | FA62: 433.1841445 | FB62: 351.8287905 | FC62: 4064.458349 | FD62: 465.4107131 | FE62: 397.0078541 | FF62: 430.7129754 | FG62: 2878.444158 | FH62: 426.6042202 | FI62: 422.2444286 | FJ62: 433.0284989 | FK62: 421.1312223 | FL62: 351.6534037 | FM62: 977.5622216 | FN62: 450.4614595 | FO62: 441.7832867 | FP62: 502.9758953 | FQ62: 143.7398501 | FR62: 1031.832661 | FS62: 1358.735706 | FT62: 477.4219574 | FU62: 467.541701 | FV62: 543.9430422 | FW62: 8.526442722e-05 | FX62: 2.418441435 | FY62: 225.1770688 | FZ62: 338.3079189 | GA62: 404.1861418 | GB62: 58.88397424 | GC62: 606.1307288 | GD62: 436.7112034 | GE62: 90.55508327 | GF62: 83.10243054 | GG62: 1273.827301 | GH62: 1221.042826 | GI62: 453.5813181 | GJ62: 11851.44392 | GK62: 17.82420218 | GL62: 326.4648339 | GM62: 1128.6734 | GN62: 420.4638737 | GO62: 858.6763006 | GP62: 466.413 | GQ62: 1.022019953 | GR62: 323.4802608 | GS62: 1836.405748 | GT62: 373.4999402 | GU62: 389.8620321 | GV62: 449.4666968 | GW62: 821.9612538 | GX62: 894.2094557 | GY62: 9.568045879 | GZ62: 765.3443923 | HA62: 19023.86787 | HB62: 7527.921261 | HC62: 5553.127894 | HD62: 19984.20288 | HE62: 13251.60915 | HF62: 3565.846487 | HG62: 1895.406539 | HH62: 1212.910555 | HI62: 700.388325 | HJ62: 746.7035531 | HK62: 2107.310808 | HL62: 137.5447274 | HM62: 6260.778401 | HN62: 1931.382702 | HO62: 412.3717046 | HP62: 239.5582962 | HQ62: 377.0166551 | HR62: 382.5312483 | HS62: 571.6304809 | HT62: 559.9663683 | HU62: 329.2625338 | HV62: 526.0790406 | HW62: 1406.101055 | HX62: 3371.682452 | HY62: 409.9741786 | HZ62: 757.4624489 | IA62: 327.3511034 | IB62: 376.5549045 | IC62: 5.824988801e-09 | ID62: 23.04217661 | IE62: 5012.152307 | IF62: 2222.188943 | IG62: 68.42272937 | IH62: 1906.377186 | II62: 798399
A63: =+MATCH(B63,RUT[EMPRESA],0) -> 90 | B63: EL CANELO | C63: -4077116.235 | D63: -4077116.235 | F63: =IFERROR(INDEX($B$9:$B$511,MATCH(0,INDEX(COUNTIF($F$8:F62,$B$9:$B$511),0,0),0)),"") -> EL CANELO | G63: -4077116.235 | J63: TEN | K63: 865673.6245 | L63: 392857.6591 | M63: 35774.34709 | N63: 1079725.361 | O63: 160433.6541 | P63: 36621.86901 | Q63: 2620.063382 | R63: 448.9777864 | S63: 1949.713431 | T63: 32318.31152 | U63: 18365.51766 | V63: 3051.936622 | W63: 170407.2951 | X63: 3933.06078 | Y63: 2021.776868 | Z63: 2738.625672 | AA63: 10946.65965 | AB63: 7450.279761 | AC63: 46984.28184 | AD63: 7405.56167 | AE63: 7067.202314 | AF63: 1584.265896 | AG63: 3358.922107 | AH63: 2.832192373 | AI63: 1624.024298 | AJ63: 5506.145223 | AK63: 14411.92109 | AL63: 3539.29096 | AM63: 12319.72017 | AN63: 16638.19224 | AO63: 30727.75535 | AP63: 198.738933 | AQ63: 1997.55387 | AR63: 119604.0658 | AS63: 5312.749238 | AT63: 14.62556794 | AU63: 5370.130798 | AV63: 99.74926892 | AW63: 71738.66853 | AX63: 677.2170841 | AY63: 4522.299155 | AZ63: 7705.346595 | BA63: 1377.346726 | BB63: 3782.822658 | BC63: 7153.723698 | BD63: 115.2945256 | BE63: 6426.735063 | BF63: 2050.184497 | BG63: 201.4452804 | BH63: 8281.46141 | BI63: 52.59141225 | BJ63: 440.2482677 | BK63: 27228.8486 | BL63: 9336.155069 | BM63: 949.4579716 | BN63: 172754.2604 | BO63: 2432.272174 | BP63: 67853.30423 | BQ63: 33642.89872 | BR63: 9370.984041 | BS63: 67.05406195 | BT63: 7178.491387 | BU63: 948.1980754 | BV63: 51198.11157 | BW63: 21584.65452 | BX63: 1936.340115 | BY63: 1899.578823 | BZ63: 524.0790532 | CA63: 555701.3527 | CB63: 65918.75256 | CC63: 3277.545159 | CD63: 456.9898968 | CE63: 27652.80637 | CF63: 5676.401669 | CG63: 43.62432008 | CH63: 3861.300723 | CI63: 375.0746792 | CJ63: 340.6326665 | CK63: 1782.189447 | CL63: 58875.49734 | CM63: 826.5759324 | CN63: 875.8407245 | CO63: 3410.101868 | CP63: 4014.305715 | CQ63: 567.8843468 | CR63: 515.301649 | CS63: 480.9834952 | CT63: 39609.94752 | CU63: 2789.511056 | CV63: 17556.03316 | CW63: 20219.49744 | CX63: 31544.06077 | CY63: 1220.186323 | CZ63: 1947.06803 | DA63: 2025.558794 | DB63: 2181.366221 | DC63: 711.705534 | DD63: 10763.93325 | DE63: 257.7179418 | DF63: 915.3701117 | DG63: 4927.28891 | DH63: 475.6590053 | DI63: 3252.818059 | DJ63: 24632.41921 | DK63: 164.5848312 | DL63: 637.7348572 | DM63: 3845.245738 | DN63: 5878.023568 | DO63: 1550.523231 | DP63: 5871.695203 | DQ63: 2696.661242 | DR63: 2172.296302 | DS63: 42213.66959 | DT63: 2.698297846 | DU63: 962.5273119 | DV63: 2813.721106 | DW63: 10635.11507 | DX63: 17966.27778 | DY63: 1165.026654 | DZ63: 3253.761982 | EA63: 2926.404298 | EB63: 70435.29018 | EC63: 42.12439746 | ED63: 2503.172857 | EE63: 11114.71738 | EF63: 2942.039158 | EG63: 22527.36739 | EH63: 915.3911183 | EI63: 3275.79943 | EJ63: 2482.92534 | EK63: 5722.120838 | EL63: 13169.5773 | EM63: 577.8360214 | EN63: 3176.928988 | EO63: 2616.006258 | EP63: 3794.810269 | EQ63: 3503.725994 | ER63: 2999.713078 | ES63: 5740.502865 | ET63: 3230.8832 | EU63: 8849.585527 | EV63: 2991.426099 | EW63: 2789.95089 | EX63: 2936.573543 | EY63: 1270.39037 | EZ63: 3110.460947 | FA63: 3205.368648 | FB63: 2603.375467 | FC63: 30075.17133 | FD63: 3443.830821 | FE63: 2937.680302 | FF63: 3187.083103 | FG63: 21299.19752 | FH63: 3156.680155 | FI63: 3124.41965 | FJ63: 3204.21694 | FK63: 3116.182422 | FL63: 2602.077683 | FM63: 7233.522593 | FN63: 3333.21304 | FO63: 3268.998449 | FP63: 3721.796344 | FQ63: 1063.61051 | FR63: 7635.099534 | FS63: 10054.03565 | FT63: 3532.708649 | FU63: 3459.599177 | FV63: 4024.934882 | FW63: 0.0006309185718 | FX63: 17.89538341 | FY63: 1666.209453 | FZ63: 2503.327073 | GA63: 2990.796415 | GB63: 435.7150355 | GC63: 4485.09591 | GD63: 3231.467304 | GE63: 670.0670569 | GF63: 614.9207647 | GG63: 9425.751486 | GH63: 9035.170009 | GI63: 3356.298597 | GJ63: 87695.37678 | GK63: 131.8911127 | GL63: 2415.693548 | GM63: 8351.677628 | GN63: 3111.244341 | GO63: 6353.820026 | GP63: 3451.247296 | GQ63: 7.562489895 | GR63: 2393.609045 | GS63: 13588.58001 | GT63: 2763.732268 | GU63: 2884.804419 | GV63: 3325.852242 | GW63: 6082.145124 | GX63: 6616.749459 | GY63: 70.79925401 | GZ63: 5663.205708 | HA63: 140768.1015 | HB63: 55703.2456 | HC63: 41090.65919 | HD63: 147874.1504 | HE63: 98055.9724 | HF63: 26385.66687 | HG63: 14025.15945 | HH63: 8974.994851 | HI63: 5182.559904 | HJ63: 5525.271847 | HK63: 15593.15612 | HL63: 1017.769377 | HM63: 46326.95599 | HN63: 14291.36694 | HO63: 3051.365914 | HP63: 1772.624095 | HQ63: 2789.754384 | HR63: 2830.559903 | HS63: 4229.809528 | HT63: 4143.500319 | HU63: 2436.395275 | HV63: 3892.749271 | HW63: 10404.51802 | HX63: 24948.93998 | HY63: 3033.625296 | HZ63: 5604.882857 | IA63: 2422.251546 | IB63: 2786.337636 | IC63: 4.310230813e-08 | ID63: 170.5017864 | IE63: 37087.68215 | IF63: 16443.20286 | IG63: 506.2975511 | IH63: 14106.33732 | II63: 5907795
A64: =+MATCH(B64,RUT[EMPRESA],0) -> 33 | B64: CARBOMET | C64: 39888376.64 | D64: 39888376.64 | F64: =IFERROR(INDEX($B$9:$B$511,MATCH(0,INDEX(COUNTIF($F$8:F63,$B$9:$B$511),0,0),0)),"") -> CARBOMET | H64: 39888376.64 | J64: Total | K64: 7635566423 | L64: 3465152069 | M64: 315543174.4 | N64: 9523583117 | O64: 1415085071 | P64: 323018635.9 | Q64: 23109942.85 | R64: 3960152.665 | S64: 17197204.57 | T64: 285059643 | U64: 161990761.9 | V64: 26919226.99 | W64: 1503056330 | X64: 34691072.92 | Y64: 17832831.14 | Z64: 24155706.77 | AA64: 96553648.52 | AB64: 65714265.03 | AC64: 414419008.2 | AD64: 65319834.67 | AE64: 62335378.1 | AF64: 13973820.08 | AG64: 29626954.24 | AH64: 24981.0002 | AI64: 14324504.12 | AJ64: 48566268.39 | AK64: 127118555.6 | AL64: 31217875.25 | AM64: 108664557.9 | AN64: 146755103.1 | AO64: 271030340.3 | AP64: 1752952.014 | AQ64: 17619175.2 | AR64: 1054952771 | AS64: 46860443.18 | AT64: 129003.001 | AU64: 47366570.09 | AV64: 879826.0071 | AW64: 632761993.9 | AX64: 5973308.973 | AY64: 39888376.64 | AZ64: 67964050.28 | BA64: 12148715.31 | BB64: 33365916.27 | BC64: 63098529.2 | BD64: 1016941.008 | BE64: 56686216.46 | BF64: 18083397.1 | BG64: 1776823.014 | BH64: 73045599.27 | BI64: 463876.0038 | BJ64: 3883155.031 | BK64: 240168668.9 | BL64: 82348393.38 | BM64: 8374575.825 | BN64: 1523757445 | BO64: 21453553.88 | BP64: 598491621.8 | BQ64: 296742999.4 | BR64: 82655597.99 | BS64: 591442.0048 | BT64: 63316989.51 | BU64: 8363463.068 | BV64: 451586568.6 | BW64: 190384757.8 | BX64: 17079246.9 | BY64: 16754998.5 | BZ64: 4622574.037 | CA64: 4901494594 | CB64: 581428149.7 | CC64: 28909179 | CD64: 4030822.487 | CE64: 243908135.7 | CF64: 50067994.17 | CG64: 384782.8838 | CH64: 34058122.28 | CI64: 3308299.508 | CJ64: 3004508.024 | CK64: 15719580.13 | CL64: 519303994 | CM64: 7290710.098 | CN64: 7725244.063 | CO64: 30078378.95 | CP64: 35407683.76 | CQ64: 5008953.176 | CR64: 4545154.037 | CS64: 4242455.034 | CT64: 349374610.4 | CU64: 24604534.96 | CV64: 154850804.6 | CW64: 178343559.7 | CX64: 278230460.6 | CY64: 10762501.54 | CZ64: 17173871.14 | DA64: 17866189.14 | DB64: 19240469.16 | DC64: 6277510.051 | DD64: 94941933.02 | DE64: 2273169.018 | DF64: 8073908.102 | DG64: 43460538.35 | DH64: 4195491.034 | DI64: 28691076.69 | DJ64: 217267186.8 | DK64: 1451700.012 | DL64: 5625060.906 | DM64: 33916511.27 | DN64: 51846375.03 | DO64: 13676197.11 | DP64: 51790556.48 | DQ64: 23785564.73 | DR64: 19160469.07 | DS64: 372340416.8 | DT64: 23800.00019 | DU64: 8489852.314 | DV64: 24818076.69 | DW64: 93805708.31 | DX64: 158469316.3 | DY64: 10275972.55 | DZ64: 28699402.45 | EA64: 25811984.76 | EB64: 621265707.4 | EC64: 371553.003 | ED64: 22078924.52 | EE64: 98035980.79 | EF64: 25949890.09 | EG64: 198699839.3 | EH64: 8074093.387 | EI64: 28893781.02 | EJ64: 21900333.82 | EK64: 50471254.41 | EL64: 116160616.9 | EM64: 5096730.682 | EN64: 28021706.59 | EO64: 23074157.49 | EP64: 33471651.5 | EQ64: 30904178.89 | ER64: 26458595.72 | ES64: 50633390.8 | ET64: 28497603 | EU64: 78056667.32 | EV64: 26385501.46 | EW64: 24608414.46 | EX64: 25901681.31 | EY64: 11205320.09 | EZ64: 27435433.52 | FA64: 28272555.07 | FB64: 22962749.17 | FC64: 265274304.2 | FD64: 30375880.98 | FE64: 25911443.35 | FF64: 28111269.7 | FG64: 187866919.9 | FH64: 27843104.28 | FI64: 27558554.51 | FJ64: 28262396.58 | FK64: 27485899.07 | FL64: 22951302.23 | FM64: 63802385.42 | FN64: 29400190.62 | FO64: 28833793.81 | FP64: 32827641.27 | FQ64: 9381444.076 | FR64: 67344444.83 | FS64: 88680369.68 | FT64: 31159816.8 | FU64: 30514963.8 | FV64: 35501437 | FW64: 5.564938709 | FX64: 157844.0013 | FY64: 14696593.03 | FZ64: 22080284.77 | GA64: 26379947.41 | GB64: 3843170.221 | GC64: 39560230.05 | GD64: 28502755.01 | GE64: 5910243.048 | GF64: 5423832.044 | GG64: 83138667.42 | GH64: 79693592.13 | GI64: 29603813.89 | GJ64: 773506152.3 | GK64: 1163329.139 | GL64: 21307324.17 | GM64: 73664932.68 | GN64: 27442343.34 | GO64: 56043078.45 | GP64: 30441297.07 | GQ64: 66704.00054 | GR64: 21112530.56 | GS64: 119856378.1 | GT64: 24377156.37 | GU64: 25445058.21 | GV64: 29335265.61 | GW64: 53646803.81 | GX64: 58362214.78 | GY64: 624476.0051 | GZ64: 49951600.84 | HA64: 1241627513 | HB64: 491323542.4 | HC64: 362435043.4 | HD64: 1304305533 | HE64: 864890496 | HF64: 232731489.5 | HG64: 123707172.7 | HH64: 79162824.64 | HI64: 45712124.37 | HJ64: 48734972.4 | HK64: 137537492.1 | HL64: 8977108.073 | HM64: 408621147.3 | HN64: 126055222.7 | HO64: 26914193.14 | HP64: 15635210.13 | HQ64: 24606681.2 | HR64: 24966601.2 | HS64: 37308508.3 | HT64: 36547228.67 | HU64: 21489921.17 | HV64: 34335510.28 | HW64: 91771755.74 | HX64: 220059018.8 | HY64: 26757714.22 | HZ64: 49437171.4 | IA64: 21365168.17 | IB64: 24576544.2 | IC64: 0.0003801785424 | ID64: 1503889.779 | IE64: 327127282.8 | IF64: 145035223.6 | IG64: 4465734.512 | IH64: 124423192 | II64: =SUM($II$9:$II$63) -> 5.210897024e+10
A65: =+MATCH(B65,RUT[EMPRESA],0) -> 235 | B65: ORAZUL_CHILE | C65: -8204503.933 | D65: -8204503.933 | F65: =IFERROR(INDEX($B$9:$B$511,MATCH(0,INDEX(COUNTIF($F$8:F64,$B$9:$B$511),0,0),0)),"") -> ORAZUL_CHILE | G65: -8204503.933
A66: =+MATCH(B66,RUT[EMPRESA],0) -> 170 | B66: HIDRONALCAS | C66: 67964050.28 | D66: 67964050.28 | F66: =IFERROR(INDEX($B$9:$B$511,MATCH(0,INDEX(COUNTIF($F$8:F65,$B$9:$B$511),0,0),0)),"") -> HIDRONALCAS | H66: 67964050.28
A67: =+MATCH(B67,RUT[EMPRESA],0) -> 163 | B67: HIDROCALLAO | C67: 12148715.31 | D67: 12148715.31 | F67: =IFERROR(INDEX($B$9:$B$511,MATCH(0,INDEX(COUNTIF($F$8:F66,$B$9:$B$511),0,0),0)),"") -> HIDROCALLAO | H67: 12148715.31
A68: =+MATCH(B68,RUT[EMPRESA],0) -> 280 | B68: RUCATAYO | C68: -610927810.4 | D68: -610927810.4 | F68: =IFERROR(INDEX($B$9:$B$511,MATCH(0,INDEX(COUNTIF($F$8:F67,$B$9:$B$511),0,0),0)),"") -> RUCATAYO | G68: -610927810.4
A69: =+MATCH(B69,RUT[EMPRESA],0) -> 181 | B69: KALTEMP | C69: -3433786.848 | D69: -3433786.848 | F69: =IFERROR(INDEX($B$9:$B$511,MATCH(0,INDEX(COUNTIF($F$8:F68,$B$9:$B$511),0,0),0)),"") -> KALTEMP | G69: -3433786.848
A70: =+MATCH(B70,RUT[EMPRESA],0) -> 127 | B70: ESTANCILLA SPA | C70: -2632106.635 | D70: -2632106.635 | F70: =IFERROR(INDEX($B$9:$B$511,MATCH(0,INDEX(COUNTIF($F$8:F69,$B$9:$B$511),0,0),0)),"") -> ESTANCILLA SPA | G70: -2632106.635
A71: =+MATCH(B71,RUT[EMPRESA],0) -> 217 | B71: MAPOCHO TREBAL | C71: 33365916.27 | D71: 33365916.27 | F71: =IFERROR(INDEX($B$9:$B$511,MATCH(0,INDEX(COUNTIF($F$8:F70,$B$9:$B$511),0,0),0)),"") -> MAPOCHO TREBAL | H71: 33365916.27
A72: =+MATCH(B72,RUT[EMPRESA],0) -> 318 | B72: UCUQUER | C72: 63098529.2 | D72: 63098529.2 | F72: =IFERROR(INDEX($B$9:$B$511,MATCH(0,INDEX(COUNTIF($F$8:F71,$B$9:$B$511),0,0),0)),"") -> UCUQUER | H72: 63098529.2
A73: =+MATCH(B73,RUT[EMPRESA],0) -> 303 | B73: TAMM | C73: 1016941.008 | D73: 1016941.008 | F73: =IFERROR(INDEX($B$9:$B$511,MATCH(0,INDEX(COUNTIF($F$8:F72,$B$9:$B$511),0,0),0)),"") -> TAMM | H73: 1016941.008
A74: =+MATCH(B74,RUT[EMPRESA],0) -> 301 | B74: TALINAY | C74: -75630182.42 | D74: =+C74 -> -75630182.42 | F74: =IFERROR(INDEX($B$9:$B$511,MATCH(0,INDEX(COUNTIF($F$8:F73,$B$9:$B$511),0,0),0)),"") -> TALINAY | G74: =IF(SUMIF($B$9:$B$400,F74,$D$9:$D$400)<-0.00001,SUMIF($B$9:$B$400,F74,$D$9:$D$400),"") -> -75630182.42 | H74: =IF(SUMIF($B$9:$B$400,F74,$D$9:$D$400)>0.00001,SUMIF($B$9:$B$400,F74,$D$9:$D$400),"") -> 
A75: =+MATCH(B75,RUT[EMPRESA],0) -> 279 | B75: ROBLERIA | C75: 56686216.46 | D75: 56686216.46 | F75: =IFERROR(INDEX($B$9:$B$511,MATCH(0,INDEX(COUNTIF($F$8:F74,$B$9:$B$511),0,0),0)),"") -> ROBLERIA | H75: 56686216.46
A76: =+MATCH(B76,RUT[EMPRESA],0) -> 135 | B76: GENERHOM | C76: 18083397.1 | D76: 18083397.1 | F76: =IFERROR(INDEX($B$9:$B$511,MATCH(0,INDEX(COUNTIF($F$8:F75,$B$9:$B$511),0,0),0)),"") -> GENERHOM | H76: 18083397.1
A77: =+MATCH(B77,RUT[EMPRESA],0) -> 323 | B77: WENKE | C77: 1776823.014 | D77: 1776823.014 | F77: =IFERROR(INDEX($B$9:$B$511,MATCH(0,INDEX(COUNTIF($F$8:F76,$B$9:$B$511),0,0),0)),"") -> WENKE | H77: 1776823.014
A78: =+MATCH(B78,RUT[EMPRESA],0) -> 160 | B78: HESA | C78: 0 | D78: 0 | F78: =IFERROR(INDEX($B$9:$B$511,MATCH(0,INDEX(COUNTIF($F$8:F77,$B$9:$B$511),0,0),0)),"") -> HESA
A79: =+MATCH(B79,RUT[EMPRESA],0) -> 162 | B79: HIDROBONITO | C79: 73045599.27 | D79: 73045599.27 | F79: =IFERROR(INDEX($B$9:$B$511,MATCH(0,INDEX(COUNTIF($F$8:F78,$B$9:$B$511),0,0),0)),"") -> HIDROBONITO | H79: 73045599.27
A80: =+MATCH(B80,RUT[EMPRESA],0) -> 20 | B80: ARRAYAN | C80: -59153.99952 | D80: -59153.99952 | F80: =IFERROR(INDEX($B$9:$B$511,MATCH(0,INDEX(COUNTIF($F$8:F79,$B$9:$B$511),0,0),0)),"") -> ARRAYAN | G80: -59153.99952
A81: =+MATCH(B81,RUT[EMPRESA],0) -> 299 | B81: SUBSOLE | C81: 463876.0038 | D81: 463876.0038 | F81: =IFERROR(INDEX($B$9:$B$511,MATCH(0,INDEX(COUNTIF($F$8:F80,$B$9:$B$511),0,0),0)),"") -> SUBSOLE | H81: 463876.0038
A82: =+MATCH(B82,RUT[EMPRESA],0) -> 293 | B82: SOLAIREDIRECT | C82: 3883155.031 | D82: 3883155.031 | F82: =IFERROR(INDEX($B$9:$B$511,MATCH(0,INDEX(COUNTIF($F$8:F81,$B$9:$B$511),0,0),0)),"") -> SOLAIREDIRECT | H82: 3883155.031
A83: =+MATCH(B83,RUT[EMPRESA],0) -> 286 | B83: SANTAMARTA | C83: 240168668.9 | D83: 240168668.9 | F83: =IFERROR(INDEX($B$9:$B$511,MATCH(0,INDEX(COUNTIF($F$8:F82,$B$9:$B$511),0,0),0)),"") -> SANTAMARTA | H83: 240168668.9
A84: =+MATCH(B84,RUT[EMPRESA],0) -> 275 | B84: RIO HUASCO | C84: 82348393.38 | D84: 82348393.38 | F84: =IFERROR(INDEX($B$9:$B$511,MATCH(0,INDEX(COUNTIF($F$8:F83,$B$9:$B$511),0,0),0)),"") -> RIO HUASCO | H84: 82348393.38
A85: =+MATCH(B85,RUT[EMPRESA],0) -> 285 | B85: SANTA IRENE | C85: 8374575.825 | D85: 8374575.825 | F85: =IFERROR(INDEX($B$9:$B$511,MATCH(0,INDEX(COUNTIF($F$8:F84,$B$9:$B$511),0,0),0)),"") -> SANTA IRENE | H85: 8374575.825
A86: =+MATCH(B86,RUT[EMPRESA],0) -> 64 | B86: CONTRA | C86: 0 | D86: 0 | F86: =IFERROR(INDEX($B$9:$B$511,MATCH(0,INDEX(COUNTIF($F$8:F85,$B$9:$B$511),0,0),0)),"") -> CONTRA
A87: =+MATCH(B87,RUT[EMPRESA],0) -> 60 | B87: COLMITO | C87: 1523757445 | D87: 1523757445 | F87: =IFERROR(INDEX($B$9:$B$511,MATCH(0,INDEX(COUNTIF($F$8:F86,$B$9:$B$511),0,0),0)),"") -> COLMITO | H87: 1523757445
A88: =+MATCH(B88,RUT[EMPRESA],0) -> 62 | B88: COMMONPLACE | C88: 21453553.88 | D88: 21453553.88 | F88: =IFERROR(INDEX($B$9:$B$511,MATCH(0,INDEX(COUNTIF($F$8:F87,$B$9:$B$511),0,0),0)),"") -> COMMONPLACE | H88: 21453553.88
A89: =+MATCH(B89,RUT[EMPRESA],0) -> 3 | B89: AELA_GENERACION | C89: -383774856.2 | D89: -383774856.2 | F89: =IFERROR(INDEX($B$9:$B$511,MATCH(0,INDEX(COUNTIF($F$8:F88,$B$9:$B$511),0,0),0)),"") -> AELA_GENERACION | G89: -383774856.2
A90: =+MATCH(B90,RUT[EMPRESA],0) -> 7 | B90: AGUAS DEL MELADO | C90: -223263937.2 | D90: -223263937.2 | F90: =IFERROR(INDEX($B$9:$B$511,MATCH(0,INDEX(COUNTIF($F$8:F89,$B$9:$B$511),0,0),0)),"") -> AGUAS DEL MELADO | G90: -223263937.2
A91: =+MATCH(B91,RUT[EMPRESA],0) -> 14 | B91: AMANECER SOLAR | C91: 598491621.8 | D91: 598491621.8 | F91: =IFERROR(INDEX($B$9:$B$511,MATCH(0,INDEX(COUNTIF($F$8:F90,$B$9:$B$511),0,0),0)),"") -> AMANECER SOLAR | H91: 598491621.8
A92: =+MATCH(B92,RUT[EMPRESA],0) -> 282 | B92: SAN_ANDRES_SPA | C92: 296742999.4 | D92: 296742999.4 | F92: =IFERROR(INDEX($B$9:$B$511,MATCH(0,INDEX(COUNTIF($F$8:F91,$B$9:$B$511),0,0),0)),"") -> SAN_ANDRES_SPA | H92: 296742999.4
A93: =+MATCH(B93,RUT[EMPRESA],0) -> 193 | B93: LAS_PAMPAS | C93: 0 | D93: 0 | F93: =IFERROR(INDEX($B$9:$B$511,MATCH(0,INDEX(COUNTIF($F$8:F92,$B$9:$B$511),0,0),0)),"") -> LAS_PAMPAS
A94: =+MATCH(B94,RUT[EMPRESA],0) -> 113 | B94: ENERGIA_LEON | C94: 82655597.99 | D94: 82655597.99 | F94: =IFERROR(INDEX($B$9:$B$511,MATCH(0,INDEX(COUNTIF($F$8:F93,$B$9:$B$511),0,0),0)),"") -> ENERGIA_LEON | H94: 82655597.99
A95: =+MATCH(B95,RUT[EMPRESA],0) -> 115 | B95: ENERGIAS_DEL_FUTURO | C95: 591442.0048 | D95: 591442.0048 | F95: =IFERROR(INDEX($B$9:$B$511,MATCH(0,INDEX(COUNTIF($F$8:F94,$B$9:$B$511),0,0),0)),"") -> ENERGIAS_DEL_FUTURO | H95: 591442.0048
A96: =+MATCH(B96,RUT[EMPRESA],0) -> 112 | B96: ENERGIA_BIOBIO | C96: 0 | D96: 0 | F96: =IFERROR(INDEX($B$9:$B$511,MATCH(0,INDEX(COUNTIF($F$8:F95,$B$9:$B$511),0,0),0)),"") -> ENERGIA_BIOBIO
A97: =+MATCH(B97,RUT[EMPRESA],0) -> 120 | B97: ENORCHILE | C97: -842888207.5 | D97: -842888207.5 | F97: =IFERROR(INDEX($B$9:$B$511,MATCH(0,INDEX(COUNTIF($F$8:F96,$B$9:$B$511),0,0),0)),"") -> ENORCHILE | G97: -842888207.5
A98: =+MATCH(B98,RUT[EMPRESA],0) -> 21 | B98: ARRAYAN_EOLICO | C98: -460400815 | D98: -460400815 | F98: =IFERROR(INDEX($B$9:$B$511,MATCH(0,INDEX(COUNTIF($F$8:F97,$B$9:$B$511),0,0),0)),"") -> ARRAYAN_EOLICO | G98: -460400815
A99: =+MATCH(B99,RUT[EMPRESA],0) -> 310 | B99: TOMAVAL | C99: 0 | D99: 0 | F99: =IFERROR(INDEX($B$9:$B$511,MATCH(0,INDEX(COUNTIF($F$8:F98,$B$9:$B$511),0,0),0)),"") -> TOMAVAL
A100: =+MATCH(B100,RUT[EMPRESA],0) -> 29 | B100: BIOCRUZ | C100: 63316989.51 | D100: 63316989.51 | F100: =IFERROR(INDEX($B$9:$B$511,MATCH(0,INDEX(COUNTIF($F$8:F99,$B$9:$B$511),0,0),0)),"") -> BIOCRUZ | H100: 63316989.51
A101: =+MATCH(B101,RUT[EMPRESA],0) -> 157 | B101: HBS | C101: 8363463.068 | D101: 8363463.068 | F101: =IFERROR(INDEX($B$9:$B$511,MATCH(0,INDEX(COUNTIF($F$8:F100,$B$9:$B$511),0,0),0)),"") -> HBS | H101: 8363463.068
A102: =+MATCH(B102,RUT[EMPRESA],0) -> 9 | B102: ALBA | C102: 451586568.6 | D102: 451586568.6 | F102: =IFERROR(INDEX($B$9:$B$511,MATCH(0,INDEX(COUNTIF($F$8:F101,$B$9:$B$511),0,0),0)),"") -> ALBA | H102: 451586568.6
A103: =+MATCH(B103,RUT[EMPRESA],0) -> 204 | B103: LOS_PADRES | C103: -39439.99968 | D103: -39439.99968 | F103: =IFERROR(INDEX($B$9:$B$511,MATCH(0,INDEX(COUNTIF($F$8:F102,$B$9:$B$511),0,0),0)),"") -> LOS_PADRES | G103: -39439.99968
A104: =+MATCH(B104,RUT[EMPRESA],0) -> 11 | B104: ALMEYDA | C104: -188834633.2 | D104: -188834633.2 | F104: =IFERROR(INDEX($B$9:$B$511,MATCH(0,INDEX(COUNTIF($F$8:F103,$B$9:$B$511),0,0),0)),"") -> ALMEYDA | G104: -188834633.2
A105: =+MATCH(B105,RUT[EMPRESA],0) -> 201 | B105: LOS_CURUROS | C105: 190384757.8 | D105: 190384757.8 | F105: =IFERROR(INDEX($B$9:$B$511,MATCH(0,INDEX(COUNTIF($F$8:F104,$B$9:$B$511),0,0),0)),"") -> LOS_CURUROS | H105: 190384757.8
A106: =+MATCH(B106,RUT[EMPRESA],0) -> 199 | B106: LOMAS_COLORADAS | C106: 17079246.9 | D106: 17079246.9 | F106: =IFERROR(INDEX($B$9:$B$511,MATCH(0,INDEX(COUNTIF($F$8:F105,$B$9:$B$511),0,0),0)),"") -> LOMAS_COLORADAS | H106: 17079246.9
A107: =+MATCH(B107,RUT[EMPRESA],0) -> 239 | B107: PAMA | C107: 16754998.5 | D107: 16754998.5 | F107: =IFERROR(INDEX($B$9:$B$511,MATCH(0,INDEX(COUNTIF($F$8:F106,$B$9:$B$511),0,0),0)),"") -> PAMA | H107: 16754998.5
A108: =+MATCH(B108,RUT[EMPRESA],0) -> 278 | B108: RIO_PUMA | C108: 4622574.037 | D108: 4622574.037 | F108: =IFERROR(INDEX($B$9:$B$511,MATCH(0,INDEX(COUNTIF($F$8:F107,$B$9:$B$511),0,0),0)),"") -> RIO_PUMA | H108: 4622574.037
A109: =+MATCH(B109,RUT[EMPRESA],0) -> 384 | B109: GM_HOLDINGS | C109: 4901494594 | D109: 4901494594 | F109: =IFERROR(INDEX($B$9:$B$511,MATCH(0,INDEX(COUNTIF($F$8:F108,$B$9:$B$511),0,0),0)),"") -> GM_HOLDINGS | H109: 4901494594
A110: =+MATCH(B110,RUT[EMPRESA],0) -> 339 | B110: PH_PUNTA_SIERRA | C110: 581428149.7 | D110: 581428149.7 | F110: =IFERROR(INDEX($B$9:$B$511,MATCH(0,INDEX(COUNTIF($F$8:F109,$B$9:$B$511),0,0),0)),"") -> PH_PUNTA_SIERRA | H110: 581428149.7
A111: =+MATCH(B111,RUT[EMPRESA],0) -> 319 | B111: UCUQUER_DOS | C111: 28909179 | D111: 28909179 | F111: =IFERROR(INDEX($B$9:$B$511,MATCH(0,INDEX(COUNTIF($F$8:F110,$B$9:$B$511),0,0),0)),"") -> UCUQUER_DOS | H111: 28909179
A112: =+MATCH(B112,RUT[EMPRESA],0) -> 260 | B112: PUNTA_PALMERAS | C112: -2738701.192 | D112: -2738701.192 | F112: =IFERROR(INDEX($B$9:$B$511,MATCH(0,INDEX(COUNTIF($F$8:F111,$B$9:$B$511),0,0),0)),"") -> PUNTA_PALMERAS | G112: -2738701.192
A113: =+MATCH(B113,RUT[EMPRESA],0) -> 81 | B113: EBCO_ATACAMA | C113: 4030822.487 | D113: 4030822.487 | F113: =IFERROR(INDEX($B$9:$B$511,MATCH(0,INDEX(COUNTIF($F$8:F112,$B$9:$B$511),0,0),0)),"") -> EBCO_ATACAMA | H113: 4030822.487
A114: =+MATCH(B114,RUT[EMPRESA],0) -> 340 | B114: ATRIA_ENERGIA | C114: -16148587.85 | D114: -16148587.85 | F114: =IFERROR(INDEX($B$9:$B$511,MATCH(0,INDEX(COUNTIF($F$8:F113,$B$9:$B$511),0,0),0)),"") -> ATRIA_ENERGIA | G114: -16148587.85
A115: =+MATCH(B115,RUT[EMPRESA],0) -> 122 | B115: EOLICA_TALTAL | C115: -266451928 | D115: -266451928 | F115: =IFERROR(INDEX($B$9:$B$511,MATCH(0,INDEX(COUNTIF($F$8:F114,$B$9:$B$511),0,0),0)),"") -> EOLICA_TALTAL | G115: -266451928
A116: =+MATCH(B116,RUT[EMPRESA],0) -> 265 | B116: PV_SALVADOR | C116: 243908135.7 | D116: 243908135.7 | F116: =IFERROR(INDEX($B$9:$B$511,MATCH(0,INDEX(COUNTIF($F$8:F115,$B$9:$B$511),0,0),0)),"") -> PV_SALVADOR | H116: 243908135.7
A117: =+MATCH(B117,RUT[EMPRESA],0) -> 59 | B117: COLLIL | C117: 50067994.17 | D117: 50067994.17 | F117: =IFERROR(INDEX($B$9:$B$511,MATCH(0,INDEX(COUNTIF($F$8:F116,$B$9:$B$511),0,0),0)),"") -> COLLIL | H117: 50067994.17
A118: =+MATCH(B118,RUT[EMPRESA],0) -> 218 | B118: MARIA_ELENA | C118: 384782.8838 | D118: 384782.8838 | F118: =IFERROR(INDEX($B$9:$B$511,MATCH(0,INDEX(COUNTIF($F$8:F117,$B$9:$B$511),0,0),0)),"") -> MARIA_ELENA | H118: 384782.8838
A119: =+MATCH(B119,RUT[EMPRESA],0) -> 192 | B119: LAS_FLORES | C119: 34058122.28 | D119: 34058122.28 | F119: =IFERROR(INDEX($B$9:$B$511,MATCH(0,INDEX(COUNTIF($F$8:F118,$B$9:$B$511),0,0),0)),"") -> LAS_FLORES | H119: 34058122.28
A120: =+MATCH(B120,RUT[EMPRESA],0) -> 2 | B120: ACCIONA_ENERGIA | C120: -1916642416 | D120: -1916642416 | F120: =IFERROR(INDEX($B$9:$B$511,MATCH(0,INDEX(COUNTIF($F$8:F119,$B$9:$B$511),0,0),0)),"") -> ACCIONA_ENERGIA | G120: -1916642416
A121: =+MATCH(B121,RUT[EMPRESA],0) -> 26 | B121: BESALCO | C121: 3308299.508 | D121: 3308299.508 | F121: =IFERROR(INDEX($B$9:$B$511,MATCH(0,INDEX(COUNTIF($F$8:F120,$B$9:$B$511),0,0),0)),"") -> BESALCO | H121: 3308299.508
A122: =+MATCH(B122,RUT[EMPRESA],0) -> 198 | B122: LLEUQUEREO | C122: -173062.6503 | D122: -173062.6503 | F122: =IFERROR(INDEX($B$9:$B$511,MATCH(0,INDEX(COUNTIF($F$8:F121,$B$9:$B$511),0,0),0)),"") -> LLEUQUEREO | G122: -173062.6503
A123: =+MATCH(B123,RUT[EMPRESA],0) -> 73 | B123: CURILEUFU | C123: 3004508.024 | D123: 3004508.024 | F123: =IFERROR(INDEX($B$9:$B$511,MATCH(0,INDEX(COUNTIF($F$8:F122,$B$9:$B$511),0,0),0)),"") -> CURILEUFU | H123: 3004508.024
A124: =+MATCH(B124,RUT[EMPRESA],0) -> 180 | B124: JAVIERA | C124: -429239052.9 | D124: -429239052.9 | F124: =IFERROR(INDEX($B$9:$B$511,MATCH(0,INDEX(COUNTIF($F$8:F123,$B$9:$B$511),0,0),0)),"") -> JAVIERA | G124: -429239052.9
A125: =+MATCH(B125,RUT[EMPRESA],0) -> 80 | B125: DOSAL | C125: 0 | D125: 0 | F125: =IFERROR(INDEX($B$9:$B$511,MATCH(0,INDEX(COUNTIF($F$8:F124,$B$9:$B$511),0,0),0)),"") -> DOSAL
A126: =+MATCH(B126,RUT[EMPRESA],0) -> 202 | B126: LOS_GUINDOS | C126: -4514923.963 | D126: -4514923.963 | F126: =IFERROR(INDEX($B$9:$B$511,MATCH(0,INDEX(COUNTIF($F$8:F125,$B$9:$B$511),0,0),0)),"") -> LOS_GUINDOS | G126: -4514923.963
A127: =+MATCH(B127,RUT[EMPRESA],0) -> 28 | B127: BIOBIO_NEGRETE | C127: 15719580.13 | D127: 15719580.13 | F127: =IFERROR(INDEX($B$9:$B$511,MATCH(0,INDEX(COUNTIF($F$8:F126,$B$9:$B$511),0,0),0)),"") -> BIOBIO_NEGRETE | H127: 15719580.13
A128: =+MATCH(B128,RUT[EMPRESA],0) -> 210 | B128: LUZ_DEL_NORTE | C128: 519303994 | D128: 519303994 | F128: =IFERROR(INDEX($B$9:$B$511,MATCH(0,INDEX(COUNTIF($F$8:F127,$B$9:$B$511),0,0),0)),"") -> LUZ_DEL_NORTE | H128: 519303994
A129: =+MATCH(B129,RUT[EMPRESA],0) -> 270 | B129: RAKI | C129: 7290710.098 | D129: 7290710.098 | F129: =IFERROR(INDEX($B$9:$B$511,MATCH(0,INDEX(COUNTIF($F$8:F128,$B$9:$B$511),0,0),0)),"") -> RAKI | H129: 7290710.098
A130: =+MATCH(B130,RUT[EMPRESA],0) -> 311 | B130: TRAILELFU | C130: 7725244.063 | D130: 7725244.063 | F130: =IFERROR(INDEX($B$9:$B$511,MATCH(0,INDEX(COUNTIF($F$8:F129,$B$9:$B$511),0,0),0)),"") -> TRAILELFU | H130: 7725244.063
A131: =+MATCH(B131,RUT[EMPRESA],0) -> 123 | B131: ERNC1 | C131: -122988930.2 | D131: -122988930.2 | F131: =IFERROR(INDEX($B$9:$B$511,MATCH(0,INDEX(COUNTIF($F$8:F130,$B$9:$B$511),0,0),0)),"") -> ERNC1 | G131: -122988930.2
A132: =+MATCH(B132,RUT[EMPRESA],0) -> 153 | B132: GR_PAN_DE_AZUCAR | C132: 30078378.95 | D132: 30078378.95 | F132: =IFERROR(INDEX($B$9:$B$511,MATCH(0,INDEX(COUNTIF($F$8:F131,$B$9:$B$511),0,0),0)),"") -> GR_PAN_DE_AZUCAR | H132: 30078378.95
A133: =+MATCH(B133,RUT[EMPRESA],0) -> 258 | B133: PUCLARO | C133: 35407683.76 | D133: 35407683.76 | F133: =IFERROR(INDEX($B$9:$B$511,MATCH(0,INDEX(COUNTIF($F$8:F132,$B$9:$B$511),0,0),0)),"") -> PUCLARO | H133: 35407683.76
A134: =+MATCH(B134,RUT[EMPRESA],0) -> 176 | B134: HUAJACHE | C134: 5008953.176 | D134: 5008953.176 | F134: =IFERROR(INDEX($B$9:$B$511,MATCH(0,INDEX(COUNTIF($F$8:F133,$B$9:$B$511),0,0),0)),"") -> HUAJACHE | H134: 5008953.176
A135: =+MATCH(B135,RUT[EMPRESA],0) -> 97 | B135: EL_MIRADOR | C135: 4545154.037 | D135: 4545154.037 | F135: =IFERROR(INDEX($B$9:$B$511,MATCH(0,INDEX(COUNTIF($F$8:F134,$B$9:$B$511),0,0),0)),"") -> EL_MIRADOR | H135: 4545154.037
A136: =+MATCH(B136,RUT[EMPRESA],0) -> 277 | B136: RIO_MULCHEN | C136: 4242455.034 | D136: 4242455.034 | F136: =IFERROR(INDEX($B$9:$B$511,MATCH(0,INDEX(COUNTIF($F$8:F135,$B$9:$B$511),0,0),0)),"") -> RIO_MULCHEN | H136: 4242455.034
A137: =+MATCH(B137,RUT[EMPRESA],0) -> 89 | B137: EGP_SUR | C137: 349374610.4 | D137: 349374610.4 | F137: =IFERROR(INDEX($B$9:$B$511,MATCH(0,INDEX(COUNTIF($F$8:F136,$B$9:$B$511),0,0),0)),"") -> EGP_SUR | H137: 349374610.4
A138: =+MATCH(B138,RUT[EMPRESA],0) -> 16 | B138: ANDES_GENERACION | C138: 24604534.96 | D138: =+C138 -> 24604534.96 | F138: =IFERROR(INDEX($B$9:$B$511,MATCH(0,INDEX(COUNTIF($F$8:F137,$B$9:$B$511),0,0),0)),"") -> ANDES_GENERACION | G138: =IF(SUMIF($B$9:$B$400,F138,$D$9:$D$400)<-0.00001,SUMIF($B$9:$B$400,F138,$D$9:$D$400),"") ->  | H138: =IF(SUMIF($B$9:$B$400,F138,$D$9:$D$400)>0.00001,SUMIF($B$9:$B$400,F138,$D$9:$D$400),"") -> 24604534.96
A139: =+MATCH(B139,RUT[EMPRESA],0) -> 98 | B139: EL_MORADO | C139: 154850804.6 | D139: 154850804.6 | F139: =IFERROR(INDEX($B$9:$B$511,MATCH(0,INDEX(COUNTIF($F$8:F138,$B$9:$B$511),0,0),0)),"") -> EL_MORADO | H139: 154850804.6
A140: =+MATCH(B140,RUT[EMPRESA],0) -> 35 | B140: CAREN | C140: 178343559.7 | D140: 178343559.7 | F140: =IFERROR(INDEX($B$9:$B$511,MATCH(0,INDEX(COUNTIF($F$8:F139,$B$9:$B$511),0,0),0)),"") -> CAREN | H140: 178343559.7
A141: =+MATCH(B141,RUT[EMPRESA],0) -> 51 | B141: CHUNGUNGO | C141: 278230460.6 | D141: 278230460.6 | F141: =IFERROR(INDEX($B$9:$B$511,MATCH(0,INDEX(COUNTIF($F$8:F140,$B$9:$B$511),0,0),0)),"") -> CHUNGUNGO | H141: 278230460.6
A142: =+MATCH(B142,RUT[EMPRESA],0) -> 295 | B142: SPVP4 | C142: 10762501.54 | D142: 10762501.54 | F142: =IFERROR(INDEX($B$9:$B$511,MATCH(0,INDEX(COUNTIF($F$8:F141,$B$9:$B$511),0,0),0)),"") -> SPVP4 | H142: 10762501.54
A143: =+MATCH(B143,RUT[EMPRESA],0) -> 272 | B143: RENOVALIA_6 | C143: 17173871.14 | D143: 17173871.14 | F143: =IFERROR(INDEX($B$9:$B$511,MATCH(0,INDEX(COUNTIF($F$8:F142,$B$9:$B$511),0,0),0)),"") -> RENOVALIA_6 | H143: 17173871.14
A144: =+MATCH(B144,RUT[EMPRESA],0) -> 273 | B144: RENOVALIA_7 | C144: 17866189.14 | D144: 17866189.14 | F144: =IFERROR(INDEX($B$9:$B$511,MATCH(0,INDEX(COUNTIF($F$8:F143,$B$9:$B$511),0,0),0)),"") -> RENOVALIA_7 | H144: 17866189.14
A145: =+MATCH(B145,RUT[EMPRESA],0) -> 6 | B145: AGSA | C145: -13535037.6 | D145: -13535037.6 | F145: =IFERROR(INDEX($B$9:$B$511,MATCH(0,INDEX(COUNTIF($F$8:F144,$B$9:$B$511),0,0),0)),"") -> AGSA | G145: -13535037.6
A146: =+MATCH(B146,RUT[EMPRESA],0) -> 296 | B146: STERICYCLE | C146: 0 | D146: 0 | F146: =IFERROR(INDEX($B$9:$B$511,MATCH(0,INDEX(COUNTIF($F$8:F145,$B$9:$B$511),0,0),0)),"") -> STERICYCLE
A147: =+MATCH(B147,RUT[EMPRESA],0) -> 309 | B147: TILTIL_SOLAR | C147: 19240469.16 | D147: 19240469.16 | F147: =IFERROR(INDEX($B$9:$B$511,MATCH(0,INDEX(COUNTIF($F$8:F146,$B$9:$B$511),0,0),0)),"") -> TILTIL_SOLAR | H147: 19240469.16
A148: =+MATCH(B148,RUT[EMPRESA],0) -> 25 | B148: BELLAVISTA | C148: 6277510.051 | D148: 6277510.051 | F148: =IFERROR(INDEX($B$9:$B$511,MATCH(0,INDEX(COUNTIF($F$8:F147,$B$9:$B$511),0,0),0)),"") -> BELLAVISTA | H148: 6277510.051
A149: =+MATCH(B149,RUT[EMPRESA],0) -> 216 | B149: MALLARAUCO | C149: 94941933.02 | D149: 94941933.02 | F149: =IFERROR(INDEX($B$9:$B$511,MATCH(0,INDEX(COUNTIF($F$8:F148,$B$9:$B$511),0,0),0)),"") -> MALLARAUCO | H149: 94941933.02
A150: =+MATCH(B150,RUT[EMPRESA],0) -> 213 | B150: M_VILLARRICA | C150: 2273169.018 | D150: 2273169.018 | F150: =IFERROR(INDEX($B$9:$B$511,MATCH(0,INDEX(COUNTIF($F$8:F149,$B$9:$B$511),0,0),0)),"") -> M_VILLARRICA | H150: 2273169.018
A151: =+MATCH(B151,RUT[EMPRESA],0) -> 121 | B151: EOLICA_ESPERANZA | C151: 8073908.102 | D151: 8073908.102 | F151: =IFERROR(INDEX($B$9:$B$511,MATCH(0,INDEX(COUNTIF($F$8:F150,$B$9:$B$511),0,0),0)),"") -> EOLICA_ESPERANZA | H151: 8073908.102
A152: =+MATCH(B152,RUT[EMPRESA],0) -> 182 | B152: KDM_ENERGIA | C152: -475357781.5 | D152: -475357781.5 | F152: =IFERROR(INDEX($B$9:$B$511,MATCH(0,INDEX(COUNTIF($F$8:F151,$B$9:$B$511),0,0),0)),"") -> KDM_ENERGIA | G152: -475357781.5
